Workbook

Sheet 0_Taula Farratges
A1: Nom | B1: MS % | C1: UFL | D1: UFV | E1: MNT_PB | F1: PDIA | G1: PDI | H1: BPR | I1: UEL | J1: UEB | K1: UEM | L1: NI ref | M1: dMO | N1: MOD | O1: EE | P1: FB | Q1: NDF | R1: ADF | S1: Lignina | T1: cendres | U1: Ca | V1: P | W1: Mg | X1: Cl | Y1: K | Z1: Na | AA1: S | AB1: Co | AC1: Cu | AD1: Mo | AE1: Iode | AF1: Fe | AG1: Mn | AH1: Se | AI1: Zn | AJ1: Vit A | AK1: Vit D | AL1: Vit E | AM1: AG | AN1: DT_N | AO1: PF | AP1: MOF
A3: VERD Raigràs italià Fulla tardor/hivern | B3: 16.6 | C3: 0.987525423 | D3: 0.968623439 | E3: 190 | F3: 37.05 | G3: 83.72930525 | H3: 43.99629972 | I3: 0.9908485486 | J3: 0.9829225231 | K3: 0.9787806617 | L3: 2.753201964 | M3: 0.75792 | N3: 649.53744 | O3: 41 | P3: 238 | Q3: 531.32 | R3: 265 | T3: 143 | U3: 2.28 | V3: 2.58 | AM3: 27.18 | AN3: 0.74 | AP3: 566.5326882
A4: VERD Raigràs italià Fulla primavera | B4: 15.1 | C4: 1.1 | D4: 1.09899354 | E4: 191 | F4: 34.38 | G4: 86.07504607 | H4: 44.12488481 | I4: 0.9708980146 | J4: 0.9494630462 | K4: 0.9358514742 | L4: 2.879496281 | M4: 0.81287 | N4: 704.75829 | O4: 43 | P4: 178 | Q4: 462.92 | R4: 203 | T4: 133 | U4: 2 | V4: 2.4 | W4: 1.7 | Y4: 30 | Z4: 3 | AC4: 8.1 | AG4: 85.1 | AM4: 27.285 | AN4: 0.76 | AP4: 628.165719
A5: VERD Raigràs italià Espiga a 10 cm | B5: 15.8 | C5: 1.073514419 | D5: 1.069426873 | E5: 168 | F5: 26.46 | G5: 77.8462145 | H5: 31.10451486 | I5: 0.9910346389 | J5: 0.9832391547 | K5: 0.9791911182 | L5: 2.752047879 | M5: 0.79572 | N5: 705.00792 | O5: 39 | P5: 188 | Q5: 474.32 | R5: 213 | T5: 114 | U5: 1.8 | V5: 2.1 | W5: 1.7 | Y5: 30 | Z5: 3 | AA5: 1 | AC5: 8.1 | AG5: 85.1 | AM5: 24.87 | AN5: 0.79 | AP5: 636.2376237
A6: VERD Raigràs italià 1 setmana abans inici espigat | B6: 16.4 | C6: 0.9568987067 | D6: 0.9279323027 | E6: 112 | F6: 22.68 | G6: 69.96884231 | H6: -17.0368975 | I6: 1.057101244 | J6: 1.101295022 | K6: 1.137999252 | L6: 2.36799878 | M6: 0.7379 | N6: 663.3721 | O6: 33 | P6: 230 | Q6: 522.2 | R6: 257 | T6: 101 | U6: 1.8 | V6: 1.8 | W6: 1.7 | Y6: 30 | Z6: 3 | AA6: 1 | AC6: 6 | AG6: 80 | AI6: 23 | AJ6: 80000 | AK6: 30 | AL6: 20 | AM6: 18.99 | AN6: 0.73 | AP6: 597.0361265
A7: VERD Raigràs italià Inici espigat | B7: 16.5 | C7: 0.9368495611 | D7: 0.9041024886 | E7: 105 | F7: 21.2625 | G7: 67.81242603 | H7: -21.5953848 | I7: 1.067222853 | J7: 1.120433875 | K7: 1.164876603 | L7: 2.313361632 | M7: 0.72817 | N7: 654.62483 | O7: 32 | P7: 238 | Q7: 531.32 | R7: 265 | T7: 101 | U7: 1.8 | V7: 1.8 | W7: 1.7 | Y7: 30 | Z7: 3 | AA7: 1 | AC7: 5 | AG7: 80 | AI7: 23 | AJ7: 80000 | AK7: 30 | AL7: 20 | AM7: 18.255 | AN7: 0.73 | AP7: 589.3655744
A8: VERD Raigràs italià Espigat | B8: 17.8 | C8: 0.8818407587 | D8: 0.8377966687 | E8: 88 | F8: 19.14 | G8: 63.38289694 | H8: -34.0522143 | I8: 1.091434895 | J8: 1.167439208 | K8: 1.232308365 | L8: 2.186774769 | M8: 0.69765 | N8: 629.97795 | O8: 30 | P8: 265 | Q8: 562.1 | R8: 293 | T8: 97 | U8: 1.8 | V8: 1.5 | AC8: 5 | AG8: 79.6 | AI8: 23.8 | AJ8: 80000 | AK8: 30 | AL8: 20 | AM8: 16.47 | AN8: 0.71 | AP8: 565.5384465
A9: VERD Raigràs italià Final espigat | B9: 20.4 | C9: 0.8544008851 | D9: 0.8031831803 | E9: 80 | F9: 17.4 | G9: 60.32551195 | H9: -38.91893425 | I9: 1.096771795 | J9: 1.178039486 | K9: 1.247801042 | L9: 2.15962381 | M9: 0.67756 | N9: 617.93472 | O9: 29 | P9: 284 | Q9: 583.76 | R9: 313 | T9: 88 | U9: 1.8 | V9: 1.5 | W9: 2.3 | Y9: 26 | Z9: 1.5 | AJ9: 80000 | AK9: 30 | AL9: 20 | AM9: 15.63 | AN9: 0.71 | AP9: 554.2271801
A10: VERD Raigràs italià Inici floració | B10: 24 | C10: 0.8342394507 | D10: 0.7793634604 | E10: 70 | F10: 15.225 | G10: 57.3422064 | H10: -45.48047731 | I10: 1.094099952 | J10: 1.172721579 | K10: 1.240015355 | L10: 2.173183444 | M10: 0.66587 | N10: 608.60518 | O10: 28 | P10: 293 | Q10: 594.02 | R10: 322 | T10: 86 | U10: 1.8 | V10: 1.2 | AJ10: 80000 | AK10: 30 | AL10: 20 | AM10: 14.58 | AN10: 0.71 | AP10: 546.7382102
A11: VERD Raigràs italià Floració | B11: 27.5 | C11: 0.8068536711 | D11: 0.7469697818 | E11: 60 | F11: 13.5 | G11: 54.39933876 | H11: -52.28407859 | I11: 1.094509341 | J11: 1.173534971 | K11: 1.241204453 | L11: 2.171101492 | M11: 0.64963 | N11: 595.06108 | O11: 27 | P11: 307 | Q11: 609.98 | R11: 337 | T11: 84 | U11: 1.8 | V11: 1.2 | AJ11: 80000 | AK11: 30 | AL11: 20 | AM11: 13.53 | AN11: 0.7 | AP11: 534.2709123
A12: VERD Blat de moro Pastós | B12: 30.7 | C12: 1.336519373 | D12: 1.297656969 | E12: 77.4 | F12: 13.932 | G12: 58.79146932 | H12: -42.36519209 | I12: 1.02870768 | J12: 1.049139944 | K12: 1.066392013 | L12: 1.4 | M12: 0.720464135 | N12: 687.4668776 | O12: 23.8 | P12: 208 | Q12: 454.4 | R12: 243.9 | S12: 29.5 | T12: 45.8 | U12: 0.84 | V12: 1.61 | AA12: 1.1 | AF12: 160 | AJ12: 80000 | AK12: 30 | AL12: 20 | AM12: 15.357 | AN12: 0.76 | AP12: 630.3086521
A13: VERD Civada Inici allargament tiges | B13: 14.9 | C13: 1.064086631 | D13: 1.064854725 | E13: 120 | F13: 26.1 | G13: 78.54094724 | H13: -13.57775696 | I13: 1.020791557 | J13: 1.034988504 | K13: 1.047364373 | L13: 2.572916273 | M13: 0.8100113766 | N13: 712 | O13: 34 | P13: 230 | Q13: 522.2 | R13: 257 | T13: 121 | U13: 2 | V13: 2.64 | AJ13: 80000 | AK13: 30 | AL13: 20 | AM13: 19.83 | AN13: 0.74 | AP13: 646.839457
A14: VERD Civada Inici espigat | B14: 20.6 | C14: 0.9133309306 | D14: 0.8741939522 | E14: 102 | F14: 19.89 | G14: 65.21758227 | H14: -21.9507916 | I14: 1.060258573 | J14: 1.1072336 | K14: 1.146303874 | L14: 2.350843351 | M14: 0.7104972376 | N14: 643 | O14: 32 | P14: 302 | Q14: 604.28 | R14: 331 | T14: 95 | U14: 1.8 | V14: 2.31 | AJ14: 80000 | AK14: 30 | AL14: 20 | AM14: 17.94 | AN14: 0.74 | AP14: 578.0360445
A15: VERD Civada Floració | B15: 17.7 | C15: 0.8229420319 | D15: 0.7662555366 | E15: 101 | F15: 18.9375 | G15: 59.89304518 | H15: -17.97919135 | I15: 1.102855944 | J15: 1.190232315 | K15: 1.265754423 | L15: 2.128991841 | M15: 0.66 | N15: 594 | O15: 32 | P15: 333 | Q15: 639.62 | R15: 364 | T15: 100 | U15: 1.6 | V15: 1.98 | AJ15: 80000 | AK15: 30 | AL15: 20 | AM15: 17.835 | AN15: 0.75 | AP15: 526.5534262
A16: VERD Civada Lletós-pastós | B16: 31.8 | C16: 0.735658448 | D16: 0.6565506562 | E16: 67 | F16: 12.5625 | G16: 48.69970816 | H16: -40.32371469 | I16: 1.10231487 | J16: 1.18914327 | K16: 1.26414502 | L16: 2.131702295 | M16: 0.5894396552 | N16: 547 | O16: 25 | P16: 270 | Q16: 567.8 | R16: 298 | T16: 72 | U16: 1.4 | V16: 1.65 | AJ16: 80000 | AK16: 30 | AL16: 20 | AM16: 14.265 | AN16: 0.75 | AP16: 482.6664074
A17: VERD Civada Pastós | B17: 38.3 | C17: 0.7072537332 | D17: 0.6232506884 | E17: 63 | F17: 12.285 | G17: 46.82400532 | H17: -42.66801408 | I17: 1.085210225 | J17: 1.155186303 | K17: 1.214532939 | L17: 2.218779543 | M17: 0.5698924731 | N17: 530 | O17: 25 | P17: 263 | Q17: 559.82 | R17: 291 | T17: 70 | U17: 1.2 | V17: 1.65 | AJ17: 80000 | AK17: 30 | AL17: 20 | AM17: 13.845 | AN17: 0.74 | AP17: 464.7846187
A18: VERD Triticale Lletós-pastós | B18: 40.51 | C18: 0.7866308836 | D18: 0.7130740068 | E18: 71.9 | F18: 13.48125 | G18: 51.74268223 | H18: -38.67729114 | I18: 1.046395966 | J18: 1.081369429 | K18: 1.110363008 | L18: 2.426936796 | M18: 0.6102620087 | N18: 574.9278384 | O18: 14.8 | P18: 299 | Q18: 618.4 | R18: 350.1 | S18: 43.5 | T18: 57.9 | U18: 1.16 | V18: 0.99 | W18: 2.7 | Y18: 25 | Z18: 1.7 | AA18: 3 | AC18: 8.6 | AD18: 0.44 | AG18: 43.9 | AI18: 24.1 | AJ18: 80000 | AK18: 30 | AL18: 20 | AM18: 14.7795 | AN18: 0.75 | AP18: 510.8802662
A19: VERD Alfals Inici botons florals | B19: 19.83 | C19: 0.8954507068 | D19: 0.8453932124 | E19: 196.7 | F19: 33.93075 | G19: 74.37573864 | H19: 59.44643611 | I19: 0.9783295072 | J19: 0.9618149826 | K19: 0.9515972519 | L19: 2.83185017 | M19: 0.674826 | N19: 585.2091072 | O19: 22.6 | P19: 277.4 | Q19: 442.1 | R19: 334.4 | S19: 74.3 | T19: 132.8 | U19: 5.43 | V19: 1.75 | AC19: 8.8 | AD19: 1.3 | AG19: 26.7 | AI19: 32.3 | AJ19: 120000 | AK19: 20 | AL19: 100 | AM19: 20.3135 | AN19: 0.77 | AP19: 502.6782183
A20: VERD Alfals Vegetatiu 30 cm | B20: 14.4 | C20: 1.057970395 | D20: 1.037917837 | E20: 246 | F20: 40.59 | G20: 87.13790609 | H20: 95.11408255 | I20: 0.9343019937 | J20: 0.8904932233 | K20: 0.8622791436 | L20: 3.125183834 | M20: 0.75199 | N20: 654.98329 | O20: 33 | P20: 201 | Q20: 489.14 | R20: 259 | T20: 129 | U20: 4.95 | V20: 3.15 | AC20: 8.8 | AD20: 1.3 | AG20: 26.7 | AI20: 32.3 | AJ20: 120000 | AK20: 20 | AL20: 100 | AM20: 25.49 | AN20: 0.78 | AP20: 568.7888379
A21: VERD Enclova fulla, 1r any | B21: 11 | C21: 1.096854529 | D21: 1.092315415 | E21: 233.5 | F21: 47.28375 | G21: 101.4759961 | H21: 71.57961546 | I21: 0.9440674911 | J21: 0.9059343706 | K21: 0.8812924975 | L21: 3.057759878 | M21: 0.789865 | N21: 687.814442 | O21: 27 | P21: 163.5 | Q21: 249.6 | R21: 234.1 | T21: 129.2 | U21: 3.3 | V21: 2.1 | AM21: 24.1775 | AN21: 0.73 | AP21: 598.1277405
A22: VERD Enclova tija fulla, 1r any | B22: 11.5 | C22: 1.018584209 | D22: 0.9979952283 | E22: 186 | F22: 37.665 | G22: 91.19718606 | H22: 37.93595928 | I22: 0.988232989 | J22: 0.9784811434 | K22: 0.9730315989 | L22: 2.76946899 | M22: 0.754515 | N22: 664.0486515 | O22: 27 | P22: 198.5 | Q22: 280.5 | R22: 269.9 | T22: 119.9 | U22: 3.3 | V22: 2.1 | AM22: 19.19 | AN22: 0.73 | AP22: 583.7835984
A23: VERD Enclova gemmes florals, 1r any | B23: 11.91 | C23: 0.971662067 | D23: 0.9400058138 | E23: 170.3 | F23: 34.48575 | G23: 87.26725566 | H23: 27.64789741 | I23: 1.00280174 | J23: 1.003435006 | K23: 1.005537317 | L23: 2.679941156 | M23: 0.727447 | N23: 645.6819572 | O23: 27 | P23: 225.3 | Q23: 323.9 | R23: 304.2 | T23: 112.4 | U23: 3.6 | V23: 2.1 | AM23: 17.5415 | AN23: 0.73 | AP23: 567.4701334
A24: VERD Enclova Botons florals, 1r any | B24: 13.77 | C24: 0.9661408557 | D24: 0.9305393291 | E24: 168.9 | F24: 34.20225 | G24: 86.94535264 | H24: 26.68590212 | I24: 1.000730959 | J24: 0.9998558827 | K24: 1.000844288 | L24: 2.692507587 | M24: 0.717953 | N24: 645.1525658 | O24: 27 | P24: 234.7 | Q24: 348.5 | R24: 330.4 | T24: 101.4 | U24: 3.6 | V24: 2.1 | AM24: 17.3945 | AN24: 0.73 | AP24: 566.6355756
A25: VERD Enclova Inici Floració, 1r any | B25: 14.5 | C25: 0.9196215428 | D25: 0.8756744961 | E25: 167 | F25: 32.565 | G25: 84.17295987 | H25: 28.74256271 | I25: 1.010019035 | J25: 1.015994101 | K25: 1.022087499 | L25: 2.63654613 | M25: 0.695127 | N25: 620.3313348 | O25: 23 | P25: 257.3 | Q25: 366 | R25: 334.1 | T25: 107.6 | U25: 3.6 | V25: 2.1 | AM25: 17.195 | AN25: 0.74 | AP25: 541.967139
A26: VERD Enclova Floració, 1r any | B26: 14.92 | C26: 0.8896999035 | D26: 0.8413566291 | E26: 162.4 | F26: 31.668 | G26: 82.56252045 | H26: 26.45331179 | I26: 1.017849675 | J26: 1.029771407 | K26: 1.040391915 | L26: 2.590159344 | M26: 0.682098 | N26: 604.6116672 | O26: 23 | P26: 270.2 | Q26: 390.1 | R26: 346.3 | T26: 113.6 | U26: 2.7 | V26: 3.5 | AM26: 16.712 | AN26: 0.74 | AP26: 526.4629793
A27: VERD Enclova Fructificació, 1r any | B27: 18.93 | C27: 0.7740194666 | D27: 0.7050334795 | E27: 130.8 | F27: 25.506 | G27: 74.01316404 | H27: 6.799556184 | I27: 1.056133358 | J27: 1.099480224 | K27: 1.135467666 | L27: 2.373278359 | M27: 0.618165 | N27: 549.4868685 | O27: 21 | P27: 333.5 | Q27: 519.6 | R27: 450.7 | T27: 111.1 | U27: 2.7 | V27: 3.5 | AM27: 13.394 | AN27: 0.74 | AP27: 474.5819724
A28: VERD Enclova fulla, 2n any | B28: 11 | C28: 1.099747568 | D28: 1.095573936 | E28: 240.5 | F28: 48.70125 | G28: 102.775997 | H28: 76.87320774 | I28: 0.9385770623 | J28: 0.8972271293 | K28: 0.8705493025 | L28: 3.095494801 | M28: 0.790269 | N28: 686.9808417 | O28: 27 | P28: 163.1 | Q28: 272.8 | R28: 253.3 | T28: 130.7 | U28: 3.3 | V28: 2.1 | AM28: 24.9125 | AN28: 0.73 | AP28: 595.5743013
A29: VERD Enclova tija fulla, 2n any | B29: 10.03 | C29: 1.027185591 | D29: 1.007222315 | E29: 206.5 | F29: 41.81625 | G29: 95.04208597 | H29: 53.3796313 | I29: 0.9734076994 | J29: 0.9536197806 | K29: 0.9411371114 | L29: 2.863324384 | M29: 0.755121 | N29: 662.4676533 | O29: 27 | P29: 197.9 | Q29: 311.2 | R29: 290.4 | T29: 122.7 | U29: 3.3 | V29: 2.1 | AM29: 21.3425 | AN29: 0.73 | AP29: 577.1261293
A30: VERD Enclova gemmes florals,2n any | B30: 12.06 | C30: 0.9414798783 | D30: 0.9030186208 | E30: 177.4 | F30: 35.9235 | G30: 87.76027264 | H30: 34.30704275 | I30: 1.00595395 | J30: 1.008904022 | K30: 1.012728493 | L30: 2.660911447 | M30: 0.709469 | N30: 628.1638526 | O30: 27 | P30: 243.1 | Q30: 360.2 | R30: 330.5 | T30: 114.6 | U30: 3.6 | V30: 2.1 | AM30: 18.287 | AN30: 0.73 | AP30: 546.9396001
A31: VERD Enclova Botons Florals, 2n any | B31: 12.51 | C31: 0.8951169505 | D31: 0.8483103437 | E31: 168.9 | F31: 34.20225 | G31: 85.02746379 | H31: 29.68260345 | I31: 1.021257856 | J31: 1.035817512 | K31: 1.048474402 | L31: 2.570192304 | M31: 0.686441 | N31: 605.6468943 | O31: 27 | P31: 265.9 | Q31: 382.3 | R31: 352.4 | T31: 117.7 | U31: 3.6 | V31: 2.1 | AM31: 17.3945 | AN31: 0.73 | AP31: 524.9568365
A32: VERD Enclova Inici Floració, 2n any | B32: 15.37 | C32: 0.8688196702 | D32: 0.8142223989 | E32: 151.5 | F32: 29.5425 | G32: 80.22335033 | H32: 18.72117137 | I32: 1.03172308 | J32: 1.054574304 | K32: 1.073743818 | L32: 2.50970557 | M32: 0.666039 | N32: 598.4360415 | O32: 23 | P32: 286.1 | Q32: 406 | R32: 371.5 | T32: 101.5 | U32: 3.6 | V32: 2.1 | AM32: 15.5675 | AN32: 0.74 | AP32: 521.8195916
A33: VERD Enclova Floració, 2n any | B33: 17.12 | C33: 0.8321434211 | D33: 0.7722857657 | E33: 141.1 | F33: 27.5145 | G33: 77.40801428 | H33: 12.25538394 | I33: 1.04040746 | J33: 1.070362352 | K33: 1.095245434 | L33: 2.460435584 | M33: 0.64897 | N33: 579.984489 | O33: 23 | P33: 303 | Q33: 452.6 | R33: 406.5 | T33: 106.3 | U33: 2.7 | V33: 3.5 | AM33: 14.4755 | AN33: 0.74 | AP33: 504.7095418
A34: VERD Enclova Fructificació, 2n any | B34: 20.03 | C34: 0.7714311913 | D34: 0.6990913505 | E34: 135.4 | F34: 26.403 | G34: 74.79356037 | H34: 10.38574942 | I34: 1.052200861 | J34: 1.092134028 | K34: 1.125249773 | L34: 2.394829046 | M34: 0.609681 | N34: 548.6519319 | O34: 21 | P34: 341.9 | Q34: 491.1 | R34: 452.9 | T34: 100.1 | U34: 2.7 | V34: 3.5 | AM34: 13.877 | AN34: 0.74 | AP34: 472.0479914
A35: VERD Enclova Botons | B35: 11 | C35: 0.9871458131 | D35: 0.9668537027 | E35: 199 | F35: 40.2975 | G35: 86.21303252 | H35: 49.55476384 | I35: 0.9828422118 | J35: 0.9693798556 | K35: 0.9612993691 | L35: 2.803269123 | M35: 0.753 | N35: 637.791 | O35: 27 | P35: 200 | Q35: 488 | R35: 230 | T35: 153 | U35: 3.3 | V35: 2.1 | AJ35: 120000 | AK35: 20 | AL35: 100 | AM35: 20.555 | AN35: 0.73 | AP35: 554.1757463
A36: VERD Enclova Floració | B36: 13.5 | C36: 0.8566351193 | D36: 0.8059033998 | E36: 155 | F36: 30.225 | G36: 70.91503133 | H36: 22.20440079 | I36: 1.033625341 | J36: 1.058015117 | K36: 1.078411657 | L36: 2.498842463 | M36: 0.67321 | N36: 586.36591 | O36: 23 | P36: 279 | Q36: 578.06 | R36: 305.05 | T36: 129 | U36: 3.6 | V36: 2.1 | AJ36: 120000 | AK36: 20 | AL36: 100 | AM36: 15.935 | AN36: 0.74 | AP36: 509.3963728
A37: VERD Enclova Final floració | B37: 15.3 | C37: 0.8276145297 | D37: 0.7672213764 | E37: 152 | F37: 29.64 | G37: 68.69210074 | H37: 20.9161303 | I37: 1.041416423 | J37: 1.072209943 | K37: 1.097775658 | L37: 2.454764615 | M37: 0.64695 | N37: 574.4916 | O37: 21 | P37: 305 | Q37: 607.7 | R37: 329.75 | T37: 112 | U37: 2.7 | V37: 3.5 | AJ37: 120000 | AK37: 20 | AL37: 100 | AM37: 15.62 | AN37: 0.74 | AP37: 496.437687
A38: ENSITJAT prefenificat Raigràs italià 1 setmana abans inici espigat | B38: 33.5 | C38: 0.9154038958 | D38: 0.8723292381 | E38: 123 | F38: 17 | G38: 67 | H38: 5 | I38: 1.05 | J38: 1.07 | K38: 1.35 | L38: 2 | M38: 0.73 | N38: 649.7 | O38: 36 | P38: 246 | Q38: 510 | R38: 275 | T38: 110 | U38: 1.84 | V38: 1.56 | AJ38: 8000 | AK38: 200 | AL38: 5 | AM38: 19 | AN38: 0.79 | AO38: 80 | AP38: 588.49475
A39: ENSITJAT prefenificat Raigràs italià Inici espigat | B39: 33.5 | C39: 0.88 | D39: 0.82 | E39: 117 | F39: 16 | G39: 65 | H39: 1 | I39: 1.06 | J39: 1.08 | K39: 1.39 | L39: 1.9 | M39: 0.706043 | N39: 631.9 | O39: 35 | P39: 254 | Q39: 520 | R39: 283 | T39: 110 | U39: 1.84 | V39: 1.56 | AJ39: 8000 | AK39: 200 | AL39: 5 | AM39: 19 | AN39: 0.79 | AO39: 80 | AP39: 570.0426753
A40: ENSITJAT prefenificat Raigràs italià Final espigat | B40: 33.5 | C40: 0.78 | D40: 0.71 | E40: 95 | F40: 12 | G40: 59 | H40: -14 | I40: 1.11 | J40: 1.18 | K40: 1.62 | L40: 1.7 | M40: 0.66 | N40: 594.66 | O40: 33 | P40: 297 | Q40: 571 | R40: 327 | T40: 99 | U40: 1.84 | V40: 1.38 | AJ40: 8000 | AK40: 200 | AL40: 5 | AM40: 17 | AN40: 0.79 | AO40: 80 | AP40: 534.52605
A41: ERGI 1 cicle Moises 22 | B41: 25,1 | C41: 0.7467018162 | D41: 0.6588544918 | E41: 157.7 | F41: 15.37575 | G41: 58.72459543 | H41: 52.11242902 | I41: 1.187970696 | J41: 1.319362583 | K41: 1.462790435 | L41: 1.842219347 | M41: 0.5905643564 | N41: 527.9645347 | O41: 31.1 | P41: 362.3762376 | Q41: 626 | R41: 324.5 | S41: 34.8 | T41: 106 | U41: 0.8 | V41: 1.2 | AM41: 21.8591 | AN41: 0.85 | AO41: 95 | AP41: 362.483602
A42: ENSITJAT Prat natural pla, gramínies en gran part | B42: 48 | C42: 0.9301076693 | D42: 0.8656931921 | E42: 114.3 | F42: 15.0876 | G42: 51.5305866 | H42: -5.252929949 | I42: 1.131789867 | J42: 1.229566374 | K42: 1.638343115 | L42: 1.644820804 | M42: 0.668711 | N42: 599.165056 | O42: 22.2 | P42: 311.3 | Q42: 584.2 | R42: 385 | T42: 104 | U42: 3.48 | V42: 1.82 | AJ42: 8000 | AK42: 200 | AL42: 5 | AM42: 18.2569 | AN42: 0.78 | AO42: 115 | AP42: 535.9795542
A43: ENSITJAT Blat de moro Lletós | B43: 28.5 | C43: 0.9421569565 | D43: 0.8895769703 | E43: 78.1 | F43: 13.6675 | G43: 49.99866751 | H43: -39.59697674 | I43: 1.080663836 | J43: 1.19129726 | K43: 1.345532831 | L43: 1.4 | M43: 0.69 | N43: 651.222 | O43: 33.3 | P43: 232.6 | Q43: 488.2 | R43: 278.4 | S43: 30.4 | T43: 56.2 | U43: 1.44 | V43: 1.61 | AM43: 24 | AN43: 0.75 | AO43: 100 | AP43: 588.3446
A44: ENSITJAT Blat de moro Lletós-pastós | B44: 28.5 | C44: 0.9787464011 | D44: 0.9339294308 | E44: 78.1 | F44: 13.6675 | G44: 51.60752582 | H44: -41.05332562 | I44: 1.042209484 | J44: 1.152562936 | K44: 1.284686536 | L44: 1.4 | M44: 0.71 | N44: 670.098 | O44: 33.3 | P44: 232.6 | Q44: 488.2 | R44: 278.4 | S44: 30.4 | T44: 56.2 | U44: 1.44 | V44: 1.61 | AM44: 24 | AN44: 0.75 | AO44: 125 | AP44: 608.5998
A45: ENSITJAT Blat de moro Pastós | B45: 30 | C45: 0.9962612852 | D45: 0.9540342158 | E45: 77 | F45: 13.475 | G45: 54.02881787 | H45: -42.65449475 | I45: 1.01329589 | J45: 1.116491162 | K45: 1.278523867 | L45: 1.4 | M45: 0.717 | N45: 680.2179 | O45: 34.4 | P45: 216.5 | Q45: 450.9 | R45: 287.5 | S45: 29.3 | T45: 51.3 | U45: 1.2 | V45: 1.54 | AM45: 24 | AN45: 0.75 | AO45: 80 | AP45: 619.39492
A46: ENSITJAT Blat de moro Pastós-vidriós | B46: 32 | C46: 0.9831423928 | D46: 0.9382032062 | E46: 75.9 | F46: 13.2825 | G46: 52.11647112 | H46: -42.99002243 | I46: 1.004191288 | J46: 1.098575718 | K46: 1.284420211 | L46: 1.4 | M46: 0.7101910828 | N46: 673.6872611 | O46: 32.1 | P46: 203.7 | Q46: 432.7 | R46: 244.4 | S46: 22.9 | T46: 51.4 | U46: 1.2 | V46: 1.61 | AM46: 24 | AN46: 0.75 | AO46: 100 | AP46: 612.5872382
A47: ENSITJAT Blat de moro Vidriós | B47: 32 | C47: 0.9640116468 | D47: 0.9154634589 | E47: 76 | F47: 13.3 | G47: 51.89904202 | H47: -42.13633028 | I47: 1.020614142 | J47: 1.114790276 | K47: 1.304256824 | L47: 1.4 | M47: 0.7008046463 | N47: 663.5218391 | O47: 32 | P47: 202 | Q47: 432.4 | R47: 244.4 | S47: 26.5 | T47: 53.2 | U47: 1.24 | V47: 1.61 | AM47: 24 | AN47: 0.75 | AO47: 80 | AP47: 601.7570275
A48: EBM moises | B48: 34,14 | C48: 0.9880808024 | D48: 0.9429082876 | E48: 75 | F48: 13.125 | G48: 61.63450478 | H48: -33.74610122 | I48: 0.9824749708 | J48: 1.068176595 | K48: 1.284420211 | L48: 1.4 | M48: 0.7101910828 | N48: 677.3802548 | O48: 35 | P48: 174.8201439 | Q48: 420 | R48: 256.9 | T48: 46.2 | U48: 1.2 | V48: 1.61 | AM48: 24 | AN48: 0.75 | AO48: 100 | AP48: 474.6328403
A49: ENSITJAT Civada Lletós-pastós | B49: 31 | C49: 0.6642411484 | D49: 0.5695207363 | E49: 96.6 | F49: 18.9336 | G49: 47.97507469 | H49: -17.51123621 | I49: 1.154955419 | J49: 1.282660589 | K49: 1.791224433 | L49: 1.504435061 | M49: 0.56 | N49: 508.704 | O49: 45 | P49: 333.4 | Q49: 600.1 | R49: 385.3 | S49: 49.3 | T49: 91.6 | U49: 2.16 | V49: 1.848 | AC49: 5 | AD49: 0.13 | AG49: 30 | AJ49: 5000 | AK49: 200 | AL49: 5 | AM49: 19 | AN49: 0.72 | AO49: 80 | AP49: 433.84195
A50: ENSITJAT Ordi Lletós-pastós | B50: 30.5 | C50: 0.721420216 | D50: 0.6340131908 | E50: 98.8 | F50: 19.3648 | G50: 51.13221978 | H50: -18.30719857 | I50: 1.147495958 | J50: 1.265287422 | K50: 1.745392764 | L50: 1.543939505 | M50: 0.5903225806 | N50: 540.1451613 | O50: 40.7 | P50: 278.4 | Q50: 533.3 | R50: 328.5 | S50: 42.9 | T50: 85 | U50: 2.12 | V50: 1.782 | AJ50: 5000 | AK50: 200 | AL50: 5 | AM50: 19 | AN50: 0.72 | AO50: 80 | AP50: 466.9429565
A51: Ensitjat ordi SG | B51: 26,9 | C51: 0.7491819423 | D51: 0.6635064542 | E51: 110.5 | F51: 21.658 | G51: 66.70521997 | H51: -5.026281205 | I51: 1.132099884 | J51: 1.233221694 | K51: 1.69763915 | L51: 1.587369636 | M51: 0.6 | N51: 554.22 | O51: 30 | P51: 320.9 | Q51: 584.199 | R51: 366.273 | T51: 76.3 | U51: 1.6 | V51: 1.32 | AM51: 19 | AN51: 0.72 | AO51: 80 | AP51: 399.39195
A52: ENSITJAT Sorgo Pastós | B52: 24 | C52: 0.8946611737 | D52: 0.8448988526 | E52: 102.3 | F52: 26.4957 | G52: 67.48794219 | H52: -32.54844063 | I52: 1.126297354 | J52: 1.216028017 | K52: 1.608406605 | L52: 1.675435074 | M52: 0.701 | N52: 644.7097 | O52: 25 | P52: 293.4 | Q52: 586.4 | R52: 346.8 | S52: 42.4 | T52: 80.3 | U52: 2.24 | V52: 1.584 | AJ52: 5000 | AK52: 200 | AL52: 5 | AM52: 19 | AN52: 0.63 | AO52: 80 | AP52: 572.00891
A53: ENSITJAT Triticale lletós | B53: 28.1 | C53: 0.7185428841 | D53: 0.6315093177 | E53: 99.8 | F53: 19.5608 | G53: 51.20239422 | H53: -17.39059614 | I53: 1.146293336 | J53: 1.262798213 | K53: 1.742230253 | L53: 1.546742077 | M53: 0.5903225806 | N53: 537.6067742 | O53: 46.6 | P53: 329.3 | Q53: 589.7 | R53: 373.5 | S53: 46.2 | T53: 89.3 | U53: 1.96 | V53: 1.914 | AJ53: 5000 | AK53: 200 | AL53: 5 | AM53: 19 | AN53: 0.72 | AO53: 80 | AP53: 464.2085694
A54: ENSITJAT prefenificat Alfals Inici botons florals | B54: 45 | C54: 0.980732297 | D54: 0.9375437283 | E54: 213.6 | F54: 22.3212 | G54: 62.68377642 | H54: 81.82328754 | I54: 0.9797376592 | J54: 0.954797698 | K54: 1.099990717 | L54: 2.449821438 | M54: 0.709856 | N54: 621.9758272 | O54: 20.8 | P54: 247.2 | Q54: 407.2 | R54: 320.1 | S54: 64.3 | T54: 123.8 | U54: 3.84 | V54: 1.82 | AJ54: 3000 | AK54: 200 | AL54: 5 | AM54: 26.4988 | AN54: 0.83 | AO54: 80 | AP54: 550.6914111
A55: ENSITJAT prefenificat Alfals abans floració | B55: 43 | C55: 0.9478567903 | D55: 0.9046584391 | E55: 198.2 | F55: 21.802 | G55: 61.32585238 | H55: 64.24775046 | I55: 0.9937421911 | J55: 0.9777668498 | K55: 1.121023222 | L55: 2.403858178 | M55: 0.707306 | N55: 605.0295524 | O55: 18.7 | P55: 249.7 | Q55: 424.6 | R55: 336.1 | S55: 65.9 | T55: 144.6 | U55: 3.84 | V55: 1.82 | AJ55: 3000 | AK55: 200 | AL55: 5 | AM55: 25.2206 | AN55: 0.8 | AO55: 80 | AP55: 534.6627196
A56: ENSITJAT prefenificat Alfals rebrots floració | B56: 47 | C56: 1.003207297 | D56: 0.9674763745 | E56: 219.7 | F56: 27.79205 | G56: 68.85859238 | H56: 78.00981843 | I56: 0.972568435 | J56: 0.942718323 | K56: 1.084479733 | L56: 2.484860488 | M56: 0.726176 | N56: 627.779152 | O56: 17.8 | P56: 231.2 | Q56: 391.4 | R56: 298.9 | S56: 61.9 | T56: 135.5 | U56: 5.22 | V56: 2.45 | AJ56: 3000 | AK56: 200 | AL56: 5 | AM56: 27.0051 | AN56: 0.79 | AO56: 80 | AP56: 551.9218578
A57: ENSITJAT Enclova Botons Florals a Floració, Bolles | B57: 27.16 | C57: 0.754603903 | D57: 0.6728644459 | E57: 140.9 | F57: 16.27395 | G57: 57.0350509 | H57: 33.42177985 | I57: 1.075441606 | J57: 1.126048654 | K57: 1.267021205 | L57: 2.126863251 | M57: 0.60143 | N57: 526.25125 | O57: 27 | P57: 353.5 | Q57: 537.2 | R57: 351.6765 | T57: 125 | U57: 3.6 | V57: 2.1 | AM57: 20.4647 | AN57: 0.79 | AO57: 150 | AP57: 306.2478463
A58: ENSITJAT Enclova Inici Floració a Fructificació | B58: 19.66 | C58: 0.7669925154 | D58: 0.6858718121 | E58: 135.6 | F58: 15.6618 | G58: 56.90934942 | H58: 28.47470403 | I58: 1.080492689 | J58: 1.135321292 | K58: 1.273160331 | L58: 2.116607605 | M58: 0.605612 | N58: 535.7243752 | O58: 27 | P58: 349.4 | Q58: 589.3 | R58: 349.3026 | T58: 115.4 | U58: 3.6 | V58: 2.1 | AM58: 20.0248 | AN58: 0.79 | AO58: 150 | AP58: 316.8191373
A59: Fenc Graminies SG | B59: 83 | C59: 0.5002944594 | D59: 0.3905711571 | E59: 75 | F59: 13.125 | G59: 55.61263329 | H59: -24.33692702 | I59: 1.188081043 | J59: 1.363499085 | K59: 1.828866905 | L59: 1.473470175 | M59: 0.453912 | N59: 417.825996 | O59: 26 | P59: 452 | Q59: 775.28 | R59: 469.4 | T59: 79.5 | U59: 4.8 | V59: 2.4 | AM59: 13.855 | AN59: 0.75 | AP59: 343.7681088
A60: FENC Bromo Final vegetació | B60: 85 | C60: 0.7641928518 | D60: 0.6935543947 | E60: 100 | F60: 20.3 | G60: 58.49315002 | H60: -20.42784718 | I60: 1.083509489 | J60: 1.149054212 | K60: 1.470370044 | L60: 1.832722892 | M60: 0.62749 | N60: 564.741 | O60: 34 | P60: 320 | Q60: 640 | R60: 333 | T60: 100 | U60: 1.24 | V60: 2.03 | AJ60: 50000 | AK60: 50 | AL60: 5 | AM60: 15.93 | AN60: 0.71 | AP60: 494.5458579
A61: FENC Dàctil Floració | B61: 85 | C61: 0.6267609342 | D61: 0.5315550907 | E61: 88 | F61: 17.248 | G61: 48.36165599 | H61: -22.60508827 | I61: 1.134465219 | J61: 1.249296501 | K61: 1.633810149 | L61: 1.649384319 | M61: 0.537152 | N61: 491.49408 | O61: 27 | P61: 372 | Q61: 684.08 | R61: 404 | T61: 85 | U61: 0.92 | V61: 1.26 | AJ61: 50000 | AK61: 50 | AL61: 5 | AM61: 14.934 | AN61: 0.72 | AP61: 418.5686824
A62: FENC Festuca Floració | B62: 88.2 | C62: 0.7394322088 | D62: 0.6592885094 | E62: 116 | F62: 23.548 | G62: 59.75765181 | H62: -7.64311645 | I62: 1.079354117 | J62: 1.140751809 | K62: 1.457997654 | L62: 1.848275155 | M62: 0.6004725 | N62: 550.6332825 | O62: 27 | P62: 331 | Q62: 637.34 | R62: 354.45 | T62: 83 | U62: 0.92 | V62: 1.26 | AJ62: 50000 | AK62: 50 | AL62: 5 | AM62: 17.258 | AN62: 0.71 | AP62: 474.7304096
A63: FENC Raigràs italià Espigat | B63: 85 | C63: 0.7551388452 | D63: 0.682416558 | E63: 79 | F63: 13.825 | G63: 52.18563094 | H63: -32.77260482 | I63: 1.106265531 | J63: 1.193403103 | K63: 1.540819033 | L63: 1.74892754 | M63: 0.622116 | N63: 566.12556 | O63: 26 | P63: 307 | Q63: 609.98 | R63: 337 | T63: 90 | U63: 1.6 | V63: 1.61 | W63: 2 | Y63: 20 | Z63: 2 | AC63: 4.9 | AG63: 110 | AI63: 26.5 | AJ63: 50000 | AK63: 50 | AL63: 5 | AM63: 14.187 | AN63: 0.75 | AP63: 502.8178696
A64: FENC Raigràs italià Floració | B64: 85 | C64: 0.6767027483 | D64: 0.590716319 | E64: 52 | F64: 10.92 | G64: 45.71239642 | H64: -52.98300282 | I64: 1.155610109 | J64: 1.294411723 | K64: 1.707296002 | L64: 1.578391115 | M64: 0.574748 | N64: 528.76816 | O64: 24 | P64: 344 | Q64: 652.16 | R64: 374 | T64: 80 | U64: 1.6 | V64: 1.26 | AJ64: 50000 | AK64: 50 | AL64: 5 | AM64: 11.946 | AN64: 0.7 | AP64: 466.1057416
A65: FENC Raigràs italià rebrots d'espigat amb fulles | B65: 85 | C65: 0.8845575231 | D65: 0.835550182 | E65: 107 | F65: 23.219 | G65: 65.95615613 | H65: -22.33097018 | I65: 1.050313537 | J65: 1.087684312 | K65: 1.37366381 | L65: 1.961746987 | M65: 0.69441 | N65: 629.13546 | O65: 29 | P65: 256 | Q65: 567 | R65: 291 | T65: 94 | U65: 1.6 | V65: 1.89 | W65: 2 | Y65: 20 | Z65: 2 | AJ65: 50000 | AK65: 50 | AL65: 5 | AM65: 16.511 | AN65: 0.69 | AP65: 560.3751069
A66: FENC Civada Floració | B66: 90 | C66: 0.6748031786 | D66: 0.5822746186 | E66: 140 | F66: 33.32 | G66: 65.22813994 | H66: 6.340615698 | I66: 1.074914591 | J66: 1.131741987 | K66: 1.444961085 | L66: 1.864950459 | M66: 0.55566 | N66: 509.54022 | O66: 33 | P66: 320 | Q66: 620 | R66: 390 | S66: 60 | T66: 83 | U66: 2.52 | V66: 0.66 | AJ66: 50000 | AK66: 50 | AL66: 5 | AM66: 19.25 | AN66: 0.66 | AP66: 419.8801711
A67: FENC Civada Inici espigat | B67: 90 | C67: 0.7865238981 | D67: 0.7057522891 | E67: 175 | F67: 41.65 | G67: 77.97898436 | H67: 25.71188765 | I67: 1.023756676 | J67: 1.039063255 | K67: 1.301625956 | L67: 2.070318916 | M67: 0.60695 | N67: 567.49825 | O67: 26 | P67: 290 | Q67: 580 | R67: 350 | S67: 40 | T67: 65 | U67: 2.52 | V67: 0.66 | AJ67: 50000 | AK67: 50 | AL67: 5 | AM67: 22.155 | AN67: 0.66 | AP67: 471.7400882
A68: FENC Ordi Espigat | B68: 78.5 | C68: 0.5919301713 | D68: 0.4925934379 | E68: 112 | F68: 26.656 | G68: 55.09811221 | H68: -9.266789075 | I68: 1.11967543 | J68: 1.218703295 | K68: 1.584554034 | L68: 1.700655693 | M68: 0.514628 | N68: 464.709084 | O68: 12.5 | P68: 285 | Q68: 584.9 | R68: 422 | T68: 97 | U68: 1.18 | V68: 1.65 | W68: 1.6 | Y68: 14.15 | Z68: 1.75 | AA68: 1.7 | AB68: 0.07 | AC68: 24 | AF68: 101 | AG68: 27 | AH68: 0.16 | AI68: 48 | AM68: 16.926 | AN68: 0.66 | AP68: 379.9275254
A69: FENC Ordi Inici espigat | B69: 83.7 | C69: 0.7873403043 | D69: 0.7263260237 | E69: 108 | F69: 25.704 | G69: 65.002965 | H69: -20.29450546 | I69: 1.065656642 | J69: 1.11556277 | K69: 1.417509819 | L69: 1.901066789 | M69: 0.653002 | N69: 570.723748 | O69: 12.5 | P69: 285 | Q69: 584.9 | R69: 313 | T69: 126 | U69: 1.18 | V69: 1.65 | W69: 1.6 | Y69: 14.15 | Z69: 1.75 | AA69: 1.7 | AB69: 0.07 | AC69: 24 | AF69: 101 | AG69: 27 | AH69: 0.16 | AI69: 48 | AJ69: 50000 | AK69: 50 | AL69: 5 | AM69: 16.594 | AN69: 0.66 | AP69: 496.5856114
A70: FENC Ordi Lletós | B70: 90 | C70: 0.7063206172 | D70: 0.6214014901 | E70: 135 | F70: 32.13 | G70: 65.96134992 | H70: 1.60549777 | I70: 1.06938303 | J70: 1.121640879 | K70: 1.428604953 | L70: 1.886302322 | M70: 0.58099 | N70: 526.37694 | O70: 12.5 | P70: 285 | Q70: 610 | R70: 370 | T70: 94 | U70: 1.44 | V70: 1.584 | W70: 1.6 | Y70: 14.15 | Z70: 1.75 | AA70: 1.7 | AB70: 0.07 | AC70: 24 | AF70: 101 | AG70: 27 | AH70: 0.16 | AI70: 48 | AJ70: 50000 | AK70: 50 | AL70: 5 | AM70: 18.835 | AN70: 0.66 | AP70: 439.8400866
A71: FENC Ordi Vidriós | B71: 76.3 | C71: 0.7403468234 | D71: 0.6622083638 | E71: 99 | F71: 23.562 | G71: 60.20475676 | H71: -25.00432611 | I71: 1.093450987 | J71: 1.167979739 | K71: 1.500772141 | L71: 1.795596257 | M71: 0.605886 | N71: 554.38569 | O71: 12.5 | P71: 285 | Q71: 584.9 | R71: 350 | T71: 85 | U71: 1.44 | V71: 1.584 | W71: 1.8 | Y71: 11.8 | Z71: 1.4 | AA71: 1.7 | AB71: 0.07 | AC71: 24 | AF71: 101 | AG71: 27 | AH71: 0.16 | AI71: 48 | AJ71: 50000 | AK71: 50 | AL71: 5 | AM71: 15.847 | AN71: 0.66 | AP71: 479.4760238
A72: PALLA blat | B72: 88 | C72: 0.5448944996 | D72: 0.4422046337 | E72: 35 | F72: 7.84 | G72: 35.75192835 | H72: -59.96328956 | I72: 1.215855774 | J72: 1.428129804 | K72: 1.940357448 | L72: 1.388806399 | M72: 0.49196 | N72: 452.6032 | O72: 15 | P72: 420 | Q72: 738.8 | R72: 439 | T72: 80 | U72: 0.8 | V72: 0.66 | W72: 1.4 | Y72: 16.5 | Z72: 2.1 | AM72: 10.535 | AN72: 0.68 | AP72: 387.9456129
A73: PALLA Blat tractada amoniac | B73: 88 | C73: 0.565316952 | D73: 0.4605385981 | E73: 100 | F73: 22.4 | G73: 49.60791438 | H73: -16.60686793 | I73: 1.141925732 | J73: 1.264114285 | K73: 1.659586355 | L73: 1.623766568 | M73: 0.49287 | N73: 453.4404 | O73: 15 | P73: 420 | Q73: 738.8 | R73: 439 | T73: 80 | U73: 0.8 | V73: 0.7 | AM73: 15.93 | AN73: 0.66 | AP73: 371.8618627
A74: PALLA Blat de moro rostoll | B74: 85 | C74: 0.6529503033 | D74: 0.5611555319 | E74: 59 | F74: 14.042 | G74: 47.1604761 | H74: -49.08081739 | I74: 1.157472222 | J74: 1.298062411 | K74: 1.714069322 | L74: 1.572153941 | M74: 0.554526 | N74: 514.600128 | O74: 13 | P74: 344 | Q74: 670 | R74: 390 | S74: 110 | T74: 72 | U74: 2.28 | V74: 0.66 | W74: 1.4 | Y74: 16.5 | Z74: 2.1 | AJ74: 50000 | AK74: 50 | AL74: 5 | AM74: 12.527 | AN74: 0.66 | AP74: 447.1601862
A75: PALLA Civada | B75: 88 | C75: 0.5381272518 | D75: 0.4366356893 | E75: 32 | F75: 7.392 | G75: 35.09975274 | H75: -62.00686823 | I75: 1.219499726 | J75: 1.436733453 | K75: 1.955627715 | L75: 1.377962083 | M75: 0.491918 | N75: 447.64538 | O75: 15 | P75: 420 | Q75: 738.8 | R75: 439 | T75: 90 | U75: 1.4 | V75: 0.66 | AJ75: 50000 | AK75: 50 | AL75: 5 | AM75: 10.286 | AN75: 0.67 | AP75: 383.5447598
A76: PALLA Ordi | B76: 88 | C76: 0.54583885 | D76: 0.4430524613 | E76: 38 | F76: 8.512 | G76: 36.3914354 | H76: -57.86991626 | I76: 1.212233533 | J76: 1.419628584 | K76: 1.925323806 | L76: 1.399650714 | M76: 0.492002 | N76: 452.64184 | O76: 12.5 | P76: 420 | Q76: 738.8 | R76: 439 | T76: 80 | U76: 1.4 | V76: 0.66 | W76: 1.4 | Y76: 16.5 | Z76: 2.1 | AC76: 3.1 | AG76: 17.6 | AI76: 7.3 | AJ76: 50000 | AK76: 50 | AL76: 5 | AM76: 10.784 | AN76: 0.68 | AP76: 387.2032859
A77: PALLA Ordi tractada amoniac | B77: 88 | C77: 0.565316952 | D77: 0.4605385981 | E77: 100 | F77: 22.4 | G77: 49.60791438 | H77: -16.60686793 | I77: 1.141925732 | J77: 1.264114285 | K77: 1.659586355 | L77: 1.623766568 | M77: 0.49287 | N77: 453.4404 | O77: 12.5 | P77: 420 | Q77: 738.8 | R77: 439 | T77: 80 | U77: 1.4 | V77: 0.66 | AM77: 15.93 | AN77: 0.66 | AP77: 371.8618627
A78: FENC Alfals Botons florals | B78: 85 | C78: 0.5712355805 | D78: 0.464442748 | E78: 171 | F78: 35.91 | G78: 61.68676322 | H78: 42.44499475 | I78: 1.073184795 | J78: 1.127610305 | K78: 1.440095705 | L78: 1.871251216 | M78: 0.48796 | N78: 443.06768 | O78: 26 | P78: 372 | Q78: 684.08 | R78: 436 | T78: 92 | U78: 4.2 | V78: 1.75 | AC78: 7.1 | AG78: 29 | AI78: 24.6 | AJ78: 45000 | AK78: 400 | AL78: 10 | AM78: 21.823 | AN78: 0.72 | AP78: 344.9931188
A79: FENC Alfals Inici vegetació | B79: 85 | C79: 0.7631700038 | D79: 0.6873563 | E79: 168.5 | F79: 35.385 | G79: 71.39879666 | H79: 32.37218784 | I79: 1.027253066 | J79: 1.045286018 | K79: 1.31089825 | L79: 2.055675061 | M79: 0.612562 | N79: 548.9168082 | O79: 21.2 | P79: 283.4 | Q79: 483.1 | R79: 326.7 | S79: 69.3 | T79: 103.9 | U79: 3.75 | V79: 1.68 | AB79: 0.1 | AC79: 4.6 | AD79: 0.6 | AG79: 42.9 | AH79: 0.03 | AI79: 21.3 | AJ79: 45000 | AK79: 400 | AL79: 10 | AM79: 21.6155 | AN79: 0.72 | AP79: 460.0530203
A80: FENC Alfals Floració | B80: 85 | C80: 0.5304260801 | D80: 0.4188102854 | E80: 160 | F80: 33.6 | G80: 57.35624758 | H80: 35.98633783 | I80: 1.094986479 | J80: 1.168978414 | K80: 1.506087001 | L80: 1.789259742 | M80: 0.4606 | N80: 421.9096 | O80: 24 | P80: 395 | Q80: 710.3 | R80: 460 | T80: 84 | U80: 4.2 | V80: 1.54 | AJ80: 45000 | AK80: 400 | AL80: 10 | AM80: 20.91 | AN80: 0.72 | AP80: 324.6684585
A81: FENC Alfals floració (Catalunya) | B81: 89 | C81: 0.7804774848 | D81: 0.7084236384 | E81: 174.5 | F81: 36.645 | G81: 73.40253262 | H81: 36.23664732 | I81: 1.017963166 | J81: 1.029102189 | K81: 1.286335584 | L81: 2.094928316 | M81: 0.623962 | N81: 555.950142 | O81: 19.8 | P81: 271.5 | Q81: 446.6 | R81: 316.7 | S81: 69.1 | T81: 109 | U81: 5.67 | V81: 2.1 | AB81: 0.1 | AC81: 4.6 | AD81: 0.6 | AG81: 42.9 | AH81: 0.03 | AI81: 21.3 | AJ81: 45000 | AK81: 400 | AL81: 10 | AM81: 22.1135 | AN81: 0.72 | AP81: 466.3887716
A82: FENC Alfals rebrots (Catalunya) | B82: 89 | C82: 0.8220547044 | D82: 0.7561386752 | E82: 179.3 | F82: 37.653 | G82: 76.25857889 | H82: 38.09099042 | I82: 1.006503009 | J82: 1.009490389 | K82: 1.256671417 | L82: 2.14437983 | M82: 0.64471 | N82: 577.982515 | O82: 19.8 | P82: 259.6 | Q82: 442.1 | R82: 298.5 | S82: 65.8 | T82: 103.5 | U82: 3.3 | V82: 1.54 | AB82: 0.1 | AC82: 4.6 | AD82: 0.6 | AG82: 42.9 | AH82: 0.03 | AI82: 21.3 | AJ82: 45000 | AK82: 400 | AL82: 10 | AM82: 22.5119 | AN82: 0.72 | AP82: 488.6649455
A83: FENC Alfals rebrots de floració | B83: 85 | C83: 0.5559914214 | D83: 0.4463183361 | E83: 174 | F83: 36.54 | G83: 61.35273255 | H83: 45.33409107 | I83: 1.075441268 | J83: 1.131707149 | K83: 1.446811059 | L83: 1.86256583 | M83: 0.47542 | N83: 434.53388 | O83: 24 | P83: 382 | Q83: 695.48 | R83: 447 | T83: 86 | U83: 3.66 | V83: 1.54 | AB83: 0.1 | AC83: 4.6 | AD83: 0.6 | AG83: 42.9 | AH83: 0.03 | AI83: 21.3 | AJ83: 45000 | AK83: 400 | AL83: 10 | AM83: 22.072 | AN83: 0.72 | AP83: 334.8526972
A84: FENC Alfals Sense especificar (primavera) IAMZ | B84: 90 | C84: 0.8022678479 | D84: 0.7359621515 | E84: 171 | F84: 35.91 | G84: 73.93543875 | H84: 32.77416797 | I84: 1.014835798 | J84: 1.023836553 | K84: 1.278138126 | L84: 2.108364335 | M84: 0.64072 | N84: 567.0372 | O84: 25 | P84: 300 | Q84: 394 | R84: 302 | T84: 115 | U84: 4.38 | V84: 3.15 | AJ84: 45000 | AK84: 400 | AL84: 10 | AM84: 21.823 | AN84: 0.72 | AP84: 479.4969685
A85: FENC Alfals Sense especificar (estiu) IAMZ | B85: 90 | C85: 0.8027529859 | D85: 0.732612327 | E85: 187 | F85: 39.27 | G85: 76.69014372 | H85: 44.68883486 | I85: 1.004731173 | J85: 1.006321977 | K85: 1.25219197 | L85: 2.152050886 | M85: 0.631828 | N85: 566.117888 | O85: 25 | P85: 284 | Q85: 583.76 | R85: 309.8 | T85: 104 | U85: 5.82 | V85: 2.03 | AJ85: 45000 | AK85: 400 | AL85: 10 | AM85: 23.151 | AN85: 0.72 | AP85: 474.0078601
A86: FENC Enclova Final floració | B86: 87.6 | C86: 0.7974276922 | D86: 0.7271766252 | E86: 143 | F86: 30.03 | G86: 68.40600963 | H86: 11.57181812 | I86: 1.041902847 | J86: 1.071676354 | K86: 1.350515054 | L86: 1.995372678 | M86: 0.63274 | N86: 575.16066 | O86: 13.5 | P86: 287 | Q86: 414 | R86: 309 | T86: 91 | U86: 0.36 | V86: 0.21 | AJ86: 45000 | AK86: 400 | AL86: 10 | AM86: 19.499 | AN86: 0.72 | AP86: 493.9941847
A87: FENC Trèvol blanc Vegetatiu | B87: 90 | C87: 0.7981872668 | D87: 0.7236613654 | E87: 220 | F87: 56.1 | G87: 91.79713043 | H87: 57.22036526 | I87: 0.9822368086 | J87: 0.9683089799 | K87: 1.196312677 | L87: 2.252572334 | M87: 0.6202 | N87: 557.5598 | O87: 27 | P87: 212 | Q87: 360 | R87: 320 | S87: 70 | T87: 101 | U87: 4.05 | V87: 2.17 | W87: 4.3 | X87: 3.2 | Y87: 16.2 | Z87: 1.9 | AA87: 1.7 | AB87: 0.16 | AC87: 11 | AF87: 184 | AG87: 73 | AI87: 17 | AJ87: 45000 | AK87: 400 | AL87: 10 | AM87: 25.89 | AN87: 0.66 | AP87: 446.5874095
A88: FENC Trèvol violeta Final floració | B88: 89 | C88: 0.7112930165 | D88: 0.6233057215 | E88: 160 | F88: 40.8 | G88: 73.88731868 | H88: 18.87200844 | I88: 1.049059571 | J88: 1.083978186 | K88: 1.370545909 | L88: 1.966209831 | M88: 0.5746 | N88: 525.759 | O88: 28 | P88: 288 | Q88: 460 | R88: 360 | S88: 80 | T88: 85 | U88: 4.59 | V88: 1.75 | AJ88: 45000 | AK88: 400 | AL88: 10 | AM88: 20.91 | AN88: 0.66 | AP88: 429.1792985
A89: FENC Veça Inici botons | B89: 91.4 | C89: 0.9721214262 | D89: 0.932227536 | E89: 196 | F89: 49.98 | G89: 94.63849626 | H89: 33.46866561 | I89: 0.9680489979 | J89: 0.9458914147 | K89: 1.16210933 | L89: 2.318870324 | M89: 0.718468 | N89: 653.80588 | O89: 25 | P89: 204 | Q89: 492.56 | R89: 233.8 | T89: 90 | U89: 5.28 | V89: 1.54 | AJ89: 45000 | AK89: 400 | AL89: 10 | AM89: 23.898 | AN89: 0.66 | AP89: 556.6249568
A90: FENC Veça Botons | B90: 92 | C90: 0.7602900998 | D90: 0.6840692248 | E90: 217 | F90: 55.335 | G90: 89.49619547 | H90: 56.93371672 | I90: 0.9884905805 | J90: 0.9786155001 | K90: 1.211628532 | L90: 2.224098202 | M90: 0.6088 | N90: 533.9176 | O90: 25 | P90: 244 | Q90: 470 | R90: 330 | T90: 123 | U90: 5.28 | V90: 1.54 | AJ90: 45000 | AK90: 400 | AL90: 10 | AM90: 25.641 | AN90: 0.66 | AP90: 423.0359288
A91: FENC Veça Inici floració | B91: 90 | C91: 0.7518572372 | D91: 0.6734733305 | E91: 225 | F91: 57.375 | G91: 90.85954176 | H91: 62.84705998 | I91: 0.9844856593 | J91: 0.9718713426 | K91: 1.201833094 | L91: 2.242225526 | M91: 0.60196 | N91: 527.91892 | O91: 25 | P91: 244 | Q91: 538.16 | R91: 336 | T91: 123 | U91: 5.28 | V91: 1.54 | AJ91: 45000 | AK91: 400 | AL91: 10 | AM91: 26.305 | AN91: 0.66 | AP91: 414.2272603
A92: FENC Veça Final floració | B92: 85 | C92: 0.9139505759 | D92: 0.8625564777 | E92: 197 | F92: 50.235 | G92: 92.18452814 | H92: 36.48201349 | I92: 0.9773405656 | J92: 0.960845548 | K92: 1.184313609 | L92: 2.275394642 | M92: 0.688144 | N92: 623.458464 | O92: 25 | P92: 232 | Q92: 524.48 | R92: 260.4 | T92: 94 | U92: 4.41 | V92: 2.17 | AJ92: 45000 | AK92: 400 | AL92: 10 | AM92: 23.981 | AN92: 0.66 | AP92: 523.89411
A93: FENC Veça Fructificació | B93: 91 | C93: 0.8320963568 | D93: 0.7657742026 | E93: 186 | F93: 47.43 | G93: 85.84481608 | H93: 32.08838466 | I93: 1.000806021 | J93: 0.9997563541 | K93: 1.242213475 | L93: 2.169337956 | M93: 0.64528 | N93: 583.33312 | O93: 20 | P93: 236 | Q93: 453 | R93: 298 | T93: 96 | U93: 4.53 | V93: 1.19 | AJ93: 45000 | AK93: 400 | AL93: 10 | AM93: 23.068 | AN93: 0.66 | AP93: 484.0280298
A94: FENC Veça Pastós | B94: 90.2 | C94: 0.9492342693 | D94: 0.908971077 | E94: 188 | F94: 47.94 | G94: 91.99944958 | H94: 28.96923571 | I94: 0.9750278921 | J94: 0.9572930027 | K94: 1.178699078 | L94: 2.286233093 | M94: 0.71596 | N94: 640.7842 | O94: 20 | P94: 278 | Q94: 576.92 | R94: 236 | T94: 105 | U94: 4.8 | V94: 2.1 | AJ94: 45000 | AK94: 400 | AL94: 10 | AM94: 23.234 | AN94: 0.66 | AP94: 545.7686271
A95: FENC Veça (>50%)-Civada tall precoç INRA | B95: 84 | C95: 0.73 | D95: 0.65 | E95: 158 | F95: 42 | G95: 93 | H95: -18.58155175 | I95: 1.020408163 | J95: 1.024501769 | K95: 0.86 | L95: 3.13 | M95: 0.68 | N95: 881 | P95: 333 | Q95: 674 | R95: 378 | T95: 119 | AN95: 0.6 | AP95: 799.8825
A96: FENC Veça (20-50%)-Civada tall precoç INRA | B96: 79 | C96: 0.72 | D96: 0.65 | E96: 104 | F96: 24 | G96: 75 | H96: -50.30615175 | I96: 1.065092359 | J96: 1.108776844 | K96: 1.21 | L96: 2.23 | M96: 0.68 | N96: 897 | P96: 280 | Q96: 595 | R96: 323 | T96: 103 | AN96: 0.63 | AP96: 833.8825
A97: FENC Veça (< 20%)-Civada tall precoç INRA | B97: 81 | C97: 0.74 | D97: 0.66 | E97: 129 | F97: 29 | G97: 81 | H97: -31.06451623 | I97: 1.031870043 | J97: 1.053472022 | K97: 1.21 | L97: 2.23 | M97: 0.7 | N97: 870 | P97: 270 | Q97: 575 | R97: 308 | T97: 130 | AN97: 0.64 | AP97: 803.2617
A98: FENC Veça (>50%)-Civada tall tardà INRA | B98: 81 | C98: 0.65 | D98: 0.55 | E98: 123 | F98: 31 | G98: 81 | H98: -43.47657607 | I98: 1.07880684 | J98: 1.128333036 | K98: 0.89 | L98: 3.02 | M98: 0.61 | N98: 929 | P98: 268 | Q98: 584 | R98: 309 | T98: 71 | AN98: 0.6 | AP98: 854.0553
A99: FENC Veça (20-50%)-Civada tall tardà INRA | B99: 82 | C99: 0.64 | D99: 0.55 | E99: 99 | F99: 23 | G99: 72 | H99: -53.56774055 | I99: 1.090181359 | J99: 1.155366373 | K99: 1.39 | L99: 1.94 | M99: 0.63 | N99: 901 | P99: 333 | Q99: 675 | R99: 385 | T99: 99 | AN99: 0.63 | AP99: 835.4345
A100: Ensitjat RGI Campabadal | B100: 24,05 | C100: 0.7393415388 | D100: 0.6548606873 | E100: 117.6 | F100: 11.466 | G100: 55.31628223 | H100: 17.24393402 | I100: 1.240837281 | J100: 1.434561467 | K100: 1.55122274 | L100: 1.73719787 | M100: 0.59726 | N100: 532.994824 | O100: 26 | P100: 358 | Q100: 630.3 | R100: 427.3 | T100: 107.6 | U100: 2 | V100: 1.8 | AM100: 18.5308 | AN100: 0.85 | AO100: 95 | AP100: 373.3806117
A101: Ensitjat BM Campabadal | B101: 34,51 | C101: 0.979101499 | D101: 0.9343387196 | E101: 71.8 | F101: 12.565 | G101: 60.82282172 | H101: -35.75284643 | I101: 0.9788151623 | J101: 1.063090444 | K101: 1.284420211 | L101: 1.4 | M101: 0.7101910828 | N101: 671.7697452 | O101: 35 | P101: 195.9 | Q101: 378.1 | R101: 211.2 | T101: 54.1 | U101: 1.44 | V101: 1.61 | AM101: 24 | AN101: 0.75 | AO101: 100 | AP101: 469.1633718
A102: Pastone | B102: 53 | C102: 1,08 | E102: 83 | F102: 27 | G102: 78 | H102: -42 | I102: 0,97 | L102: 1,4 | M102: 0.78 | N102: 768.16 | O102: 31 | P102: 90 | Q102: 318 | R102: 104 | T102: 19 | U102: 0.8 | V102: 1.26 | W102: 1.5 | AM102: 24 | AN102: 0.63 | AO102: 0.87

Sheet 0_Taula Concentrats
A1: Concentrats | B1: MS | C1: UFL | D1: UFV | E1: MNT_PB | F1: PDIA | G1: PDI | H1: BPR | I1: UEL | J1: UEB | K1: UEM | L1: NI ref | M1: dMO | N1: MOD_TDN | O1: EE | P1: FB | Q1: NDF | R1: ADF | S1: Lignina | T1: cendres | U1: Ca | V1: P | W1: Mg | X1: Cl | Y1: K | Z1: Na | AA1: S | AB1: Co | AC1: Cu | AD1: Mo | AE1: Iode | AF1: Fe | AG1: Mn | AH1: Se | AI1: Zn | AJ1: Vit A | AK1: Vit D | AL1: Vit E | AM1: AG | AN1: DT_N | AO1: dr | AP1: MOF
A3: Ordi gra | B3: 88.8 | C3: 1.078969989 | D3: 1.067752556 | E3: 112 | F3: 27.59508246 | G3: 89.46220189 | H3: -31.34737412 | I3: 0.2046 | L3: 2 | M3: 0.837328 | N3: 816.3948 | O3: 19 | P3: 54 | Q3: 215 | R3: 65 | S3: 12 | T3: 25 | U3: 0.44 | V3: 2.964 | W3: 1.3 | Y3: 5.55 | Z3: 0.35 | AB3: 0.01 | AC3: 4.1 | AD3: 0.3 | AF3: 90 | AG3: 17.6 | AH3: 0.02 | AI3: 24.4 | AJ3: 1000 | AL3: 25 | AM3: 14.25 | AN3: 0.7349259949 | AO3: 0.9294938772 | AP3: 596.0833771
A4: Blat de moro gra | B4: 86 | C4: 1.24475541 | D4: 1.26 | E4: 89 | F4: 43 | G4: 94 | H4: -53 | I4: 0.3291 | L4: 2 | M4: 0.882846 | N4: 870.486156 | O4: 43 | P4: 26 | Q4: 125 | R4: 31 | S4: 60 | T4: 14 | U4: 0.275 | V4: 2.175 | W4: 1.4 | Y4: 3.6 | Z4: 0.33 | AB4: 0.02 | AC4: 2.3 | AD4: 0.3 | AF4: 80 | AG4: 10.8 | AH4: 0.02 | AI4: 21.4 | AM4: 36.55 | AN4: 0.4465708975 | AO4: 0.8730044467 | AP4: 780.9036423
A5: Blat gra | B5: 87 | C5: 1.191513797 | D5: 1.205062577 | E5: 157 | F5: 33.00144942 | G5: 96.50582734 | H5: 5.8944095 | I5: 0.1714 | L5: 2 | M5: 0.87875 | N5: 861.175 | O5: 23 | P5: 29 | Q5: 146 | R5: 38 | S5: 12 | T5: 20 | U5: 0.275 | V5: 2.808 | AB5: 0.02 | AC5: 4.4 | AD5: 0.3 | AG5: 33.7 | AH5: 0.04 | AI5: 32.5 | AL5: 12 | AM5: 17.25 | AN5: 0.7771204339 | AO5: 0.9431116475 | AP5: 740.1774934
A6: Civada | B6: 87.4 | C6: 1.002754804 | D6: 0.9548146189 | E6: 111 | F6: 20.39754399 | G6: 75.33304787 | H6: -14.56672481 | I6: 0.3208 | L6: 2 | M6: 0.72867 | N6: 706.8099 | O6: 67 | P6: 135 | Q6: 336 | R6: 162 | S6: 27 | T6: 30 | U6: 0.55 | V6: 3 | W6: 1.75 | Y6: 4.3 | Z6: 0.5 | AB6: 0.02 | AC6: 3.5 | AD6: 0.7 | AG6: 38.4 | AH6: 0.04 | AI6: 25.2 | AL6: 15 | AM6: 60.3 | AN6: 0.7980031538 | AO6: 0.9097253799 | AP6: 747.5170565
A7: Fajol gra | B7: 88 | C7: 1.000775785 | D7: 0.9661592102 | E7: 125 | F7: 34.09988724 | G7: 90.96989041 | H7: -20.55937996 | I7: 0.2129 | L7: 2 | M7: 0.74393 | N7: 726.81961 | O7: 28 | P7: 118 | Q7: 301 | R7: 158.9 | S7: 33.4 | T7: 23 | U7: 0.605 | V7: 2.775 | W7: 1.2 | X7: 0.5 | Y7: 5.1 | Z7: 0.6 | AA7: 1.6 | AB7: 0.06 | AC7: 11 | AF7: 50 | AG7: 38 | AI7: 10 | AM7: 21 | AN7: 0.6993867196 | AO7: 0.9074752038 | AP7: 668.2667467
A8: Mill gra | B8: 88 | C8: 1.009546491 | D8: 0.9776763056 | E8: 131 | F8: 35.90764594 | G8: 91.77812279 | H8: -15.03762007 | I8: 0.2129 | L8: 2 | M8: 0.752754 | N8: 721.138332 | O8: 42 | P8: 106 | Q8: 284.5 | R8: 143.86 | S8: 29.7 | T8: 42 | U8: 0.22 | V8: 2.4 | W8: 1.7 | X8: 0.34 | Y8: 4.66 | Z8: 0.45 | AM8: 37.8 | AN8: 0.6997481148 | AO8: 0.9129140598 | AP8: 460.6219971
A9: Segol gra | B9: 86.5 | C9: 1.19 | D9: 1.21 | E9: 97 | F9: 20 | G9: 81 | H9: -34.72904868 | I9: 0.2129 | L9: 2 | M9: 0.88214 | N9: 864.4972 | O9: 16.2 | P9: 26 | Q9: 132 | R9: 42 | S9: 14 | T9: 20 | U9: 0.385 | V9: 3 | W9: 1.35 | Y9: 5.25 | Z9: 0.3 | AB9: 0.03 | AC9: 4.5 | AD9: 0.2 | AG9: 55 | AH9: 0.03 | AI9: 30 | AL9: 17 | AM9: 12.15 | AN9: 0.7769651377 | AO9: 0.9244544324 | AP9: 415.4862894
A10: Sorgo gra | B10: 86 | C10: 1.21 | D10: 1.23 | E10: 105 | F10: 47 | G10: 97.13096315 | H10: -48 | I10: 0.2129 | L10: 2 | M10: 0.884686 | N10: 869.646338 | O10: 37 | P10: 25 | Q10: 107 | R10: 49 | S10: 4 | T10: 17 | U10: 0.165 | V10: 2.4 | W10: 1.75 | Y10: 3.6 | Z10: 0.4 | AC10: 10 | AF10: 160 | AG10: 14 | AI10: 14 | AJ10: 14000 | AL10: 12 | AM10: 33.3 | AN10: 0.5226342292 | AO10: 0.9376856804 | AP10: 581.7628756
A11: Triticale gra | B11: 87.1 | C11: 1.191793332 | D11: 1.210362141 | E11: 130 | F11: 38.225488 | G11: 101.2965379 | H11: -26.94851539 | I11: 0.2129 | L11: 2 | M11: 0.87145 | N11: 852.2781 | O11: 17 | P11: 33 | Q11: 148 | R11: 40 | S11: 13 | T11: 22 | U11: 0.275 | V11: 3.45 | AM11: 12.75 | AN11: 0.6853862298 | AO11: 0.9346133045 | AP11: 618.0604347
A12: Blat segó blat dur | B12: 87.7 | C12: 1.017694369 | D12: 0.9779078471 | E12: 167 | F12: 34.63114108 | G12: 88.47767853 | H12: 25.24478524 | I12: 0.3057772 | L12: 2 | M12: 0.731538 | N12: 692.034948 | O12: 58 | P12: 118 | Q12: 481 | R12: 148 | S12: 38 | T12: 54 | U12: 0.935 | V12: 7.8 | AC12: 10 | AF12: 200 | AG12: 90 | AI12: 80 | AJ12: 1000 | AL12: 21 | AM12: 46.4 | AN12: 0.7727450842 | AO12: 0.9125087639 | AP12: 677.3417032
A13: Blat de moro flocs | B13: 89 | C13: 1.285459442 | D13: 1.315633547 | E13: 100 | F13: 41.4985065 | G13: 103.9464693 | H13: -59.77494194 | I13: 0.231567 | L13: 2 | M13: 0.88266 | N13: 868.53744 | O13: 43 | P13: 26 | Q13: 90 | R13: 30 | S13: 10 | T13: 16 | U13: 0.165 | V13: 2.175 | W13: 1.4 | X13: 0.5 | Y13: 3.7 | Z13: 0.3 | AA13: 1.2 | AB13: 0.05 | AC13: 4 | AF13: 30 | AG13: 5 | AH13: 0.08 | AI13: 14 | AJ13: 1000 | AL13: 25 | AM13: 36.55 | AN13: 0.5536620228 | AO13: 0.9297552219 | AP13: 841.6236618
A14: Blat de moro bagàs | B14: 88.1 | C14: 1.203463873 | D14: 1.20550115 | E14: 151 | F14: 56.28378672 | G14: 116.7748185 | H14: -22.64723712 | I14: 0.2876 | L14: 2 | M14: 0.850092 | N14: 833.940252 | O14: 34 | P14: 68 | Q14: 272 | R14: 78 | S14: 11 | T14: 19 | U14: 0.5 | V14: 3.7 | W14: 1.8 | Y14: 3.5 | Z14: 9.5 | AM14: 25.5 | AN14: 0.6042201418 | AO14: 0.9417869599 | AP14: 567.5727337
A15: Blat de moro hominyfeed (mescla segó, germèn i midó) | B15: 90 | C15: 1.153355136 | D15: 1.157966805 | E15: 114 | F15: 46.52415979 | G15: 107.3745235 | H15: -49.99869329 | I15: 0.2535785 | L15: 2 | M15: 0.837476 | N15: 816.5391 | O15: 19 | P15: 54 | Q15: 215 | R15: 65 | S15: 12 | T15: 25 | U15: 0.275 | V15: 4.275 | W15: 2.6 | X15: 0.6 | Y15: 6.5 | Z15: 0.9 | AA15: 0.3 | AB15: 0.06 | AC15: 15 | AF15: 75 | AG15: 16 | AH15: 0.11 | AI15: 3 | AM15: 16.15 | AN15: 0.5612101445 | AO15: 0.9300731538 | AP15: 380.3273066
A16: Blat de moro gluten feed | B16: 87.7 | C16: 1.056307439 | D16: 1.029893853 | E16: 216 | F16: 53.8646516 | G16: 111.0030461 | H16: 49.88125855 | I16: 0.3125 | L16: 2 | M16: 0.825072 | N16: 769.792176 | O16: 45 | P16: 88 | Q16: 343 | R16: 100 | S16: 13 | T16: 67 | U16: 1.65 | V16: 5.304 | W16: 3.5 | Y16: 10.25 | Z16: 7 | AJ16: 3000 | AL16: 14 | AM16: 40.5 | AN16: 0.7383081976 | AO16: 0.9529277751 | AP16: 400.0063135
A17: Blat de moro gluten meal | B17: 89.3 | C17: 1.647747782 | D17: 1.703959302 | E17: 661 | F17: 427.8502116 | G17: 474.6927582 | H17: 117.5185209 | I17: 0.4868 | L17: 2 | M17: 0.943652 | N17: 929.49722 | O17: 35 | P17: 21 | Q17: 107 | R17: 28 | S17: 6 | T17: 15 | U17: 0.11 | V17: 2.72 | AJ17: 14000 | AL17: 26 | AM17: 28 | AN17: 0.3436078323 | AO17: 0.986113493 | AP17: 749.4135605
A18: Blat de moro espigots | B18: 90 | C18: 0.5231913971 | D18: 0.4115298955 | E18: 44 | F18: 14.39853914 | G18: 59.97738242 | H18: -62.53694262 | I18: 0.4692912 | L18: 2 | M18: 0.455276 | N18: 437.06496 | O18: 5 | P18: 302 | Q18: 822 | R18: 408 | S18: 38 | T18: 40 | U18: 0.66 | V18: 0.525 | AM18: 2 | AN18: 0.6232120323 | AO18: 0.8684978132 | AP18: 521.7862692
A19: Blat de moro segó | B19: 88.3 | C19: 1.112973677 | D19: 1.10078662 | E19: 101 | F19: 43.23835933 | G19: 96.34428969 | H19: -50.71801618 | I19: 0.3706 | L19: 2 | M19: 0.707252 | N19: 669.060392 | O19: 40 | P19: 150 | Q19: 557 | R19: 164 | S19: 19 | T19: 54 | U19: 0.165 | V19: 1.875 | AM19: 34 | AN19: 0.5317077588 | AO19: 0.9141782203 | AP19: 556.4050738
A20: Blat de moro tortó de gèrmens a pressió | B20: 88.1 | C20: 1.17895975 | D20: 1.171602179 | E20: 146 | F20: 59.1015472 | G20: 113.8847817 | H20: -23.87880397 | I20: 0.2642698 | L20: 2 | M20: 0.801524 | N20: 763.050848 | O20: 82 | P20: 72 | Q20: 285 | R20: 82 | S20: 11 | T20: 48 | U20: 0.33 | V20: 3.525 | W20: 4.5 | Y20: 1.8 | Z20: 8.5 | AM20: 65.6 | AN20: 0.5685588128 | AO20: 0.9382625715 | AP20: 625.9611681
A21: Blat de moro tortó de gèrmens amb dissolvent | B21: 87.9 | C21: 1.041990023 | D21: 1.023538393 | E21: 135 | F21: 54.17190727 | G21: 111.6965778 | H21: -33.88229766 | I21: 0.2686721 | L21: 2 | M21: 0.79028 | N21: 752.34656 | O21: 17 | P21: 79 | Q21: 310 | R21: 89 | S21: 12 | T21: 48 | U21: 0.495 | V21: 3.75 | W21: 4.5 | Y21: 1.8 | Z21: 8.5 | AJ21: 1000 | AL21: 94 | AM21: 12.75 | AN21: 0.5703343944 | AO21: 0.9339201973 | AP21: 543.5361192
A22: Blat de moro extrussionat | B22: 90.3 | C22: 1.26592428 | D22: 1.305945141 | E22: 96.35 | F22: 55.42277845 | G22: 120.6512297 | H22: -82.39695502 | I22: 0.21464959 | L22: 2 | M22: 0.9181304 | N22: 904.9093222 | O22: 4.32 | P22: 2.55 | Q22: 12.18 | R22: 3.1 | S22: 0.55 | T22: 14.4 | U22: 0.165 | V22: 2.175 | W22: 1.4 | X22: 0.5 | Y22: 3.7 | Z22: 0.3 | AA22: 1.2 | AB22: 0.05 | AC22: 4 | AF22: 30 | AG22: 5 | AH22: 0.08 | AI22: 14 | AJ22: 1000 | AL22: 25 | AM22: 3.672 | AN22: 0.3880056001 | AO22: 0.9399161825 | AP22: 296.3737151
A23: Fajol segones | B23: 89 | C23: 1.185521315 | D23: 1.168586189 | E23: 335 | F23: 98.39838218 | G23: 150.650279 | H23: 125.2564113 | I23: 0.2129 | L23: 2 | M23: 0.79562 | N23: 751.8609 | O23: 82 | P23: 83 | Q23: 251.39 | R23: 114.99 | S23: 22.61 | T23: 55 | U23: 0.275 | V23: 2.925 | AM23: 65.6 | AN23: 0.6946621902 | AO23: 0.9619722962 | AP23: 273.3737151
A24: Ordi bagàs cerveseria fresc | B24: 20.5 | C24: 0.8640921799 | D24: 0.7703702942 | E24: 300 | F24: 129.9487159 | G24: 172.9796551 | H24: 53.5641575 | I24: 0.4951 | L24: 2 | M24: 0.6385 | N24: 606.575 | O24: 86 | P24: 150 | Q24: 525 | R24: 206 | S24: 47 | T24: 50 | U24: 1.815 | V24: 4.446 | W24: 1.6 | Y24: 0.7 | Z24: 1.6 | AB24: 0.08 | AC24: 22.2 | AD24: 0.5 | AG24: 38.5 | AH24: 0.06 | AI24: 85 | AL24: 29 | AM24: 38.7 | AN24: 0.5325076887 | AO24: 0.9265657975 | AP24: 565.2052521
A25: Ordi bagàs cerveseria sec | B25: 91.9 | C25: 0.871193565 | D25: 0.7805426295 | E25: 262.4 | F25: 107.6156328 | G25: 151.6383987 | H25: 35.09442835 | I25: 0.4951 | L25: 2 | M25: 0.62732 | N25: 601.348952 | O25: 79.9 | P25: 161.6 | Q25: 643.3 | R25: 236.4 | S25: 78.9 | T25: 41.4 | U25: 1.265 | V25: 4.914 | AB25: 0.08 | AC25: 22.2 | AD25: 0.5 | AG25: 38.5 | AH25: 0.06 | AI25: 85 | AL25: 29 | AM25: 35.955 | AN25: 0.5371850665 | AO25: 0.886143731 | AP25: 529.6572154
A26: Ordi malta, gra germinat i eixugat | B26: 89.6 | C26: 0.8231856487 | D26: 0.7581965961 | E26: 255 | F26: 66.35502136 | G26: 127.2527654 | H26: 71.69727487 | I26: 0.2959 | L26: 2 | M26: 0.89925 | N26: 840.79875 | O26: 23 | P26: 10 | Q26: 94 | R26: 10 | S26: 6 | T26: 65 | U26: 1.485 | V26: 5.625 | AL26: 16 | AM26: 10.35 | AN26: 0.7318227862 | AO26: 0.9703127509 | AP26: 363.3900279
A27: Ordi segó | B27: 89 | C27: 0.7604950037 | D27: 0.683000715 | E27: 118 | F27: 25.13276462 | G27: 75.56717545 | H27: -8.043766921 | I27: 0.3630071 | L27: 2 | M27: 0.620602 | N27: 581.504074 | O27: 32 | P27: 187 | Q27: 539 | R27: 239 | S27: 28 | T27: 63 | U27: 0.44 | V27: 2.925 | AB27: 0.03 | AC27: 11.7 | AD27: 0.6 | AG27: 123 | AH27: 0.05 | AI27: 59 | AM27: 25.6 | AN27: 0.7651033494 | AO27: 0.9067371975 | AP27: 563.5193635
A28: Cacau tortó | B28: 86.6 | C28: 0.9215256292 | D28: 0.8794694618 | E28: 232 | F28: 88.67087909 | G28: 140.270913 | H28: 25.81494705 | I28: 0.34659281 | L28: 2 | M28: 0.745465 | N28: 673.154895 | O28: 20 | P28: 161 | Q28: 363.86 | R28: 212.9 | S28: 47.29 | T28: 97 | U28: 1.43 | V28: 0.884 | AM28: 15 | AN28: 0.5829749087 | AO28: 0.9164965682 | AP28: 268.232459
A29: Cacauet, tortó 48 | B29: 88.6 | C29: 1.194433583 | D29: 1.186516039 | E29: 524 | F29: 143.3022223 | G29: 198.101494 | H29: 261.736138 | I29: 0.2876 | L29: 2 | M29: 0.84376 | N29: 789.75936 | O29: 16 | P29: 77 | Q29: 150 | R29: 101 | S29: 26 | T29: 64 | U29: 0.99 | V29: 4.29 | W29: 3 | AB29: 0.3 | AC29: 14.5 | AD29: 1.7 | AF29: 450 | AG29: 47.5 | AH29: 0.11 | AI29: 61.5 | AM29: 12 | AN29: 0.7179423819 | AO29: 0.969580348 | AP29: 807.1947924
A30: Coco tortó | B30: 90 | C30: 0.9709595673 | D30: 0.9339995141 | E30: 239 | F30: 87.26903545 | G30: 138.2098434 | H30: 30.48498753 | I30: 0.2876 | L30: 2 | M30: 0.71604 | N30: 660.18888 | O30: 18 | P30: 178 | Q30: 580 | R30: 316 | S30: 78 | T30: 78 | U30: 1.1 | V30: 4.488 | W30: 4 | Z30: 0.6 | AC30: 20 | AF30: 500 | AG30: 60 | AI30: 70 | AM30: 16.2 | AN30: 0.5872269422 | AO30: 0.8846081419 | AP30: 201.6193367
A31: Colza, gra | B31: 89.9 | C31: 1.96875359 | D31: 2.026164505 | E31: 217 | F31: 41.88482236 | G31: 81.98060891 | H31: 90.24033351 | I31: 0.2959 | L31: 2 | M31: 0.84608 | N31: 798.69952 | O31: 457 | P31: 68 | Q31: 199 | R31: 116 | S31: 41 | T31: 56 | U31: 1.815 | V31: 3.763 | AM31: 388.45 | AN31: 0.7911253228 | AO31: 0.924083365 | AP31: 581.9454468
A32: Colza, gra semiesclovellat | B32: 90 | C32: 2.006824385 | D32: 2.066056386 | E32: 217 | F32: 41.88482236 | G32: 80.92224091 | H32: 91.89403351 | I32: 0.2959 | L32: 2 | M32: 0.84608 | N32: 798.69952 | O32: 480 | P32: 68 | Q32: 115 | R32: 84 | S32: 41 | T32: 56 | U32: 1.815 | V32: 3.763 | AM32: 379.2 | AN32: 0.7911253228 | AO32: 0.924083365 | AP32: 817.1113866
A33: Colza, turtó | B33: 90 | C33: 0.958005025 | D33: 0.9098593603 | E33: 418 | F33: 103.9119909 | G33: 155.8627084 | H33: 193.047004 | I33: 0.3125 | L33: 2 | M33: 0.7842 | N33: 704.9958 | O33: 26 | P33: 120 | Q33: 287 | R33: 182 | S33: 74 | T33: 101 | U33: 4.62 | V33: 8.804 | W33: 5.15 | Y33: 12.4 | Z33: 0.75 | AB33: 0.1 | AC33: 5.5 | AD33: 0.5 | AF33: 300 | AG33: 63.5 | AH33: 0.07 | AI33: 64.5 | AL33: 20 | AM33: 20.8 | AN33: 0.7277738088 | AO33: 0.9131864885 | AP33: 325.121416
A34: Colza, turtó tanné, curtit | B34: 89 | C34: 1.240309081 | D34: 1.253284486 | E34: 391 | F34: 143.4249536 | G34: 193.4731611 | H34: 118.7396757 | I34: 0.3374 | L34: 2 | M34: 0.77349 | N34: 713.93127 | O34: 26 | P34: 129 | Q34: 302 | R34: 193 | S34: 79 | T34: 77 | U34: 4.62 | V34: 8.804 | Y34: 12.4 | Z34: 0.75 | AB34: 0.1 | AC34: 5.5 | AD34: 0.5 | AF34: 300 | AG34: 63.5 | AH34: 0.07 | AI34: 64.5 | AM34: 17.94 | AN34: 0.5952070214 | AO34: 0.9061810788 | AP34: 550.0468057
A35: Cotó, gra | B35: 92 | C35: 1.105745464 | D35: 1.027155353 | E35: 220 | F35: 48.76444907 | G35: 91.65479282 | H35: 70.58383788 | I35: 0.5034 | L35: 2 | M35: 0.64652 | N35: 618.71964 | O35: 198 | P35: 276 | Q35: 456 | R35: 354 | S35: 105 | T35: 43 | U35: 1.155 | V35: 4.736 | AM35: 188.1 | AN35: 0.7394108541 | AO35: 0.8505979247 | AP35: 581.8575174
A36: Cotó tortó dessoliat | B36: 89 | C36: 1.150192028 | D36: 1.125943813 | E36: 466 | F36: 160.9221094 | G36: 212.6445717 | H36: 184.5836527 | I36: 0.2994882 | L36: 2 | M36: 0.802196 | N36: 750.855456 | O36: 20 | P36: 127 | Q36: 232 | R36: 138 | S36: 32 | T36: 64 | U36: 2.585 | V36: 5.922 | W36: 5.2 | Y36: 15.2 | Z36: 0.4 | AM36: 15 | AN36: 0.6409096727 | AO36: 0.9616700558 | AP36: 814.2065213
A37: Cotó clovella | B37: 91 | C37: 0.3662081422 | D37: 0.2380788633 | E37: 81 | F37: 16.10308659 | G37: 54.6536023 | H37: -25.8351808 | I37: 0.65129486 | L37: 2 | M37: 0.323182 | N37: 309.608356 | O37: 19 | P37: 547 | Q37: 900 | R37: 697.4 | S37: 184.6 | T37: 42 | U37: 0.77 | V37: 0.693 | AM37: 14.25 | AN37: 0.7237543586 | AO37: 0.7196621715 | AP37: 816.2571164
A38: Favó gra | B38: 86.9 | C38: 1.286607118 | D38: 1.320957789 | E38: 302 | F38: 51.43027974 | G38: 115.0698849 | H38: 130.983117 | I38: 0.1714 | L38: 2 | M38: 0.9143 | N38: 876.8137 | O38: 16 | P38: 90 | Q38: 171 | R38: 108 | S38: 24.7 | T38: 41 | U38: 0.715 | V38: 3.264 | W38: 1.6 | X38: 0.8 | Y38: 12 | Z38: 0.25 | AB38: 0.4 | AC38: 13.8 | AD38: 1 | AF38: 100 | AG38: 12.7 | AH38: 0.02 | AI38: 43.7 | AM38: 12.8 | AN38: 0.8224539482 | AO38: 0.9591817888 | AP38: 509.2308572
A39: Gira-sol, gra | B39: 93 | C39: 1.708471184 | D39: 1.695156001 | E39: 174 | F39: 24.64749869 | G39: 60.41910651 | H39: 72.58686279 | I39: 0.2627 | L39: 2 | M39: 0.74312 | N39: 714.13832 | O39: 485 | P39: 164 | Q39: 294 | R39: 200 | S39: 56 | T39: 39 | U39: 0.99 | V39: 3.12 | AM39: 460.75 | AN39: 0.8418449238 | AO39: 0.8956544094 | AP39: 566.2107452
A40: Gira-sol tortó esclovellat | B40: 91 | C40: 0.9910764189 | D40: 0.9439708695 | E40: 417 | F40: 80.25381508 | G40: 133.123438 | H40: 220.1112143 | I40: 0.3208 | L40: 2 | M40: 0.745917 | N40: 691.465059 | O40: 22 | P40: 176 | Q40: 299 | R40: 220 | S40: 70 | T40: 73 | U40: 2.09 | V40: 6.435 | W40: 5.5 | X40: 1.2 | Y40: 12 | Z40: 0.33 | AM40: 16.5 | AN40: 0.790120834 | AO40: 0.9169809263 | AP40: 601.9494415
A41: Llentia gra | B41: 88 | C41: 1.292742572 | D41: 1.330655343 | E41: 281 | F41: 49.08181296 | G41: 113.199967 | H41: 113.2253843 | I41: 0.1714 | L41: 2 | M41: 0.91963 | N41: 886.52332 | O41: 19.3 | P41: 49 | Q41: 160 | R41: 72 | S41: 3 | T41: 36 | U41: 0.605 | V41: 3.06 | AM41: 14.475 | AN41: 0.8216657174 | AO41: 0.9794436099 | AP41: 617.4800936
A42: Llí, gra | B42: 90.3 | C42: 1.657583747 | D42: 1.660671498 | E42: 253 | F42: 51.01194867 | G42: 92.3191443 | H42: 111.0075068 | I42: 0.3208 | L42: 2 | M42: 0.780518 | N42: 743.3653432 | O42: 362 | P42: 101.9 | Q42: 244.7 | R42: 148.4 | S42: 62 | T42: 47.6 | U42: 2.314507198 | V42: 4.526024363 | W42: 3.986710963 | X42: 0.6644518272 | Y42: 7.973421927 | Z42: 0.7751937984 | AA42: 2.990033223 | AC42: 13.28903654 | AD42: 0.2214839424 | AF42: 163.8981174 | AG42: 32.11517165 | AI42: 49.83388704 | AM42: 343.9 | AN42: 0.7776919873 | AO42: 0.9069770052 | AP42: 614.3463707
A43: Llinosa tortó dessoliat | B43: 89 | C43: 1.151871054 | D43: 1.134141167 | E43: 377 | F43: 129.4671117 | G43: 180.6322598 | H43: 120.744456 | I43: 0.3064061 | L43: 2 | M43: 0.803904 | N43: 752.454144 | O43: 58 | P43: 118 | Q43: 236 | R43: 149 | S43: 88 | T43: 64 | U43: 2.585 | V43: 6.298 | W43: 6.1 | Y43: 14 | Z43: 1.3 | AB43: 0.6 | AC43: 21 | AD43: 0.6 | AF43: 250 | AG43: 59 | AH43: 0.5 | AI43: 73 | AL43: 9 | AM43: 43.5 | AN43: 0.6169566624 | AO43: 0.8965410847 | AP43: 595.3582566
A44: Margalló tortó (palmiste) | B44: 90 | C44: 0.8319475036 | D44: 0.7632996493 | E44: 206 | F44: 83.76805509 | G44: 136.5208369 | H44: -3.926221648 | I44: 0.4287 | L44: 2 | M44: 0.73056 | N44: 699.14592 | O44: 19 | P44: 167 | Q44: 632 | R44: 241 | S44: 103 | T44: 43 | U44: 1.705 | V44: 4.556 | AM44: 17.1 | AN44: 0.5228718322 | AO44: 0.8522679473 | AP44: 614.3463707
A45: Mongeta gra | B45: 88 | C45: 1.269417567 | D45: 1.306008103 | E45: 257 | F45: 44.57202968 | G45: 108.5638422 | H45: 93.98279293 | I45: 0.1714 | L45: 2 | M45: 0.91937 | N45: 878.91772 | O45: 19 | P45: 51 | Q45: 162 | R45: 74 | S45: 3 | T45: 44 | U45: 0.715 | V45: 3.468 | W45: 1.6 | Y45: 14 | Z45: 0.4 | AM45: 15.2 | AN45: 0.8221354136 | AO45: 0.9750789946 | AP45: 689.6784425
A46: Pèsol gra | B46: 85.7 | C46: 1.262578618 | D46: 1.297789954 | E46: 259 | F46: 44.91173193 | G46: 108.9957771 | H46: 95.45867945 | I46: 0.1714 | L46: 2 | M46: 0.91768 | N46: 877.30208 | O46: 15 | P46: 64 | Q46: 162 | R46: 74 | S46: 3 | T46: 44 | U46: 0.495 | V46: 3.128 | W46: 1.45 | Y46: 11 | Z46: 0.3 | AB46: 0.07 | AC46: 7.2 | AD46: 1.1 | AG46: 8 | AH46: 0.2 | AI46: 37 | AM46: 12 | AN46: 0.8222202176 | AO46: 0.9753885851 | AP46: 696.3958697
A47: Soja, gra extrussionat | B47: 88 | C47: 1.485485602 | D47: 1.497390722 | E47: 402 | F47: 188.4323551 | G47: 238.0406285 | H47: 109.2870728 | I47: 0.3208 | L47: 2 | M47: 0.97179 | N47: 912.51081 | O47: 213 | P47: 74 | Q47: 146 | R47: 92 | S47: 7 | T47: 61 | U47: 1.54 | V47: 4.48 | AM47: 202.35 | AN47: 0.526666784 | AO47: 0.9902901084 | AP47: 704.0018085
A48: Soja, gra torrat | B48: 88.6 | C48: 1.490185728 | D48: 1.502445871 | E48: 397.3 | F48: 133.307895 | G48: 185.6891829 | H48: 158.2262376 | I48: 0.2959 | L48: 2 | M48: 0.975779 | N48: 918.5007727 | O48: 216.7 | P48: 63.2 | Q48: 132 | R48: 77.78 | S48: 13.5 | T48: 58.7 | U48: 1.986455982 | V48: 4.187358916 | W48: 2.595936795 | X48: 0.5643340858 | Y48: 20.76749436 | Z48: 0.9029345372 | AA48: 3.16027088 | AC48: 38.37471783 | AD48: 4.514672686 | AF48: 161.3995485 | AG48: 31.6027088 | AH48: 0.316027088 | AI48: 45.14672686 | AM48: 205.865 | AN48: 0.6587213001 | AO48: 0.9831688769 | AP48: 771.7510797
A49: Soja tortó 44 | B49: 87.2 | C49: 1.165625863 | D49: 1.159793832 | E49: 488 | F49: 153.419998 | G49: 207.0695265 | H49: 219.1726116 | I49: 0.2781056 | L49: 2 | M49: 0.849655 | N49: 779.133635 | O49: 22 | P49: 84 | Q49: 163 | R49: 104 | S49: 8 | T49: 83 | U49: 1.87 | V49: 4.9 | W49: 2.7 | Y49: 20 | Z49: 1.95 | AB49: 0.3 | AC49: 17.1 | AD49: 2.3 | AF49: 200 | AG49: 43.7 | AH49: 0.2 | AI49: 54.6 | AL49: 7 | AM49: 16.5 | AN49: 0.6819996035 | AO49: 0.9886316028 | AP49: 737.9075552
A50: Soja tortó 46 | B50: 87.2 | C50: 1.204239972 | D50: 1.205333606 | E50: 505 | F50: 160.0692099 | G50: 214.4558798 | H50: 229.0708283 | I50: 0.2686721 | L50: 2 | M50: 0.863895 | N50: 799.102875 | O50: 20 | P50: 72 | Q50: 143 | R50: 89 | S50: 7 | T50: 75 | U50: 1.87 | V50: 5.18 | W50: 2.7 | Y50: 20 | Z50: 1.95 | AB50: 0.3 | AC50: 17.1 | AD50: 2.3 | AF50: 200 | AG50: 43.7 | AH50: 0.2 | AI50: 54.6 | AM50: 15 | AN50: 0.6799548883 | AO50: 0.99038767 | AP50: 751.5420857
A51: Soja tortó 48 | B51: 88.3 | C51: 1.223810674 | D51: 1.22687166 | E51: 520 | F51: 165.0816182 | G51: 219.3151576 | H51: 239.0600948 | I51: 0.2674143 | L51: 2 | M51: 0.867341 | N51: 804.025107 | O51: 23 | P51: 70 | Q51: 140 | R51: 87 | S51: 7 | T51: 73 | U51: 1.87 | V51: 5.46 | W51: 2.7 | Y51: 19.7 | Z51: 1.95 | AB51: 0.3 | AC51: 17.1 | AD51: 2.3 | AF51: 200 | AG51: 43.7 | AH51: 0.2 | AI51: 54.6 | AM51: 17.25 | AN51: 0.6794639687 | AO51: 0.9904179858 | AP51: 186.2528251
A52: Soja tortó 50 | B52: 87.8 | C52: 1.225744301 | D52: 1.225565004 | E52: 544 | F52: 172.4045434 | G52: 225.7154558 | H52: 256.1016993 | I52: 0.2498051 | L52: 2 | M52: 0.862027 | N52: 797.374975 | O52: 28 | P52: 77 | Q52: 102 | R52: 59 | S52: 6 | T52: 75 | U52: 1.65 | V52: 5.46 | W52: 2.7 | Y52: 19.7 | Z52: 1.95 | AB52: 0.3 | AC52: 17.1 | AD52: 2.3 | AF52: 200 | AG52: 43.7 | AH52: 0.2 | AI52: 54.6 | AM52: 21 | AN52: 0.6801163265 | AO52: 0.9907355167 | AP52: 299.4175209
A53: Soja tortó 48 curtit "tanne" | B53: 88.8 | C53: 1.223810674 | D53: 1.22687166 | E53: 520 | F53: 165.0816182 | G53: 219.3151576 | H53: 239.0600948 | I53: 0.2674143 | L53: 2 | M53: 0.867341 | N53: 804.025107 | O53: 23 | P53: 70 | Q53: 140 | R53: 87 | S53: 7 | T53: 73 | U53: 1.87 | V53: 5.46 | AB53: 0.3 | AC53: 17.1 | AD53: 2.3 | AF53: 200 | AG53: 43.7 | AH53: 0.2 | AI53: 54.6 | AM53: 15.18 | AN53: 0.6794639687 | AO53: 0.9904179858 | AP53: 152.5275173
A54: Llobí (tramús) gra | B54: 86.7 | C54: 1.49857485 | D54: 1.544346092 | E54: 399 | F54: 69.09881582 | G54: 127.2670334 | H54: 218.10216 | I54: 0.1714 | L54: 2 | M54: 0.90507 | N54: 864.34185 | O54: 104 | P54: 161 | Q54: 229 | R54: 172 | S54: 17 | T54: 45 | U54: 1.1 | V54: 3.128 | W54: 2.5 | Y54: 9.5 | Z54: 0.55 | AM54: 93.6 | AN54: 0.822898728 | AO54: 0.9778585299 | AP54: 864.527247
A55: Llobí (tramús) extrussionat | B55: 88 | C55: 1.52751288 | D55: 1.578192665 | E55: 406 | F55: 69.23209069 | G55: 127.7145253 | H55: 223.2811959 | I55: 0.1714 | L55: 2 | M55: 0.91027 | N55: 877.50028 | O55: 109 | P55: 121 | Q55: 214 | R55: 175 | S55: 34.4 | T55: 36 | U55: 1.1 | V55: 3.06 | W55: 1.7 | X55: 0.23 | Y55: 10 | Z55: 0.11 | AM55: 83.93 | AN55: 0.8224029302 | AO55: 0.9601644388 | AP55: 769.7935828
A56: Polpes (cítrics) ensitjades | B56: 21 | C56: 1.224764853 | D56: 1.238763409 | E56: 73 | F56: 20.57651646 | G56: 79.53725613 | H56: -58.87615574 | I56: 0.2212 | L56: 2 | M56: 0.87228 | N56: 824.3046 | O56: 97 | P56: 156 | Q56: 356.65 | R56: 206.62 | S56: 44.65 | T56: 55 | U56: 11.22 | V56: 1.35 | W56: 1.6 | Y56: 6.2 | Z56: 0.9 | AA56: 0.2 | AB56: 0.16 | AC56: 6 | AF56: 160 | AG56: 7 | AI56: 16 | AM56: 58.2 | AN56: 0.6807836781 | AO56: 0.883006504 | AP56: 785.4935134
A57: Polpes (cítrics) | B57: 90 | C57: 1.09457765 | D57: 1.103551588 | E57: 70 | F57: 20.49453097 | G57: 82.57976854 | H57: -65.70818372 | I57: 0.2212 | L57: 2 | M57: 0.87931 | N57: 822.15485 | O57: 28 | P57: 137 | Q57: 223 | R57: 158 | S57: 14 | T57: 65 | U57: 4.6 | V57: 1.17 | AM57: 16.8 | AN57: 0.6799461392 | AO57: 0.9147804468 | AP57: 367.9099184
A58: Garrofer garrofa | B58: 87 | C58: 0.843494905 | D58: 0.8273952756 | E58: 58 | F58: 20.57803675 | G58: 81.08159627 | H58: -76.25681175 | I58: 0.288174289 | L58: 2 | M58: 0.8014563863 | N58: 771.8025 | O58: 11 | P58: 87 | Q58: 257.16 | R58: 120.01 | S58: 23.83 | T58: 37 | U58: 0.825 | V58: 0.408 | AM58: 9.9 | AN58: 0.6052595731 | AO58: 0.8988026382 | AP58: 645.9087874
A59: Garrofer polpa deshidratada sense grana, IAMZ | B59: 86 | C59: 0.8175571336 | D59: 0.8010099087 | E59: 56 | F59: 19.88740459 | G59: 81.02326077 | H59: -78.36477527 | I59: 0.286199543 | L59: 2 | M59: 0.8034925234 | N59: 773.7633 | O59: 0.1 | P59: 84.5 | Q59: 253.55 | R59: 116.87 | S59: 23.07 | T59: 37 | U59: 0.825 | V59: 0.408 | AM59: 0.08 | AN59: 0.6049783161 | AO59: 0.8990195713 | AP59: 332.8963114
A60: Oliva molinada "orujo" | B60: 89 | C60: 0.3555684594 | D60: 0.2315284959 | E60: 111 | F60: 37.77367179 | G60: 72.19608588 | H60: -21.36502202 | I60: 0.5864 | L60: 2 | M60: 0.33429 | N60: 306.87822 | O60: 74 | P60: 339 | Q60: 620.51 | R60: 456.32 | S60: 108.36 | T60: 82 | U60: 7.7 | V60: 2.312 | AM60: 54.76 | AN60: 0.5799513971 | AO60: 0.8101523183 | AP60: 255.9763332
A61: Oliva polpa sense extracció, IAMZ | B61: 68.5 | C61: 0.5285256608 | D61: 0.4118821932 | E61: 114 | F61: 44.70328847 | G61: 84.48223093 | H61: -28.4745976 | I61: 0.5864 | L61: 2 | M61: 0.458 | N61: 425.024 | O61: 74 | P61: 200 | Q61: 341 | R61: 295 | S61: 60.21 | T61: 72 | U61: 6.545 | V61: 1.088 | AM61: 54.76 | AN61: 0.5473115864 | AO61: 0.8662340312 | AP61: 172.2609194
A62: Oliva polpa d'extracció ("orujo"), IAMZ | B62: 87.6 | C62: 0.2835820822 | D62: 0.1630785602 | E62: 66 | F62: 20.21048157 | G62: 53.34965943 | H62: -38.25996541 | I62: 0.5864 | L62: 2 | M62: 0.26932 | N62: 252.89148 | O62: 74 | P62: 412 | Q62: 725.77 | R62: 527.95 | S62: 134.64 | T62: 61 | U62: 3.08 | V62: 0.612 | AM62: 54.76 | AN62: 0.6005460193 | AO62: 0.7665949833 | AP62: 731.0116457
A63: Patata-ITEB | B63: 13 | C63: 1.224039877 | D63: 1.270348111 | E63: 100 | F63: 34.23948908 | G63: 100.5831692 | H63: -56.86200025 | I63: 0.1216 | L63: 2 | M63: 0.9445 | N63: 901.9975 | O63: 0.8 | P63: 30 | Q63: 174.97 | R63: 48.46 | S63: 7.28 | T63: 45 | U63: 0.55 | V63: 1.36 | W63: 1 | X63: 22 | AM63: 0.64 | AN63: 0.6332974699 | AO63: 0.9337129217 | AP63: 746.3181739
A64: Patata polpa-ITEB | B64: 17 | C64: 1.047562058 | D64: 1.040325904 | E64: 50 | F64: 15.36772122 | G64: 77.36979178 | H64: -80.57823525 | I64: 0.1216 | L64: 2 | M64: 0.8101 | N64: 789.8475 | O64: 2.5 | P64: 150 | Q64: 348 | R64: 199.09 | S64: 43.7 | T64: 25 | U64: 2.75 | V64: 0.34 | W64: 0.8 | X64: 6 | AM64: 2 | AN64: 0.6489216562 | AO64: 0.8754582267 | AP64: 866.032
A65: Poma deixalles | B65: 22 | C65: 1.10018865 | D65: 1.102760433 | E65: 23 | F65: 8.795543217 | G65: 71.56469958 | H65: -100.0868068 | I65: 0.4868 | L65: 2 | M65: 0.82908 | N65: 813.32748 | O65: 18 | P65: 68 | Q65: 229.76 | R65: 96.16 | S65: 18 | T65: 19 | U65: 0.33 | V65: 0.408 | AM65: 16.2 | AN65: 0.5724362337 | AO65: 0.8944044201 | AP65: 695.25
A66: Poma molinada ("marc") deshidratada | B66: 94.1 | C66: 0.5535459391 | D66: 0.4298652377 | E66: 79 | F66: 22.41772409 | G66: 65.61179369 | H66: -39.82073375 | I66: 0.4868 | L66: 2 | M66: 0.44368 | N66: 435.25008 | O66: 39 | P66: 478 | Q66: 354 | R66: 610.79 | S66: 121 | T66: 19 | U66: 1.045 | V66: 1.088 | AM66: 35.1 | AN66: 0.6412637776 | AO66: 0.7910231575 | AP66: 0
A67: Poma residu deshidratat, NRC | B67: 89 | C67: 1.017592193 | D67: 0.9832011689 | E67: 49 | F67: 17.45620144 | G67: 73.71511167 | H67: -76.13454724 | I67: 0.4868 | L67: 2 | M67: 0.7332 | N67: 717.0696 | O67: 51 | P67: 170 | Q67: 376.83 | R67: 260 | S67: 50.24 | T67: 22 | U67: 0.715 | V67: 0.748 | W67: 0.7 | Y67: 4.6 | Z67: 1.2 | AA67: 0.2 | AC67: 10 | AF67: 300 | AG67: 7 | AM67: 45.9 | AN67: 0.5885548453 | AO67: 0.8658481085 | AP67: 628.0150685
A68: Raïm vinassa sense pinyols | B68: 67 | C68: 0.6608050597 | D68: 0.5617156148 | E68: 172 | F68: 20.01576435 | G68: 59.87298187 | H68: -4.236902376 | I68: 0.5864 | L68: 2 | M68: 0.54433 | N68: 483.36504 | O68: 97 | P68: 103 | Q68: 777 | R68: 685 | S68: 536 | T68: 112 | U68: 3.3 | V68: 1.7 | AM68: 72.75 | AN68: 0.6891352988 | AO68: 0.3743452458 | AP68: 0
A69: Raïm polpa | B69: 90 | C69: 0.3048901197 | D69: 0.1865548158 | E69: 120 | F69: 11.60850895 | G69: 48.20840292 | H69: -20.98733433 | I69: 0.5864 | L69: 2 | M69: 0.30492 | N69: 292.41828 | O69: 7 | P69: 372 | Q69: 754 | R69: 653 | S69: 499 | T69: 41 | U69: 4.4 | V69: 2.72 | AM69: 5.25 | AN69: 0.754650443 | AO69: 0.3942846922 | AP69: 477.3495771
A70: Raïm tortó de pinyols | B70: 89 | C70: 0.1623041941 | D70: 0.0678723051 | E70: 112 | F70: -1.654010677 | G70: 29.6262119 | H70: -16.03534777 | I70: 0.5864 | L70: 2 | M70: 0.18833 | N70: 181.17346 | O70: 16 | P70: 503 | Q70: 847 | R70: 751 | S70: 644 | T70: 38 | U70: 3.63 | V70: 0.884 | AM70: 12 | AN70: 1.063280888 | AO70: 0.2333714493 | AP70: 842.2541643
A71: Remolatxa polpes ensitjades | B71: 22 | C71: 1.00766597 | D71: 1.00149028 | E71: 98 | F71: 33.63126047 | G71: 93.73194347 | H71: -53.22731718 | I71: 0.2876 | L71: 2 | M71: 0.85378 | N71: 778.64736 | O71: 9 | P71: 206 | Q71: 428.74 | R71: 269.38 | S71: 62.22 | T71: 88 | U71: 2.6 | V71: 0.68 | AB71: 0.1 | AC71: 4.6 | AD71: 0.3 | AG71: 52.4 | AH71: 0.03 | AI71: 9.6 | AM71: 4.5 | AN71: 0.6057580172 | AO71: 0.8704707824 | AP71: 468.1746973
A72: Remolatxa polpes deshidratades | B72: 90 | C72: 1.025471629 | D72: 1.019108024 | E72: 98 | F72: 34.16981377 | G72: 94.98664694 | H72: -54.34630184 | I72: 0.2876 | L72: 2 | M72: 0.855001 | N72: 794.2104289 | O72: 9 | P72: 202.7 | Q72: 507.9 | R72: 302.1 | S72: 55.1 | T72: 71.1 | U72: 2.12 | V72: 0.68 | W72: 2.233333333 | X72: 0.4 | Y72: 4 | Z72: 2.233333333 | AA72: 2.2 | AB72: 0.09333333333 | AC72: 7.733333333 | AD72: 0.3 | AF72: 243 | AG72: 47.6 | AH72: 0.03 | AI72: 9.733333333 | AK72: 0.6 | AM72: 4 | AN72: 0.6031402548 | AO72: 0.8785763064 | AP72: 592.8381002
A73: Melassa Remolatxa | B73: 76 | C73: 1.184004733 | D73: 1.207089514 | E73: 146 | F73: 10.22 | G73: 76.74012851 | H73: 17.6422992 | I73: -0.7084 | L73: 3 | M73: 0.89 | N73: 878.252 | O73: 2 | P73: 0 | Q73: 0 | R73: 0 | S73: 0 | T73: 13.2 | U73: 1.925 | V73: 0.34 | W73: 16.5 | Y73: 55 | Z73: 12.5 | AM73: 2 | AN73: 0.93 | AO73: 1
A74: Melassa canya | B74: 75 | C74: 0.8610639099 | D74: 0.8391616233 | E74: 45 | F74: 3.15 | G74: 61.811424 | H74: -64.008475 | I74: -1.5384 | L74: 4 | M74: 0.8 | N74: 710.4 | O74: 12 | P74: 0 | Q74: 0 | R74: 0 | S74: 0 | T74: 112 | U74: 5.115 | V74: 0.748 | W74: 4.7 | X74: 27 | Y74: 33 | Z74: 1.7 | AM74: 12 | AN74: 0.93 | AO74: 1
A75: Grassa vegetal, mantega de porc (tots els tipus) | B75: 99.9 | C75: 3.61 | D75: 3.94 | E75: 1e-07 | F75: 1e-07 | G75: 1e-07 | H75: -14 | I75: 0.25 | L75: 2 | M75: 0.9 | N75: 1e-07 | O75: 999 | P75: 1e-07 | Q75: 1e-07 | R75: 1e-07 | S75: 1e-07 | T75: 1e-07 | U75: 5.5e-08 | V75: 6.8e-08 | W75: 1e-07 | X75: 1e-07 | Y75: 1e-07 | Z75: 1e-07 | AA75: 1e-07 | AB75: 1e-07 | AC75: 1e-07 | AD75: 1e-07 | AF75: 1e-07 | AG75: 1e-07 | AH75: 1e-07 | AI75: 1e-07 | AJ75: 1300 | AK75: 1e-07 | AL75: 95 | AM75: 999 | AN75: 0 | AO75: 0
A76: Llevat cerveseria | B76: 93.3 | C76: 1.18 | D76: 1.17 | E76: 476 | F76: 87 | G76: 143 | H76: 278 | I76: 0.15 | L76: 2 | M76: 0.84 | N76: 756 | O76: 40 | P76: 21 | Q76: 88 | R76: 25 | S76: 7 | T76: 32 | U76: 1.65 | V76: 9.18 | W76: 2.4 | AM76: 32 | AN76: 0.815157707 | AO76: 0.98880568
A77: Urea | B77: 99 | C77: 0.26 | D77: 0.2 | E77: 2870 | F77: 1e-06 | G77: 71 | H77: 2557 | I77: 0.23 | L77: 2 | M77: 0.99 | N77: 1e-06 | O77: 1e-06 | P77: 1e-06 | Q77: 1e-06 | R77: 1e-06 | S77: 1e-06 | T77: 1e-06 | W77: 1e-06 | X77: 1e-06 | Y77: 1e-06 | Z77: 1e-06 | AA77: 1e-06 | AB77: 1e-06 | AC77: 1e-06 | AD77: 1e-06 | AF77: 1e-06 | AG77: 1e-06 | AH77: 1e-06 | AI77: 1e-06 | AJ77: 1e-06 | AK77: 1e-06 | AL77: 1e-06 | AM77: 0 | AN77: 0 | AO77: 0
A78: Residu pa deshidratat, NRC | B78: 92 | C78: 1.096141567 | D78: 1.054875419 | E78: 107 | F78: 22.01612961 | G78: 70.4665579 | H78: -10.7237942 | I78: 0.294457 | L78: 2 | M78: 0.714218 | N78: 628.1690154 | O78: 127 | P78: 130 | Q78: 180 | R78: 130 | S78: 10 | T78: 44 | U78: 0.77 | V78: 1.768 | W78: 2.6 | X78: 16.1 | Y78: 5.3 | Z78: 12.4 | AA78: 0.2 | AB78: 1.05 | AC78: 5 | AF78: 31 | AG78: 71 | AI78: 16 | AJ78: 2000 | AL78: 45 | AN78: 0.7773884271 | AO78: 0.9242925602
A79: Mandioca | B79: 85 | C79: 1.142097463 | D79: 1.174454355 | E79: 31 | F79: 10.10542253 | G79: 75.49002249 | H79: -97.45343744 | I79: 0.1216 | L79: 2 | M79: 0.91762 | N79: 861.64518 | O79: 8.2 | P79: 54 | Q79: 118 | R79: 59 | S79: 14.01 | T79: 61 | U79: 1.375 | V79: 0.68 | W79: 0.9 | Y79: 7.5 | Z79: 0.35 | AC79: 2 | AF79: 50 | AG79: 5 | AI79: 30 | AM79: 6.56 | AN79: 0.638999494 | AO79: 0.9029942241
A80: Alfals deshidratat i aglomerats | B80: 90.2 | C80: 0.7398701174 | D80: 0.6738447078 | E80: 233 | F80: 68.64631679 | G80: 116.147103 | H80: 51.38002158 | I80: 0.3789 | L80: 2 | M80: 0.6658 | N80: 579.9118 | O80: 34 | P80: 237 | Q80: 405 | R80: 280 | S80: 76 | T80: 129 | U80: 3.84 | V80: 1.768 | AM80: 17 | AN80: 0.6663643659 | AO80: 0.8830573093
A81: Graminies deshidratades i aglomerades | B81: 91 | C81: 0.8289959418 | D81: 0.7851460594 | E81: 105 | F81: 26.82240135 | G81: 80.52058238 | H81: -29.85340787 | I81: 0.3818741 | L81: 2 | M81: 0.72207 | N81: 649.14093 | O81: 25 | P81: 238 | Q81: 508 | R81: 269 | S81: 73.08 | T81: 101 | U81: 2.365 | V81: 1.836 | AM81: 12.5 | AN81: 0.7018778114 | AO81: 0.8568682611
A82: Concentrat producció1 | B82: 86.42 | C82: 1.214792769 | E82: 208.255 | F82: 75.91099939 | G82: 127.450858 | H82: 28.91678349 | I82: 0.31215618 | L82: 1.99 | M82: 0.86847447 | N82: 838.7279689 | O82: 36.485 | P82: 43.27 | Q82: 135.775 | R82: 52.745 | S82: 44.1 | T82: 39.405 | U82: 1.805375 | V82: 2.79922 | W82: 1.853 | X82: 0.001 | Y82: 8.5055 | Z82: 0.81785 | AA82: 0.0035 | AB82: 0.1039 | AC82: 6.7885 | AD82: 0.8985 | AG82: 20.616 | AH82: 0.0739 | AI82: 31.253 | AJ82: 0 | AK82: 0 | AL82: 2.1 | AM82: 30.35225 | AN82: 0.5149666548 | AP82: 764.100298
A83: concentrat 2 | B83: 87.574 | C83: 1.090118372 | E83: 189.16 | F83: 49.30348821 | G83: 109.2090454 | H83: 24.65196693 | I83: 0.218324 | L83: 1.98 | M83: 0.8301768 | N83: 803.1701184 | O83: 18.24 | P83: 57.83 | Q83: 200.5 | R83: 71.19 | S83: 14.54 | T83: 41.71 | U83: 2.6466 | V83: 2.97568 | W83: 1.75 | X83: 0.002 | Y83: 4.447 | Z83: 0.287 | AA83: 0.007 | AB83: 0.065 | AC83: 6.155 | AD83: 0.563 | AG83: 23.105 | AH83: 0.0369 | AI83: 31.205 | AJ83: 800 | AK83: 0 | AL83: 20 | AM83: 13.68 | AN83: 0.7243498484 | AP83: 630.2337122
A84: Clovella Soja | B84: 88.8 | C84: 1,08 | E84: 129 | F84: 38 | G84: 95 | H84: -32 | I84: 0,44 | L84: 2 | M84: 0,80 | O84: 21 | P84: 391 | Q84: 652 | R84: 464 | S84: 24 | T84: 53 | U84: 3.08 | V84: 1.156 | W84: 2.5 | AM84: 20 | AN84: 0,56 | AO84: 0,67

Sheet 0_Taula Minerals-aa
A1: INGREDIENTS | B1: MS | C1: UFL | D1: UFV | E1: MNT_PB | F1: PDIA | G1: PDI | H1: BPR | I1: UEL | J1: UEB | K1: UEM | L1: NI ref | M1: dMO | N1: MOD_TDN | O1: EE | P1: FB | Q1: NDF | R1: ADF | S1: Lignina | T1: cendres | U1: Ca | V1: P | W1: Mg | X1: Cl | Y1: K | Z1: Na | AA1: S | AB1: Co | AC1: Cu | AD1: Mo | AE1: Iode | AF1: Fe | AG1: Mn | AH1: Se | AI1: Zn | AJ1: Vit A | AK1: Vit D | AL1: Vit E | AM1: AG | AN1: DT_N | AO1: dr | AP1: MOF
A3: Carbonat càlcic | B3: 98 | T3: 955 | U3: 145.54 | W3: 14 | X3: 0.2 | Y3: 0.7 | Z3: 0.7 | AA3: 0.7 | AC3: 12 | AF3: 620
A4: Fosfat bicàlcic | B4: 98.8 | T4: 836 | U4: 244 | V4: 122.4 | W4: 5 | X4: 0.4 | Y4: 1.2 | Z4: 0.8 | AA4: 11 | AC4: 15 | AF4: 7800
A5: Fosfat monocàlcic | B5: 98.8 | U5: 88.2 | V5: 155.04
A6: Òxid magnèsic | B6: 100 | U6: 30 | W6: 510
A7: Farina d’ossos | B7: 100 | U7: 11.8 | V7: 10.2
A8: Fosfat sòdic | B8: 100 | V8: 13.6 | Z8: 19
A9: Fosfòric | B9: 100 | V9: 21.488
A10: Bicarbonat sòdic | B10: 99.7 | Z10: 270
A11: Carbonat de cobalt | B11: 100 | AB11: 49
A12: Carbonat de manganès | B12: 100 | AG12: 47
A13: Carbonat de zinc | B13: 100 | AI13: 52
A14: Clorur potàssic | B14: 100 | Y14: 52
A15: Clorur sòdic | B15: 98 | X15: 570 | Z15: 360
A16: Iodur potàssic | B16: 100 | AE16: 76
A17: Òxid de coure | B17: 100 | AC17: 80 | AL17: 780
A18: Òxid de manganès | B18: 100 | AG18: 77
A19: Òxid de zinc | B19: 100 | AI19: 80
A20: Sulfat de cobalt | B20: 100 | AB20: 22
A21: Sulfat de coure | B21: 100 | AC21: 25
A22: Sulfat de zinc | B22: 100 | AI22: 23
A23: Sulfat magnèsic | B23: 100 | W23: 10 | AA23: 13
A24: Sulfat sòdic | B24: 100 | Z24: 32 | AA24: 22

Sheet Paràmetres llet (hidden)
A1: COMPONENTS | B1: POSICIÓ | C1: PARÀMETRES DE CÀLCUL
A2: ='0_Taula Farratges'!B1 -> MS % | B2: 1 | C2: 2
A3: ='0_Taula Farratges'!C1 -> UFL | B3: =1+B2 -> 2 | C3: 1
A4: ='0_Taula Farratges'!$E1 -> MNT_PB | B4: 4 | C4: 1
A5: ='0_Taula Farratges'!F1 -> PDIA | B5: =1+B4 -> 5 | C5: 1
A6: ='0_Taula Farratges'!G1 -> PDI | B6: 6 | C6: 1
A7: ='0_Taula Farratges'!H1 -> BPR | B7: 7 | C7: 1
A8: ='0_Taula Farratges'!I1 -> UEL | B8: 8 | C8: 1
A9: ='0_Taula Farratges'!L1 -> NI ref | B9: 11 | C9: 1
A10: ='0_Taula Farratges'!M1 -> dMO | B10: 12 | C10: 1
A11: ='0_Taula Farratges'!N$1 -> MOD | B11: 13 | C11: 1
A12: ='0_Taula Farratges'!O1 -> EE | B12: 14 | C12: 1
A13: ='0_Taula Farratges'!P1 -> FB | B13: =1+B12 -> 15 | C13: 1
A14: ='0_Taula Farratges'!Q1 -> NDF | B14: 16 | C14: 1
A15: ='0_Taula Farratges'!R1 -> ADF | B15: 17 | C15: 1
A16: ='0_Taula Farratges'!S1 -> Lignina | B16: 18 | C16: 1
A17: ='0_Taula Farratges'!T1 -> cendres | B17: 19 | C17: 1
A18: ='0_Taula Farratges'!U1 -> Ca | B18: 20 | C18: 1
A19: ='0_Taula Farratges'!V1 -> P | B19: 21 | C19: 1
A20: ='0_Taula Farratges'!W1 -> Mg | B20: 22 | C20: 1
A21: ='0_Taula Farratges'!X1 -> Cl | B21: 23 | C21: 1
A22: ='0_Taula Farratges'!Y1 -> K | B22: 24 | C22: 1
A23: ='0_Taula Farratges'!Z1 -> Na | B23: 25 | C23: 1
A24: ='0_Taula Farratges'!AA1 -> S | B24: 26 | C24: 1
A25: ='0_Taula Farratges'!AB1 -> Co | B25: 27 | C25: 1
A26: ='0_Taula Farratges'!AC1 -> Cu | B26: 28 | C26: 1
A27: ='0_Taula Farratges'!AD1 -> Mo | B27: 29 | C27: 1
A28: ='0_Taula Farratges'!AE1 -> Iode | B28: 30 | C28: 1
A29: ='0_Taula Farratges'!AF1 -> Fe | B29: 31 | C29: 1
A30: ='0_Taula Farratges'!AG1 -> Mn | B30: 32 | C30: 1
A31: ='0_Taula Farratges'!AH1 -> Se | B31: 33 | C31: 1
A32: ='0_Taula Farratges'!AI1 -> Zn | B32: 34 | C32: 1
A33: ='0_Taula Farratges'!AJ1 -> Vit A | B33: 35 | C33: 1
A34: ='0_Taula Farratges'!AK1 -> Vit D | B34: 36 | C34: 1
A35: ='0_Taula Farratges'!AL1 -> Vit E | B35: 37 | C35: 1

Sheet CàlculsVL (hidden)
D1: =OFFSET('0_Taula Farratges'!$A$1,0,D2,1,1) -> MS % | E1: =OFFSET('0_Taula Farratges'!$A$1,0,E2,1,1) -> UEL | F1: =OFFSET('0_Taula Farratges'!$A$1,0,F2,1,1) -> UFL | G1: =OFFSET('0_Taula Farratges'!$A$1,0,G2,1,1) -> PDI | H1: =OFFSET('0_Taula Farratges'!$A$1,0,H2,1,1) -> BPR | I1: =OFFSET('0_Taula Farratges'!$A$1,0,I2,1,1) -> NI ref | J1: =OFFSET('0_Taula Farratges'!$A$1,0,J2,1,1) -> Ca | K1: =OFFSET('0_Taula Farratges'!$A$1,0,K2,1,1) -> P | L1: =OFFSET('0_Taula Farratges'!$A$1,0,L2,1,1) -> Mg | M1: =OFFSET('0_Taula Farratges'!$A$1,0,M2,1,1) -> K | N1: =OFFSET('0_Taula Farratges'!$A$1,0,N2,1,1) -> Na | O1: =OFFSET('0_Taula Farratges'!$A$1,0,O2,1,1) -> S | P1: =OFFSET('0_Taula Farratges'!$A$1,0,P2,1,1) -> Cl | Q1: =OFFSET('0_Taula Farratges'!$A$1,0,Q2,1,1) -> Co | R1: =OFFSET('0_Taula Farratges'!$A$1,0,R2,1,1) -> Cu | S1: =OFFSET('0_Taula Farratges'!$A$1,0,S2,1,1) -> Mn | T1: =OFFSET('0_Taula Farratges'!$A$1,0,T2,1,1) -> Zn | U1: =OFFSET('0_Taula Farratges'!$A$1,0,U2,1,1) -> Iode | V1: =OFFSET('0_Taula Farratges'!$A$1,0,V2,1,1) -> Se | W1: =OFFSET('0_Taula Farratges'!$A$1,0,W2,1,1) -> Vit A | X1: =OFFSET('0_Taula Farratges'!$A$1,0,X2,1,1) -> Vit D | Y1: =OFFSET('0_Taula Farratges'!$A$1,0,Y2,1,1) -> Vit E | Z1: =OFFSET('0_Taula Farratges'!$A$1,0,Z2,1,1) -> AG | AA1: =OFFSET('0_Taula Farratges'!$A$1,0,AA2,1,1) -> MNT_PB | AB1: =OFFSET('0_Taula Farratges'!$A$1,0,AB2,1,1) -> PDIA | AC1: =OFFSET('0_Taula Farratges'!$A$1,0,AC2,1,1) -> dMO | AD1: =OFFSET('0_Taula Farratges'!$A$1,0,AD2,1,1) -> MOD | AE1: =OFFSET('0_Taula Farratges'!$A$1,0,AE2,1,1) -> EE | AF1: =OFFSET('0_Taula Farratges'!$A$1,0,AF2,1,1) -> FB | AG1: =OFFSET('0_Taula Farratges'!$A$1,0,AG2,1,1) -> NDF | AH1: =OFFSET('0_Taula Farratges'!$A$1,0,AH2,1,1) -> ADF | AI1: =OFFSET('0_Taula Farratges'!$A$1,0,AI2,1,1) -> Lignina | AJ1: =OFFSET('0_Taula Farratges'!$A$1,0,AJ2,1,1) -> cendres | AK1: =OFFSET('0_Taula Farratges'!$A$1,0,AK2,1,1) -> Mo | AL1: =OFFSET('0_Taula Farratges'!$A$1,0,AL2,1,1) -> DT_N | AM1: =OFFSET('0_Taula Farratges'!$A$1,0,AM2,1,1) -> MOF | BI1: AG | BJ1: MNT_PB | BK1: PDIA | BL1: dMO | BM1: MOD | BN1: EE | BO1: FB | BP1: NDF | BQ1: ADF | BR1: Lignina | BS1: cendres | BT1: Mo
A2: TIPUS | B2: INGREDIENTS UTILITZATS | C2: Nº | D2: 1 | E2: 8 | F2: 2 | G2: 6 | H2: 7 | I2: 11 | J2: 20 | K2: 21 | L2: 22 | M2: 24 | N2: 25 | O2: 26 | P2: 23 | Q2: 27 | R2: 28 | S2: 32 | T2: 34 | U2: 30 | V2: 33 | W2: 35 | X2: 36 | Y2: 37 | Z2: 38 | AA2: 4 | AB2: 5 | AC2: 12 | AD2: 13 | AE2: 14 | AF2: 15 | AG2: 16 | AH2: 17 | AI2: 18 | AJ2: 19 | AK2: 29 | AL2: 39 | AM2: 41 | AN2: UEL | AO2: UFL | AP2: PDI | AQ2: BPR | AR2: NI ref | AS2: Ca | AT2: P | AU2: Mg | AV2: K | AW2: Na | AX2: S | AY2: Cl | AZ2: Co | BA2: Cu | BB2: Mn | BC2: Zn | BD2: Iode | BE2: Se | BF2: Vit A | BG2: Vit D | BH2: Vit E | BI2: AG | BJ2: MNT_PB | BK2: PDIA | BL2: dMO | BM2: MOD | BN2: EE | BO2: FB | BP2: NDF | BQ2: ADF | BR2: Lignina | BS2: cendres | BT2: Mo | BU2: DT_N | BV2: MOF
A3: FARRATGES | B3: =IF(OFFSET('0_Taula Farratges'!$A$1,C3,0,1,1)=0,"",OFFSET('0_Taula Farratges'!$A$1,C3,0,1,1)) -> VERD Raigràs italià 1 setmana abans inici espigat | C3: 5 | D3: =OFFSET('0_Taula Farratges'!$A$1,$C3,$D$2,1,1) -> 16.4 | E3: =OFFSET('0_Taula Farratges'!$A$1,$C3,$E$2,1,1) -> 1.057101244 | F3: =OFFSET('0_Taula Farratges'!$A$1,$C3,$F$2,1,1) -> 0.9568987067 | G3: =OFFSET('0_Taula Farratges'!$A$1,$C3,$G$2,1,1) -> 69.96884231 | H3: =OFFSET('0_Taula Farratges'!$A$1,$C3,$H$2,1,1) -> -17.0368975 | I3: =OFFSET('0_Taula Farratges'!$A$1,$C3,$I$2,1,1) -> 2.36799878 | J3: =OFFSET('0_Taula Farratges'!$A$1,$C3,$J$2,1,1) -> 1.8 | K3: =OFFSET('0_Taula Farratges'!$A$1,$C3,$K$2,1,1) -> 1.8 | L3: =OFFSET('0_Taula Farratges'!$A$1,$C3,$L$2,1,1) -> 1.7 | M3: =OFFSET('0_Taula Farratges'!$A$1,$C3,$M$2,1,1) -> 30 | N3: =OFFSET('0_Taula Farratges'!$A$1,$C3,$N$2,1,1) -> 3 | O3: =OFFSET('0_Taula Farratges'!$A$1,$C3,$O$2,1,1) -> 1 | P3: =OFFSET('0_Taula Farratges'!$A$1,$C3,$P$2,1,1) -> 0 | Q3: =OFFSET('0_Taula Farratges'!$A$1,$C3,$Q$2,1,1) -> 0 | R3: =OFFSET('0_Taula Farratges'!$A$1,$C3,$R$2,1,1) -> 6 | S3: =OFFSET('0_Taula Farratges'!$A$1,$C3,$S$2,1,1) -> 80 | T3: =OFFSET('0_Taula Farratges'!$A$1,$C3,$T$2,1,1) -> 23 | U3: =OFFSET('0_Taula Farratges'!$A$1,$C3,$U$2,1,1) -> 0 | V3: =OFFSET('0_Taula Farratges'!$A$1,$C3,$V$2,1,1) -> 0 | W3: =OFFSET('0_Taula Farratges'!$A$1,$C3,$W$2,1,1) -> 80000 | X3: =OFFSET('0_Taula Farratges'!$A$1,$C3,$X$2,1,1) -> 30 | Y3: =OFFSET('0_Taula Farratges'!$A$1,$C3,$Y$2,1,1) -> 20 | Z3: =OFFSET('0_Taula Farratges'!$A$1,$C3,$Z$2,1,1) -> 18.99 | AA3: =OFFSET('0_Taula Farratges'!$A$1,$C3,$AA$2,1,1) -> 112 | AB3: =OFFSET('0_Taula Farratges'!$A$1,$C3,$AB$2,1,1) -> 22.68 | AC3: =OFFSET('0_Taula Farratges'!$A$1,$C3,$AC$2,1,1) -> 0.7379 | AD3: =OFFSET('0_Taula Farratges'!$A$1,$C3,$AD$2,1,1) -> 663.3721 | AE3: =OFFSET('0_Taula Farratges'!$A$1,$C3,$AE$2,1,1) -> 33 | AF3: =OFFSET('0_Taula Farratges'!$A$1,$C3,$AF$2,1,1) -> 230 | AG3: =OFFSET('0_Taula Farratges'!$A$1,$C3,$AG$2,1,1) -> 522.2 | AH3: =OFFSET('0_Taula Farratges'!$A$1,$C3,$AH$2,1,1) -> 257 | AI3: =OFFSET('0_Taula Farratges'!$A$1,$C3,$AI$2,1,1) -> 0 | AJ3: =OFFSET('0_Taula Farratges'!$A$1,$C3,$AJ$2,1,1) -> 101 | AK3: =OFFSET('0_Taula Farratges'!$A$1,$C3,$AK$2,1,1) -> 0 | AL3: =OFFSET('0_Taula Farratges'!$A$1,$C3,$AL$2,1,1) -> 0.73 | AM3: =OFFSET('0_Taula Farratges'!$A$1,$C3,$AM$2,1,1) -> 597.0361265 | AN3: =IF('II_Plantejar Ració'!$E4>0,IF(CàlculsVL!E3>=0,1,"No"),"") -> 1 | AO3: =IF('II_Plantejar Ració'!$E4>0,IF(CàlculsVL!F3>=0,1,"No"),"") -> 1 | AP3: =IF('II_Plantejar Ració'!$E4>0,IF(CàlculsVL!G3>0,1,"No"),"") -> 1 | AQ3: =IF('II_Plantejar Ració'!$E4>0,IF(CàlculsVL!H3=0,"No",1),"") -> 1 | AR3: =IF('II_Plantejar Ració'!$E4>0,IF(CàlculsVL!I3>0,1,"No"),"") -> 1 | AS3: =IF('II_Plantejar Ració'!$E4>0,IF(CàlculsVL!J3>0,1,"No"),"") -> 1 | AT3: =IF('II_Plantejar Ració'!$E4>0,IF(CàlculsVL!K3>0,1,"No"),"") -> 1 | AU3: =IF('II_Plantejar Ració'!$E4>0,IF(CàlculsVL!L3>0,1,"No"),"") -> 1 | AV3: =IF('II_Plantejar Ració'!$E4>0,IF(CàlculsVL!M3>0,1,"No"),"") -> 1 | AW3: =IF('II_Plantejar Ració'!$E4>0,IF(CàlculsVL!N3>0,1,"No"),"") -> 1 | AX3: =IF('II_Plantejar Ració'!$E4>0,IF(CàlculsVL!O3>0,1,"No"),"") -> 1 | AY3: =IF('II_Plantejar Ració'!$E4>0,IF(CàlculsVL!P3>0,1,"No"),"") -> No | AZ3: =IF('II_Plantejar Ració'!$E4>0,IF(CàlculsVL!Q3>0,1,"No"),"") -> No | BA3: =IF('II_Plantejar Ració'!$E4>0,IF(CàlculsVL!R3>0,1,"No"),"") -> 1 | BB3: =IF('II_Plantejar Ració'!$E4>0,IF(CàlculsVL!S3>0,1,"No"),"") -> 1 | BC3: =IF('II_Plantejar Ració'!$E4>0,IF(CàlculsVL!T3>0,1,"No"),"") -> 1 | BD3: =IF('II_Plantejar Ració'!$E4>0,IF(CàlculsVL!U3>0,1,"No"),"") -> No | BE3: =IF('II_Plantejar Ració'!$E4>0,IF(CàlculsVL!V3>0,1,"No"),"") -> No | BF3: =IF('II_Plantejar Ració'!$E4>0,IF(CàlculsVL!W3>0,1,"No"),"") -> 1 | BG3: =IF('II_Plantejar Ració'!$E4>0,IF(CàlculsVL!X3>0,1,"No"),"") -> 1 | BH3: =IF('II_Plantejar Ració'!$E4>0,IF(CàlculsVL!Y3>0,1,"No"),"") -> 1 | BI3: =IF('II_Plantejar Ració'!$E4>0,IF(CàlculsVL!Z3>0,1,"No"),"") -> 1 | BJ3: =IF('II_Plantejar Ració'!$E4>0,IF(CàlculsVL!AA3>0,1,"No"),"") -> 1 | BK3: =IF('II_Plantejar Ració'!$E4>0,IF(CàlculsVL!AB3>0,1,"No"),"") -> 1 | BL3: =IF('II_Plantejar Ració'!$E4>0,IF(CàlculsVL!AC3>0,1,"No"),"") -> 1 | BM3: =IF('II_Plantejar Ració'!$E4>0,IF(CàlculsVL!AD3>0,1,"No"),"") -> 1 | BN3: =IF('II_Plantejar Ració'!$E4>0,IF(CàlculsVL!AE3>0,1,"No"),"") -> 1 | BO3: =IF('II_Plantejar Ració'!$E4>0,IF(CàlculsVL!AF3>0,1,"No"),"") -> 1 | BP3: =IF('II_Plantejar Ració'!$E4>0,IF(CàlculsVL!AG3>0,1,"No"),"") -> 1 | BQ3: =IF('II_Plantejar Ració'!$E4>0,IF(CàlculsVL!AH3>0,1,"No"),"") -> 1 | BR3: =IF('II_Plantejar Ració'!$E4>0,IF(CàlculsVL!AI3>0,1,"No"),"") -> No | BS3: =IF('II_Plantejar Ració'!$E4>0,IF(CàlculsVL!AJ3>0,1,"No"),"") -> 1 | BT3: =IF('II_Plantejar Ració'!$E4>0,IF(CàlculsVL!AK3>0,1,"No"),"") -> No | BU3: =IF('II_Plantejar Ració'!$E4>0,IF(CàlculsVL!AL3>0,1,"No"),"") -> 1 | BV3: =IF('II_Plantejar Ració'!$E4>0,IF(CàlculsVL!AM3>0,1,"No"),"") -> 1 | BW3: =IF(AN3="",0,1) -> 1 | BX3: =IF(AO3="",0,1) -> 1 | BY3: =IF(AP3="",0,1) -> 1 | BZ3: =IF(AQ3="",0,1) -> 1 | CA3: =IF(AR3="",0,1) -> 1 | CB3: =IF(AS3="",0,1) -> 1 | CC3: =IF(AT3="",0,1) -> 1 | CD3: =IF(AU3="",0,1) -> 1 | CE3: =IF(AV3="",0,1) -> 1 | CF3: =IF(AW3="",0,1) -> 1 | CG3: =IF(AX3="",0,1) -> 1 | CH3: =IF(AY3="",0,1) -> 1 | CI3: =IF(AZ3="",0,1) -> 1 | CJ3: =IF(BA3="",0,1) -> 1 | CK3: =IF(BB3="",0,1) -> 1 | CL3: =IF(BC3="",0,1) -> 1 | CM3: =IF(BD3="",0,1) -> 1 | CN3: =IF(BE3="",0,1) -> 1 | CO3: =IF(BF3="",0,1) -> 1 | CP3: =IF(BG3="",0,1) -> 1 | CQ3: =IF(BH3="",0,1) -> 1 | CR3: =IF(BI3="",0,1) -> 1 | CS3: =IF(BJ3="",0,1) -> 1 | CT3: =IF(BK3="",0,1) -> 1 | CU3: =IF(BL3="",0,1) -> 1 | CV3: =IF(BM3="",0,1) -> 1 | CW3: =IF(BN3="",0,1) -> 1 | CX3: =IF(BO3="",0,1) -> 1 | CY3: =IF(BP3="",0,1) -> 1 | CZ3: =IF(BQ3="",0,1) -> 1 | DA3: =IF(BR3="",0,1) -> 1 | DB3: =IF(BS3="",0,1) -> 1 | DC3: =IF(BT3="",0,1) -> 1 | DD3: =IF(BU3="",0,1) -> 1 | DE3: =IF(BV3="",0,1) -> 1
B4: =IF(OFFSET('0_Taula Farratges'!$A$1,C4,0,1,1)=0,"",OFFSET('0_Taula Farratges'!$A$1,C4,0,1,1)) -> FENC Festuca Floració | C4: 61 | D4: =OFFSET('0_Taula Farratges'!$A$1,$C4,$D$2,1,1) -> 88.2 | E4: =OFFSET('0_Taula Farratges'!$A$1,$C4,$E$2,1,1) -> 1.079354117 | F4: =OFFSET('0_Taula Farratges'!$A$1,$C4,$F$2,1,1) -> 0.7394322088 | G4: =OFFSET('0_Taula Farratges'!$A$1,$C4,$G$2,1,1) -> 59.75765181 | H4: =OFFSET('0_Taula Farratges'!$A$1,$C4,$H$2,1,1) -> -7.64311645 | I4: =OFFSET('0_Taula Farratges'!$A$1,$C4,$I$2,1,1) -> 1.848275155 | J4: =OFFSET('0_Taula Farratges'!$A$1,$C4,$J$2,1,1) -> 0.92 | K4: =OFFSET('0_Taula Farratges'!$A$1,$C4,$K$2,1,1) -> 1.26 | L4: =OFFSET('0_Taula Farratges'!$A$1,$C4,$L$2,1,1) -> 0 | M4: =OFFSET('0_Taula Farratges'!$A$1,$C4,$M$2,1,1) -> 0 | N4: =OFFSET('0_Taula Farratges'!$A$1,$C4,$N$2,1,1) -> 0 | O4: =OFFSET('0_Taula Farratges'!$A$1,$C4,$O$2,1,1) -> 0 | P4: =OFFSET('0_Taula Farratges'!$A$1,$C4,$P$2,1,1) -> 0 | Q4: =OFFSET('0_Taula Farratges'!$A$1,$C4,$Q$2,1,1) -> 0 | R4: =OFFSET('0_Taula Farratges'!$A$1,$C4,$R$2,1,1) -> 0 | S4: =OFFSET('0_Taula Farratges'!$A$1,$C4,$S$2,1,1) -> 0 | T4: =OFFSET('0_Taula Farratges'!$A$1,$C4,$T$2,1,1) -> 0 | U4: =OFFSET('0_Taula Farratges'!$A$1,$C4,$U$2,1,1) -> 0 | V4: =OFFSET('0_Taula Farratges'!$A$1,$C4,$V$2,1,1) -> 0 | W4: =OFFSET('0_Taula Farratges'!$A$1,$C4,$W$2,1,1) -> 50000 | X4: =OFFSET('0_Taula Farratges'!$A$1,$C4,$X$2,1,1) -> 50 | Y4: =OFFSET('0_Taula Farratges'!$A$1,$C4,$Y$2,1,1) -> 5 | Z4: =OFFSET('0_Taula Farratges'!$A$1,$C4,$Z$2,1,1) -> 17.258 | AA4: =OFFSET('0_Taula Farratges'!$A$1,$C4,$AA$2,1,1) -> 116 | AB4: =OFFSET('0_Taula Farratges'!$A$1,$C4,$AB$2,1,1) -> 23.548 | AC4: =OFFSET('0_Taula Farratges'!$A$1,$C4,$AC$2,1,1) -> 0.6004725 | AD4: =OFFSET('0_Taula Farratges'!$A$1,$C4,$AD$2,1,1) -> 550.6332825 | AE4: =OFFSET('0_Taula Farratges'!$A$1,$C4,$AE$2,1,1) -> 27 | AF4: =OFFSET('0_Taula Farratges'!$A$1,$C4,$AF$2,1,1) -> 331 | AG4: =OFFSET('0_Taula Farratges'!$A$1,$C4,$AG$2,1,1) -> 637.34 | AH4: =OFFSET('0_Taula Farratges'!$A$1,$C4,$AH$2,1,1) -> 354.45 | AI4: =OFFSET('0_Taula Farratges'!$A$1,$C4,$AI$2,1,1) -> 0 | AJ4: =OFFSET('0_Taula Farratges'!$A$1,$C4,$AJ$2,1,1) -> 83 | AK4: =OFFSET('0_Taula Farratges'!$A$1,$C4,$AK$2,1,1) -> 0 | AL4: =OFFSET('0_Taula Farratges'!$A$1,$C4,$AL$2,1,1) -> 0.71 | AM4: =OFFSET('0_Taula Farratges'!$A$1,$C4,$AM$2,1,1) -> 474.7304096 | AN4: =IF('II_Plantejar Ració'!$E5>0,IF(CàlculsVL!E4>=0,1,"No"),"") -> 1 | AO4: =IF('II_Plantejar Ració'!$E5>0,IF(CàlculsVL!F4>=0,1,"No"),"") -> 1 | AP4: =IF('II_Plantejar Ració'!$E5>0,IF(CàlculsVL!G4>0,1,"No"),"") -> 1 | AQ4: =IF('II_Plantejar Ració'!$E5>0,IF(CàlculsVL!H4=0,"No",1),"") -> 1 | AR4: =IF('II_Plantejar Ració'!$E5>0,IF(CàlculsVL!I4>0,1,"No"),"") -> 1 | AS4: =IF('II_Plantejar Ració'!$E5>0,IF(CàlculsVL!J4>0,1,"No"),"") -> 1 | AT4: =IF('II_Plantejar Ració'!$E5>0,IF(CàlculsVL!K4>0,1,"No"),"") -> 1 | AU4: =IF('II_Plantejar Ració'!$E5>0,IF(CàlculsVL!L4>0,1,"No"),"") -> No | AV4: =IF('II_Plantejar Ració'!$E5>0,IF(CàlculsVL!M4>0,1,"No"),"") -> No | AW4: =IF('II_Plantejar Ració'!$E5>0,IF(CàlculsVL!N4>0,1,"No"),"") -> No | AX4: =IF('II_Plantejar Ració'!$E5>0,IF(CàlculsVL!O4>0,1,"No"),"") -> No | AY4: =IF('II_Plantejar Ració'!$E5>0,IF(CàlculsVL!P4>0,1,"No"),"") -> No | AZ4: =IF('II_Plantejar Ració'!$E5>0,IF(CàlculsVL!Q4>0,1,"No"),"") -> No | BA4: =IF('II_Plantejar Ració'!$E5>0,IF(CàlculsVL!R4>0,1,"No"),"") -> No | BB4: =IF('II_Plantejar Ració'!$E5>0,IF(CàlculsVL!S4>0,1,"No"),"") -> No | BC4: =IF('II_Plantejar Ració'!$E5>0,IF(CàlculsVL!T4>0,1,"No"),"") -> No | BD4: =IF('II_Plantejar Ració'!$E5>0,IF(CàlculsVL!U4>0,1,"No"),"") -> No | BE4: =IF('II_Plantejar Ració'!$E5>0,IF(CàlculsVL!V4>0,1,"No"),"") -> No | BF4: =IF('II_Plantejar Ració'!$E5>0,IF(CàlculsVL!W4>0,1,"No"),"") -> 1 | BG4: =IF('II_Plantejar Ració'!$E5>0,IF(CàlculsVL!X4>0,1,"No"),"") -> 1 | BH4: =IF('II_Plantejar Ració'!$E5>0,IF(CàlculsVL!Y4>0,1,"No"),"") -> 1 | BI4: =IF('II_Plantejar Ració'!$E5>0,IF(CàlculsVL!Z4>0,1,"No"),"") -> 1 | BJ4: =IF('II_Plantejar Ració'!$E5>0,IF(CàlculsVL!AA4>0,1,"No"),"") -> 1 | BK4: =IF('II_Plantejar Ració'!$E5>0,IF(CàlculsVL!AB4>0,1,"No"),"") -> 1 | BL4: =IF('II_Plantejar Ració'!$E5>0,IF(CàlculsVL!AC4>0,1,"No"),"") -> 1 | BM4: =IF('II_Plantejar Ració'!$E5>0,IF(CàlculsVL!AD4>0,1,"No"),"") -> 1 | BN4: =IF('II_Plantejar Ració'!$E5>0,IF(CàlculsVL!AE4>0,1,"No"),"") -> 1 | BO4: =IF('II_Plantejar Ració'!$E5>0,IF(CàlculsVL!AF4>0,1,"No"),"") -> 1 | BP4: =IF('II_Plantejar Ració'!$E5>0,IF(CàlculsVL!AG4>0,1,"No"),"") -> 1 | BQ4: =IF('II_Plantejar Ració'!$E5>0,IF(CàlculsVL!AH4>0,1,"No"),"") -> 1 | BR4: =IF('II_Plantejar Ració'!$E5>0,IF(CàlculsVL!AI4>0,1,"No"),"") -> No | BS4: =IF('II_Plantejar Ració'!$E5>0,IF(CàlculsVL!AJ4>0,1,"No"),"") -> 1 | BT4: =IF('II_Plantejar Ració'!$E5>0,IF(CàlculsVL!AK4>0,1,"No"),"") -> No | BU4: =IF('II_Plantejar Ració'!$E5>0,IF(CàlculsVL!AL4>0,1,"No"),"") -> 1 | BV4: =IF('II_Plantejar Ració'!$E5>0,IF(CàlculsVL!AM4>0,1,"No"),"") -> 1 | BW4: 1 | BX4: 1 | BY4: 1 | BZ4: 1 | CA4: 1 | CB4: 1 | CC4: 1 | CD4: 1 | CE4: 1 | CF4: 1 | CG4: 1 | CH4: 1 | CI4: 1 | CJ4: 1 | CK4: 1 | CL4: 1 | CM4: 1 | CN4: 1 | CO4: 1 | CP4: 1 | CQ4: 1 | CR4: 1 | CS4: 1 | CT4: 1 | CU4: 1 | CV4: 1 | CW4: 1 | CX4: 1 | CY4: 1 | CZ4: 1 | DA4: 1 | DB4: 1 | DC4: =IF(BT4="",0,1) -> 1 | DD4: =IF(BU4="",0,1) -> 1 | DE4: =IF(BV4="",0,1) -> 1
B5: =IF(OFFSET('0_Taula Farratges'!$A$1,C5,0,1,1)=0,"",OFFSET('0_Taula Farratges'!$A$1,C5,0,1,1)) -> FENC Alfals Sense especificar (primavera) IAMZ | C5: 83 | D5: =OFFSET('0_Taula Farratges'!$A$1,$C5,$D$2,1,1) -> 90 | E5: =OFFSET('0_Taula Farratges'!$A$1,$C5,$E$2,1,1) -> 1.014835798 | F5: =OFFSET('0_Taula Farratges'!$A$1,$C5,$F$2,1,1) -> 0.8022678479 | G5: =OFFSET('0_Taula Farratges'!$A$1,$C5,$G$2,1,1) -> 73.93543875 | H5: =OFFSET('0_Taula Farratges'!$A$1,$C5,$H$2,1,1) -> 32.77416797 | I5: =OFFSET('0_Taula Farratges'!$A$1,$C5,$I$2,1,1) -> 2.108364335 | J5: =OFFSET('0_Taula Farratges'!$A$1,$C5,$J$2,1,1) -> 4.38 | K5: =OFFSET('0_Taula Farratges'!$A$1,$C5,$K$2,1,1) -> 3.15 | L5: =OFFSET('0_Taula Farratges'!$A$1,$C5,$L$2,1,1) -> 0 | M5: =OFFSET('0_Taula Farratges'!$A$1,$C5,$M$2,1,1) -> 0 | N5: =OFFSET('0_Taula Farratges'!$A$1,$C5,$N$2,1,1) -> 0 | O5: =OFFSET('0_Taula Farratges'!$A$1,$C5,$O$2,1,1) -> 0 | P5: =OFFSET('0_Taula Farratges'!$A$1,$C5,$P$2,1,1) -> 0 | Q5: =OFFSET('0_Taula Farratges'!$A$1,$C5,$Q$2,1,1) -> 0 | R5: =OFFSET('0_Taula Farratges'!$A$1,$C5,$R$2,1,1) -> 0 | S5: =OFFSET('0_Taula Farratges'!$A$1,$C5,$S$2,1,1) -> 0 | T5: =OFFSET('0_Taula Farratges'!$A$1,$C5,$T$2,1,1) -> 0 | U5: =OFFSET('0_Taula Farratges'!$A$1,$C5,$U$2,1,1) -> 0 | V5: =OFFSET('0_Taula Farratges'!$A$1,$C5,$V$2,1,1) -> 0 | W5: =OFFSET('0_Taula Farratges'!$A$1,$C5,$W$2,1,1) -> 45000 | X5: =OFFSET('0_Taula Farratges'!$A$1,$C5,$X$2,1,1) -> 400 | Y5: =OFFSET('0_Taula Farratges'!$A$1,$C5,$Y$2,1,1) -> 10 | Z5: =OFFSET('0_Taula Farratges'!$A$1,$C5,$Z$2,1,1) -> 21.823 | AA5: =OFFSET('0_Taula Farratges'!$A$1,$C5,$AA$2,1,1) -> 171 | AB5: =OFFSET('0_Taula Farratges'!$A$1,$C5,$AB$2,1,1) -> 35.91 | AC5: =OFFSET('0_Taula Farratges'!$A$1,$C5,$AC$2,1,1) -> 0.64072 | AD5: =OFFSET('0_Taula Farratges'!$A$1,$C5,$AD$2,1,1) -> 567.0372 | AE5: =OFFSET('0_Taula Farratges'!$A$1,$C5,$AE$2,1,1) -> 25 | AF5: =OFFSET('0_Taula Farratges'!$A$1,$C5,$AF$2,1,1) -> 300 | AG5: =OFFSET('0_Taula Farratges'!$A$1,$C5,$AG$2,1,1) -> 394 | AH5: =OFFSET('0_Taula Farratges'!$A$1,$C5,$AH$2,1,1) -> 302 | AI5: =OFFSET('0_Taula Farratges'!$A$1,$C5,$AI$2,1,1) -> 0 | AJ5: =OFFSET('0_Taula Farratges'!$A$1,$C5,$AJ$2,1,1) -> 115 | AK5: =OFFSET('0_Taula Farratges'!$A$1,$C5,$AK$2,1,1) -> 0 | AL5: =OFFSET('0_Taula Farratges'!$A$1,$C5,$AL$2,1,1) -> 0.72 | AM5: =OFFSET('0_Taula Farratges'!$A$1,$C5,$AM$2,1,1) -> 479.4969685 | AN5: =IF('II_Plantejar Ració'!$E6>0,IF(CàlculsVL!E5>=0,1,"No"),"") -> 1 | AO5: =IF('II_Plantejar Ració'!$E6>0,IF(CàlculsVL!F5>=0,1,"No"),"") -> 1 | AP5: =IF('II_Plantejar Ració'!$E6>0,IF(CàlculsVL!G5>0,1,"No"),"") -> 1 | AQ5: =IF('II_Plantejar Ració'!$E6>0,IF(CàlculsVL!H5=0,"No",1),"") -> 1 | AR5: =IF('II_Plantejar Ració'!$E6>0,IF(CàlculsVL!I5>0,1,"No"),"") -> 1 | AS5: =IF('II_Plantejar Ració'!$E6>0,IF(CàlculsVL!J5>0,1,"No"),"") -> 1 | AT5: =IF('II_Plantejar Ració'!$E6>0,IF(CàlculsVL!K5>0,1,"No"),"") -> 1 | AU5: =IF('II_Plantejar Ració'!$E6>0,IF(CàlculsVL!L5>0,1,"No"),"") -> No | AV5: =IF('II_Plantejar Ració'!$E6>0,IF(CàlculsVL!M5>0,1,"No"),"") -> No | AW5: =IF('II_Plantejar Ració'!$E6>0,IF(CàlculsVL!N5>0,1,"No"),"") -> No | AX5: =IF('II_Plantejar Ració'!$E6>0,IF(CàlculsVL!O5>0,1,"No"),"") -> No | AY5: =IF('II_Plantejar Ració'!$E6>0,IF(CàlculsVL!P5>0,1,"No"),"") -> No | AZ5: =IF('II_Plantejar Ració'!$E6>0,IF(CàlculsVL!Q5>0,1,"No"),"") -> No | BA5: =IF('II_Plantejar Ració'!$E6>0,IF(CàlculsVL!R5>0,1,"No"),"") -> No | BB5: =IF('II_Plantejar Ració'!$E6>0,IF(CàlculsVL!S5>0,1,"No"),"") -> No | BC5: =IF('II_Plantejar Ració'!$E6>0,IF(CàlculsVL!T5>0,1,"No"),"") -> No | BD5: =IF('II_Plantejar Ració'!$E6>0,IF(CàlculsVL!U5>0,1,"No"),"") -> No | BE5: =IF('II_Plantejar Ració'!$E6>0,IF(CàlculsVL!V5>0,1,"No"),"") -> No | BF5: =IF('II_Plantejar Ració'!$E6>0,IF(CàlculsVL!W5>0,1,"No"),"") -> 1 | BG5: =IF('II_Plantejar Ració'!$E6>0,IF(CàlculsVL!X5>0,1,"No"),"") -> 1 | BH5: =IF('II_Plantejar Ració'!$E6>0,IF(CàlculsVL!Y5>0,1,"No"),"") -> 1 | BI5: =IF('II_Plantejar Ració'!$E6>0,IF(CàlculsVL!Z5>0,1,"No"),"") -> 1 | BJ5: =IF('II_Plantejar Ració'!$E6>0,IF(CàlculsVL!AA5>0,1,"No"),"") -> 1 | BK5: =IF('II_Plantejar Ració'!$E6>0,IF(CàlculsVL!AB5>0,1,"No"),"") -> 1 | BL5: =IF('II_Plantejar Ració'!$E6>0,IF(CàlculsVL!AC5>0,1,"No"),"") -> 1 | BM5: =IF('II_Plantejar Ració'!$E6>0,IF(CàlculsVL!AD5>0,1,"No"),"") -> 1 | BN5: =IF('II_Plantejar Ració'!$E6>0,IF(CàlculsVL!AE5>0,1,"No"),"") -> 1 | BO5: =IF('II_Plantejar Ració'!$E6>0,IF(CàlculsVL!AF5>0,1,"No"),"") -> 1 | BP5: =IF('II_Plantejar Ració'!$E6>0,IF(CàlculsVL!AG5>0,1,"No"),"") -> 1 | BQ5: =IF('II_Plantejar Ració'!$E6>0,IF(CàlculsVL!AH5>0,1,"No"),"") -> 1 | BR5: =IF('II_Plantejar Ració'!$E6>0,IF(CàlculsVL!AI5>0,1,"No"),"") -> No | BS5: =IF('II_Plantejar Ració'!$E6>0,IF(CàlculsVL!AJ5>0,1,"No"),"") -> 1 | BT5: =IF('II_Plantejar Ració'!$E6>0,IF(CàlculsVL!AK5>0,1,"No"),"") -> No | BU5: =IF('II_Plantejar Ració'!$E6>0,IF(CàlculsVL!AL5>0,1,"No"),"") -> 1 | BV5: =IF('II_Plantejar Ració'!$E6>0,IF(CàlculsVL!AM5>0,1,"No"),"") -> 1 | BW5: 1 | BX5: 1 | BY5: 1 | BZ5: 1 | CA5: 1 | CB5: 1 | CC5: 1 | CD5: 1 | CE5: 1 | CF5: 1 | CG5: 1 | CH5: 1 | CI5: 1 | CJ5: 1 | CK5: 1 | CL5: 1 | CM5: 1 | CN5: 1 | CO5: 1 | CP5: 1 | CQ5: 1 | CR5: 1 | CS5: 1 | CT5: 1 | CU5: 1 | CV5: 1 | CW5: 1 | CX5: 1 | CY5: 1 | CZ5: 1 | DA5: 1 | DB5: 1 | DC5: 1 | DD5: 1 | DE5: 1
B6: =IF(OFFSET('0_Taula Farratges'!$A$1,C6,0,1,1)=0,"",OFFSET('0_Taula Farratges'!$A$1,C6,0,1,1)) ->  | C6: 1 | D6: =OFFSET('0_Taula Farratges'!$A$1,$C6,$D$2,1,1) -> 0 | E6: =OFFSET('0_Taula Farratges'!$A$1,$C6,$E$2,1,1) -> 0 | F6: =OFFSET('0_Taula Farratges'!$A$1,$C6,$F$2,1,1) -> 0 | G6: =OFFSET('0_Taula Farratges'!$A$1,$C6,$G$2,1,1) -> 0 | H6: =OFFSET('0_Taula Farratges'!$A$1,$C6,$H$2,1,1) -> 0 | I6: =OFFSET('0_Taula Farratges'!$A$1,$C6,$I$2,1,1) -> 0 | J6: =OFFSET('0_Taula Farratges'!$A$1,$C6,$J$2,1,1) -> 0 | K6: =OFFSET('0_Taula Farratges'!$A$1,$C6,$K$2,1,1) -> 0 | L6: =OFFSET('0_Taula Farratges'!$A$1,$C6,$L$2,1,1) -> 0 | M6: =OFFSET('0_Taula Farratges'!$A$1,$C6,$M$2,1,1) -> 0 | N6: =OFFSET('0_Taula Farratges'!$A$1,$C6,$N$2,1,1) -> 0 | O6: =OFFSET('0_Taula Farratges'!$A$1,$C6,$O$2,1,1) -> 0 | P6: =OFFSET('0_Taula Farratges'!$A$1,$C6,$P$2,1,1) -> 0 | Q6: =OFFSET('0_Taula Farratges'!$A$1,$C6,$Q$2,1,1) -> 0 | R6: =OFFSET('0_Taula Farratges'!$A$1,$C6,$R$2,1,1) -> 0 | S6: =OFFSET('0_Taula Farratges'!$A$1,$C6,$S$2,1,1) -> 0 | T6: =OFFSET('0_Taula Farratges'!$A$1,$C6,$T$2,1,1) -> 0 | U6: =OFFSET('0_Taula Farratges'!$A$1,$C6,$U$2,1,1) -> 0 | V6: =OFFSET('0_Taula Farratges'!$A$1,$C6,$V$2,1,1) -> 0 | W6: =OFFSET('0_Taula Farratges'!$A$1,$C6,$W$2,1,1) -> 0 | X6: =OFFSET('0_Taula Farratges'!$A$1,$C6,$X$2,1,1) -> 0 | Y6: =OFFSET('0_Taula Farratges'!$A$1,$C6,$Y$2,1,1) -> 0 | Z6: =OFFSET('0_Taula Farratges'!$A$1,$C6,$Z$2,1,1) -> 0 | AA6: =OFFSET('0_Taula Farratges'!$A$1,$C6,$AA$2,1,1) -> 0 | AB6: =OFFSET('0_Taula Farratges'!$A$1,$C6,$AB$2,1,1) -> 0 | AC6: =OFFSET('0_Taula Farratges'!$A$1,$C6,$AC$2,1,1) -> 0 | AD6: =OFFSET('0_Taula Farratges'!$A$1,$C6,$AD$2,1,1) -> 0 | AE6: =OFFSET('0_Taula Farratges'!$A$1,$C6,$AE$2,1,1) -> 0 | AF6: =OFFSET('0_Taula Farratges'!$A$1,$C6,$AF$2,1,1) -> 0 | AG6: =OFFSET('0_Taula Farratges'!$A$1,$C6,$AG$2,1,1) -> 0 | AH6: =OFFSET('0_Taula Farratges'!$A$1,$C6,$AH$2,1,1) -> 0 | AI6: =OFFSET('0_Taula Farratges'!$A$1,$C6,$AI$2,1,1) -> 0 | AJ6: =OFFSET('0_Taula Farratges'!$A$1,$C6,$AJ$2,1,1) -> 0 | AK6: =OFFSET('0_Taula Farratges'!$A$1,$C6,$AK$2,1,1) -> 0 | AL6: =OFFSET('0_Taula Farratges'!$A$1,$C6,$AL$2,1,1) -> 0 | AM6: =OFFSET('0_Taula Farratges'!$A$1,$C6,$AM$2,1,1) -> 0 | AN6: =IF('II_Plantejar Ració'!$E7>0,IF(CàlculsVL!E6>=0,1,"No"),"") ->  | AO6: =IF('II_Plantejar Ració'!$E7>0,IF(CàlculsVL!F6>=0,1,"No"),"") ->  | AP6: =IF('II_Plantejar Ració'!$E7>0,IF(CàlculsVL!G6>0,1,"No"),"") ->  | AQ6: =IF('II_Plantejar Ració'!$E7>0,IF(CàlculsVL!H6=0,"No",1),"") ->  | AR6: =IF('II_Plantejar Ració'!$E7>0,IF(CàlculsVL!I6>0,1,"No"),"") ->  | AS6: =IF('II_Plantejar Ració'!$E7>0,IF(CàlculsVL!J6>0,1,"No"),"") ->  | AT6: =IF('II_Plantejar Ració'!$E7>0,IF(CàlculsVL!K6>0,1,"No"),"") ->  | AU6: =IF('II_Plantejar Ració'!$E7>0,IF(CàlculsVL!L6>0,1,"No"),"") ->  | AV6: =IF('II_Plantejar Ració'!$E7>0,IF(CàlculsVL!M6>0,1,"No"),"") ->  | AW6: =IF('II_Plantejar Ració'!$E7>0,IF(CàlculsVL!N6>0,1,"No"),"") ->  | AX6: =IF('II_Plantejar Ració'!$E7>0,IF(CàlculsVL!O6>0,1,"No"),"") ->  | AY6: =IF('II_Plantejar Ració'!$E7>0,IF(CàlculsVL!P6>0,1,"No"),"") ->  | AZ6: =IF('II_Plantejar Ració'!$E7>0,IF(CàlculsVL!Q6>0,1,"No"),"") ->  | BA6: =IF('II_Plantejar Ració'!$E7>0,IF(CàlculsVL!R6>0,1,"No"),"") ->  | BB6: =IF('II_Plantejar Ració'!$E7>0,IF(CàlculsVL!S6>0,1,"No"),"") ->  | BC6: =IF('II_Plantejar Ració'!$E7>0,IF(CàlculsVL!T6>0,1,"No"),"") ->  | BD6: =IF('II_Plantejar Ració'!$E7>0,IF(CàlculsVL!U6>0,1,"No"),"") ->  | BE6: =IF('II_Plantejar Ració'!$E7>0,IF(CàlculsVL!V6>0,1,"No"),"") ->  | BF6: =IF('II_Plantejar Ració'!$E7>0,IF(CàlculsVL!W6>0,1,"No"),"") ->  | BG6: =IF('II_Plantejar Ració'!$E7>0,IF(CàlculsVL!X6>0,1,"No"),"") ->  | BH6: =IF('II_Plantejar Ració'!$E7>0,IF(CàlculsVL!Y6>0,1,"No"),"") ->  | BI6: =IF('II_Plantejar Ració'!$E7>0,IF(CàlculsVL!Z6>0,1,"No"),"") ->  | BJ6: =IF('II_Plantejar Ració'!$E7>0,IF(CàlculsVL!AA6>0,1,"No"),"") ->  | BK6: =IF('II_Plantejar Ració'!$E7>0,IF(CàlculsVL!AB6>0,1,"No"),"") ->  | BL6: =IF('II_Plantejar Ració'!$E7>0,IF(CàlculsVL!AC6>0,1,"No"),"") ->  | BM6: =IF('II_Plantejar Ració'!$E7>0,IF(CàlculsVL!AD6>0,1,"No"),"") ->  | BN6: =IF('II_Plantejar Ració'!$E7>0,IF(CàlculsVL!AE6>0,1,"No"),"") ->  | BO6: =IF('II_Plantejar Ració'!$E7>0,IF(CàlculsVL!AF6>0,1,"No"),"") ->  | BP6: =IF('II_Plantejar Ració'!$E7>0,IF(CàlculsVL!AG6>0,1,"No"),"") ->  | BQ6: =IF('II_Plantejar Ració'!$E7>0,IF(CàlculsVL!AH6>0,1,"No"),"") ->  | BR6: =IF('II_Plantejar Ració'!$E7>0,IF(CàlculsVL!AI6>0,1,"No"),"") ->  | BS6: =IF('II_Plantejar Ració'!$E7>0,IF(CàlculsVL!AJ6>0,1,"No"),"") ->  | BT6: =IF('II_Plantejar Ració'!$E7>0,IF(CàlculsVL!AK6>0,1,"No"),"") ->  | BU6: =IF('II_Plantejar Ració'!$E7>0,IF(CàlculsVL!AL6>0,1,"No"),"") ->  | BV6: =IF('II_Plantejar Ració'!$E7>0,IF(CàlculsVL!AM6>0,1,"No"),"") ->  | BW6: 0 | BX6: 0 | BY6: 0 | BZ6: 0 | CA6: 0 | CB6: 0 | CC6: 0 | CD6: 0 | CE6: 0 | CF6: 0 | CG6: 0 | CH6: 0 | CI6: 0 | CJ6: 0 | CK6: 0 | CL6: 0 | CM6: 0 | CN6: 0 | CO6: 0 | CP6: 0 | CQ6: 0 | CR6: 0 | CS6: 0 | CT6: 0 | CU6: 0 | CV6: 0 | CW6: 0 | CX6: 0 | CY6: 0 | CZ6: 0 | DA6: 0 | DB6: 0 | DC6: 0 | DD6: 0 | DE6: 0
B7: =IF(OFFSET('0_Taula Farratges'!$A$1,C7,0,1,1)=0,"",OFFSET('0_Taula Farratges'!$A$1,C7,0,1,1)) ->  | C7: 1 | D7: =OFFSET('0_Taula Farratges'!$A$1,$C7,$D$2,1,1) -> 0 | E7: =OFFSET('0_Taula Farratges'!$A$1,$C7,$E$2,1,1) -> 0 | F7: =OFFSET('0_Taula Farratges'!$A$1,$C7,$F$2,1,1) -> 0 | G7: =OFFSET('0_Taula Farratges'!$A$1,$C7,$G$2,1,1) -> 0 | H7: =OFFSET('0_Taula Farratges'!$A$1,$C7,$H$2,1,1) -> 0 | I7: =OFFSET('0_Taula Farratges'!$A$1,$C7,$I$2,1,1) -> 0 | J7: =OFFSET('0_Taula Farratges'!$A$1,$C7,$J$2,1,1) -> 0 | K7: =OFFSET('0_Taula Farratges'!$A$1,$C7,$K$2,1,1) -> 0 | L7: =OFFSET('0_Taula Farratges'!$A$1,$C7,$L$2,1,1) -> 0 | M7: =OFFSET('0_Taula Farratges'!$A$1,$C7,$M$2,1,1) -> 0 | N7: =OFFSET('0_Taula Farratges'!$A$1,$C7,$N$2,1,1) -> 0 | O7: =OFFSET('0_Taula Farratges'!$A$1,$C7,$O$2,1,1) -> 0 | P7: =OFFSET('0_Taula Farratges'!$A$1,$C7,$P$2,1,1) -> 0 | Q7: =OFFSET('0_Taula Farratges'!$A$1,$C7,$Q$2,1,1) -> 0 | R7: =OFFSET('0_Taula Farratges'!$A$1,$C7,$R$2,1,1) -> 0 | S7: =OFFSET('0_Taula Farratges'!$A$1,$C7,$S$2,1,1) -> 0 | T7: =OFFSET('0_Taula Farratges'!$A$1,$C7,$T$2,1,1) -> 0 | U7: =OFFSET('0_Taula Farratges'!$A$1,$C7,$U$2,1,1) -> 0 | V7: =OFFSET('0_Taula Farratges'!$A$1,$C7,$V$2,1,1) -> 0 | W7: =OFFSET('0_Taula Farratges'!$A$1,$C7,$W$2,1,1) -> 0 | X7: =OFFSET('0_Taula Farratges'!$A$1,$C7,$X$2,1,1) -> 0 | Y7: =OFFSET('0_Taula Farratges'!$A$1,$C7,$Y$2,1,1) -> 0 | Z7: =OFFSET('0_Taula Farratges'!$A$1,$C7,$Z$2,1,1) -> 0 | AA7: =OFFSET('0_Taula Farratges'!$A$1,$C7,$AA$2,1,1) -> 0 | AB7: =OFFSET('0_Taula Farratges'!$A$1,$C7,$AB$2,1,1) -> 0 | AC7: =OFFSET('0_Taula Farratges'!$A$1,$C7,$AC$2,1,1) -> 0 | AD7: =OFFSET('0_Taula Farratges'!$A$1,$C7,$AD$2,1,1) -> 0 | AE7: =OFFSET('0_Taula Farratges'!$A$1,$C7,$AE$2,1,1) -> 0 | AF7: =OFFSET('0_Taula Farratges'!$A$1,$C7,$AF$2,1,1) -> 0 | AG7: =OFFSET('0_Taula Farratges'!$A$1,$C7,$AG$2,1,1) -> 0 | AH7: =OFFSET('0_Taula Farratges'!$A$1,$C7,$AH$2,1,1) -> 0 | AI7: =OFFSET('0_Taula Farratges'!$A$1,$C7,$AI$2,1,1) -> 0 | AJ7: =OFFSET('0_Taula Farratges'!$A$1,$C7,$AJ$2,1,1) -> 0 | AK7: =OFFSET('0_Taula Farratges'!$A$1,$C7,$AK$2,1,1) -> 0 | AL7: =OFFSET('0_Taula Farratges'!$A$1,$C7,$AL$2,1,1) -> 0 | AM7: =OFFSET('0_Taula Farratges'!$A$1,$C7,$AM$2,1,1) -> 0 | AN7: =IF('II_Plantejar Ració'!$E8>0,IF(CàlculsVL!E7>=0,1,"No"),"") ->  | AO7: =IF('II_Plantejar Ració'!$E8>0,IF(CàlculsVL!F7>=0,1,"No"),"") ->  | AP7: =IF('II_Plantejar Ració'!$E8>0,IF(CàlculsVL!G7>0,1,"No"),"") ->  | AQ7: =IF('II_Plantejar Ració'!$E8>0,IF(CàlculsVL!H7=0,"No",1),"") ->  | AR7: =IF('II_Plantejar Ració'!$E8>0,IF(CàlculsVL!I7>0,1,"No"),"") ->  | AS7: =IF('II_Plantejar Ració'!$E8>0,IF(CàlculsVL!J7>0,1,"No"),"") ->  | AT7: =IF('II_Plantejar Ració'!$E8>0,IF(CàlculsVL!K7>0,1,"No"),"") ->  | AU7: =IF('II_Plantejar Ració'!$E8>0,IF(CàlculsVL!L7>0,1,"No"),"") ->  | AV7: =IF('II_Plantejar Ració'!$E8>0,IF(CàlculsVL!M7>0,1,"No"),"") ->  | AW7: =IF('II_Plantejar Ració'!$E8>0,IF(CàlculsVL!N7>0,1,"No"),"") ->  | AX7: =IF('II_Plantejar Ració'!$E8>0,IF(CàlculsVL!O7>0,1,"No"),"") ->  | AY7: =IF('II_Plantejar Ració'!$E8>0,IF(CàlculsVL!P7>0,1,"No"),"") ->  | AZ7: =IF('II_Plantejar Ració'!$E8>0,IF(CàlculsVL!Q7>0,1,"No"),"") ->  | BA7: =IF('II_Plantejar Ració'!$E8>0,IF(CàlculsVL!R7>0,1,"No"),"") ->  | BB7: =IF('II_Plantejar Ració'!$E8>0,IF(CàlculsVL!S7>0,1,"No"),"") ->  | BC7: =IF('II_Plantejar Ració'!$E8>0,IF(CàlculsVL!T7>0,1,"No"),"") ->  | BD7: =IF('II_Plantejar Ració'!$E8>0,IF(CàlculsVL!U7>0,1,"No"),"") ->  | BE7: =IF('II_Plantejar Ració'!$E8>0,IF(CàlculsVL!V7>0,1,"No"),"") ->  | BF7: =IF('II_Plantejar Ració'!$E8>0,IF(CàlculsVL!W7>0,1,"No"),"") ->  | BG7: =IF('II_Plantejar Ració'!$E8>0,IF(CàlculsVL!X7>0,1,"No"),"") ->  | BH7: =IF('II_Plantejar Ració'!$E8>0,IF(CàlculsVL!Y7>0,1,"No"),"") ->  | BI7: =IF('II_Plantejar Ració'!$E8>0,IF(CàlculsVL!Z7>0,1,"No"),"") ->  | BJ7: =IF('II_Plantejar Ració'!$E8>0,IF(CàlculsVL!AA7>0,1,"No"),"") ->  | BK7: =IF('II_Plantejar Ració'!$E8>0,IF(CàlculsVL!AB7>0,1,"No"),"") ->  | BL7: =IF('II_Plantejar Ració'!$E8>0,IF(CàlculsVL!AC7>0,1,"No"),"") ->  | BM7: =IF('II_Plantejar Ració'!$E8>0,IF(CàlculsVL!AD7>0,1,"No"),"") ->  | BN7: =IF('II_Plantejar Ració'!$E8>0,IF(CàlculsVL!AE7>0,1,"No"),"") ->  | BO7: =IF('II_Plantejar Ració'!$E8>0,IF(CàlculsVL!AF7>0,1,"No"),"") ->  | BP7: =IF('II_Plantejar Ració'!$E8>0,IF(CàlculsVL!AG7>0,1,"No"),"") ->  | BQ7: =IF('II_Plantejar Ració'!$E8>0,IF(CàlculsVL!AH7>0,1,"No"),"") ->  | BR7: =IF('II_Plantejar Ració'!$E8>0,IF(CàlculsVL!AI7>0,1,"No"),"") ->  | BS7: =IF('II_Plantejar Ració'!$E8>0,IF(CàlculsVL!AJ7>0,1,"No"),"") ->  | BT7: =IF('II_Plantejar Ració'!$E8>0,IF(CàlculsVL!AK7>0,1,"No"),"") ->  | BU7: =IF('II_Plantejar Ració'!$E8>0,IF(CàlculsVL!AL7>0,1,"No"),"") ->  | BV7: =IF('II_Plantejar Ració'!$E8>0,IF(CàlculsVL!AM7>0,1,"No"),"") ->  | BW7: 0 | BX7: 0 | BY7: 0 | BZ7: 0 | CA7: 0 | CB7: 0 | CC7: 0 | CD7: 0 | CE7: 0 | CF7: 0 | CG7: 0 | CH7: 0 | CI7: 0 | CJ7: 0 | CK7: 0 | CL7: 0 | CM7: 0 | CN7: 0 | CO7: 0 | CP7: 0 | CQ7: 0 | CR7: 0 | CS7: 0 | CT7: 0 | CU7: 0 | CV7: 0 | CW7: 0 | CX7: 0 | CY7: 0 | CZ7: 0 | DA7: 0 | DB7: 0 | DC7: 0 | DD7: 0 | DE7: 0
A8: CONCENTRATS | B8: =IF(OFFSET('0_Taula Concentrats'!$A$1,C8,0,1,1)=0,"",OFFSET('0_Taula Concentrats'!$A$1,C8,0,1,1)) ->  | C8: 1 | D8: =OFFSET('0_Taula Concentrats'!$A$1,$C8,$D$2,1,1) -> 0 | E8: =OFFSET('0_Taula Concentrats'!$A$1,$C8,$E$2,1,1) -> 0 | F8: =OFFSET('0_Taula Concentrats'!$A$1,$C8,$F$2,1,1) -> 0 | G8: =OFFSET('0_Taula Concentrats'!$A$1,$C8,$G$2,1,1) -> 0 | H8: =OFFSET('0_Taula Concentrats'!$A$1,$C8,$H$2,1,1) -> 0 | I8: =OFFSET('0_Taula Concentrats'!$A$1,$C8,$I$2,1,1) -> 0 | J8: =OFFSET('0_Taula Concentrats'!$A$1,$C8,$J$2,1,1) -> 0 | K8: =OFFSET('0_Taula Concentrats'!$A$1,$C8,$K$2,1,1) -> 0 | L8: =OFFSET('0_Taula Concentrats'!$A$1,$C8,$L$2,1,1) -> 0 | M8: =OFFSET('0_Taula Concentrats'!$A$1,$C8,$M$2,1,1) -> 0 | N8: =OFFSET('0_Taula Concentrats'!$A$1,$C8,$N$2,1,1) -> 0 | O8: =OFFSET('0_Taula Concentrats'!$A$1,$C8,$O$2,1,1) -> 0 | P8: =OFFSET('0_Taula Concentrats'!$A$1,$C8,$P$2,1,1) -> 0 | Q8: =OFFSET('0_Taula Concentrats'!$A$1,$C8,$Q$2,1,1) -> 0 | R8: =OFFSET('0_Taula Concentrats'!$A$1,$C8,$R$2,1,1) -> 0 | S8: =OFFSET('0_Taula Concentrats'!$A$1,$C8,$S$2,1,1) -> 0 | T8: =OFFSET('0_Taula Concentrats'!$A$1,$C8,$T$2,1,1) -> 0 | U8: =OFFSET('0_Taula Concentrats'!$A$1,$C8,$U$2,1,1) -> 0 | V8: =OFFSET('0_Taula Concentrats'!$A$1,$C8,$V$2,1,1) -> 0 | W8: =OFFSET('0_Taula Concentrats'!$A$1,$C8,$W$2,1,1) -> 0 | X8: =OFFSET('0_Taula Concentrats'!$A$1,$C8,$X$2,1,1) -> 0 | Y8: =OFFSET('0_Taula Concentrats'!$A$1,$C8,$Y$2,1,1) -> 0 | Z8: =OFFSET('0_Taula Concentrats'!$A$1,$C8,$Z$2,1,1) -> 0 | AA8: =OFFSET('0_Taula Concentrats'!$A$1,$C8,$AA$2,1,1) -> 0 | AB8: =OFFSET('0_Taula Concentrats'!$A$1,$C8,$AB$2,1,1) -> 0 | AC8: =OFFSET('0_Taula Concentrats'!$A$1,$C8,$AC$2,1,1) -> 0 | AD8: =OFFSET('0_Taula Concentrats'!$A$1,$C8,$AD$2,1,1) -> 0 | AE8: =OFFSET('0_Taula Concentrats'!$A$1,$C8,$AE$2,1,1) -> 0 | AF8: =OFFSET('0_Taula Concentrats'!$A$1,$C8,$AF$2,1,1) -> 0 | AG8: =OFFSET('0_Taula Concentrats'!$A$1,$C8,$AG$2,1,1) -> 0 | AH8: =OFFSET('0_Taula Concentrats'!$A$1,$C8,$AH$2,1,1) -> 0 | AI8: =OFFSET('0_Taula Concentrats'!$A$1,$C8,$AI$2,1,1) -> 0 | AJ8: =OFFSET('0_Taula Concentrats'!$A$1,$C8,$AJ$2,1,1) -> 0 | AK8: =OFFSET('0_Taula Concentrats'!$A$1,$C8,$AK$2,1,1) -> 0 | AL8: =OFFSET('0_Taula Concentrats'!$A$1,$C8,$AL$2,1,1) -> 0 | AM8: =OFFSET('0_Taula Concentrats'!$A$1,$C8,$AM$2,1,1) -> 0 | AN8: =IF('II_Plantejar Ració'!$E9>0,IF(CàlculsVL!E8>=0,1,"No"),"") ->  | AO8: =IF('II_Plantejar Ració'!$E9>0,IF(CàlculsVL!F8>=0,1,"No"),"") ->  | AP8: =IF('II_Plantejar Ració'!$E9>0,IF(CàlculsVL!G8>0,1,"No"),"") ->  | AQ8: =IF('II_Plantejar Ració'!$E9>0,IF(CàlculsVL!H8=0,"No",1),"") ->  | AR8: =IF('II_Plantejar Ració'!$E9>0,IF(CàlculsVL!I8>0,1,"No"),"") ->  | AS8: =IF('II_Plantejar Ració'!$E9>0,IF(CàlculsVL!J8>0,1,"No"),"") ->  | AT8: =IF('II_Plantejar Ració'!$E9>0,IF(CàlculsVL!K8>0,1,"No"),"") ->  | AU8: =IF('II_Plantejar Ració'!$E9>0,IF(CàlculsVL!L8>0,1,"No"),"") ->  | AV8: =IF('II_Plantejar Ració'!$E9>0,IF(CàlculsVL!M8>0,1,"No"),"") ->  | AW8: =IF('II_Plantejar Ració'!$E9>0,IF(CàlculsVL!N8>0,1,"No"),"") ->  | AX8: =IF('II_Plantejar Ració'!$E9>0,IF(CàlculsVL!O8>0,1,"No"),"") ->  | AY8: =IF('II_Plantejar Ració'!$E9>0,IF(CàlculsVL!P8>0,1,"No"),"") ->  | AZ8: =IF('II_Plantejar Ració'!$E9>0,IF(CàlculsVL!Q8>0,1,"No"),"") ->  | BA8: =IF('II_Plantejar Ració'!$E9>0,IF(CàlculsVL!R8>0,1,"No"),"") ->  | BB8: =IF('II_Plantejar Ració'!$E9>0,IF(CàlculsVL!S8>0,1,"No"),"") ->  | BC8: =IF('II_Plantejar Ració'!$E9>0,IF(CàlculsVL!T8>0,1,"No"),"") ->  | BD8: =IF('II_Plantejar Ració'!$E9>0,IF(CàlculsVL!U8>0,1,"No"),"") ->  | BE8: =IF('II_Plantejar Ració'!$E9>0,IF(CàlculsVL!V8>0,1,"No"),"") ->  | BF8: =IF('II_Plantejar Ració'!$E9>0,IF(CàlculsVL!W8>0,1,"No"),"") ->  | BG8: =IF('II_Plantejar Ració'!$E9>0,IF(CàlculsVL!X8>0,1,"No"),"") ->  | BH8: =IF('II_Plantejar Ració'!$E9>0,IF(CàlculsVL!Y8>0,1,"No"),"") ->  | BI8: =IF('II_Plantejar Ració'!$E9>0,IF(CàlculsVL!Z8>0,1,"No"),"") ->  | BJ8: =IF('II_Plantejar Ració'!$E9>0,IF(CàlculsVL!AA8>0,1,"No"),"") ->  | BK8: =IF('II_Plantejar Ració'!$E9>0,IF(CàlculsVL!AB8>0,1,"No"),"") ->  | BL8: =IF('II_Plantejar Ració'!$E9>0,IF(CàlculsVL!AC8>0,1,"No"),"") ->  | BM8: =IF('II_Plantejar Ració'!$E9>0,IF(CàlculsVL!AD8>0,1,"No"),"") ->  | BN8: =IF('II_Plantejar Ració'!$E9>0,IF(CàlculsVL!AE8>0,1,"No"),"") ->  | BO8: =IF('II_Plantejar Ració'!$E9>0,IF(CàlculsVL!AF8>0,1,"No"),"") ->  | BP8: =IF('II_Plantejar Ració'!$E9>0,IF(CàlculsVL!AG8>0,1,"No"),"") ->  | BQ8: =IF('II_Plantejar Ració'!$E9>0,IF(CàlculsVL!AH8>0,1,"No"),"") ->  | BR8: =IF('II_Plantejar Ració'!$E9>0,IF(CàlculsVL!AI8>0,1,"No"),"") ->  | BS8: =IF('II_Plantejar Ració'!$E9>0,IF(CàlculsVL!AJ8>0,1,"No"),"") ->  | BT8: =IF('II_Plantejar Ració'!$E9>0,IF(CàlculsVL!AK8>0,1,"No"),"") ->  | BU8: =IF('II_Plantejar Ració'!$E9>0,IF(CàlculsVL!AL8>0,1,"No"),"") ->  | BV8: =IF('II_Plantejar Ració'!$E9>0,IF(CàlculsVL!AM8>0,1,"No"),"") ->  | BW8: 0 | BX8: 0 | BY8: 0 | BZ8: 0 | CA8: 0 | CB8: 0 | CC8: 0 | CD8: 0 | CE8: 0 | CF8: 0 | CG8: 0 | CH8: 0 | CI8: 0 | CJ8: 0 | CK8: 0 | CL8: 0 | CM8: 0 | CN8: 0 | CO8: 0 | CP8: 0 | CQ8: 0 | CR8: 0 | CS8: 0 | CT8: 0 | CU8: 0 | CV8: 0 | CW8: 0 | CX8: 0 | CY8: 0 | CZ8: 0 | DA8: 0 | DB8: 0 | DC8: 0 | DD8: 0 | DE8: 0
B9: =IF(OFFSET('0_Taula Concentrats'!$A$1,C9,0,1,1)=0,"",OFFSET('0_Taula Concentrats'!$A$1,C9,0,1,1)) ->  | C9: 1 | D9: =OFFSET('0_Taula Concentrats'!$A$1,$C9,$D$2,1,1) -> 0 | E9: =OFFSET('0_Taula Concentrats'!$A$1,$C9,$E$2,1,1) -> 0 | F9: =OFFSET('0_Taula Concentrats'!$A$1,$C9,$F$2,1,1) -> 0 | G9: =OFFSET('0_Taula Concentrats'!$A$1,$C9,$G$2,1,1) -> 0 | H9: =OFFSET('0_Taula Concentrats'!$A$1,$C9,$H$2,1,1) -> 0 | I9: =OFFSET('0_Taula Concentrats'!$A$1,$C9,$I$2,1,1) -> 0 | J9: =OFFSET('0_Taula Concentrats'!$A$1,$C9,$J$2,1,1) -> 0 | K9: =OFFSET('0_Taula Concentrats'!$A$1,$C9,$K$2,1,1) -> 0 | L9: =OFFSET('0_Taula Concentrats'!$A$1,$C9,$L$2,1,1) -> 0 | M9: =OFFSET('0_Taula Concentrats'!$A$1,$C9,$M$2,1,1) -> 0 | N9: =OFFSET('0_Taula Concentrats'!$A$1,$C9,$N$2,1,1) -> 0 | O9: =OFFSET('0_Taula Concentrats'!$A$1,$C9,$O$2,1,1) -> 0 | P9: =OFFSET('0_Taula Concentrats'!$A$1,$C9,$P$2,1,1) -> 0 | Q9: =OFFSET('0_Taula Concentrats'!$A$1,$C9,$Q$2,1,1) -> 0 | R9: =OFFSET('0_Taula Concentrats'!$A$1,$C9,$R$2,1,1) -> 0 | S9: =OFFSET('0_Taula Concentrats'!$A$1,$C9,$S$2,1,1) -> 0 | T9: =OFFSET('0_Taula Concentrats'!$A$1,$C9,$T$2,1,1) -> 0 | U9: =OFFSET('0_Taula Concentrats'!$A$1,$C9,$U$2,1,1) -> 0 | V9: =OFFSET('0_Taula Concentrats'!$A$1,$C9,$V$2,1,1) -> 0 | W9: =OFFSET('0_Taula Concentrats'!$A$1,$C9,$W$2,1,1) -> 0 | X9: =OFFSET('0_Taula Concentrats'!$A$1,$C9,$X$2,1,1) -> 0 | Y9: =OFFSET('0_Taula Concentrats'!$A$1,$C9,$Y$2,1,1) -> 0 | Z9: =OFFSET('0_Taula Concentrats'!$A$1,$C9,$Z$2,1,1) -> 0 | AA9: =OFFSET('0_Taula Concentrats'!$A$1,$C9,$AA$2,1,1) -> 0 | AB9: =OFFSET('0_Taula Concentrats'!$A$1,$C9,$AB$2,1,1) -> 0 | AC9: =OFFSET('0_Taula Concentrats'!$A$1,$C9,$AC$2,1,1) -> 0 | AD9: =OFFSET('0_Taula Concentrats'!$A$1,$C9,$AD$2,1,1) -> 0 | AE9: =OFFSET('0_Taula Concentrats'!$A$1,$C9,$AE$2,1,1) -> 0 | AF9: =OFFSET('0_Taula Concentrats'!$A$1,$C9,$AF$2,1,1) -> 0 | AG9: =OFFSET('0_Taula Concentrats'!$A$1,$C9,$AG$2,1,1) -> 0 | AH9: =OFFSET('0_Taula Concentrats'!$A$1,$C9,$AH$2,1,1) -> 0 | AI9: =OFFSET('0_Taula Concentrats'!$A$1,$C9,$AI$2,1,1) -> 0 | AJ9: =OFFSET('0_Taula Concentrats'!$A$1,$C9,$AJ$2,1,1) -> 0 | AK9: =OFFSET('0_Taula Concentrats'!$A$1,$C9,$AK$2,1,1) -> 0 | AL9: =OFFSET('0_Taula Concentrats'!$A$1,$C9,$AL$2,1,1) -> 0 | AM9: =OFFSET('0_Taula Concentrats'!$A$1,$C9,$AM$2,1,1) -> 0 | AN9: =IF('II_Plantejar Ració'!$E10>0,IF(CàlculsVL!E9>=0,1,"No"),"") ->  | AO9: =IF('II_Plantejar Ració'!$E10>0,IF(CàlculsVL!F9>=0,1,"No"),"") ->  | AP9: =IF('II_Plantejar Ració'!$E10>0,IF(CàlculsVL!G9>0,1,"No"),"") ->  | AQ9: =IF('II_Plantejar Ració'!$E10>0,IF(CàlculsVL!H9=0,"No",1),"") ->  | AR9: =IF('II_Plantejar Ració'!$E10>0,IF(CàlculsVL!I9>0,1,"No"),"") ->  | AS9: =IF('II_Plantejar Ració'!$E10>0,IF(CàlculsVL!J9>0,1,"No"),"") ->  | AT9: =IF('II_Plantejar Ració'!$E10>0,IF(CàlculsVL!K9>0,1,"No"),"") ->  | AU9: =IF('II_Plantejar Ració'!$E10>0,IF(CàlculsVL!L9>0,1,"No"),"") ->  | AV9: =IF('II_Plantejar Ració'!$E10>0,IF(CàlculsVL!M9>0,1,"No"),"") ->  | AW9: =IF('II_Plantejar Ració'!$E10>0,IF(CàlculsVL!N9>0,1,"No"),"") ->  | AX9: =IF('II_Plantejar Ració'!$E10>0,IF(CàlculsVL!O9>0,1,"No"),"") ->  | AY9: =IF('II_Plantejar Ració'!$E10>0,IF(CàlculsVL!P9>0,1,"No"),"") ->  | AZ9: =IF('II_Plantejar Ració'!$E10>0,IF(CàlculsVL!Q9>0,1,"No"),"") ->  | BA9: =IF('II_Plantejar Ració'!$E10>0,IF(CàlculsVL!R9>0,1,"No"),"") ->  | BB9: =IF('II_Plantejar Ració'!$E10>0,IF(CàlculsVL!S9>0,1,"No"),"") ->  | BC9: =IF('II_Plantejar Ració'!$E10>0,IF(CàlculsVL!T9>0,1,"No"),"") ->  | BD9: =IF('II_Plantejar Ració'!$E10>0,IF(CàlculsVL!U9>0,1,"No"),"") ->  | BE9: =IF('II_Plantejar Ració'!$E10>0,IF(CàlculsVL!V9>0,1,"No"),"") ->  | BF9: =IF('II_Plantejar Ració'!$E10>0,IF(CàlculsVL!W9>0,1,"No"),"") ->  | BG9: =IF('II_Plantejar Ració'!$E10>0,IF(CàlculsVL!X9>0,1,"No"),"") ->  | BH9: =IF('II_Plantejar Ració'!$E10>0,IF(CàlculsVL!Y9>0,1,"No"),"") ->  | BI9: =IF('II_Plantejar Ració'!$E10>0,IF(CàlculsVL!Z9>0,1,"No"),"") ->  | BJ9: =IF('II_Plantejar Ració'!$E10>0,IF(CàlculsVL!AA9>0,1,"No"),"") ->  | BK9: =IF('II_Plantejar Ració'!$E10>0,IF(CàlculsVL!AB9>0,1,"No"),"") ->  | BL9: =IF('II_Plantejar Ració'!$E10>0,IF(CàlculsVL!AC9>0,1,"No"),"") ->  | BM9: =IF('II_Plantejar Ració'!$E10>0,IF(CàlculsVL!AD9>0,1,"No"),"") ->  | BN9: =IF('II_Plantejar Ració'!$E10>0,IF(CàlculsVL!AE9>0,1,"No"),"") ->  | BO9: =IF('II_Plantejar Ració'!$E10>0,IF(CàlculsVL!AF9>0,1,"No"),"") ->  | BP9: =IF('II_Plantejar Ració'!$E10>0,IF(CàlculsVL!AG9>0,1,"No"),"") ->  | BQ9: =IF('II_Plantejar Ració'!$E10>0,IF(CàlculsVL!AH9>0,1,"No"),"") ->  | BR9: =IF('II_Plantejar Ració'!$E10>0,IF(CàlculsVL!AI9>0,1,"No"),"") ->  | BS9: =IF('II_Plantejar Ració'!$E10>0,IF(CàlculsVL!AJ9>0,1,"No"),"") ->  | BT9: =IF('II_Plantejar Ració'!$E10>0,IF(CàlculsVL!AK9>0,1,"No"),"") ->  | BU9: =IF('II_Plantejar Ració'!$E10>0,IF(CàlculsVL!AL9>0,1,"No"),"") ->  | BV9: =IF('II_Plantejar Ració'!$E10>0,IF(CàlculsVL!AM9>0,1,"No"),"") ->  | BW9: 0 | BX9: 0 | BY9: 0 | BZ9: 0 | CA9: 0 | CB9: 0 | CC9: 0 | CD9: 0 | CE9: 0 | CF9: 0 | CG9: 0 | CH9: 0 | CI9: 0 | CJ9: 0 | CK9: 0 | CL9: 0 | CM9: 0 | CN9: 0 | CO9: 0 | CP9: 0 | CQ9: 0 | CR9: 0 | CS9: 0 | CT9: 0 | CU9: 0 | CV9: 0 | CW9: 0 | CX9: 0 | CY9: 0 | CZ9: 0 | DA9: 0 | DB9: 0 | DC9: 0 | DD9: 0 | DE9: 0
B10: =IF(OFFSET('0_Taula Concentrats'!$A$1,C10,0,1,1)=0,"",OFFSET('0_Taula Concentrats'!$A$1,C10,0,1,1)) -> Blat de moro gra | C10: 3 | D10: =OFFSET('0_Taula Concentrats'!$A$1,$C10,$D$2,1,1) -> 86 | E10: =OFFSET('0_Taula Concentrats'!$A$1,$C10,$E$2,1,1) -> 0.3291 | F10: =OFFSET('0_Taula Concentrats'!$A$1,$C10,$F$2,1,1) -> 1.24475541 | G10: =OFFSET('0_Taula Concentrats'!$A$1,$C10,$G$2,1,1) -> 94 | H10: =OFFSET('0_Taula Concentrats'!$A$1,$C10,$H$2,1,1) -> -53 | I10: =OFFSET('0_Taula Concentrats'!$A$1,$C10,$I$2,1,1) -> 2 | J10: =OFFSET('0_Taula Concentrats'!$A$1,$C10,$J$2,1,1) -> 0.275 | K10: =OFFSET('0_Taula Concentrats'!$A$1,$C10,$K$2,1,1) -> 2.175 | L10: =OFFSET('0_Taula Concentrats'!$A$1,$C10,$L$2,1,1) -> 1.4 | M10: =OFFSET('0_Taula Concentrats'!$A$1,$C10,$M$2,1,1) -> 3.6 | N10: =OFFSET('0_Taula Concentrats'!$A$1,$C10,$N$2,1,1) -> 0.33 | O10: =OFFSET('0_Taula Concentrats'!$A$1,$C10,$O$2,1,1) -> 0 | P10: =OFFSET('0_Taula Concentrats'!$A$1,$C10,$P$2,1,1) -> 0 | Q10: =OFFSET('0_Taula Concentrats'!$A$1,$C10,$Q$2,1,1) -> 0.02 | R10: =OFFSET('0_Taula Concentrats'!$A$1,$C10,$R$2,1,1) -> 2.3 | S10: =OFFSET('0_Taula Concentrats'!$A$1,$C10,$S$2,1,1) -> 10.8 | T10: =OFFSET('0_Taula Concentrats'!$A$1,$C10,$T$2,1,1) -> 21.4 | U10: =OFFSET('0_Taula Concentrats'!$A$1,$C10,$U$2,1,1) -> 0 | V10: =OFFSET('0_Taula Concentrats'!$A$1,$C10,$V$2,1,1) -> 0.02 | W10: =OFFSET('0_Taula Concentrats'!$A$1,$C10,$W$2,1,1) -> 0 | X10: =OFFSET('0_Taula Concentrats'!$A$1,$C10,$X$2,1,1) -> 0 | Y10: =OFFSET('0_Taula Concentrats'!$A$1,$C10,$Y$2,1,1) -> 0 | Z10: =OFFSET('0_Taula Concentrats'!$A$1,$C10,$Z$2,1,1) -> 36.55 | AA10: =OFFSET('0_Taula Concentrats'!$A$1,$C10,$AA$2,1,1) -> 89 | AB10: =OFFSET('0_Taula Concentrats'!$A$1,$C10,$AB$2,1,1) -> 43 | AC10: =OFFSET('0_Taula Concentrats'!$A$1,$C10,$AC$2,1,1) -> 0.882846 | AD10: =OFFSET('0_Taula Concentrats'!$A$1,$C10,$AD$2,1,1) -> 870.486156 | AE10: =OFFSET('0_Taula Concentrats'!$A$1,$C10,$AE$2,1,1) -> 43 | AF10: =OFFSET('0_Taula Concentrats'!$A$1,$C10,$AF$2,1,1) -> 26 | AG10: =OFFSET('0_Taula Concentrats'!$A$1,$C10,$AG$2,1,1) -> 125 | AH10: =OFFSET('0_Taula Concentrats'!$A$1,$C10,$AH$2,1,1) -> 31 | AI10: =OFFSET('0_Taula Concentrats'!$A$1,$C10,$AI$2,1,1) -> 60 | AJ10: =OFFSET('0_Taula Concentrats'!$A$1,$C10,$AJ$2,1,1) -> 14 | AK10: =OFFSET('0_Taula Concentrats'!$A$1,$C10,$AK$2,1,1) -> 0.3 | AL10: =OFFSET('0_Taula Concentrats'!$A$1,$C10,$AL$2,1,1) -> 0.4465708975 | AM10: =OFFSET('0_Taula Concentrats'!$A$1,$C10,$AM$2,1,1) -> 780.9036423 | AN10: =IF('II_Plantejar Ració'!$E11>0,IF(CàlculsVL!E10>=0,1,"No"),"") -> 1 | AO10: =IF('II_Plantejar Ració'!$E11>0,IF(CàlculsVL!F10>=0,1,"No"),"") -> 1 | AP10: =IF('II_Plantejar Ració'!$E11>0,IF(CàlculsVL!G10>0,1,"No"),"") -> 1 | AQ10: =IF('II_Plantejar Ració'!$E11>0,IF(CàlculsVL!H10=0,"No",1),"") -> 1 | AR10: =IF('II_Plantejar Ració'!$E11>0,IF(CàlculsVL!I10>0,1,"No"),"") -> 1 | AS10: =IF('II_Plantejar Ració'!$E11>0,IF(CàlculsVL!J10>0,1,"No"),"") -> 1 | AT10: =IF('II_Plantejar Ració'!$E11>0,IF(CàlculsVL!K10>0,1,"No"),"") -> 1 | AU10: =IF('II_Plantejar Ració'!$E11>0,IF(CàlculsVL!L10>0,1,"No"),"") -> 1 | AV10: =IF('II_Plantejar Ració'!$E11>0,IF(CàlculsVL!M10>0,1,"No"),"") -> 1 | AW10: =IF('II_Plantejar Ració'!$E11>0,IF(CàlculsVL!N10>0,1,"No"),"") -> 1 | AX10: =IF('II_Plantejar Ració'!$E11>0,IF(CàlculsVL!O10>0,1,"No"),"") -> No | AY10: =IF('II_Plantejar Ració'!$E11>0,IF(CàlculsVL!P10>0,1,"No"),"") -> No | AZ10: =IF('II_Plantejar Ració'!$E11>0,IF(CàlculsVL!Q10>0,1,"No"),"") -> 1 | BA10: =IF('II_Plantejar Ració'!$E11>0,IF(CàlculsVL!R10>0,1,"No"),"") -> 1 | BB10: =IF('II_Plantejar Ració'!$E11>0,IF(CàlculsVL!S10>0,1,"No"),"") -> 1 | BC10: =IF('II_Plantejar Ració'!$E11>0,IF(CàlculsVL!T10>0,1,"No"),"") -> 1 | BD10: =IF('II_Plantejar Ració'!$E11>0,IF(CàlculsVL!U10>0,1,"No"),"") -> No | BE10: =IF('II_Plantejar Ració'!$E11>0,IF(CàlculsVL!V10>0,1,"No"),"") -> 1 | BF10: =IF('II_Plantejar Ració'!$E11>0,IF(CàlculsVL!W10>0,1,"No"),"") -> No | BG10: =IF('II_Plantejar Ració'!$E11>0,IF(CàlculsVL!X10>0,1,"No"),"") -> No | BH10: =IF('II_Plantejar Ració'!$E11>0,IF(CàlculsVL!Y10>0,1,"No"),"") -> No | BI10: =IF('II_Plantejar Ració'!$E11>0,IF(CàlculsVL!Z10>0,1,"No"),"") -> 1 | BJ10: =IF('II_Plantejar Ració'!$E11>0,IF(CàlculsVL!AA10>0,1,"No"),"") -> 1 | BK10: =IF('II_Plantejar Ració'!$E11>0,IF(CàlculsVL!AB10>0,1,"No"),"") -> 1 | BL10: =IF('II_Plantejar Ració'!$E11>0,IF(CàlculsVL!AC10>0,1,"No"),"") -> 1 | BM10: =IF('II_Plantejar Ració'!$E11>0,IF(CàlculsVL!AD10>0,1,"No"),"") -> 1 | BN10: =IF('II_Plantejar Ració'!$E11>0,IF(CàlculsVL!AE10>0,1,"No"),"") -> 1 | BO10: =IF('II_Plantejar Ració'!$E11>0,IF(CàlculsVL!AF10>0,1,"No"),"") -> 1 | BP10: =IF('II_Plantejar Ració'!$E11>0,IF(CàlculsVL!AG10>0,1,"No"),"") -> 1 | BQ10: =IF('II_Plantejar Ració'!$E11>0,IF(CàlculsVL!AH10>0,1,"No"),"") -> 1 | BR10: =IF('II_Plantejar Ració'!$E11>0,IF(CàlculsVL!AI10>0,1,"No"),"") -> 1 | BS10: =IF('II_Plantejar Ració'!$E11>0,IF(CàlculsVL!AJ10>0,1,"No"),"") -> 1 | BT10: =IF('II_Plantejar Ració'!$E11>0,IF(CàlculsVL!AK10>0,1,"No"),"") -> 1 | BU10: =IF('II_Plantejar Ració'!$E11>0,IF(CàlculsVL!AL10>0,1,"No"),"") -> 1 | BV10: =IF('II_Plantejar Ració'!$E11>0,IF(CàlculsVL!AM10>0,1,"No"),"") -> 1 | BW10: 1 | BX10: 1 | BY10: 1 | BZ10: 1 | CA10: 1 | CB10: 1 | CC10: 1 | CD10: 1 | CE10: 1 | CF10: 1 | CG10: 1 | CH10: 1 | CI10: 1 | CJ10: 1 | CK10: 1 | CL10: 1 | CM10: 1 | CN10: 1 | CO10: 1 | CP10: 1 | CQ10: 1 | CR10: 1 | CS10: 1 | CT10: 1 | CU10: 1 | CV10: 1 | CW10: 1 | CX10: 1 | CY10: 1 | CZ10: 1 | DA10: 1 | DB10: 1 | DC10: 1 | DD10: 1 | DE10: 1
B11: =IF(OFFSET('0_Taula Concentrats'!$A$1,C11,0,1,1)=0,"",OFFSET('0_Taula Concentrats'!$A$1,C11,0,1,1)) -> Remolatxa polpes deshidratades | C11: 71 | D11: =OFFSET('0_Taula Concentrats'!$A$1,$C11,$D$2,1,1) -> 90 | E11: =OFFSET('0_Taula Concentrats'!$A$1,$C11,$E$2,1,1) -> 0.2876 | F11: =OFFSET('0_Taula Concentrats'!$A$1,$C11,$F$2,1,1) -> 1.025471629 | G11: =OFFSET('0_Taula Concentrats'!$A$1,$C11,$G$2,1,1) -> 94.98664694 | H11: =OFFSET('0_Taula Concentrats'!$A$1,$C11,$H$2,1,1) -> -54.34630184 | I11: =OFFSET('0_Taula Concentrats'!$A$1,$C11,$I$2,1,1) -> 2 | J11: =OFFSET('0_Taula Concentrats'!$A$1,$C11,$J$2,1,1) -> 2.12 | K11: =OFFSET('0_Taula Concentrats'!$A$1,$C11,$K$2,1,1) -> 0.68 | L11: =OFFSET('0_Taula Concentrats'!$A$1,$C11,$L$2,1,1) -> 2.233333333 | M11: =OFFSET('0_Taula Concentrats'!$A$1,$C11,$M$2,1,1) -> 4 | N11: =OFFSET('0_Taula Concentrats'!$A$1,$C11,$N$2,1,1) -> 2.233333333 | O11: =OFFSET('0_Taula Concentrats'!$A$1,$C11,$O$2,1,1) -> 2.2 | P11: =OFFSET('0_Taula Concentrats'!$A$1,$C11,$P$2,1,1) -> 0.4 | Q11: =OFFSET('0_Taula Concentrats'!$A$1,$C11,$Q$2,1,1) -> 0.09333333333 | R11: =OFFSET('0_Taula Concentrats'!$A$1,$C11,$R$2,1,1) -> 7.733333333 | S11: =OFFSET('0_Taula Concentrats'!$A$1,$C11,$S$2,1,1) -> 47.6 | T11: =OFFSET('0_Taula Concentrats'!$A$1,$C11,$T$2,1,1) -> 9.733333333 | U11: =OFFSET('0_Taula Concentrats'!$A$1,$C11,$U$2,1,1) -> 0 | V11: =OFFSET('0_Taula Concentrats'!$A$1,$C11,$V$2,1,1) -> 0.03 | W11: =OFFSET('0_Taula Concentrats'!$A$1,$C11,$W$2,1,1) -> 0 | X11: =OFFSET('0_Taula Concentrats'!$A$1,$C11,$X$2,1,1) -> 0.6 | Y11: =OFFSET('0_Taula Concentrats'!$A$1,$C11,$Y$2,1,1) -> 0 | Z11: =OFFSET('0_Taula Concentrats'!$A$1,$C11,$Z$2,1,1) -> 4 | AA11: =OFFSET('0_Taula Concentrats'!$A$1,$C11,$AA$2,1,1) -> 98 | AB11: =OFFSET('0_Taula Concentrats'!$A$1,$C11,$AB$2,1,1) -> 34.16981377 | AC11: =OFFSET('0_Taula Concentrats'!$A$1,$C11,$AC$2,1,1) -> 0.855001 | AD11: =OFFSET('0_Taula Concentrats'!$A$1,$C11,$AD$2,1,1) -> 794.2104289 | AE11: =OFFSET('0_Taula Concentrats'!$A$1,$C11,$AE$2,1,1) -> 9 | AF11: =OFFSET('0_Taula Concentrats'!$A$1,$C11,$AF$2,1,1) -> 202.7 | AG11: =OFFSET('0_Taula Concentrats'!$A$1,$C11,$AG$2,1,1) -> 507.9 | AH11: =OFFSET('0_Taula Concentrats'!$A$1,$C11,$AH$2,1,1) -> 302.1 | AI11: =OFFSET('0_Taula Concentrats'!$A$1,$C11,$AI$2,1,1) -> 55.1 | AJ11: =OFFSET('0_Taula Concentrats'!$A$1,$C11,$AJ$2,1,1) -> 71.1 | AK11: =OFFSET('0_Taula Concentrats'!$A$1,$C11,$AK$2,1,1) -> 0.3 | AL11: =OFFSET('0_Taula Concentrats'!$A$1,$C11,$AL$2,1,1) -> 0.6031402548 | AM11: =OFFSET('0_Taula Concentrats'!$A$1,$C11,$AM$2,1,1) -> 592.8381002 | AN11: =IF('II_Plantejar Ració'!$E12>0,IF(CàlculsVL!E11>=0,1,"No"),"") -> 1 | AO11: =IF('II_Plantejar Ració'!$E12>0,IF(CàlculsVL!F11>=0,1,"No"),"") -> 1 | AP11: =IF('II_Plantejar Ració'!$E12>0,IF(CàlculsVL!G11>0,1,"No"),"") -> 1 | AQ11: =IF('II_Plantejar Ració'!$E12>0,IF(CàlculsVL!H11=0,"No",1),"") -> 1 | AR11: =IF('II_Plantejar Ració'!$E12>0,IF(CàlculsVL!I11>0,1,"No"),"") -> 1 | AS11: =IF('II_Plantejar Ració'!$E12>0,IF(CàlculsVL!J11>0,1,"No"),"") -> 1 | AT11: =IF('II_Plantejar Ració'!$E12>0,IF(CàlculsVL!K11>0,1,"No"),"") -> 1 | AU11: =IF('II_Plantejar Ració'!$E12>0,IF(CàlculsVL!L11>0,1,"No"),"") -> 1 | AV11: =IF('II_Plantejar Ració'!$E12>0,IF(CàlculsVL!M11>0,1,"No"),"") -> 1 | AW11: =IF('II_Plantejar Ració'!$E12>0,IF(CàlculsVL!N11>0,1,"No"),"") -> 1 | AX11: =IF('II_Plantejar Ració'!$E12>0,IF(CàlculsVL!O11>0,1,"No"),"") -> 1 | AY11: =IF('II_Plantejar Ració'!$E12>0,IF(CàlculsVL!P11>0,1,"No"),"") -> 1 | AZ11: =IF('II_Plantejar Ració'!$E12>0,IF(CàlculsVL!Q11>0,1,"No"),"") -> 1 | BA11: =IF('II_Plantejar Ració'!$E12>0,IF(CàlculsVL!R11>0,1,"No"),"") -> 1 | BB11: =IF('II_Plantejar Ració'!$E12>0,IF(CàlculsVL!S11>0,1,"No"),"") -> 1 | BC11: =IF('II_Plantejar Ració'!$E12>0,IF(CàlculsVL!T11>0,1,"No"),"") -> 1 | BD11: =IF('II_Plantejar Ració'!$E12>0,IF(CàlculsVL!U11>0,1,"No"),"") -> No | BE11: =IF('II_Plantejar Ració'!$E12>0,IF(CàlculsVL!V11>0,1,"No"),"") -> 1 | BF11: =IF('II_Plantejar Ració'!$E12>0,IF(CàlculsVL!W11>0,1,"No"),"") -> No | BG11: =IF('II_Plantejar Ració'!$E12>0,IF(CàlculsVL!X11>0,1,"No"),"") -> 1 | BH11: =IF('II_Plantejar Ració'!$E12>0,IF(CàlculsVL!Y11>0,1,"No"),"") -> No | BI11: =IF('II_Plantejar Ració'!$E12>0,IF(CàlculsVL!Z11>0,1,"No"),"") -> 1 | BJ11: =IF('II_Plantejar Ració'!$E12>0,IF(CàlculsVL!AA11>0,1,"No"),"") -> 1 | BK11: =IF('II_Plantejar Ració'!$E12>0,IF(CàlculsVL!AB11>0,1,"No"),"") -> 1 | BL11: =IF('II_Plantejar Ració'!$E12>0,IF(CàlculsVL!AC11>0,1,"No"),"") -> 1 | BM11: =IF('II_Plantejar Ració'!$E12>0,IF(CàlculsVL!AD11>0,1,"No"),"") -> 1 | BN11: =IF('II_Plantejar Ració'!$E12>0,IF(CàlculsVL!AE11>0,1,"No"),"") -> 1 | BO11: =IF('II_Plantejar Ració'!$E12>0,IF(CàlculsVL!AF11>0,1,"No"),"") -> 1 | BP11: =IF('II_Plantejar Ració'!$E12>0,IF(CàlculsVL!AG11>0,1,"No"),"") -> 1 | BQ11: =IF('II_Plantejar Ració'!$E12>0,IF(CàlculsVL!AH11>0,1,"No"),"") -> 1 | BR11: =IF('II_Plantejar Ració'!$E12>0,IF(CàlculsVL!AI11>0,1,"No"),"") -> 1 | BS11: =IF('II_Plantejar Ració'!$E12>0,IF(CàlculsVL!AJ11>0,1,"No"),"") -> 1 | BT11: =IF('II_Plantejar Ració'!$E12>0,IF(CàlculsVL!AK11>0,1,"No"),"") -> 1 | BU11: =IF('II_Plantejar Ració'!$E12>0,IF(CàlculsVL!AL11>0,1,"No"),"") -> 1 | BV11: =IF('II_Plantejar Ració'!$E12>0,IF(CàlculsVL!AM11>0,1,"No"),"") -> 1 | BW11: 1 | BX11: 1 | BY11: 1 | BZ11: 1 | CA11: 1 | CB11: 1 | CC11: 1 | CD11: 1 | CE11: 1 | CF11: 1 | CG11: 1 | CH11: 1 | CI11: 1 | CJ11: 1 | CK11: 1 | CL11: 1 | CM11: 1 | CN11: 1 | CO11: 1 | CP11: 1 | CQ11: 1 | CR11: 1 | CS11: 1 | CT11: 1 | CU11: 1 | CV11: 1 | CW11: 1 | CX11: 1 | CY11: 1 | CZ11: 1 | DA11: 1 | DB11: 1 | DC11: 1 | DD11: 1 | DE11: 1
B12: =IF(OFFSET('0_Taula Concentrats'!$A$1,C12,0,1,1)=0,"",OFFSET('0_Taula Concentrats'!$A$1,C12,0,1,1)) -> Soja tortó 48 curtit "tanne" | C12: 52 | D12: =OFFSET('0_Taula Concentrats'!$A$1,$C12,$D$2,1,1) -> 88.8 | E12: =OFFSET('0_Taula Concentrats'!$A$1,$C12,$E$2,1,1) -> 0.2674143 | F12: =OFFSET('0_Taula Concentrats'!$A$1,$C12,$F$2,1,1) -> 1.223810674 | G12: =OFFSET('0_Taula Concentrats'!$A$1,$C12,$G$2,1,1) -> 219.3151576 | H12: =OFFSET('0_Taula Concentrats'!$A$1,$C12,$H$2,1,1) -> 239.0600948 | I12: =OFFSET('0_Taula Concentrats'!$A$1,$C12,$I$2,1,1) -> 2 | J12: =OFFSET('0_Taula Concentrats'!$A$1,$C12,$J$2,1,1) -> 1.87 | K12: =OFFSET('0_Taula Concentrats'!$A$1,$C12,$K$2,1,1) -> 5.46 | L12: =OFFSET('0_Taula Concentrats'!$A$1,$C12,$L$2,1,1) -> 0 | M12: =OFFSET('0_Taula Concentrats'!$A$1,$C12,$M$2,1,1) -> 0 | N12: =OFFSET('0_Taula Concentrats'!$A$1,$C12,$N$2,1,1) -> 0 | O12: =OFFSET('0_Taula Concentrats'!$A$1,$C12,$O$2,1,1) -> 0 | P12: =OFFSET('0_Taula Concentrats'!$A$1,$C12,$P$2,1,1) -> 0 | Q12: =OFFSET('0_Taula Concentrats'!$A$1,$C12,$Q$2,1,1) -> 0.3 | R12: =OFFSET('0_Taula Concentrats'!$A$1,$C12,$R$2,1,1) -> 17.1 | S12: =OFFSET('0_Taula Concentrats'!$A$1,$C12,$S$2,1,1) -> 43.7 | T12: =OFFSET('0_Taula Concentrats'!$A$1,$C12,$T$2,1,1) -> 54.6 | U12: =OFFSET('0_Taula Concentrats'!$A$1,$C12,$U$2,1,1) -> 0 | V12: =OFFSET('0_Taula Concentrats'!$A$1,$C12,$V$2,1,1) -> 0.2 | W12: =OFFSET('0_Taula Concentrats'!$A$1,$C12,$W$2,1,1) -> 0 | X12: =OFFSET('0_Taula Concentrats'!$A$1,$C12,$X$2,1,1) -> 0 | Y12: =OFFSET('0_Taula Concentrats'!$A$1,$C12,$Y$2,1,1) -> 0 | Z12: =OFFSET('0_Taula Concentrats'!$A$1,$C12,$Z$2,1,1) -> 15.18 | AA12: =OFFSET('0_Taula Concentrats'!$A$1,$C12,$AA$2,1,1) -> 520 | AB12: =OFFSET('0_Taula Concentrats'!$A$1,$C12,$AB$2,1,1) -> 165.0816182 | AC12: =OFFSET('0_Taula Concentrats'!$A$1,$C12,$AC$2,1,1) -> 0.867341 | AD12: =OFFSET('0_Taula Concentrats'!$A$1,$C12,$AD$2,1,1) -> 804.025107 | AE12: =OFFSET('0_Taula Concentrats'!$A$1,$C12,$AE$2,1,1) -> 23 | AF12: =OFFSET('0_Taula Concentrats'!$A$1,$C12,$AF$2,1,1) -> 70 | AG12: =OFFSET('0_Taula Concentrats'!$A$1,$C12,$AG$2,1,1) -> 140 | AH12: =OFFSET('0_Taula Concentrats'!$A$1,$C12,$AH$2,1,1) -> 87 | AI12: =OFFSET('0_Taula Concentrats'!$A$1,$C12,$AI$2,1,1) -> 7 | AJ12: =OFFSET('0_Taula Concentrats'!$A$1,$C12,$AJ$2,1,1) -> 73 | AK12: =OFFSET('0_Taula Concentrats'!$A$1,$C12,$AK$2,1,1) -> 2.3 | AL12: =OFFSET('0_Taula Concentrats'!$A$1,$C12,$AL$2,1,1) -> 0.6794639687 | AM12: =OFFSET('0_Taula Concentrats'!$A$1,$C12,$AM$2,1,1) -> 152.5275173 | AN12: =IF('II_Plantejar Ració'!$E13>0,IF(CàlculsVL!E12>=0,1,"No"),"") -> 1 | AO12: =IF('II_Plantejar Ració'!$E13>0,IF(CàlculsVL!F12>=0,1,"No"),"") -> 1 | AP12: =IF('II_Plantejar Ració'!$E13>0,IF(CàlculsVL!G12>0,1,"No"),"") -> 1 | AQ12: =IF('II_Plantejar Ració'!$E13>0,IF(CàlculsVL!H12=0,"No",1),"") -> 1 | AR12: =IF('II_Plantejar Ració'!$E13>0,IF(CàlculsVL!I12>0,1,"No"),"") -> 1 | AS12: =IF('II_Plantejar Ració'!$E13>0,IF(CàlculsVL!J12>0,1,"No"),"") -> 1 | AT12: =IF('II_Plantejar Ració'!$E13>0,IF(CàlculsVL!K12>0,1,"No"),"") -> 1 | AU12: =IF('II_Plantejar Ració'!$E13>0,IF(CàlculsVL!L12>0,1,"No"),"") -> No | AV12: =IF('II_Plantejar Ració'!$E13>0,IF(CàlculsVL!M12>0,1,"No"),"") -> No | AW12: =IF('II_Plantejar Ració'!$E13>0,IF(CàlculsVL!N12>0,1,"No"),"") -> No | AX12: =IF('II_Plantejar Ració'!$E13>0,IF(CàlculsVL!O12>0,1,"No"),"") -> No | AY12: =IF('II_Plantejar Ració'!$E13>0,IF(CàlculsVL!P12>0,1,"No"),"") -> No | AZ12: =IF('II_Plantejar Ració'!$E13>0,IF(CàlculsVL!Q12>0,1,"No"),"") -> 1 | BA12: =IF('II_Plantejar Ració'!$E13>0,IF(CàlculsVL!R12>0,1,"No"),"") -> 1 | BB12: =IF('II_Plantejar Ració'!$E13>0,IF(CàlculsVL!S12>0,1,"No"),"") -> 1 | BC12: =IF('II_Plantejar Ració'!$E13>0,IF(CàlculsVL!T12>0,1,"No"),"") -> 1 | BD12: =IF('II_Plantejar Ració'!$E13>0,IF(CàlculsVL!U12>0,1,"No"),"") -> No | BE12: =IF('II_Plantejar Ració'!$E13>0,IF(CàlculsVL!V12>0,1,"No"),"") -> 1 | BF12: =IF('II_Plantejar Ració'!$E13>0,IF(CàlculsVL!W12>0,1,"No"),"") -> No | BG12: =IF('II_Plantejar Ració'!$E13>0,IF(CàlculsVL!X12>0,1,"No"),"") -> No | BH12: =IF('II_Plantejar Ració'!$E13>0,IF(CàlculsVL!Y12>0,1,"No"),"") -> No | BI12: =IF('II_Plantejar Ració'!$E13>0,IF(CàlculsVL!Z12>0,1,"No"),"") -> 1 | BJ12: =IF('II_Plantejar Ració'!$E13>0,IF(CàlculsVL!AA12>0,1,"No"),"") -> 1 | BK12: =IF('II_Plantejar Ració'!$E13>0,IF(CàlculsVL!AB12>0,1,"No"),"") -> 1 | BL12: =IF('II_Plantejar Ració'!$E13>0,IF(CàlculsVL!AC12>0,1,"No"),"") -> 1 | BM12: =IF('II_Plantejar Ració'!$E13>0,IF(CàlculsVL!AD12>0,1,"No"),"") -> 1 | BN12: =IF('II_Plantejar Ració'!$E13>0,IF(CàlculsVL!AE12>0,1,"No"),"") -> 1 | BO12: =IF('II_Plantejar Ració'!$E13>0,IF(CàlculsVL!AF12>0,1,"No"),"") -> 1 | BP12: =IF('II_Plantejar Ració'!$E13>0,IF(CàlculsVL!AG12>0,1,"No"),"") -> 1 | BQ12: =IF('II_Plantejar Ració'!$E13>0,IF(CàlculsVL!AH12>0,1,"No"),"") -> 1 | BR12: =IF('II_Plantejar Ració'!$E13>0,IF(CàlculsVL!AI12>0,1,"No"),"") -> 1 | BS12: =IF('II_Plantejar Ració'!$E13>0,IF(CàlculsVL!AJ12>0,1,"No"),"") -> 1 | BT12: =IF('II_Plantejar Ració'!$E13>0,IF(CàlculsVL!AK12>0,1,"No"),"") -> 1 | BU12: =IF('II_Plantejar Ració'!$E13>0,IF(CàlculsVL!AL12>0,1,"No"),"") -> 1 | BV12: =IF('II_Plantejar Ració'!$E13>0,IF(CàlculsVL!AM12>0,1,"No"),"") -> 1 | BW12: 1 | BX12: 1 | BY12: 1 | BZ12: 1 | CA12: 1 | CB12: 1 | CC12: 1 | CD12: 1 | CE12: 1 | CF12: 1 | CG12: 1 | CH12: 1 | CI12: 1 | CJ12: 1 | CK12: 1 | CL12: 1 | CM12: 1 | CN12: 1 | CO12: 1 | CP12: 1 | CQ12: 1 | CR12: 1 | CS12: 1 | CT12: 1 | CU12: 1 | CV12: 1 | CW12: 1 | CX12: 1 | CY12: 1 | CZ12: 1 | DA12: 1 | DB12: 1 | DC12: 1 | DD12: 1 | DE12: 1
B13: =IF(OFFSET('0_Taula Concentrats'!$A$1,C13,0,1,1)=0,"",OFFSET('0_Taula Concentrats'!$A$1,C13,0,1,1)) -> Grassa vegetal, mantega de porc (tots els tipus) | C13: 74 | D13: =OFFSET('0_Taula Concentrats'!$A$1,$C13,$D$2,1,1) -> 99.9 | E13: =OFFSET('0_Taula Concentrats'!$A$1,$C13,$E$2,1,1) -> 0.25 | F13: =OFFSET('0_Taula Concentrats'!$A$1,$C13,$F$2,1,1) -> 3.61 | G13: =OFFSET('0_Taula Concentrats'!$A$1,$C13,$G$2,1,1) -> 1e-07 | H13: =OFFSET('0_Taula Concentrats'!$A$1,$C13,$H$2,1,1) -> -14 | I13: =OFFSET('0_Taula Concentrats'!$A$1,$C13,$I$2,1,1) -> 2 | J13: =OFFSET('0_Taula Concentrats'!$A$1,$C13,$J$2,1,1) -> 5.5e-08 | K13: =OFFSET('0_Taula Concentrats'!$A$1,$C13,$K$2,1,1) -> 6.8e-08 | L13: =OFFSET('0_Taula Concentrats'!$A$1,$C13,$L$2,1,1) -> 1e-07 | M13: =OFFSET('0_Taula Concentrats'!$A$1,$C13,$M$2,1,1) -> 1e-07 | N13: =OFFSET('0_Taula Concentrats'!$A$1,$C13,$N$2,1,1) -> 1e-07 | O13: =OFFSET('0_Taula Concentrats'!$A$1,$C13,$O$2,1,1) -> 1e-07 | P13: =OFFSET('0_Taula Concentrats'!$A$1,$C13,$P$2,1,1) -> 1e-07 | Q13: =OFFSET('0_Taula Concentrats'!$A$1,$C13,$Q$2,1,1) -> 1e-07 | R13: =OFFSET('0_Taula Concentrats'!$A$1,$C13,$R$2,1,1) -> 1e-07 | S13: =OFFSET('0_Taula Concentrats'!$A$1,$C13,$S$2,1,1) -> 1e-07 | T13: =OFFSET('0_Taula Concentrats'!$A$1,$C13,$T$2,1,1) -> 1e-07 | U13: =OFFSET('0_Taula Concentrats'!$A$1,$C13,$U$2,1,1) -> 0 | V13: =OFFSET('0_Taula Concentrats'!$A$1,$C13,$V$2,1,1) -> 1e-07 | W13: =OFFSET('0_Taula Concentrats'!$A$1,$C13,$W$2,1,1) -> 1300 | X13: =OFFSET('0_Taula Concentrats'!$A$1,$C13,$X$2,1,1) -> 1e-07 | Y13: =OFFSET('0_Taula Concentrats'!$A$1,$C13,$Y$2,1,1) -> 95 | Z13: =OFFSET('0_Taula Concentrats'!$A$1,$C13,$Z$2,1,1) -> 999 | AA13: =OFFSET('0_Taula Concentrats'!$A$1,$C13,$AA$2,1,1) -> 1e-07 | AB13: =OFFSET('0_Taula Concentrats'!$A$1,$C13,$AB$2,1,1) -> 1e-07 | AC13: =OFFSET('0_Taula Concentrats'!$A$1,$C13,$AC$2,1,1) -> 0.9 | AD13: =OFFSET('0_Taula Concentrats'!$A$1,$C13,$AD$2,1,1) -> 1e-07 | AE13: =OFFSET('0_Taula Concentrats'!$A$1,$C13,$AE$2,1,1) -> 999 | AF13: =OFFSET('0_Taula Concentrats'!$A$1,$C13,$AF$2,1,1) -> 1e-07 | AG13: =OFFSET('0_Taula Concentrats'!$A$1,$C13,$AG$2,1,1) -> 1e-07 | AH13: =OFFSET('0_Taula Concentrats'!$A$1,$C13,$AH$2,1,1) -> 1e-07 | AI13: =OFFSET('0_Taula Concentrats'!$A$1,$C13,$AI$2,1,1) -> 1e-07 | AJ13: =OFFSET('0_Taula Concentrats'!$A$1,$C13,$AJ$2,1,1) -> 1e-07 | AK13: =OFFSET('0_Taula Concentrats'!$A$1,$C13,$AK$2,1,1) -> 1e-07 | AL13: =OFFSET('0_Taula Concentrats'!$A$1,$C13,$AL$2,1,1) -> 0 | AM13: =OFFSET('0_Taula Concentrats'!$A$1,$C13,$AM$2,1,1) -> 0 | AN13: =IF('II_Plantejar Ració'!$E14>0,IF(CàlculsVL!E13>=0,1,"No"),"") -> 1 | AO13: =IF('II_Plantejar Ració'!$E14>0,IF(CàlculsVL!F13>=0,1,"No"),"") -> 1 | AP13: =IF('II_Plantejar Ració'!$E14>0,IF(CàlculsVL!G13>0,1,"No"),"") -> 1 | AQ13: =IF('II_Plantejar Ració'!$E14>0,IF(CàlculsVL!H13=0,"No",1),"") -> 1 | AR13: =IF('II_Plantejar Ració'!$E14>0,IF(CàlculsVL!I13>0,1,"No"),"") -> 1 | AS13: =IF('II_Plantejar Ració'!$E14>0,IF(CàlculsVL!J13>0,1,"No"),"") -> 1 | AT13: =IF('II_Plantejar Ració'!$E14>0,IF(CàlculsVL!K13>0,1,"No"),"") -> 1 | AU13: =IF('II_Plantejar Ració'!$E14>0,IF(CàlculsVL!L13>0,1,"No"),"") -> 1 | AV13: =IF('II_Plantejar Ració'!$E14>0,IF(CàlculsVL!M13>0,1,"No"),"") -> 1 | AW13: =IF('II_Plantejar Ració'!$E14>0,IF(CàlculsVL!N13>0,1,"No"),"") -> 1 | AX13: =IF('II_Plantejar Ració'!$E14>0,IF(CàlculsVL!O13>0,1,"No"),"") -> 1 | AY13: =IF('II_Plantejar Ració'!$E14>0,IF(CàlculsVL!P13>0,1,"No"),"") -> 1 | AZ13: =IF('II_Plantejar Ració'!$E14>0,IF(CàlculsVL!Q13>0,1,"No"),"") -> 1 | BA13: =IF('II_Plantejar Ració'!$E14>0,IF(CàlculsVL!R13>0,1,"No"),"") -> 1 | BB13: =IF('II_Plantejar Ració'!$E14>0,IF(CàlculsVL!S13>0,1,"No"),"") -> 1 | BC13: =IF('II_Plantejar Ració'!$E14>0,IF(CàlculsVL!T13>0,1,"No"),"") -> 1 | BD13: =IF('II_Plantejar Ració'!$E14>0,IF(CàlculsVL!U13>0,1,"No"),"") -> No | BE13: =IF('II_Plantejar Ració'!$E14>0,IF(CàlculsVL!V13>0,1,"No"),"") -> 1 | BF13: =IF('II_Plantejar Ració'!$E14>0,IF(CàlculsVL!W13>0,1,"No"),"") -> 1 | BG13: =IF('II_Plantejar Ració'!$E14>0,IF(CàlculsVL!X13>0,1,"No"),"") -> 1 | BH13: =IF('II_Plantejar Ració'!$E14>0,IF(CàlculsVL!Y13>0,1,"No"),"") -> 1 | BI13: =IF('II_Plantejar Ració'!$E14>0,IF(CàlculsVL!Z13>0,1,"No"),"") -> 1 | BJ13: =IF('II_Plantejar Ració'!$E14>0,IF(CàlculsVL!AA13>0,1,"No"),"") -> 1 | BK13: =IF('II_Plantejar Ració'!$E14>0,IF(CàlculsVL!AB13>0,1,"No"),"") -> 1 | BL13: =IF('II_Plantejar Ració'!$E14>0,IF(CàlculsVL!AC13>0,1,"No"),"") -> 1 | BM13: =IF('II_Plantejar Ració'!$E14>0,IF(CàlculsVL!AD13>0,1,"No"),"") -> 1 | BN13: =IF('II_Plantejar Ració'!$E14>0,IF(CàlculsVL!AE13>0,1,"No"),"") -> 1 | BO13: =IF('II_Plantejar Ració'!$E14>0,IF(CàlculsVL!AF13>0,1,"No"),"") -> 1 | BP13: =IF('II_Plantejar Ració'!$E14>0,IF(CàlculsVL!AG13>0,1,"No"),"") -> 1 | BQ13: =IF('II_Plantejar Ració'!$E14>0,IF(CàlculsVL!AH13>0,1,"No"),"") -> 1 | BR13: =IF('II_Plantejar Ració'!$E14>0,IF(CàlculsVL!AI13>0,1,"No"),"") -> 1 | BS13: =IF('II_Plantejar Ració'!$E14>0,IF(CàlculsVL!AJ13>0,1,"No"),"") -> 1 | BT13: =IF('II_Plantejar Ració'!$E14>0,IF(CàlculsVL!AK13>0,1,"No"),"") -> 1 | BU13: =IF('II_Plantejar Ració'!$E14>0,IF(CàlculsVL!AL13>0,1,"No"),"") -> No | BV13: =IF('II_Plantejar Ració'!$E14>0,IF(CàlculsVL!AM13>0,1,"No"),"") -> No | BW13: 1 | BX13: 1 | BY13: 1 | BZ13: 1 | CA13: 1 | CB13: 1 | CC13: 1 | CD13: 1 | CE13: 1 | CF13: 1 | CG13: 1 | CH13: 1 | CI13: 1 | CJ13: 1 | CK13: 1 | CL13: 1 | CM13: 1 | CN13: 1 | CO13: 1 | CP13: 1 | CQ13: 1 | CR13: 1 | CS13: 1 | CT13: 1 | CU13: 1 | CV13: 1 | CW13: 1 | CX13: 1 | CY13: 1 | CZ13: 1 | DA13: 1 | DB13: 1 | DC13: 1 | DD13: 1 | DE13: 1
B14: =IF(OFFSET('0_Taula Concentrats'!$A$1,C14,0,1,1)=0,"",OFFSET('0_Taula Concentrats'!$A$1,C14,0,1,1)) ->  | C14: 1 | D14: =OFFSET('0_Taula Concentrats'!$A$1,$C14,$D$2,1,1) -> 0 | E14: =OFFSET('0_Taula Concentrats'!$A$1,$C14,$E$2,1,1) -> 0 | F14: =OFFSET('0_Taula Concentrats'!$A$1,$C14,$F$2,1,1) -> 0 | G14: =OFFSET('0_Taula Concentrats'!$A$1,$C14,$G$2,1,1) -> 0 | H14: =OFFSET('0_Taula Concentrats'!$A$1,$C14,$H$2,1,1) -> 0 | I14: =OFFSET('0_Taula Concentrats'!$A$1,$C14,$I$2,1,1) -> 0 | J14: =OFFSET('0_Taula Concentrats'!$A$1,$C14,$J$2,1,1) -> 0 | K14: =OFFSET('0_Taula Concentrats'!$A$1,$C14,$K$2,1,1) -> 0 | L14: =OFFSET('0_Taula Concentrats'!$A$1,$C14,$L$2,1,1) -> 0 | M14: =OFFSET('0_Taula Concentrats'!$A$1,$C14,$M$2,1,1) -> 0 | N14: =OFFSET('0_Taula Concentrats'!$A$1,$C14,$N$2,1,1) -> 0 | O14: =OFFSET('0_Taula Concentrats'!$A$1,$C14,$O$2,1,1) -> 0 | P14: =OFFSET('0_Taula Concentrats'!$A$1,$C14,$P$2,1,1) -> 0 | Q14: =OFFSET('0_Taula Concentrats'!$A$1,$C14,$Q$2,1,1) -> 0 | R14: =OFFSET('0_Taula Concentrats'!$A$1,$C14,$R$2,1,1) -> 0 | S14: =OFFSET('0_Taula Concentrats'!$A$1,$C14,$S$2,1,1) -> 0 | T14: =OFFSET('0_Taula Concentrats'!$A$1,$C14,$T$2,1,1) -> 0 | U14: =OFFSET('0_Taula Concentrats'!$A$1,$C14,$U$2,1,1) -> 0 | V14: =OFFSET('0_Taula Concentrats'!$A$1,$C14,$V$2,1,1) -> 0 | W14: =OFFSET('0_Taula Concentrats'!$A$1,$C14,$W$2,1,1) -> 0 | X14: =OFFSET('0_Taula Concentrats'!$A$1,$C14,$X$2,1,1) -> 0 | Y14: =OFFSET('0_Taula Concentrats'!$A$1,$C14,$Y$2,1,1) -> 0 | Z14: =OFFSET('0_Taula Concentrats'!$A$1,$C14,$Z$2,1,1) -> 0 | AA14: =OFFSET('0_Taula Concentrats'!$A$1,$C14,$AA$2,1,1) -> 0 | AB14: =OFFSET('0_Taula Concentrats'!$A$1,$C14,$AB$2,1,1) -> 0 | AC14: =OFFSET('0_Taula Concentrats'!$A$1,$C14,$AC$2,1,1) -> 0 | AD14: =OFFSET('0_Taula Concentrats'!$A$1,$C14,$AD$2,1,1) -> 0 | AE14: =OFFSET('0_Taula Concentrats'!$A$1,$C14,$AE$2,1,1) -> 0 | AF14: =OFFSET('0_Taula Concentrats'!$A$1,$C14,$AF$2,1,1) -> 0 | AG14: =OFFSET('0_Taula Concentrats'!$A$1,$C14,$AG$2,1,1) -> 0 | AH14: =OFFSET('0_Taula Concentrats'!$A$1,$C14,$AH$2,1,1) -> 0 | AI14: =OFFSET('0_Taula Concentrats'!$A$1,$C14,$AI$2,1,1) -> 0 | AJ14: =OFFSET('0_Taula Concentrats'!$A$1,$C14,$AJ$2,1,1) -> 0 | AK14: =OFFSET('0_Taula Concentrats'!$A$1,$C14,$AK$2,1,1) -> 0 | AL14: =OFFSET('0_Taula Concentrats'!$A$1,$C14,$AL$2,1,1) -> 0 | AM14: =OFFSET('0_Taula Concentrats'!$A$1,$C14,$AM$2,1,1) -> 0 | AN14: =IF('II_Plantejar Ració'!$E15>0,IF(CàlculsVL!E14>=0,1,"No"),"") ->  | AO14: =IF('II_Plantejar Ració'!$E15>0,IF(CàlculsVL!F14>=0,1,"No"),"") ->  | AP14: =IF('II_Plantejar Ració'!$E15>0,IF(CàlculsVL!G14>0,1,"No"),"") ->  | AQ14: =IF('II_Plantejar Ració'!$E15>0,IF(CàlculsVL!H14=0,"No",1),"") ->  | AR14: =IF('II_Plantejar Ració'!$E15>0,IF(CàlculsVL!I14>0,1,"No"),"") ->  | AS14: =IF('II_Plantejar Ració'!$E15>0,IF(CàlculsVL!J14>0,1,"No"),"") ->  | AT14: =IF('II_Plantejar Ració'!$E15>0,IF(CàlculsVL!K14>0,1,"No"),"") ->  | AU14: =IF('II_Plantejar Ració'!$E15>0,IF(CàlculsVL!L14>0,1,"No"),"") ->  | AV14: =IF('II_Plantejar Ració'!$E15>0,IF(CàlculsVL!M14>0,1,"No"),"") ->  | AW14: =IF('II_Plantejar Ració'!$E15>0,IF(CàlculsVL!N14>0,1,"No"),"") ->  | AX14: =IF('II_Plantejar Ració'!$E15>0,IF(CàlculsVL!O14>0,1,"No"),"") ->  | AY14: =IF('II_Plantejar Ració'!$E15>0,IF(CàlculsVL!P14>0,1,"No"),"") ->  | AZ14: =IF('II_Plantejar Ració'!$E15>0,IF(CàlculsVL!Q14>0,1,"No"),"") ->  | BA14: =IF('II_Plantejar Ració'!$E15>0,IF(CàlculsVL!R14>0,1,"No"),"") ->  | BB14: =IF('II_Plantejar Ració'!$E15>0,IF(CàlculsVL!S14>0,1,"No"),"") ->  | BC14: =IF('II_Plantejar Ració'!$E15>0,IF(CàlculsVL!T14>0,1,"No"),"") ->  | BD14: =IF('II_Plantejar Ració'!$E15>0,IF(CàlculsVL!U14>0,1,"No"),"") ->  | BE14: =IF('II_Plantejar Ració'!$E15>0,IF(CàlculsVL!V14>0,1,"No"),"") ->  | BF14: =IF('II_Plantejar Ració'!$E15>0,IF(CàlculsVL!W14>0,1,"No"),"") ->  | BG14: =IF('II_Plantejar Ració'!$E15>0,IF(CàlculsVL!X14>0,1,"No"),"") ->  | BH14: =IF('II_Plantejar Ració'!$E15>0,IF(CàlculsVL!Y14>0,1,"No"),"") ->  | BI14: =IF('II_Plantejar Ració'!$E15>0,IF(CàlculsVL!Z14>0,1,"No"),"") ->  | BJ14: =IF('II_Plantejar Ració'!$E15>0,IF(CàlculsVL!AA14>0,1,"No"),"") ->  | BK14: =IF('II_Plantejar Ració'!$E15>0,IF(CàlculsVL!AB14>0,1,"No"),"") ->  | BL14: =IF('II_Plantejar Ració'!$E15>0,IF(CàlculsVL!AC14>0,1,"No"),"") ->  | BM14: =IF('II_Plantejar Ració'!$E15>0,IF(CàlculsVL!AD14>0,1,"No"),"") ->  | BN14: =IF('II_Plantejar Ració'!$E15>0,IF(CàlculsVL!AE14>0,1,"No"),"") ->  | BO14: =IF('II_Plantejar Ració'!$E15>0,IF(CàlculsVL!AF14>0,1,"No"),"") ->  | BP14: =IF('II_Plantejar Ració'!$E15>0,IF(CàlculsVL!AG14>0,1,"No"),"") ->  | BQ14: =IF('II_Plantejar Ració'!$E15>0,IF(CàlculsVL!AH14>0,1,"No"),"") ->  | BR14: =IF('II_Plantejar Ració'!$E15>0,IF(CàlculsVL!AI14>0,1,"No"),"") ->  | BS14: =IF('II_Plantejar Ració'!$E15>0,IF(CàlculsVL!AJ14>0,1,"No"),"") ->  | BT14: =IF('II_Plantejar Ració'!$E15>0,IF(CàlculsVL!AK14>0,1,"No"),"") ->  | BU14: =IF('II_Plantejar Ració'!$E15>0,IF(CàlculsVL!AL14>0,1,"No"),"") ->  | BV14: =IF('II_Plantejar Ració'!$E15>0,IF(CàlculsVL!AM14>0,1,"No"),"") ->  | BW14: 0 | BX14: 0 | BY14: 0 | BZ14: 0 | CA14: 0 | CB14: 0 | CC14: 0 | CD14: 0 | CE14: 0 | CF14: 0 | CG14: 0 | CH14: 0 | CI14: 0 | CJ14: 0 | CK14: 0 | CL14: 0 | CM14: 0 | CN14: 0 | CO14: 0 | CP14: 0 | CQ14: 0 | CR14: 0 | CS14: 0 | CT14: 0 | CU14: 0 | CV14: 0 | CW14: 0 | CX14: 0 | CY14: 0 | CZ14: 0 | DA14: 0 | DB14: 0 | DC14: 0 | DD14: 0 | DE14: 0
B15: =IF(OFFSET('0_Taula Concentrats'!$A$1,C15,0,1,1)=0,"",OFFSET('0_Taula Concentrats'!$A$1,C15,0,1,1)) ->  | C15: 1 | D15: =OFFSET('0_Taula Concentrats'!$A$1,$C15,$D$2,1,1) -> 0 | E15: =OFFSET('0_Taula Concentrats'!$A$1,$C15,$E$2,1,1) -> 0 | F15: =OFFSET('0_Taula Concentrats'!$A$1,$C15,$F$2,1,1) -> 0 | G15: =OFFSET('0_Taula Concentrats'!$A$1,$C15,$G$2,1,1) -> 0 | H15: =OFFSET('0_Taula Concentrats'!$A$1,$C15,$H$2,1,1) -> 0 | I15: =OFFSET('0_Taula Concentrats'!$A$1,$C15,$I$2,1,1) -> 0 | J15: =OFFSET('0_Taula Concentrats'!$A$1,$C15,$J$2,1,1) -> 0 | K15: =OFFSET('0_Taula Concentrats'!$A$1,$C15,$K$2,1,1) -> 0 | L15: =OFFSET('0_Taula Concentrats'!$A$1,$C15,$L$2,1,1) -> 0 | M15: =OFFSET('0_Taula Concentrats'!$A$1,$C15,$M$2,1,1) -> 0 | N15: =OFFSET('0_Taula Concentrats'!$A$1,$C15,$N$2,1,1) -> 0 | O15: =OFFSET('0_Taula Concentrats'!$A$1,$C15,$O$2,1,1) -> 0 | P15: =OFFSET('0_Taula Concentrats'!$A$1,$C15,$P$2,1,1) -> 0 | Q15: =OFFSET('0_Taula Concentrats'!$A$1,$C15,$Q$2,1,1) -> 0 | R15: =OFFSET('0_Taula Concentrats'!$A$1,$C15,$R$2,1,1) -> 0 | S15: =OFFSET('0_Taula Concentrats'!$A$1,$C15,$S$2,1,1) -> 0 | T15: =OFFSET('0_Taula Concentrats'!$A$1,$C15,$T$2,1,1) -> 0 | U15: =OFFSET('0_Taula Concentrats'!$A$1,$C15,$U$2,1,1) -> 0 | V15: =OFFSET('0_Taula Concentrats'!$A$1,$C15,$V$2,1,1) -> 0 | W15: =OFFSET('0_Taula Concentrats'!$A$1,$C15,$W$2,1,1) -> 0 | X15: =OFFSET('0_Taula Concentrats'!$A$1,$C15,$X$2,1,1) -> 0 | Y15: =OFFSET('0_Taula Concentrats'!$A$1,$C15,$Y$2,1,1) -> 0 | Z15: =OFFSET('0_Taula Concentrats'!$A$1,$C15,$Z$2,1,1) -> 0 | AA15: =OFFSET('0_Taula Concentrats'!$A$1,$C15,$AA$2,1,1) -> 0 | AB15: =OFFSET('0_Taula Concentrats'!$A$1,$C15,$AB$2,1,1) -> 0 | AC15: =OFFSET('0_Taula Concentrats'!$A$1,$C15,$AC$2,1,1) -> 0 | AD15: =OFFSET('0_Taula Concentrats'!$A$1,$C15,$AD$2,1,1) -> 0 | AE15: =OFFSET('0_Taula Concentrats'!$A$1,$C15,$AE$2,1,1) -> 0 | AF15: =OFFSET('0_Taula Concentrats'!$A$1,$C15,$AF$2,1,1) -> 0 | AG15: =OFFSET('0_Taula Concentrats'!$A$1,$C15,$AG$2,1,1) -> 0 | AH15: =OFFSET('0_Taula Concentrats'!$A$1,$C15,$AH$2,1,1) -> 0 | AI15: =OFFSET('0_Taula Concentrats'!$A$1,$C15,$AI$2,1,1) -> 0 | AJ15: =OFFSET('0_Taula Concentrats'!$A$1,$C15,$AJ$2,1,1) -> 0 | AK15: =OFFSET('0_Taula Concentrats'!$A$1,$C15,$AK$2,1,1) -> 0 | AL15: =OFFSET('0_Taula Concentrats'!$A$1,$C15,$AL$2,1,1) -> 0 | AM15: =OFFSET('0_Taula Concentrats'!$A$1,$C15,$AM$2,1,1) -> 0 | AN15: =IF('II_Plantejar Ració'!$E16>0,IF(CàlculsVL!E15>=0,1,"No"),"") ->  | AO15: =IF('II_Plantejar Ració'!$E16>0,IF(CàlculsVL!F15>=0,1,"No"),"") ->  | AP15: =IF('II_Plantejar Ració'!$E16>0,IF(CàlculsVL!G15>0,1,"No"),"") ->  | AQ15: =IF('II_Plantejar Ració'!$E16>0,IF(CàlculsVL!H15=0,"No",1),"") ->  | AR15: =IF('II_Plantejar Ració'!$E16>0,IF(CàlculsVL!I15>0,1,"No"),"") ->  | AS15: =IF('II_Plantejar Ració'!$E16>0,IF(CàlculsVL!J15>0,1,"No"),"") ->  | AT15: =IF('II_Plantejar Ració'!$E16>0,IF(CàlculsVL!K15>0,1,"No"),"") ->  | AU15: =IF('II_Plantejar Ració'!$E16>0,IF(CàlculsVL!L15>0,1,"No"),"") ->  | AV15: =IF('II_Plantejar Ració'!$E16>0,IF(CàlculsVL!M15>0,1,"No"),"") ->  | AW15: =IF('II_Plantejar Ració'!$E16>0,IF(CàlculsVL!N15>0,1,"No"),"") ->  | AX15: =IF('II_Plantejar Ració'!$E16>0,IF(CàlculsVL!O15>0,1,"No"),"") ->  | AY15: =IF('II_Plantejar Ració'!$E16>0,IF(CàlculsVL!P15>0,1,"No"),"") ->  | AZ15: =IF('II_Plantejar Ració'!$E16>0,IF(CàlculsVL!Q15>0,1,"No"),"") ->  | BA15: =IF('II_Plantejar Ració'!$E16>0,IF(CàlculsVL!R15>0,1,"No"),"") ->  | BB15: =IF('II_Plantejar Ració'!$E16>0,IF(CàlculsVL!S15>0,1,"No"),"") ->  | BC15: =IF('II_Plantejar Ració'!$E16>0,IF(CàlculsVL!T15>0,1,"No"),"") ->  | BD15: =IF('II_Plantejar Ració'!$E16>0,IF(CàlculsVL!U15>0,1,"No"),"") ->  | BE15: =IF('II_Plantejar Ració'!$E16>0,IF(CàlculsVL!V15>0,1,"No"),"") ->  | BF15: =IF('II_Plantejar Ració'!$E16>0,IF(CàlculsVL!W15>0,1,"No"),"") ->  | BG15: =IF('II_Plantejar Ració'!$E16>0,IF(CàlculsVL!X15>0,1,"No"),"") ->  | BH15: =IF('II_Plantejar Ració'!$E16>0,IF(CàlculsVL!Y15>0,1,"No"),"") ->  | BI15: =IF('II_Plantejar Ració'!$E16>0,IF(CàlculsVL!Z15>0,1,"No"),"") ->  | BJ15: =IF('II_Plantejar Ració'!$E16>0,IF(CàlculsVL!AA15>0,1,"No"),"") ->  | BK15: =IF('II_Plantejar Ració'!$E16>0,IF(CàlculsVL!AB15>0,1,"No"),"") ->  | BL15: =IF('II_Plantejar Ració'!$E16>0,IF(CàlculsVL!AC15>0,1,"No"),"") ->  | BM15: =IF('II_Plantejar Ració'!$E16>0,IF(CàlculsVL!AD15>0,1,"No"),"") ->  | BN15: =IF('II_Plantejar Ració'!$E16>0,IF(CàlculsVL!AE15>0,1,"No"),"") ->  | BO15: =IF('II_Plantejar Ració'!$E16>0,IF(CàlculsVL!AF15>0,1,"No"),"") ->  | BP15: =IF('II_Plantejar Ració'!$E16>0,IF(CàlculsVL!AG15>0,1,"No"),"") ->  | BQ15: =IF('II_Plantejar Ració'!$E16>0,IF(CàlculsVL!AH15>0,1,"No"),"") ->  | BR15: =IF('II_Plantejar Ració'!$E16>0,IF(CàlculsVL!AI15>0,1,"No"),"") ->  | BS15: =IF('II_Plantejar Ració'!$E16>0,IF(CàlculsVL!AJ15>0,1,"No"),"") ->  | BT15: =IF('II_Plantejar Ració'!$E16>0,IF(CàlculsVL!AK15>0,1,"No"),"") ->  | BU15: =IF('II_Plantejar Ració'!$E16>0,IF(CàlculsVL!AL15>0,1,"No"),"") ->  | BV15: =IF('II_Plantejar Ració'!$E16>0,IF(CàlculsVL!AM15>0,1,"No"),"") ->  | BW15: 0 | BX15: 0 | BY15: 0 | BZ15: 0 | CA15: 0 | CB15: 0 | CC15: 0 | CD15: 0 | CE15: 0 | CF15: 0 | CG15: 0 | CH15: 0 | CI15: 0 | CJ15: 0 | CK15: 0 | CL15: 0 | CM15: 0 | CN15: 0 | CO15: 0 | CP15: 0 | CQ15: 0 | CR15: 0 | CS15: 0 | CT15: 0 | CU15: 0 | CV15: 0 | CW15: 0 | CX15: 0 | CY15: 0 | CZ15: 0 | DA15: 0 | DB15: 0 | DC15: 0 | DD15: 0 | DE15: 0
B16: =IF(OFFSET('0_Taula Concentrats'!$A$1,C16,0,1,1)=0,"",OFFSET('0_Taula Concentrats'!$A$1,C16,0,1,1)) ->  | C16: 1 | D16: =OFFSET('0_Taula Concentrats'!$A$1,$C16,$D$2,1,1) -> 0 | E16: =OFFSET('0_Taula Concentrats'!$A$1,$C16,$E$2,1,1) -> 0 | F16: =OFFSET('0_Taula Concentrats'!$A$1,$C16,$F$2,1,1) -> 0 | G16: =OFFSET('0_Taula Concentrats'!$A$1,$C16,$G$2,1,1) -> 0 | H16: =OFFSET('0_Taula Concentrats'!$A$1,$C16,$H$2,1,1) -> 0 | I16: =OFFSET('0_Taula Concentrats'!$A$1,$C16,$I$2,1,1) -> 0 | J16: =OFFSET('0_Taula Concentrats'!$A$1,$C16,$J$2,1,1) -> 0 | K16: =OFFSET('0_Taula Concentrats'!$A$1,$C16,$K$2,1,1) -> 0 | L16: =OFFSET('0_Taula Concentrats'!$A$1,$C16,$L$2,1,1) -> 0 | M16: =OFFSET('0_Taula Concentrats'!$A$1,$C16,$M$2,1,1) -> 0 | N16: =OFFSET('0_Taula Concentrats'!$A$1,$C16,$N$2,1,1) -> 0 | O16: =OFFSET('0_Taula Concentrats'!$A$1,$C16,$O$2,1,1) -> 0 | P16: =OFFSET('0_Taula Concentrats'!$A$1,$C16,$P$2,1,1) -> 0 | Q16: =OFFSET('0_Taula Concentrats'!$A$1,$C16,$Q$2,1,1) -> 0 | R16: =OFFSET('0_Taula Concentrats'!$A$1,$C16,$R$2,1,1) -> 0 | S16: =OFFSET('0_Taula Concentrats'!$A$1,$C16,$S$2,1,1) -> 0 | T16: =OFFSET('0_Taula Concentrats'!$A$1,$C16,$T$2,1,1) -> 0 | U16: =OFFSET('0_Taula Concentrats'!$A$1,$C16,$U$2,1,1) -> 0 | V16: =OFFSET('0_Taula Concentrats'!$A$1,$C16,$V$2,1,1) -> 0 | W16: =OFFSET('0_Taula Concentrats'!$A$1,$C16,$W$2,1,1) -> 0 | X16: =OFFSET('0_Taula Concentrats'!$A$1,$C16,$X$2,1,1) -> 0 | Y16: =OFFSET('0_Taula Concentrats'!$A$1,$C16,$Y$2,1,1) -> 0 | Z16: =OFFSET('0_Taula Concentrats'!$A$1,$C16,$Z$2,1,1) -> 0 | AA16: =OFFSET('0_Taula Concentrats'!$A$1,$C16,$AA$2,1,1) -> 0 | AB16: =OFFSET('0_Taula Concentrats'!$A$1,$C16,$AB$2,1,1) -> 0 | AC16: =OFFSET('0_Taula Concentrats'!$A$1,$C16,$AC$2,1,1) -> 0 | AD16: =OFFSET('0_Taula Concentrats'!$A$1,$C16,$AD$2,1,1) -> 0 | AE16: =OFFSET('0_Taula Concentrats'!$A$1,$C16,$AE$2,1,1) -> 0 | AF16: =OFFSET('0_Taula Concentrats'!$A$1,$C16,$AF$2,1,1) -> 0 | AG16: =OFFSET('0_Taula Concentrats'!$A$1,$C16,$AG$2,1,1) -> 0 | AH16: =OFFSET('0_Taula Concentrats'!$A$1,$C16,$AH$2,1,1) -> 0 | AI16: =OFFSET('0_Taula Concentrats'!$A$1,$C16,$AI$2,1,1) -> 0 | AJ16: =OFFSET('0_Taula Concentrats'!$A$1,$C16,$AJ$2,1,1) -> 0 | AK16: =OFFSET('0_Taula Concentrats'!$A$1,$C16,$AK$2,1,1) -> 0 | AL16: =OFFSET('0_Taula Concentrats'!$A$1,$C16,$AL$2,1,1) -> 0 | AM16: =OFFSET('0_Taula Concentrats'!$A$1,$C16,$AM$2,1,1) -> 0 | AN16: =IF('II_Plantejar Ració'!$E17>0,IF(CàlculsVL!E16>=0,1,"No"),"") ->  | AO16: =IF('II_Plantejar Ració'!$E17>0,IF(CàlculsVL!F16>=0,1,"No"),"") ->  | AP16: =IF('II_Plantejar Ració'!$E17>0,IF(CàlculsVL!G16>0,1,"No"),"") ->  | AQ16: =IF('II_Plantejar Ració'!$E17>0,IF(CàlculsVL!H16=0,"No",1),"") ->  | AR16: =IF('II_Plantejar Ració'!$E17>0,IF(CàlculsVL!I16>0,1,"No"),"") ->  | AS16: =IF('II_Plantejar Ració'!$E17>0,IF(CàlculsVL!J16>0,1,"No"),"") ->  | AT16: =IF('II_Plantejar Ració'!$E17>0,IF(CàlculsVL!K16>0,1,"No"),"") ->  | AU16: =IF('II_Plantejar Ració'!$E17>0,IF(CàlculsVL!L16>0,1,"No"),"") ->  | AV16: =IF('II_Plantejar Ració'!$E17>0,IF(CàlculsVL!M16>0,1,"No"),"") ->  | AW16: =IF('II_Plantejar Ració'!$E17>0,IF(CàlculsVL!N16>0,1,"No"),"") ->  | AX16: =IF('II_Plantejar Ració'!$E17>0,IF(CàlculsVL!O16>0,1,"No"),"") ->  | AY16: =IF('II_Plantejar Ració'!$E17>0,IF(CàlculsVL!P16>0,1,"No"),"") ->  | AZ16: =IF('II_Plantejar Ració'!$E17>0,IF(CàlculsVL!Q16>0,1,"No"),"") ->  | BA16: =IF('II_Plantejar Ració'!$E17>0,IF(CàlculsVL!R16>0,1,"No"),"") ->  | BB16: =IF('II_Plantejar Ració'!$E17>0,IF(CàlculsVL!S16>0,1,"No"),"") ->  | BC16: =IF('II_Plantejar Ració'!$E17>0,IF(CàlculsVL!T16>0,1,"No"),"") ->  | BD16: =IF('II_Plantejar Ració'!$E17>0,IF(CàlculsVL!U16>0,1,"No"),"") ->  | BE16: =IF('II_Plantejar Ració'!$E17>0,IF(CàlculsVL!V16>0,1,"No"),"") ->  | BF16: =IF('II_Plantejar Ració'!$E17>0,IF(CàlculsVL!W16>0,1,"No"),"") ->  | BG16: =IF('II_Plantejar Ració'!$E17>0,IF(CàlculsVL!X16>0,1,"No"),"") ->  | BH16: =IF('II_Plantejar Ració'!$E17>0,IF(CàlculsVL!Y16>0,1,"No"),"") ->  | BI16: =IF('II_Plantejar Ració'!$E17>0,IF(CàlculsVL!Z16>0,1,"No"),"") ->  | BJ16: =IF('II_Plantejar Ració'!$E17>0,IF(CàlculsVL!AA16>0,1,"No"),"") ->  | BK16: =IF('II_Plantejar Ració'!$E17>0,IF(CàlculsVL!AB16>0,1,"No"),"") ->  | BL16: =IF('II_Plantejar Ració'!$E17>0,IF(CàlculsVL!AC16>0,1,"No"),"") ->  | BM16: =IF('II_Plantejar Ració'!$E17>0,IF(CàlculsVL!AD16>0,1,"No"),"") ->  | BN16: =IF('II_Plantejar Ració'!$E17>0,IF(CàlculsVL!AE16>0,1,"No"),"") ->  | BO16: =IF('II_Plantejar Ració'!$E17>0,IF(CàlculsVL!AF16>0,1,"No"),"") ->  | BP16: =IF('II_Plantejar Ració'!$E17>0,IF(CàlculsVL!AG16>0,1,"No"),"") ->  | BQ16: =IF('II_Plantejar Ració'!$E17>0,IF(CàlculsVL!AH16>0,1,"No"),"") ->  | BR16: =IF('II_Plantejar Ració'!$E17>0,IF(CàlculsVL!AI16>0,1,"No"),"") ->  | BS16: =IF('II_Plantejar Ració'!$E17>0,IF(CàlculsVL!AJ16>0,1,"No"),"") ->  | BT16: =IF('II_Plantejar Ració'!$E17>0,IF(CàlculsVL!AK16>0,1,"No"),"") ->  | BU16: =IF('II_Plantejar Ració'!$E17>0,IF(CàlculsVL!AL16>0,1,"No"),"") ->  | BV16: =IF('II_Plantejar Ració'!$E17>0,IF(CàlculsVL!AM16>0,1,"No"),"") ->  | BW16: 0 | BX16: 0 | BY16: 0 | BZ16: 0 | CA16: 0 | CB16: 0 | CC16: 0 | CD16: 0 | CE16: 0 | CF16: 0 | CG16: 0 | CH16: 0 | CI16: 0 | CJ16: 0 | CK16: 0 | CL16: 0 | CM16: 0 | CN16: 0 | CO16: 0 | CP16: 0 | CQ16: 0 | CR16: 0 | CS16: 0 | CT16: 0 | CU16: 0 | CV16: 0 | CW16: 0 | CX16: 0 | CY16: 0 | CZ16: 0 | DA16: 0 | DB16: 0 | DC16: 0 | DD16: 0 | DE16: 0
B17: =IF(OFFSET('0_Taula Concentrats'!$A$1,C17,0,1,1)=0,"",OFFSET('0_Taula Concentrats'!$A$1,C17,0,1,1)) ->  | C17: 1 | D17: =OFFSET('0_Taula Concentrats'!$A$1,$C17,$D$2,1,1) -> 0 | E17: =OFFSET('0_Taula Concentrats'!$A$1,$C17,$E$2,1,1) -> 0 | F17: =OFFSET('0_Taula Concentrats'!$A$1,$C17,$F$2,1,1) -> 0 | G17: =OFFSET('0_Taula Concentrats'!$A$1,$C17,$G$2,1,1) -> 0 | H17: =OFFSET('0_Taula Concentrats'!$A$1,$C17,$H$2,1,1) -> 0 | I17: =OFFSET('0_Taula Concentrats'!$A$1,$C17,$I$2,1,1) -> 0 | J17: =OFFSET('0_Taula Concentrats'!$A$1,$C17,$J$2,1,1) -> 0 | K17: =OFFSET('0_Taula Concentrats'!$A$1,$C17,$K$2,1,1) -> 0 | L17: =OFFSET('0_Taula Concentrats'!$A$1,$C17,$L$2,1,1) -> 0 | M17: =OFFSET('0_Taula Concentrats'!$A$1,$C17,$M$2,1,1) -> 0 | N17: =OFFSET('0_Taula Concentrats'!$A$1,$C17,$N$2,1,1) -> 0 | O17: =OFFSET('0_Taula Concentrats'!$A$1,$C17,$O$2,1,1) -> 0 | P17: =OFFSET('0_Taula Concentrats'!$A$1,$C17,$P$2,1,1) -> 0 | Q17: =OFFSET('0_Taula Concentrats'!$A$1,$C17,$Q$2,1,1) -> 0 | R17: =OFFSET('0_Taula Concentrats'!$A$1,$C17,$R$2,1,1) -> 0 | S17: =OFFSET('0_Taula Concentrats'!$A$1,$C17,$S$2,1,1) -> 0 | T17: =OFFSET('0_Taula Concentrats'!$A$1,$C17,$T$2,1,1) -> 0 | U17: =OFFSET('0_Taula Concentrats'!$A$1,$C17,$U$2,1,1) -> 0 | V17: =OFFSET('0_Taula Concentrats'!$A$1,$C17,$V$2,1,1) -> 0 | W17: =OFFSET('0_Taula Concentrats'!$A$1,$C17,$W$2,1,1) -> 0 | X17: =OFFSET('0_Taula Concentrats'!$A$1,$C17,$X$2,1,1) -> 0 | Y17: =OFFSET('0_Taula Concentrats'!$A$1,$C17,$Y$2,1,1) -> 0 | Z17: =OFFSET('0_Taula Concentrats'!$A$1,$C17,$Z$2,1,1) -> 0 | AA17: =OFFSET('0_Taula Concentrats'!$A$1,$C17,$AA$2,1,1) -> 0 | AB17: =OFFSET('0_Taula Concentrats'!$A$1,$C17,$AB$2,1,1) -> 0 | AC17: =OFFSET('0_Taula Concentrats'!$A$1,$C17,$AC$2,1,1) -> 0 | AD17: =OFFSET('0_Taula Concentrats'!$A$1,$C17,$AD$2,1,1) -> 0 | AE17: =OFFSET('0_Taula Concentrats'!$A$1,$C17,$AE$2,1,1) -> 0 | AF17: =OFFSET('0_Taula Concentrats'!$A$1,$C17,$AF$2,1,1) -> 0 | AG17: =OFFSET('0_Taula Concentrats'!$A$1,$C17,$AG$2,1,1) -> 0 | AH17: =OFFSET('0_Taula Concentrats'!$A$1,$C17,$AH$2,1,1) -> 0 | AI17: =OFFSET('0_Taula Concentrats'!$A$1,$C17,$AI$2,1,1) -> 0 | AJ17: =OFFSET('0_Taula Concentrats'!$A$1,$C17,$AJ$2,1,1) -> 0 | AK17: =OFFSET('0_Taula Concentrats'!$A$1,$C17,$AK$2,1,1) -> 0 | AL17: =OFFSET('0_Taula Concentrats'!$A$1,$C17,$AL$2,1,1) -> 0 | AM17: =OFFSET('0_Taula Concentrats'!$A$1,$C17,$AM$2,1,1) -> 0 | AN17: =IF('II_Plantejar Ració'!$E18>0,IF(CàlculsVL!E17>=0,1,"No"),"") ->  | AO17: =IF('II_Plantejar Ració'!$E18>0,IF(CàlculsVL!F17>=0,1,"No"),"") ->  | AP17: =IF('II_Plantejar Ració'!$E18>0,IF(CàlculsVL!G17>0,1,"No"),"") ->  | AQ17: =IF('II_Plantejar Ració'!$E18>0,IF(CàlculsVL!H17=0,"No",1),"") ->  | AR17: =IF('II_Plantejar Ració'!$E18>0,IF(CàlculsVL!I17>0,1,"No"),"") ->  | AS17: =IF('II_Plantejar Ració'!$E18>0,IF(CàlculsVL!J17>0,1,"No"),"") ->  | AT17: =IF('II_Plantejar Ració'!$E18>0,IF(CàlculsVL!K17>0,1,"No"),"") ->  | AU17: =IF('II_Plantejar Ració'!$E18>0,IF(CàlculsVL!L17>0,1,"No"),"") ->  | AV17: =IF('II_Plantejar Ració'!$E18>0,IF(CàlculsVL!M17>0,1,"No"),"") ->  | AW17: =IF('II_Plantejar Ració'!$E18>0,IF(CàlculsVL!N17>0,1,"No"),"") ->  | AX17: =IF('II_Plantejar Ració'!$E18>0,IF(CàlculsVL!O17>0,1,"No"),"") ->  | AY17: =IF('II_Plantejar Ració'!$E18>0,IF(CàlculsVL!P17>0,1,"No"),"") ->  | AZ17: =IF('II_Plantejar Ració'!$E18>0,IF(CàlculsVL!Q17>0,1,"No"),"") ->  | BA17: =IF('II_Plantejar Ració'!$E18>0,IF(CàlculsVL!R17>0,1,"No"),"") ->  | BB17: =IF('II_Plantejar Ració'!$E18>0,IF(CàlculsVL!S17>0,1,"No"),"") ->  | BC17: =IF('II_Plantejar Ració'!$E18>0,IF(CàlculsVL!T17>0,1,"No"),"") ->  | BD17: =IF('II_Plantejar Ració'!$E18>0,IF(CàlculsVL!U17>0,1,"No"),"") ->  | BE17: =IF('II_Plantejar Ració'!$E18>0,IF(CàlculsVL!V17>0,1,"No"),"") ->  | BF17: =IF('II_Plantejar Ració'!$E18>0,IF(CàlculsVL!W17>0,1,"No"),"") ->  | BG17: =IF('II_Plantejar Ració'!$E18>0,IF(CàlculsVL!X17>0,1,"No"),"") ->  | BH17: =IF('II_Plantejar Ració'!$E18>0,IF(CàlculsVL!Y17>0,1,"No"),"") ->  | BI17: =IF('II_Plantejar Ració'!$E18>0,IF(CàlculsVL!Z17>0,1,"No"),"") ->  | BJ17: =IF('II_Plantejar Ració'!$E18>0,IF(CàlculsVL!AA17>0,1,"No"),"") ->  | BK17: =IF('II_Plantejar Ració'!$E18>0,IF(CàlculsVL!AB17>0,1,"No"),"") ->  | BL17: =IF('II_Plantejar Ració'!$E18>0,IF(CàlculsVL!AC17>0,1,"No"),"") ->  | BM17: =IF('II_Plantejar Ració'!$E18>0,IF(CàlculsVL!AD17>0,1,"No"),"") ->  | BN17: =IF('II_Plantejar Ració'!$E18>0,IF(CàlculsVL!AE17>0,1,"No"),"") ->  | BO17: =IF('II_Plantejar Ració'!$E18>0,IF(CàlculsVL!AF17>0,1,"No"),"") ->  | BP17: =IF('II_Plantejar Ració'!$E18>0,IF(CàlculsVL!AG17>0,1,"No"),"") ->  | BQ17: =IF('II_Plantejar Ració'!$E18>0,IF(CàlculsVL!AH17>0,1,"No"),"") ->  | BR17: =IF('II_Plantejar Ració'!$E18>0,IF(CàlculsVL!AI17>0,1,"No"),"") ->  | BS17: =IF('II_Plantejar Ració'!$E18>0,IF(CàlculsVL!AJ17>0,1,"No"),"") ->  | BT17: =IF('II_Plantejar Ració'!$E18>0,IF(CàlculsVL!AK17>0,1,"No"),"") ->  | BU17: =IF('II_Plantejar Ració'!$E18>0,IF(CàlculsVL!AL17>0,1,"No"),"") ->  | BV17: =IF('II_Plantejar Ració'!$E18>0,IF(CàlculsVL!AM17>0,1,"No"),"") ->  | BW17: 0 | BX17: 0 | BY17: 0 | BZ17: 0 | CA17: 0 | CB17: 0 | CC17: 0 | CD17: 0 | CE17: 0 | CF17: 0 | CG17: 0 | CH17: 0 | CI17: 0 | CJ17: 0 | CK17: 0 | CL17: 0 | CM17: 0 | CN17: 0 | CO17: 0 | CP17: 0 | CQ17: 0 | CR17: 0 | CS17: 0 | CT17: 0 | CU17: 0 | CV17: 0 | CW17: 0 | CX17: 0 | CY17: 0 | CZ17: 0 | DA17: 0 | DB17: 0 | DC17: 0 | DD17: 0 | DE17: 0
B18: =IF(OFFSET('0_Taula Concentrats'!$A$1,C18,0,1,1)=0,"",OFFSET('0_Taula Concentrats'!$A$1,C18,0,1,1)) ->  | C18: 1 | D18: =OFFSET('0_Taula Concentrats'!$A$1,$C18,$D$2,1,1) -> 0 | E18: =OFFSET('0_Taula Concentrats'!$A$1,$C18,$E$2,1,1) -> 0 | F18: =OFFSET('0_Taula Concentrats'!$A$1,$C18,$F$2,1,1) -> 0 | G18: =OFFSET('0_Taula Concentrats'!$A$1,$C18,$G$2,1,1) -> 0 | H18: =OFFSET('0_Taula Concentrats'!$A$1,$C18,$H$2,1,1) -> 0 | I18: =OFFSET('0_Taula Concentrats'!$A$1,$C18,$I$2,1,1) -> 0 | J18: =OFFSET('0_Taula Concentrats'!$A$1,$C18,$J$2,1,1) -> 0 | K18: =OFFSET('0_Taula Concentrats'!$A$1,$C18,$K$2,1,1) -> 0 | L18: =OFFSET('0_Taula Concentrats'!$A$1,$C18,$L$2,1,1) -> 0 | M18: =OFFSET('0_Taula Concentrats'!$A$1,$C18,$M$2,1,1) -> 0 | N18: =OFFSET('0_Taula Concentrats'!$A$1,$C18,$N$2,1,1) -> 0 | O18: =OFFSET('0_Taula Concentrats'!$A$1,$C18,$O$2,1,1) -> 0 | P18: =OFFSET('0_Taula Concentrats'!$A$1,$C18,$P$2,1,1) -> 0 | Q18: =OFFSET('0_Taula Concentrats'!$A$1,$C18,$Q$2,1,1) -> 0 | R18: =OFFSET('0_Taula Concentrats'!$A$1,$C18,$R$2,1,1) -> 0 | S18: =OFFSET('0_Taula Concentrats'!$A$1,$C18,$S$2,1,1) -> 0 | T18: =OFFSET('0_Taula Concentrats'!$A$1,$C18,$T$2,1,1) -> 0 | U18: =OFFSET('0_Taula Concentrats'!$A$1,$C18,$U$2,1,1) -> 0 | V18: =OFFSET('0_Taula Concentrats'!$A$1,$C18,$V$2,1,1) -> 0 | W18: =OFFSET('0_Taula Concentrats'!$A$1,$C18,$W$2,1,1) -> 0 | X18: =OFFSET('0_Taula Concentrats'!$A$1,$C18,$X$2,1,1) -> 0 | Y18: =OFFSET('0_Taula Concentrats'!$A$1,$C18,$Y$2,1,1) -> 0 | Z18: =OFFSET('0_Taula Concentrats'!$A$1,$C18,$Z$2,1,1) -> 0 | AA18: =OFFSET('0_Taula Concentrats'!$A$1,$C18,$AA$2,1,1) -> 0 | AB18: =OFFSET('0_Taula Concentrats'!$A$1,$C18,$AB$2,1,1) -> 0 | AC18: =OFFSET('0_Taula Concentrats'!$A$1,$C18,$AC$2,1,1) -> 0 | AD18: =OFFSET('0_Taula Concentrats'!$A$1,$C18,$AD$2,1,1) -> 0 | AE18: =OFFSET('0_Taula Concentrats'!$A$1,$C18,$AE$2,1,1) -> 0 | AF18: =OFFSET('0_Taula Concentrats'!$A$1,$C18,$AF$2,1,1) -> 0 | AG18: =OFFSET('0_Taula Concentrats'!$A$1,$C18,$AG$2,1,1) -> 0 | AH18: =OFFSET('0_Taula Concentrats'!$A$1,$C18,$AH$2,1,1) -> 0 | AI18: =OFFSET('0_Taula Concentrats'!$A$1,$C18,$AI$2,1,1) -> 0 | AJ18: =OFFSET('0_Taula Concentrats'!$A$1,$C18,$AJ$2,1,1) -> 0 | AK18: =OFFSET('0_Taula Concentrats'!$A$1,$C18,$AK$2,1,1) -> 0 | AL18: =OFFSET('0_Taula Concentrats'!$A$1,$C18,$AL$2,1,1) -> 0 | AM18: =OFFSET('0_Taula Concentrats'!$A$1,$C18,$AM$2,1,1) -> 0 | AN18: =IF('II_Plantejar Ració'!$E19>0,IF(CàlculsVL!E18>=0,1,"No"),"") ->  | AO18: =IF('II_Plantejar Ració'!$E19>0,IF(CàlculsVL!F18>=0,1,"No"),"") ->  | AP18: =IF('II_Plantejar Ració'!$E19>0,IF(CàlculsVL!G18>0,1,"No"),"") ->  | AQ18: =IF('II_Plantejar Ració'!$E19>0,IF(CàlculsVL!H18=0,"No",1),"") ->  | AR18: =IF('II_Plantejar Ració'!$E19>0,IF(CàlculsVL!I18>0,1,"No"),"") ->  | AS18: =IF('II_Plantejar Ració'!$E19>0,IF(CàlculsVL!J18>0,1,"No"),"") ->  | AT18: =IF('II_Plantejar Ració'!$E19>0,IF(CàlculsVL!K18>0,1,"No"),"") ->  | AU18: =IF('II_Plantejar Ració'!$E19>0,IF(CàlculsVL!L18>0,1,"No"),"") ->  | AV18: =IF('II_Plantejar Ració'!$E19>0,IF(CàlculsVL!M18>0,1,"No"),"") ->  | AW18: =IF('II_Plantejar Ració'!$E19>0,IF(CàlculsVL!N18>0,1,"No"),"") ->  | AX18: =IF('II_Plantejar Ració'!$E19>0,IF(CàlculsVL!O18>0,1,"No"),"") ->  | AY18: =IF('II_Plantejar Ració'!$E19>0,IF(CàlculsVL!P18>0,1,"No"),"") ->  | AZ18: =IF('II_Plantejar Ració'!$E19>0,IF(CàlculsVL!Q18>0,1,"No"),"") ->  | BA18: =IF('II_Plantejar Ració'!$E19>0,IF(CàlculsVL!R18>0,1,"No"),"") ->  | BB18: =IF('II_Plantejar Ració'!$E19>0,IF(CàlculsVL!S18>0,1,"No"),"") ->  | BC18: =IF('II_Plantejar Ració'!$E19>0,IF(CàlculsVL!T18>0,1,"No"),"") ->  | BD18: =IF('II_Plantejar Ració'!$E19>0,IF(CàlculsVL!U18>0,1,"No"),"") ->  | BE18: =IF('II_Plantejar Ració'!$E19>0,IF(CàlculsVL!V18>0,1,"No"),"") ->  | BF18: =IF('II_Plantejar Ració'!$E19>0,IF(CàlculsVL!W18>0,1,"No"),"") ->  | BG18: =IF('II_Plantejar Ració'!$E19>0,IF(CàlculsVL!X18>0,1,"No"),"") ->  | BH18: =IF('II_Plantejar Ració'!$E19>0,IF(CàlculsVL!Y18>0,1,"No"),"") ->  | BI18: =IF('II_Plantejar Ració'!$E19>0,IF(CàlculsVL!Z18>0,1,"No"),"") ->  | BJ18: =IF('II_Plantejar Ració'!$E19>0,IF(CàlculsVL!AA18>0,1,"No"),"") ->  | BK18: =IF('II_Plantejar Ració'!$E19>0,IF(CàlculsVL!AB18>0,1,"No"),"") ->  | BL18: =IF('II_Plantejar Ració'!$E19>0,IF(CàlculsVL!AC18>0,1,"No"),"") ->  | BM18: =IF('II_Plantejar Ració'!$E19>0,IF(CàlculsVL!AD18>0,1,"No"),"") ->  | BN18: =IF('II_Plantejar Ració'!$E19>0,IF(CàlculsVL!AE18>0,1,"No"),"") ->  | BO18: =IF('II_Plantejar Ració'!$E19>0,IF(CàlculsVL!AF18>0,1,"No"),"") ->  | BP18: =IF('II_Plantejar Ració'!$E19>0,IF(CàlculsVL!AG18>0,1,"No"),"") ->  | BQ18: =IF('II_Plantejar Ració'!$E19>0,IF(CàlculsVL!AH18>0,1,"No"),"") ->  | BR18: =IF('II_Plantejar Ració'!$E19>0,IF(CàlculsVL!AI18>0,1,"No"),"") ->  | BS18: =IF('II_Plantejar Ració'!$E19>0,IF(CàlculsVL!AJ18>0,1,"No"),"") ->  | BT18: =IF('II_Plantejar Ració'!$E19>0,IF(CàlculsVL!AK18>0,1,"No"),"") ->  | BU18: =IF('II_Plantejar Ració'!$E19>0,IF(CàlculsVL!AL18>0,1,"No"),"") ->  | BV18: =IF('II_Plantejar Ració'!$E19>0,IF(CàlculsVL!AM18>0,1,"No"),"") ->  | BW18: 0 | BX18: 0 | BY18: 0 | BZ18: 0 | CA18: 0 | CB18: 0 | CC18: 0 | CD18: 0 | CE18: 0 | CF18: 0 | CG18: 0 | CH18: 0 | CI18: 0 | CJ18: 0 | CK18: 0 | CL18: 0 | CM18: 0 | CN18: 0 | CO18: 0 | CP18: 0 | CQ18: 0 | CR18: 0 | CS18: 0 | CT18: 0 | CU18: 0 | CV18: 0 | CW18: 0 | CX18: 0 | CY18: 0 | CZ18: 0 | DA18: 0 | DB18: 0 | DC18: 0 | DD18: 0 | DE18: 0
B19: =IF(OFFSET('0_Taula Concentrats'!$A$1,C19,0,1,1)=0,"",OFFSET('0_Taula Concentrats'!$A$1,C19,0,1,1)) ->  | C19: 1 | D19: =OFFSET('0_Taula Concentrats'!$A$1,$C19,$D$2,1,1) -> 0 | E19: =OFFSET('0_Taula Concentrats'!$A$1,$C19,$E$2,1,1) -> 0 | F19: =OFFSET('0_Taula Concentrats'!$A$1,$C19,$F$2,1,1) -> 0 | G19: =OFFSET('0_Taula Concentrats'!$A$1,$C19,$G$2,1,1) -> 0 | H19: =OFFSET('0_Taula Concentrats'!$A$1,$C19,$H$2,1,1) -> 0 | I19: =OFFSET('0_Taula Concentrats'!$A$1,$C19,$I$2,1,1) -> 0 | J19: =OFFSET('0_Taula Concentrats'!$A$1,$C19,$J$2,1,1) -> 0 | K19: =OFFSET('0_Taula Concentrats'!$A$1,$C19,$K$2,1,1) -> 0 | L19: =OFFSET('0_Taula Concentrats'!$A$1,$C19,$L$2,1,1) -> 0 | M19: =OFFSET('0_Taula Concentrats'!$A$1,$C19,$M$2,1,1) -> 0 | N19: =OFFSET('0_Taula Concentrats'!$A$1,$C19,$N$2,1,1) -> 0 | O19: =OFFSET('0_Taula Concentrats'!$A$1,$C19,$O$2,1,1) -> 0 | P19: =OFFSET('0_Taula Concentrats'!$A$1,$C19,$P$2,1,1) -> 0 | Q19: =OFFSET('0_Taula Concentrats'!$A$1,$C19,$Q$2,1,1) -> 0 | R19: =OFFSET('0_Taula Concentrats'!$A$1,$C19,$R$2,1,1) -> 0 | S19: =OFFSET('0_Taula Concentrats'!$A$1,$C19,$S$2,1,1) -> 0 | T19: =OFFSET('0_Taula Concentrats'!$A$1,$C19,$T$2,1,1) -> 0 | U19: =OFFSET('0_Taula Concentrats'!$A$1,$C19,$U$2,1,1) -> 0 | V19: =OFFSET('0_Taula Concentrats'!$A$1,$C19,$V$2,1,1) -> 0 | W19: =OFFSET('0_Taula Concentrats'!$A$1,$C19,$W$2,1,1) -> 0 | X19: =OFFSET('0_Taula Concentrats'!$A$1,$C19,$X$2,1,1) -> 0 | Y19: =OFFSET('0_Taula Concentrats'!$A$1,$C19,$Y$2,1,1) -> 0 | Z19: =OFFSET('0_Taula Concentrats'!$A$1,$C19,$Z$2,1,1) -> 0 | AA19: =OFFSET('0_Taula Concentrats'!$A$1,$C19,$AA$2,1,1) -> 0 | AB19: =OFFSET('0_Taula Concentrats'!$A$1,$C19,$AB$2,1,1) -> 0 | AC19: =OFFSET('0_Taula Concentrats'!$A$1,$C19,$AC$2,1,1) -> 0 | AD19: =OFFSET('0_Taula Concentrats'!$A$1,$C19,$AD$2,1,1) -> 0 | AE19: =OFFSET('0_Taula Concentrats'!$A$1,$C19,$AE$2,1,1) -> 0 | AF19: =OFFSET('0_Taula Concentrats'!$A$1,$C19,$AF$2,1,1) -> 0 | AG19: =OFFSET('0_Taula Concentrats'!$A$1,$C19,$AG$2,1,1) -> 0 | AH19: =OFFSET('0_Taula Concentrats'!$A$1,$C19,$AH$2,1,1) -> 0 | AI19: =OFFSET('0_Taula Concentrats'!$A$1,$C19,$AI$2,1,1) -> 0 | AJ19: =OFFSET('0_Taula Concentrats'!$A$1,$C19,$AJ$2,1,1) -> 0 | AK19: =OFFSET('0_Taula Concentrats'!$A$1,$C19,$AK$2,1,1) -> 0 | AL19: =OFFSET('0_Taula Concentrats'!$A$1,$C19,$AL$2,1,1) -> 0 | AM19: =OFFSET('0_Taula Concentrats'!$A$1,$C19,$AM$2,1,1) -> 0 | AN19: =IF('II_Plantejar Ració'!$E20>0,IF(CàlculsVL!E19>=0,1,"No"),"") ->  | AO19: =IF('II_Plantejar Ració'!$E20>0,IF(CàlculsVL!F19>=0,1,"No"),"") ->  | AP19: =IF('II_Plantejar Ració'!$E20>0,IF(CàlculsVL!G19>0,1,"No"),"") ->  | AQ19: =IF('II_Plantejar Ració'!$E20>0,IF(CàlculsVL!H19=0,"No",1),"") ->  | AR19: =IF('II_Plantejar Ració'!$E20>0,IF(CàlculsVL!I19>0,1,"No"),"") ->  | AS19: =IF('II_Plantejar Ració'!$E20>0,IF(CàlculsVL!J19>0,1,"No"),"") ->  | AT19: =IF('II_Plantejar Ració'!$E20>0,IF(CàlculsVL!K19>0,1,"No"),"") ->  | AU19: =IF('II_Plantejar Ració'!$E20>0,IF(CàlculsVL!L19>0,1,"No"),"") ->  | AV19: =IF('II_Plantejar Ració'!$E20>0,IF(CàlculsVL!M19>0,1,"No"),"") ->  | AW19: =IF('II_Plantejar Ració'!$E20>0,IF(CàlculsVL!N19>0,1,"No"),"") ->  | AX19: =IF('II_Plantejar Ració'!$E20>0,IF(CàlculsVL!O19>0,1,"No"),"") ->  | AY19: =IF('II_Plantejar Ració'!$E20>0,IF(CàlculsVL!P19>0,1,"No"),"") ->  | AZ19: =IF('II_Plantejar Ració'!$E20>0,IF(CàlculsVL!Q19>0,1,"No"),"") ->  | BA19: =IF('II_Plantejar Ració'!$E20>0,IF(CàlculsVL!R19>0,1,"No"),"") ->  | BB19: =IF('II_Plantejar Ració'!$E20>0,IF(CàlculsVL!S19>0,1,"No"),"") ->  | BC19: =IF('II_Plantejar Ració'!$E20>0,IF(CàlculsVL!T19>0,1,"No"),"") ->  | BD19: =IF('II_Plantejar Ració'!$E20>0,IF(CàlculsVL!U19>0,1,"No"),"") ->  | BE19: =IF('II_Plantejar Ració'!$E20>0,IF(CàlculsVL!V19>0,1,"No"),"") ->  | BF19: =IF('II_Plantejar Ració'!$E20>0,IF(CàlculsVL!W19>0,1,"No"),"") ->  | BG19: =IF('II_Plantejar Ració'!$E20>0,IF(CàlculsVL!X19>0,1,"No"),"") ->  | BH19: =IF('II_Plantejar Ració'!$E20>0,IF(CàlculsVL!Y19>0,1,"No"),"") ->  | BI19: =IF('II_Plantejar Ració'!$E20>0,IF(CàlculsVL!Z19>0,1,"No"),"") ->  | BJ19: =IF('II_Plantejar Ració'!$E20>0,IF(CàlculsVL!AA19>0,1,"No"),"") ->  | BK19: =IF('II_Plantejar Ració'!$E20>0,IF(CàlculsVL!AB19>0,1,"No"),"") ->  | BL19: =IF('II_Plantejar Ració'!$E20>0,IF(CàlculsVL!AC19>0,1,"No"),"") ->  | BM19: =IF('II_Plantejar Ració'!$E20>0,IF(CàlculsVL!AD19>0,1,"No"),"") ->  | BN19: =IF('II_Plantejar Ració'!$E20>0,IF(CàlculsVL!AE19>0,1,"No"),"") ->  | BO19: =IF('II_Plantejar Ració'!$E20>0,IF(CàlculsVL!AF19>0,1,"No"),"") ->  | BP19: =IF('II_Plantejar Ració'!$E20>0,IF(CàlculsVL!AG19>0,1,"No"),"") ->  | BQ19: =IF('II_Plantejar Ració'!$E20>0,IF(CàlculsVL!AH19>0,1,"No"),"") ->  | BR19: =IF('II_Plantejar Ració'!$E20>0,IF(CàlculsVL!AI19>0,1,"No"),"") ->  | BS19: =IF('II_Plantejar Ració'!$E20>0,IF(CàlculsVL!AJ19>0,1,"No"),"") ->  | BT19: =IF('II_Plantejar Ració'!$E20>0,IF(CàlculsVL!AK19>0,1,"No"),"") ->  | BU19: =IF('II_Plantejar Ració'!$E20>0,IF(CàlculsVL!AL19>0,1,"No"),"") ->  | BV19: =IF('II_Plantejar Ració'!$E20>0,IF(CàlculsVL!AM19>0,1,"No"),"") ->  | BW19: 0 | BX19: 0 | BY19: 0 | BZ19: 0 | CA19: 0 | CB19: 0 | CC19: 0 | CD19: 0 | CE19: 0 | CF19: 0 | CG19: 0 | CH19: 0 | CI19: 0 | CJ19: 0 | CK19: 0 | CL19: 0 | CM19: 0 | CN19: 0 | CO19: 0 | CP19: 0 | CQ19: 0 | CR19: 0 | CS19: 0 | CT19: 0 | CU19: 0 | CV19: 0 | CW19: 0 | CX19: 0 | CY19: 0 | CZ19: 0 | DA19: 0 | DB19: 0 | DC19: 0 | DD19: 0 | DE19: 0
A20: MINERALS | B20: =IF(OFFSET('0_Taula Minerals-aa'!$A$1,C20,0,1,1)=0,"",OFFSET('0_Taula Minerals-aa'!$A$1,C20,0,1,1)) ->  | C20: 1 | D20: =OFFSET('0_Taula Minerals-aa'!$A$1,$C20,D2,1,1) -> 0 | E20: =OFFSET('0_Taula Minerals-aa'!$A$1,$C20,E2,1,1) -> 0 | F20: =OFFSET('0_Taula Minerals-aa'!$A$1,$C20,F2,1,1) -> 0 | G20: =OFFSET('0_Taula Minerals-aa'!$A$1,$C20,G2,1,1) -> 0 | H20: =OFFSET('0_Taula Minerals-aa'!$A$1,$C20,H2,1,1) -> 0 | I20: =OFFSET('0_Taula Minerals-aa'!$A$1,$C20,I2,1,1) -> 0 | J20: =OFFSET('0_Taula Minerals-aa'!$A$1,$C20,J2,1,1) -> 0 | K20: =OFFSET('0_Taula Minerals-aa'!$A$1,$C20,K2,1,1) -> 0 | L20: =OFFSET('0_Taula Minerals-aa'!$A$1,$C20,L$2,1,1) -> 0 | M20: =OFFSET('0_Taula Minerals-aa'!$A$1,$C20,M$2,1,1) -> 0 | N20: =OFFSET('0_Taula Minerals-aa'!$A$1,$C20,N$2,1,1) -> 0 | O20: =OFFSET('0_Taula Minerals-aa'!$A$1,$C20,O$2,1,1) -> 0 | P20: =OFFSET('0_Taula Minerals-aa'!$A$1,$C20,P$2,1,1) -> 0 | Q20: =OFFSET('0_Taula Minerals-aa'!$A$1,$C20,Q$2,1,1) -> 0 | R20: =OFFSET('0_Taula Minerals-aa'!$A$1,$C20,R$2,1,1) -> 0 | S20: =OFFSET('0_Taula Minerals-aa'!$A$1,$C20,S$2,1,1) -> 0 | T20: =OFFSET('0_Taula Minerals-aa'!$A$1,$C20,T$2,1,1) -> 0 | U20: =OFFSET('0_Taula Minerals-aa'!$A$1,$C20,U$2,1,1) -> 0 | V20: =OFFSET('0_Taula Minerals-aa'!$A$1,$C20,V$2,1,1) -> 0 | W20: =OFFSET('0_Taula Minerals-aa'!$A$1,$C20,W$2,1,1) -> 0 | X20: =OFFSET('0_Taula Minerals-aa'!$A$1,$C20,X$2,1,1) -> 0 | Y20: =OFFSET('0_Taula Minerals-aa'!$A$1,$C20,Y$2,1,1) -> 0 | Z20: =OFFSET('0_Taula Minerals-aa'!$A$1,$C20,Z$2,1,1) -> 0 | AA20: =OFFSET('0_Taula Minerals-aa'!$A$1,$C20,AA$2,1,1) -> 0 | AB20: =OFFSET('0_Taula Minerals-aa'!$A$1,$C20,AB$2,1,1) -> 0 | AC20: =OFFSET('0_Taula Minerals-aa'!$A$1,$C20,AC$2,1,1) -> 0 | AD20: =OFFSET('0_Taula Minerals-aa'!$A$1,$C20,AD$2,1,1) -> 0 | AE20: =OFFSET('0_Taula Minerals-aa'!$A$1,$C20,AE$2,1,1) -> 0 | AF20: =OFFSET('0_Taula Minerals-aa'!$A$1,$C20,AF$2,1,1) -> 0 | AG20: =OFFSET('0_Taula Minerals-aa'!$A$1,$C20,AG$2,1,1) -> 0 | AH20: =OFFSET('0_Taula Minerals-aa'!$A$1,$C20,AH$2,1,1) -> 0 | AI20: =OFFSET('0_Taula Minerals-aa'!$A$1,$C20,AI$2,1,1) -> 0 | AJ20: =OFFSET('0_Taula Minerals-aa'!$A$1,$C20,AJ$2,1,1) -> 0 | AK20: =OFFSET('0_Taula Minerals-aa'!$A$1,$C20,AK$2,1,1) -> 0 | AL20: =OFFSET('0_Taula Minerals-aa'!$A$1,$C20,AL$2,1,1) -> 0 | AM20: =OFFSET('0_Taula Minerals-aa'!$A$1,$C20,AM$2,1,1) -> 0 | AN20: =SUM(AN3:AN19) -> 7 | AO20: =SUM(AO3:AO19) -> 7 | AP20: =SUM(AP3:AP19) -> 7 | AQ20: =SUM(AQ3:AQ19) -> 7 | AR20: =SUM(AR3:AR19) -> 7 | AS20: 7 | AT20: 7 | AU20: 4 | AV20: 4 | AW20: 4 | AX20: 3 | AY20: 2 | AZ20: 4 | BA20: 5 | BB20: 5 | BC20: 5 | BD20: 0 | BE20: 4 | BF20: 4 | BG20: 5 | BH20: 4 | BI20: 7 | BJ20: 7 | BK20: 7 | BL20: 7 | BM20: 7 | BN20: 7 | BO20: 7 | BP20: 7 | BQ20: 7 | BR20: 4 | BS20: 7 | BT20: 4 | BU20: 6 | BV20: 6 | BW20: =SUM(BW3:BW19) -> 7 | BX20: =SUM(BX3:BX19) -> 7 | BY20: =SUM(BY3:BY19) -> 7 | BZ20: =SUM(BZ3:BZ19) -> 7 | CA20: 7 | CB20: 7 | CC20: =SUM(CC3:CC19) -> 7 | CD20: 7 | CE20: 7 | CF20: 7 | CG20: 7 | CH20: 7 | CI20: 7 | CJ20: 7 | CK20: 7 | CL20: 7 | CM20: 7 | CN20: 7 | CO20: 7 | CP20: 7 | CQ20: 7 | CR20: 7 | CS20: 7 | CT20: 7 | CU20: 7 | CV20: 7 | CW20: 7 | CX20: 7 | CY20: 7 | CZ20: 7 | DA20: 7 | DB20: 7 | DC20: 7 | DD20: 7 | DE20: =SUM(DE3:DE19) -> 7
B21: =IF(OFFSET('0_Taula Minerals-aa'!$A$1,C21,0,1,1)=0,"",OFFSET('0_Taula Minerals-aa'!$A$1,C21,0,1,1)) -> Fosfat bicàlcic | C21: 3 | D21: =OFFSET('0_Taula Minerals-aa'!$A$1,$C21,D2,1,1) -> 98.8 | E21: =OFFSET('0_Taula Minerals-aa'!$A$1,$C21,E2,1,1) -> 0 | F21: =OFFSET('0_Taula Minerals-aa'!$A$1,$C21,F2,1,1) -> 0 | G21: =OFFSET('0_Taula Minerals-aa'!$A$1,$C21,G2,1,1) -> 0 | H21: =OFFSET('0_Taula Minerals-aa'!$A$1,$C21,H2,1,1) -> 0 | I21: =OFFSET('0_Taula Minerals-aa'!$A$1,$C21,I2,1,1) -> 0 | J21: =OFFSET('0_Taula Minerals-aa'!$A$1,$C21,J2,1,1) -> 244 | K21: =OFFSET('0_Taula Minerals-aa'!$A$1,$C21,K2,1,1) -> 122.4 | L21: =OFFSET('0_Taula Minerals-aa'!$A$1,$C21,L$2,1,1) -> 5 | M21: =OFFSET('0_Taula Minerals-aa'!$A$1,$C21,M$2,1,1) -> 1.2 | N21: =OFFSET('0_Taula Minerals-aa'!$A$1,$C21,N$2,1,1) -> 0.8 | O21: =OFFSET('0_Taula Minerals-aa'!$A$1,$C21,O$2,1,1) -> 11 | P21: =OFFSET('0_Taula Minerals-aa'!$A$1,$C21,P$2,1,1) -> 0.4 | Q21: =OFFSET('0_Taula Minerals-aa'!$A$1,$C21,Q$2,1,1) -> 0 | R21: =OFFSET('0_Taula Minerals-aa'!$A$1,$C21,R$2,1,1) -> 15 | S21: =OFFSET('0_Taula Minerals-aa'!$A$1,$C21,S$2,1,1) -> 0 | T21: =OFFSET('0_Taula Minerals-aa'!$A$1,$C21,T$2,1,1) -> 0 | U21: =OFFSET('0_Taula Minerals-aa'!$A$1,$C21,U$2,1,1) -> 0 | V21: =OFFSET('0_Taula Minerals-aa'!$A$1,$C21,V$2,1,1) -> 0 | W21: =OFFSET('0_Taula Minerals-aa'!$A$1,$C21,W$2,1,1) -> 0 | X21: =OFFSET('0_Taula Minerals-aa'!$A$1,$C21,X$2,1,1) -> 0 | Y21: =OFFSET('0_Taula Minerals-aa'!$A$1,$C21,Y$2,1,1) -> 0 | Z21: =OFFSET('0_Taula Minerals-aa'!$A$1,$C21,Z$2,1,1) -> 0 | AA21: =OFFSET('0_Taula Minerals-aa'!$A$1,$C21,AA$2,1,1) -> 0 | AB21: =OFFSET('0_Taula Minerals-aa'!$A$1,$C21,AB$2,1,1) -> 0 | AC21: =OFFSET('0_Taula Minerals-aa'!$A$1,$C21,AC$2,1,1) -> 0 | AD21: =OFFSET('0_Taula Minerals-aa'!$A$1,$C21,AD$2,1,1) -> 0 | AE21: =OFFSET('0_Taula Minerals-aa'!$A$1,$C21,AE$2,1,1) -> 0 | AF21: =OFFSET('0_Taula Minerals-aa'!$A$1,$C21,AF$2,1,1) -> 0 | AG21: =OFFSET('0_Taula Minerals-aa'!$A$1,$C21,AG$2,1,1) -> 0 | AH21: =OFFSET('0_Taula Minerals-aa'!$A$1,$C21,AH$2,1,1) -> 0 | AI21: =OFFSET('0_Taula Minerals-aa'!$A$1,$C21,AI$2,1,1) -> 0 | AJ21: =OFFSET('0_Taula Minerals-aa'!$A$1,$C21,AJ$2,1,1) -> 836 | AK21: =OFFSET('0_Taula Minerals-aa'!$A$1,$C21,AK$2,1,1) -> 0 | AL21: =OFFSET('0_Taula Minerals-aa'!$A$1,$C21,AL$2,1,1) -> 0 | AM21: =OFFSET('0_Taula Minerals-aa'!$A$1,$C21,AM$2,1,1) -> 0 | AN21: =IF(AN20/BW20=1,"",AN2) ->  | AU21: =IF(AU20/CD20=1,"", AU2) -> Mg | AV21: K | AW21: Na | AX21: S | AY21: Cl | AZ21: Co | BA21: Cu | BB21: Mn | BC21: Zn | BD21: Iode | BE21: Se | BF21: Vit A | BG21: Vit D | BH21: Vit E | BR21: Lignina | BT21: Mo | BU21: =IF(BU20/DD20=1,"", BU2) -> DT_N | BV21: =IF(BV20/DE20=1,"", BV2) -> MOF
B22: =IF(OFFSET('0_Taula Minerals-aa'!$A$1,C22,0,1,1)=0,"",OFFSET('0_Taula Minerals-aa'!$A$1,C22,0,1,1)) -> Bicarbonat sòdic | C22: 9 | D22: =OFFSET('0_Taula Minerals-aa'!$A$1,$C22,D2,1,1) -> 99.7 | E22: =OFFSET('0_Taula Minerals-aa'!$A$1,$C22,E2,1,1) -> 0 | F22: =OFFSET('0_Taula Minerals-aa'!$A$1,$C22,F2,1,1) -> 0 | G22: =OFFSET('0_Taula Minerals-aa'!$A$1,$C22,G2,1,1) -> 0 | H22: =OFFSET('0_Taula Minerals-aa'!$A$1,$C22,H2,1,1) -> 0 | I22: =OFFSET('0_Taula Minerals-aa'!$A$1,$C22,I2,1,1) -> 0 | J22: =OFFSET('0_Taula Minerals-aa'!$A$1,$C22,J2,1,1) -> 0 | K22: =OFFSET('0_Taula Minerals-aa'!$A$1,$C22,K2,1,1) -> 0 | L22: =OFFSET('0_Taula Minerals-aa'!$A$1,$C22,L$2,1,1) -> 0 | M22: =OFFSET('0_Taula Minerals-aa'!$A$1,$C22,M$2,1,1) -> 0 | N22: =OFFSET('0_Taula Minerals-aa'!$A$1,$C22,N$2,1,1) -> 270 | O22: =OFFSET('0_Taula Minerals-aa'!$A$1,$C22,O$2,1,1) -> 0 | P22: =OFFSET('0_Taula Minerals-aa'!$A$1,$C22,P$2,1,1) -> 0 | Q22: =OFFSET('0_Taula Minerals-aa'!$A$1,$C22,Q$2,1,1) -> 0 | R22: =OFFSET('0_Taula Minerals-aa'!$A$1,$C22,R$2,1,1) -> 0 | S22: =OFFSET('0_Taula Minerals-aa'!$A$1,$C22,S$2,1,1) -> 0 | T22: =OFFSET('0_Taula Minerals-aa'!$A$1,$C22,T$2,1,1) -> 0 | U22: =OFFSET('0_Taula Minerals-aa'!$A$1,$C22,U$2,1,1) -> 0 | V22: =OFFSET('0_Taula Minerals-aa'!$A$1,$C22,V$2,1,1) -> 0 | W22: =OFFSET('0_Taula Minerals-aa'!$A$1,$C22,W$2,1,1) -> 0 | X22: =OFFSET('0_Taula Minerals-aa'!$A$1,$C22,X$2,1,1) -> 0 | Y22: =OFFSET('0_Taula Minerals-aa'!$A$1,$C22,Y$2,1,1) -> 0 | Z22: =OFFSET('0_Taula Minerals-aa'!$A$1,$C22,Z$2,1,1) -> 0 | AA22: =OFFSET('0_Taula Minerals-aa'!$A$1,$C22,AA$2,1,1) -> 0 | AB22: =OFFSET('0_Taula Minerals-aa'!$A$1,$C22,AB$2,1,1) -> 0 | AC22: =OFFSET('0_Taula Minerals-aa'!$A$1,$C22,AC$2,1,1) -> 0 | AD22: =OFFSET('0_Taula Minerals-aa'!$A$1,$C22,AD$2,1,1) -> 0 | AE22: =OFFSET('0_Taula Minerals-aa'!$A$1,$C22,AE$2,1,1) -> 0 | AF22: =OFFSET('0_Taula Minerals-aa'!$A$1,$C22,AF$2,1,1) -> 0 | AG22: =OFFSET('0_Taula Minerals-aa'!$A$1,$C22,AG$2,1,1) -> 0 | AH22: =OFFSET('0_Taula Minerals-aa'!$A$1,$C22,AH$2,1,1) -> 0 | AI22: =OFFSET('0_Taula Minerals-aa'!$A$1,$C22,AI$2,1,1) -> 0 | AJ22: =OFFSET('0_Taula Minerals-aa'!$A$1,$C22,AJ$2,1,1) -> 0 | AK22: =OFFSET('0_Taula Minerals-aa'!$A$1,$C22,AK$2,1,1) -> 0 | AL22: =OFFSET('0_Taula Minerals-aa'!$A$1,$C22,AL$2,1,1) -> 0 | AM22: =OFFSET('0_Taula Minerals-aa'!$A$1,$C22,AM$2,1,1) -> 0
B23: =IF(OFFSET('0_Taula Minerals-aa'!$A$1,C23,0,1,1)=0,"",OFFSET('0_Taula Minerals-aa'!$A$1,C23,0,1,1)) ->  | C23: 1 | D23: =OFFSET('0_Taula Minerals-aa'!$A$1,$C23,D2,1,1) -> 0 | E23: =OFFSET('0_Taula Minerals-aa'!$A$1,$C23,E2,1,1) -> 0 | F23: =OFFSET('0_Taula Minerals-aa'!$A$1,$C23,F2,1,1) -> 0 | G23: =OFFSET('0_Taula Minerals-aa'!$A$1,$C23,G2,1,1) -> 0 | H23: =OFFSET('0_Taula Minerals-aa'!$A$1,$C23,H2,1,1) -> 0 | I23: =OFFSET('0_Taula Minerals-aa'!$A$1,$C23,I2,1,1) -> 0 | J23: =OFFSET('0_Taula Minerals-aa'!$A$1,$C23,J2,1,1) -> 0 | K23: =OFFSET('0_Taula Minerals-aa'!$A$1,$C23,K2,1,1) -> 0 | L23: =OFFSET('0_Taula Minerals-aa'!$A$1,$C23,L$2,1,1) -> 0 | M23: =OFFSET('0_Taula Minerals-aa'!$A$1,$C23,M$2,1,1) -> 0 | N23: =OFFSET('0_Taula Minerals-aa'!$A$1,$C23,N$2,1,1) -> 0 | O23: =OFFSET('0_Taula Minerals-aa'!$A$1,$C23,O$2,1,1) -> 0 | P23: =OFFSET('0_Taula Minerals-aa'!$A$1,$C23,P$2,1,1) -> 0 | Q23: =OFFSET('0_Taula Minerals-aa'!$A$1,$C23,Q$2,1,1) -> 0 | R23: =OFFSET('0_Taula Minerals-aa'!$A$1,$C23,R$2,1,1) -> 0 | S23: =OFFSET('0_Taula Minerals-aa'!$A$1,$C23,S$2,1,1) -> 0 | T23: =OFFSET('0_Taula Minerals-aa'!$A$1,$C23,T$2,1,1) -> 0 | U23: =OFFSET('0_Taula Minerals-aa'!$A$1,$C23,U$2,1,1) -> 0 | V23: =OFFSET('0_Taula Minerals-aa'!$A$1,$C23,V$2,1,1) -> 0 | W23: =OFFSET('0_Taula Minerals-aa'!$A$1,$C23,W$2,1,1) -> 0 | X23: =OFFSET('0_Taula Minerals-aa'!$A$1,$C23,X$2,1,1) -> 0 | Y23: =OFFSET('0_Taula Minerals-aa'!$A$1,$C23,Y$2,1,1) -> 0 | Z23: =OFFSET('0_Taula Minerals-aa'!$A$1,$C23,Z$2,1,1) -> 0 | AA23: =OFFSET('0_Taula Minerals-aa'!$A$1,$C23,AA$2,1,1) -> 0 | AB23: =OFFSET('0_Taula Minerals-aa'!$A$1,$C23,AB$2,1,1) -> 0 | AC23: =OFFSET('0_Taula Minerals-aa'!$A$1,$C23,AC$2,1,1) -> 0 | AD23: =OFFSET('0_Taula Minerals-aa'!$A$1,$C23,AD$2,1,1) -> 0 | AE23: =OFFSET('0_Taula Minerals-aa'!$A$1,$C23,AE$2,1,1) -> 0 | AF23: =OFFSET('0_Taula Minerals-aa'!$A$1,$C23,AF$2,1,1) -> 0 | AG23: =OFFSET('0_Taula Minerals-aa'!$A$1,$C23,AG$2,1,1) -> 0 | AH23: =OFFSET('0_Taula Minerals-aa'!$A$1,$C23,AH$2,1,1) -> 0 | AI23: =OFFSET('0_Taula Minerals-aa'!$A$1,$C23,AI$2,1,1) -> 0 | AJ23: =OFFSET('0_Taula Minerals-aa'!$A$1,$C23,AJ$2,1,1) -> 0 | AK23: =OFFSET('0_Taula Minerals-aa'!$A$1,$C23,AK$2,1,1) -> 0 | AL23: =OFFSET('0_Taula Minerals-aa'!$A$1,$C23,AL$2,1,1) -> 0 | AM23: =OFFSET('0_Taula Minerals-aa'!$A$1,$C23,AM$2,1,1) -> 0
B24: =IF(OFFSET('0_Taula Minerals-aa'!$A$1,C24,0,1,1)=0,"",OFFSET('0_Taula Minerals-aa'!$A$1,C24,0,1,1)) ->  | C24: 1 | D24: =OFFSET('0_Taula Minerals-aa'!$A$1,$C24,D2,1,1) -> 0 | E24: =OFFSET('0_Taula Minerals-aa'!$A$1,$C24,E2,1,1) -> 0 | F24: =OFFSET('0_Taula Minerals-aa'!$A$1,$C24,F2,1,1) -> 0 | G24: =OFFSET('0_Taula Minerals-aa'!$A$1,$C24,G2,1,1) -> 0 | H24: =OFFSET('0_Taula Minerals-aa'!$A$1,$C24,H2,1,1) -> 0 | I24: =OFFSET('0_Taula Minerals-aa'!$A$1,$C24,I2,1,1) -> 0 | J24: =OFFSET('0_Taula Minerals-aa'!$A$1,$C24,J2,1,1) -> 0 | K24: =OFFSET('0_Taula Minerals-aa'!$A$1,$C24,K2,1,1) -> 0 | L24: =OFFSET('0_Taula Minerals-aa'!$A$1,$C24,L$2,1,1) -> 0 | M24: =OFFSET('0_Taula Minerals-aa'!$A$1,$C24,M$2,1,1) -> 0 | N24: =OFFSET('0_Taula Minerals-aa'!$A$1,$C24,N$2,1,1) -> 0 | O24: =OFFSET('0_Taula Minerals-aa'!$A$1,$C24,O$2,1,1) -> 0 | P24: =OFFSET('0_Taula Minerals-aa'!$A$1,$C24,P$2,1,1) -> 0 | Q24: =OFFSET('0_Taula Minerals-aa'!$A$1,$C24,Q$2,1,1) -> 0 | R24: =OFFSET('0_Taula Minerals-aa'!$A$1,$C24,R$2,1,1) -> 0 | S24: =OFFSET('0_Taula Minerals-aa'!$A$1,$C24,S$2,1,1) -> 0 | T24: =OFFSET('0_Taula Minerals-aa'!$A$1,$C24,T$2,1,1) -> 0 | U24: =OFFSET('0_Taula Minerals-aa'!$A$1,$C24,U$2,1,1) -> 0 | V24: =OFFSET('0_Taula Minerals-aa'!$A$1,$C24,V$2,1,1) -> 0 | W24: =OFFSET('0_Taula Minerals-aa'!$A$1,$C24,W$2,1,1) -> 0 | X24: =OFFSET('0_Taula Minerals-aa'!$A$1,$C24,X$2,1,1) -> 0 | Y24: =OFFSET('0_Taula Minerals-aa'!$A$1,$C24,Y$2,1,1) -> 0 | Z24: =OFFSET('0_Taula Minerals-aa'!$A$1,$C24,Z$2,1,1) -> 0 | AA24: =OFFSET('0_Taula Minerals-aa'!$A$1,$C24,AA$2,1,1) -> 0 | AB24: =OFFSET('0_Taula Minerals-aa'!$A$1,$C24,AB$2,1,1) -> 0 | AC24: =OFFSET('0_Taula Minerals-aa'!$A$1,$C24,AC$2,1,1) -> 0 | AD24: =OFFSET('0_Taula Minerals-aa'!$A$1,$C24,AD$2,1,1) -> 0 | AE24: =OFFSET('0_Taula Minerals-aa'!$A$1,$C24,AE$2,1,1) -> 0 | AF24: =OFFSET('0_Taula Minerals-aa'!$A$1,$C24,AF$2,1,1) -> 0 | AG24: =OFFSET('0_Taula Minerals-aa'!$A$1,$C24,AG$2,1,1) -> 0 | AH24: =OFFSET('0_Taula Minerals-aa'!$A$1,$C24,AH$2,1,1) -> 0 | AI24: =OFFSET('0_Taula Minerals-aa'!$A$1,$C24,AI$2,1,1) -> 0 | AJ24: =OFFSET('0_Taula Minerals-aa'!$A$1,$C24,AJ$2,1,1) -> 0 | AK24: =OFFSET('0_Taula Minerals-aa'!$A$1,$C24,AK$2,1,1) -> 0 | AL24: =OFFSET('0_Taula Minerals-aa'!$A$1,$C24,AL$2,1,1) -> 0 | AM24: =OFFSET('0_Taula Minerals-aa'!$A$1,$C24,AM$2,1,1) -> 0
B25: =IF(OFFSET('0_Taula Minerals-aa'!$A$1,C25,0,1,1)=0,"",OFFSET('0_Taula Minerals-aa'!$A$1,C25,0,1,1)) ->  | C25: 1 | D25: =OFFSET('0_Taula Minerals-aa'!$A$1,$C25,D2,1,1) -> 0 | E25: =OFFSET('0_Taula Minerals-aa'!$A$1,$C25,E2,1,1) -> 0 | F25: =OFFSET('0_Taula Minerals-aa'!$A$1,$C25,F2,1,1) -> 0 | G25: =OFFSET('0_Taula Minerals-aa'!$A$1,$C25,G2,1,1) -> 0 | H25: =OFFSET('0_Taula Minerals-aa'!$A$1,$C25,H2,1,1) -> 0 | I25: =OFFSET('0_Taula Minerals-aa'!$A$1,$C25,I2,1,1) -> 0 | J25: =OFFSET('0_Taula Minerals-aa'!$A$1,$C25,J2,1,1) -> 0 | K25: =OFFSET('0_Taula Minerals-aa'!$A$1,$C25,K2,1,1) -> 0 | L25: =OFFSET('0_Taula Minerals-aa'!$A$1,$C25,L$2,1,1) -> 0 | M25: =OFFSET('0_Taula Minerals-aa'!$A$1,$C25,M$2,1,1) -> 0 | N25: =OFFSET('0_Taula Minerals-aa'!$A$1,$C25,N$2,1,1) -> 0 | O25: =OFFSET('0_Taula Minerals-aa'!$A$1,$C25,O$2,1,1) -> 0 | P25: =OFFSET('0_Taula Minerals-aa'!$A$1,$C25,P$2,1,1) -> 0 | Q25: =OFFSET('0_Taula Minerals-aa'!$A$1,$C25,Q$2,1,1) -> 0 | R25: =OFFSET('0_Taula Minerals-aa'!$A$1,$C25,R$2,1,1) -> 0 | S25: =OFFSET('0_Taula Minerals-aa'!$A$1,$C25,S$2,1,1) -> 0 | T25: =OFFSET('0_Taula Minerals-aa'!$A$1,$C25,T$2,1,1) -> 0 | U25: =OFFSET('0_Taula Minerals-aa'!$A$1,$C25,U$2,1,1) -> 0 | V25: =OFFSET('0_Taula Minerals-aa'!$A$1,$C25,V$2,1,1) -> 0 | W25: =OFFSET('0_Taula Minerals-aa'!$A$1,$C25,W$2,1,1) -> 0 | X25: =OFFSET('0_Taula Minerals-aa'!$A$1,$C25,X$2,1,1) -> 0 | Y25: =OFFSET('0_Taula Minerals-aa'!$A$1,$C25,Y$2,1,1) -> 0 | Z25: =OFFSET('0_Taula Minerals-aa'!$A$1,$C25,Z$2,1,1) -> 0 | AA25: =OFFSET('0_Taula Minerals-aa'!$A$1,$C25,AA$2,1,1) -> 0 | AB25: =OFFSET('0_Taula Minerals-aa'!$A$1,$C25,AB$2,1,1) -> 0 | AC25: =OFFSET('0_Taula Minerals-aa'!$A$1,$C25,AC$2,1,1) -> 0 | AD25: =OFFSET('0_Taula Minerals-aa'!$A$1,$C25,AD$2,1,1) -> 0 | AE25: =OFFSET('0_Taula Minerals-aa'!$A$1,$C25,AE$2,1,1) -> 0 | AF25: =OFFSET('0_Taula Minerals-aa'!$A$1,$C25,AF$2,1,1) -> 0 | AG25: =OFFSET('0_Taula Minerals-aa'!$A$1,$C25,AG$2,1,1) -> 0 | AH25: =OFFSET('0_Taula Minerals-aa'!$A$1,$C25,AH$2,1,1) -> 0 | AI25: =OFFSET('0_Taula Minerals-aa'!$A$1,$C25,AI$2,1,1) -> 0 | AJ25: =OFFSET('0_Taula Minerals-aa'!$A$1,$C25,AJ$2,1,1) -> 0 | AK25: =OFFSET('0_Taula Minerals-aa'!$A$1,$C25,AK$2,1,1) -> 0 | AL25: =OFFSET('0_Taula Minerals-aa'!$A$1,$C25,AL$2,1,1) -> 0 | AM25: =OFFSET('0_Taula Minerals-aa'!$A$1,$C25,AM$2,1,1) -> 0
E26: =SUMPRODUCT(E3:E25,'II_Plantejar Ració'!$E$4:$E$26) -> 13.68831955 | F26: =SUMPRODUCT(F3:F25,'II_Plantejar Ració'!$E$4:$E$26) -> 17.69719212 | G26: =SUMPRODUCT(G3:G25,'II_Plantejar Ració'!$E$4:$E$26) -> 1417.173955 | H26: =SUMPRODUCT(H3:H25,'II_Plantejar Ració'!$E$4:$E$26) -> 61.93349938 | I26: =SUMPRODUCT(I3:I25,'II_Plantejar Ració'!$E$4:$E$26)/SUM('II_Plantejar Ració'!$E$4:$E$26) -> 2.108149425 | J26: =SUMPRODUCT(J3:J25,'II_Plantejar Ració'!$E$4:$E$26) -> 40.28096426 | K26: =SUMPRODUCT(K3:K25,'II_Plantejar Ració'!$E$4:$E$26) -> 39.36020829 | L26: =SUMPRODUCT(L3:L25,'II_Plantejar Ració'!$E$4:$E$26) -> 18.496983 | M26: =SUMPRODUCT(M3:M25,'II_Plantejar Ració'!$E$4:$E$26) -> 224.1864031 | N26: =SUMPRODUCT(N3:N25,'II_Plantejar Ració'!$E$4:$E$26) -> 85.54574144 | O26: =SUMPRODUCT(O3:O25,'II_Plantejar Ració'!$E$4:$E$26) -> 11.46262301 | P26: =SUMPRODUCT(P3:P25,'II_Plantejar Ració'!$E$4:$E$26) -> 0.7370611598 | Q26: =SUMPRODUCT(Q3:Q25,'II_Plantejar Ració'!$E$4:$E$26) -> 0.6222449083 | R26: =SUMPRODUCT(R3:R25,'II_Plantejar Ració'!$E$4:$E$26) -> 84.56380743 | S26: =SUMPRODUCT(S3:S25,'II_Plantejar Ració'!$E$4:$E$26) -> 727.5190876 | T26: =SUMPRODUCT(T3:T25,'II_Plantejar Ració'!$E$4:$E$26) -> 291.2259952 | U26: =SUMPRODUCT(U3:U25,'II_Plantejar Ració'!$E$4:$E$26) -> 0 | V26: =SUMPRODUCT(V3:V25,'II_Plantejar Ració'!$E$4:$E$26) -> 0.3678150368 | W26: =SUMPRODUCT(W3:W25,'II_Plantejar Ració'!$E$4:$E$26) -> 776677.8993 | X26: =SUMPRODUCT(X3:X25,'II_Plantejar Ració'!$E$4:$E$26) -> 1064.383277 | Y26: =SUMPRODUCT(Y3:Y25,'II_Plantejar Ració'!$E$4:$E$26) -> 223.2350339 | Z26: =SUMPRODUCT(Z3:Z25,'II_Plantejar Ració'!$E$4:$E$26) -> 847.0945883 | AA26: =SUMPRODUCT(AA3:AA25,'II_Plantejar Ració'!$E$4:$E$26) -> 2455.767715 | AB26: =SUMPRODUCT(AB3:AB25,'II_Plantejar Ració'!$E$4:$E$26) -> 650.6478198 | AC26: =SUMPRODUCT(AC3:AC25,'II_Plantejar Ració'!$E$4:$E$26)/SUM('II_Plantejar Ració'!$E$4:$E$26) -> 0.7370477779 | AD26: =SUMPRODUCT(AD3:AD25,'II_Plantejar Ració'!$E$4:$E$26) -> 11136.45638 | AE26: =SUMPRODUCT(AE3:AE25,'II_Plantejar Ració'!$E$4:$E$26) -> 1007.738731 | AF26: =SUMPRODUCT(AF3:AF25,'II_Plantejar Ració'!$E$4:$E$26) -> 3539.520509 | AG26: =SUMPRODUCT(AG3:AG25,'II_Plantejar Ració'!$E$4:$E$26) -> 7385.25741 | AH26: =SUMPRODUCT(AH3:AH25,'II_Plantejar Ració'!$E$4:$E$26) -> 4006.104046 | AI26: =SUMPRODUCT(AI3:AI25,'II_Plantejar Ració'!$E$4:$E$26) -> 207.8758104 | AJ26: =SUMPRODUCT(AJ3:AJ25,'II_Plantejar Ració'!$E$4:$E$26) -> 1426.215883 | AK26: =SUMPRODUCT(AK3:AK25,'II_Plantejar Ració'!$E$4:$E$26) -> 4.264215695 | AL26: =SUMPRODUCT(AL3:AL25,'II_Plantejar Ració'!$E$4:$E$26)/SUM('II_Plantejar Ració'!$E$4:$E$26) -> 0.6468611516 | AM26: =SUMPRODUCT(AM3:AM25,'II_Plantejar Ració'!$E$4:$E$26) -> 8886.49662
E27: =SUMPRODUCT(E8:E19,'II_Plantejar Ració'!$E$9:$E$20) -> 1.570583246 | F27: =SUMPRODUCT(F8:F19,'II_Plantejar Ració'!$E$9:$E$20) -> 7.566280286 | AG27: =SUMPRODUCT(AG8:AG19,'II_Plantejar Ració'!$E$9:$E$20) -> 1316.792069 | AM27: =SUMPRODUCT(AM8:AM19,'II_Plantejar Ració'!$E$9:$E$20) -> 2568.046116
E28: =E26-E27 -> 12.1177363 | F28: =F26-F27 -> 10.13091183 | AG28: =AG26-AG27 -> 6068.465341
F29: Ració possible 1 | AG29: NDFND_Fa
F30: =IF('III_1_Redistribució Ració'!B7="","",F3*'III_1_Redistribució Ració'!B7) -> 8.906675673 | G30: =IF('III_1_Redistribució Ració'!B7="","",'III_1_Redistribució Ració'!B7*CàlculsVL!G3) -> 651.259931 | AG30: =IF(AC3>0,785-8.62*AC3*100,0) -> 148.9302
F31: =IF('III_1_Redistribució Ració'!B8="","",F4*'III_1_Redistribució Ració'!B8) -> 2.589225824 | G31: =IF('III_1_Redistribució Ració'!B8="","",'III_1_Redistribució Ració'!B8*CàlculsVL!G4) -> 209.2498182 | I31: ='III_1_Redistribució Ració'!B7 -> 9.307856319 | AG31: =IF(AC4>0,785-8.62*AC4*100,0) -> 267.392705
F32: =IF('III_1_Redistribució Ració'!B9="","",F5*'III_1_Redistribució Ració'!B9) -> 1.911056903 | G32: =IF('III_1_Redistribució Ració'!B9="","",'III_1_Redistribució Ració'!B9*CàlculsVL!G5) -> 176.1192736 | AG32: =IF(AC5>0,785-8.62*AC5*100,0) -> 232.69936
F33: =IF('III_1_Redistribució Ració'!B10="","",F6*'III_1_Redistribució Ració'!B10) ->  | G33: =IF('III_1_Redistribució Ració'!B10="","",'III_1_Redistribució Ració'!B10*CàlculsVL!G6) ->  | AG33: =IF(AC6>0,785-8.62*AC6*100,0) -> 0
F34: =IF('III_1_Redistribució Ració'!B11="","",F7*'III_1_Redistribució Ració'!B11) ->  | G34: =IF('III_1_Redistribució Ració'!B11="","",'III_1_Redistribució Ració'!B11*CàlculsVL!G7) ->  | AG34: =IF(AC7>0,785-8.62*AC7*100,0) -> 0
F35: =IF('III_1_Redistribució Ració'!B12="","",F8*'III_1_Redistribució Ració'!B12) ->  | G35: =IF('III_1_Redistribució Ració'!B12="","",'III_1_Redistribució Ració'!B12*CàlculsVL!G8) ->  | AG35: =SUM(AG30:AG34) -> 649.022265
F36: =IF('III_1_Redistribució Ració'!B13="","",F9*'III_1_Redistribució Ració'!B13) ->  | G36: =IF('III_1_Redistribució Ració'!B13="","",'III_1_Redistribució Ració'!B13*CàlculsVL!G9) ->  | AG36: NDFD_Fa
B37: =CàlculsVL!B3 -> VERD Raigràs italià 1 setmana abans inici espigat | F37: =IF('III_1_Redistribució Ració'!B14="","",F10*'III_1_Redistribució Ració'!B14) -> 2.714314888 | G37: =IF('III_1_Redistribució Ració'!B14="","",'III_1_Redistribució Ració'!B14*CàlculsVL!G10) -> 204.9764937 | AG37: =AG28-AG35 -> 5419.443076
B38: =CàlculsVL!B4 -> FENC Festuca Floració | F38: =IF('III_1_Redistribució Ració'!B15="","",F11*'III_1_Redistribució Ració'!B15) -> 2.44274358 | G38: =IF('III_1_Redistribució Ració'!B15="","",'III_1_Redistribució Ració'!B15*CàlculsVL!G11) -> 226.2646918 | AG38: =100*AG37/AG28 -> 89.3050017
B39: =CàlculsVL!B5 -> FENC Alfals Sense especificar (primavera) IAMZ | F39: =IF('III_1_Redistribució Ració'!B16="","",F12*'III_1_Redistribució Ració'!B16) -> 2.274340375 | G39: =IF('III_1_Redistribució Ració'!B16="","",'III_1_Redistribució Ració'!B16*CàlculsVL!G12) -> 407.5771918
B40: =CàlculsVL!B6 ->  | F40: =IF('III_1_Redistribució Ració'!B17="","",F13*'III_1_Redistribució Ració'!B17) -> 2.581599663 | G40: =IF('III_1_Redistribució Ració'!B17="","",'III_1_Redistribució Ració'!B17*CàlculsVL!G13) -> 7.151245603e-08
B41: =CàlculsVL!B7 ->  | F41: =IF('III_1_Redistribució Ració'!B18="","",F14*'III_1_Redistribució Ració'!B18) ->  | G41: =IF('III_1_Redistribució Ració'!B18="","",'III_1_Redistribució Ració'!B18*CàlculsVL!G14) -> 
B42: =CàlculsVL!B8 ->  | F42: =IF('III_1_Redistribució Ració'!B19="","",F15*'III_1_Redistribució Ració'!B19) ->  | G42: =IF('III_1_Redistribució Ració'!B19="","",'III_1_Redistribució Ració'!B19*CàlculsVL!G15) -> 
B43: =CàlculsVL!B9 ->  | F43: =IF('III_1_Redistribució Ració'!B20="","",F16*'III_1_Redistribució Ració'!B20) ->  | G43: =IF('III_1_Redistribució Ració'!B20="","",'III_1_Redistribució Ració'!B20*CàlculsVL!G16) -> 
B44: =CàlculsVL!B10 -> Blat de moro gra | F44: =IF('III_1_Redistribució Ració'!B21="","",F17*'III_1_Redistribució Ració'!B21) ->  | G44: =IF('III_1_Redistribució Ració'!B21="","",'III_1_Redistribució Ració'!B21*CàlculsVL!G17) -> 
B45: =CàlculsVL!B11 -> Remolatxa polpes deshidratades | F45: =IF('III_1_Redistribució Ració'!B22="","",F18*'III_1_Redistribució Ració'!B22) ->  | G45: =IF('III_1_Redistribució Ració'!B22="","",'III_1_Redistribució Ració'!B22*CàlculsVL!G18) -> 
B46: =CàlculsVL!B12 -> Soja tortó 48 curtit "tanne" | F46: =IF('III_1_Redistribució Ració'!B23="","",F19*'III_1_Redistribució Ració'!B23) ->  | G46: =IF('III_1_Redistribució Ració'!B23="","",'III_1_Redistribució Ració'!B23*CàlculsVL!G19) -> 
B47: =CàlculsVL!B13 -> Grassa vegetal, mantega de porc (tots els tipus) | F47: =IF('III_1_Redistribució Ració'!B24="","",F20*'III_1_Redistribució Ració'!B24) ->  | G47: =IF('III_1_Redistribució Ració'!B24="","",'III_1_Redistribució Ració'!B24*CàlculsVL!G20) -> 
B48: =CàlculsVL!B14 ->  | F48: =IF('III_1_Redistribució Ració'!B25="","",F21*'III_1_Redistribució Ració'!B25) -> 0 | G48: =IF('III_1_Redistribució Ració'!B25="","",'III_1_Redistribució Ració'!B25*CàlculsVL!G21) -> 0
B49: =CàlculsVL!B15 ->  | F49: =IF('III_1_Redistribució Ració'!B26="","",F22*'III_1_Redistribució Ració'!B26) -> 0 | G49: =IF('III_1_Redistribució Ració'!B26="","",'III_1_Redistribució Ració'!B26*CàlculsVL!G22) -> 0
B50: =CàlculsVL!B16 ->  | F50: =IF('III_1_Redistribució Ració'!B27="","",F23*'III_1_Redistribució Ració'!B27) ->  | G50: =IF('III_1_Redistribució Ració'!B27="","",'III_1_Redistribució Ració'!B27*CàlculsVL!G23) -> 
B51: =CàlculsVL!B17 ->  | F51: =IF('III_1_Redistribució Ració'!B28="","",F24*'III_1_Redistribució Ració'!B28) ->  | G51: =IF('III_1_Redistribució Ració'!B28="","",'III_1_Redistribució Ració'!B28*CàlculsVL!G24) -> 
B52: =CàlculsVL!B18 ->  | F52: =IF('III_1_Redistribució Ració'!B29="","",F25*'III_1_Redistribució Ració'!B29) ->  | G52: =IF('III_1_Redistribució Ració'!B29="","",'III_1_Redistribució Ració'!B29*CàlculsVL!G25) -> 
B53: =CàlculsVL!B19 ->  | F53: =SUM(F30:F52) -> 23.41995691 | G53: =SUM(G30:G52) -> 1875.4474
F54: Ració possible NRC
F55: =IF('III_1_Redistribució Ració'!G7="","",F3*'III_1_Redistribució Ració'!G7) -> 8.682924082 | G55: =IF('III_1_Redistribució Ració'!G7="","",'III_1_Redistribució Ració'!G7*CàlculsVL!G3) -> 634.8991191
F56: =IF('III_1_Redistribució Ració'!G8="","",F4*'III_1_Redistribució Ració'!G8) -> 2.52417985 | G56: =IF('III_1_Redistribució Ració'!G8="","",'III_1_Redistribució Ració'!G8*CàlculsVL!G4) -> 203.9930893
F57: =IF('III_1_Redistribució Ració'!G9="","",F5*'III_1_Redistribució Ració'!G9) -> 1.863047743 | G57: =IF('III_1_Redistribució Ració'!G9="","",'III_1_Redistribució Ració'!G9*CàlculsVL!G5) -> 171.6948431
F58: =IF('III_1_Redistribució Ració'!G10="","",F6*'III_1_Redistribució Ració'!G10) ->  | G58: =IF('III_1_Redistribució Ració'!G10="","",'III_1_Redistribució Ració'!G10*CàlculsVL!G6) -> 
F59: =IF('III_1_Redistribució Ració'!G11="","",F7*'III_1_Redistribució Ració'!G11) ->  | G59: =IF('III_1_Redistribució Ració'!G11="","",'III_1_Redistribució Ració'!G11*CàlculsVL!G7) -> 
F60: =IF('III_1_Redistribució Ració'!G12="","",F8*'III_1_Redistribució Ració'!G12) ->  | G60: =IF('III_1_Redistribució Ració'!G12="","",'III_1_Redistribució Ració'!G12*CàlculsVL!G8) -> 
F61: =IF('III_1_Redistribució Ració'!G13="","",F9*'III_1_Redistribució Ració'!G13) ->  | G61: =IF('III_1_Redistribució Ració'!G13="","",'III_1_Redistribució Ració'!G13*CàlculsVL!G9) -> 
F62: =IF('III_1_Redistribució Ració'!G14="","",F10*'III_1_Redistribució Ració'!G14) -> 2.646126453 | G62: =IF('III_1_Redistribució Ració'!G14="","",'III_1_Redistribució Ració'!G14*CàlculsVL!G10) -> 199.8271183
F63: =IF('III_1_Redistribució Ració'!G15="","",F11*'III_1_Redistribució Ració'!G15) -> 2.381377501 | G63: =IF('III_1_Redistribució Ració'!G15="","",'III_1_Redistribució Ració'!G15*CàlculsVL!G11) -> 220.5805189
F64: =IF('III_1_Redistribució Ració'!G16="","",F12*'III_1_Redistribució Ració'!G16) -> 2.217204885 | G64: =IF('III_1_Redistribució Ració'!G16="","",'III_1_Redistribució Ració'!G16*CàlculsVL!G12) -> 397.3381252
F65: =IF('III_1_Redistribució Ració'!G17="","",F13*'III_1_Redistribució Ració'!G17) -> 2.516745271 | G65: =IF('III_1_Redistribució Ració'!G17="","",'III_1_Redistribució Ració'!G17*CàlculsVL!G13) -> 6.971593549e-08
F66: =IF('III_1_Redistribució Ració'!G18="","",F14*'III_1_Redistribució Ració'!G18) ->  | G66: =IF('III_1_Redistribució Ració'!G18="","",'III_1_Redistribució Ració'!G18*CàlculsVL!G14) -> 
F67: =IF('III_1_Redistribució Ració'!G19="","",F15*'III_1_Redistribució Ració'!G19) ->  | G67: =IF('III_1_Redistribució Ració'!G19="","",'III_1_Redistribució Ració'!G19*CàlculsVL!G15) -> 
F68: =IF('III_1_Redistribució Ració'!G20="","",F16*'III_1_Redistribució Ració'!G20) ->  | G68: =IF('III_1_Redistribució Ració'!G20="","",'III_1_Redistribució Ració'!G20*CàlculsVL!G16) -> 
F69: =IF('III_1_Redistribució Ració'!G21="","",F17*'III_1_Redistribució Ració'!G21) ->  | G69: =IF('III_1_Redistribució Ració'!G21="","",'III_1_Redistribució Ració'!G21*CàlculsVL!G17) -> 
F70: =IF('III_1_Redistribució Ració'!G22="","",F18*'III_1_Redistribució Ració'!G22) ->  | G70: =IF('III_1_Redistribució Ració'!G22="","",'III_1_Redistribució Ració'!G22*CàlculsVL!G18) -> 
F71: =IF('III_1_Redistribució Ració'!G23="","",F19*'III_1_Redistribució Ració'!G23) ->  | G71: =IF('III_1_Redistribució Ració'!G23="","",'III_1_Redistribució Ració'!G23*CàlculsVL!G19) -> 
F72: =IF('III_1_Redistribució Ració'!G24="","",F20*'III_1_Redistribució Ració'!G24) ->  | G72: =IF('III_1_Redistribució Ració'!G24="","",'III_1_Redistribució Ració'!G24*CàlculsVL!G20) -> 
F73: =IF('III_1_Redistribució Ració'!G25="","",F21*'III_1_Redistribució Ració'!G25) -> 0 | G73: =IF('III_1_Redistribució Ració'!G25="","",'III_1_Redistribució Ració'!G25*CàlculsVL!G21) -> 0
F74: =IF('III_1_Redistribució Ració'!G26="","",F22*'III_1_Redistribució Ració'!G26) -> 0 | G74: =IF('III_1_Redistribució Ració'!G26="","",'III_1_Redistribució Ració'!G26*CàlculsVL!G22) -> 0
F75: =IF('III_1_Redistribució Ració'!G27="","",F23*'III_1_Redistribució Ració'!G27) ->  | G75: =IF('III_1_Redistribució Ració'!G27="","",'III_1_Redistribució Ració'!G27*CàlculsVL!G23) -> 
F76: =IF('III_1_Redistribució Ració'!G28="","",F24*'III_1_Redistribució Ració'!G28) ->  | G76: =IF('III_1_Redistribució Ració'!G28="","",'III_1_Redistribució Ració'!G28*CàlculsVL!G24) -> 
F77: =IF('III_1_Redistribució Ració'!G29="","",F25*'III_1_Redistribució Ració'!G29) ->  | G77: =IF('III_1_Redistribució Ració'!G29="","",'III_1_Redistribució Ració'!G29*CàlculsVL!G25) -> 
F78: =SUM(F55:F77) -> 22.83160578 | G78: =SUM(G55:G77) -> 1828.332814

Sheet Criteris (hidden)
A1: Paritat
A2: Primípar
A3: Multípar
A4: Estat lactació
A5: 3 primeres setmanes
A6: 4 a 6 primeres setmanes
A7: 7 a 12 primeres setmanes
A8: Pic (90 a 150 dies en lactació)
A9: Resta lactació
A10: Eixugat
A11: Mitjana producció explotació
A12: < 5.000
A13: 5.000 a 6.000
A14: 6.000 a 8.000
A15: 8.000 a 10.000
A16: >10.000
A17: Edat primer part
A18: < 28 mesos
A19: > 28 mesos
A20: Gestació
A21: No
A22: 7è mes
A23: 8è mes
A24: 9è mes

Sheet I_Necessitats
A1: Entorn o modalitat explotació ----------------------> | E1: 2
A2: Dades explotació per a la formulació | F2: Dades per a una vaca en lactació | N2: =(14.24+0.015*(I7-600)+0.11*I18+(2.5-I16))*AV5*AW5*AY5 -> 18.50201684 | AU2: 0.6 | AV2: 0.7 | BR2: Autor: Antoni Seguí Parpal
A3: Producció mitjana explotació, vaca present i any | D3: 10000 | I3: 2 | M3: CI UE | O3: CI MS | Q3: Energia | S3: Proteïna | U3: Fòsfor | W3: Calci | Y3: Mg | AA3: K | AC3: Na | AE3: S | AG3: Cl | AI3: Co mg/dia | AK3: Cu mg/dia | AM3: Mn mg/dia | AO3: Zn mg/dia | AQ3: I mg/dia | AS3: Se mg/dia | AU3: IL | AW3: IG | AX3: IM prim | AY3: IM multi | AZ3: I_CI PDI prim | BA3: I_CI PDI multi
A4: Taxa de greix (%) | D4: 3 | F4: Producció a 305 dies | I4: 10000 | M4: prim | N4: multi | O4: prim | P4: multi | Q4: prim | R4: multi | S4: prim | T4: multi | U4: prim | V4: multi | W4: prim | X4: multi | Y4: prim | Z4: multi | AA4: prim | AB4: multi | AC4: prim | AD4: multi | AE4: prim | AF4: multi | AG4: prim | AH4: multi | AI4: prim | AJ4: multi | AK4: prim | AL4: multi | AM4: prim | AN4: multi | AO4: prim | AP4: multi | AQ4: prim | AR4: multi | AS4: prim | AT4: multi | AU4: prim | AV4: multi
A5: Taxa de proteïna (%) | D5: 4 | F5: Taxa de greix (%) | I5: 3.5 | M5: =(13.9+(0.015*(I7-600))+(0.15*I18)+(1.5*(3-I16)))*AU5*AW5*AX5*AZ5 -> 20.60227262 | N5: =(13.9+(0.015*(I7-600))+(0.15*I18)+(1.5*(3-I16)))*AV5*AW5*AY5*BA5 -> 20.98703082 | O5: =0.372*I18+0.0968*I7^0.75*(1-EXP(-0.192*(I12+3.67))) -> 26.33924493 | P5: =0.372*I18+0.0968*I7^0.75*(1-EXP(-0.192*(I12+3.67))) -> 26.33924493 | Q5: =(0.0536*I7^0.75)*K6+I18*0.42+(3.14-0.077*I8)+IF(I23="",0,(0.000695*I10*EXP(0.116*I23)))-I20 -> 22.41900467 | R5: =(0.0536*I7^0.75)*K6+I18*0.42+(3.14-0.077*I8)+ IF(I23="",0,(0.000695*I10*EXP(0.116*I23)))-I20 -> 22.41900467 | S5: =0.312*I7+(0.2*I7^0.6)/I19+19.8*O5+IF(I8<40,((270-6.66*I8)/I19),0)+(I18*31/I19)+IF(I23>24,(0.0448*I10*EXP(0.111*I23)/I19),0)-I21 -> 2637.703422 | T5: =0.312*I7+0.2*I7^0.6/I19+19.8*O5+IF(I8<40,((270-6.66*I8)/I19),0)+I18*31/I19+IF(I23>24,(0.0448*I10*EXP(0.111*I23)/I19),0)-I21 -> 2637.703422 | U5: =(0.83*O5+0.002*I7+0.9*I18+IF(I23>0,(7.38/(1+EXP(19.1-5.46*LN(I23)))),0)) -> 60.6238478 | V5: =(0.83*P5+0.002*I7+0.9*I18+IF(I23>0,(7.38/(1+EXP(19.1-(5.46*LN(I23))))),0)) -> 60.6238478 | W5: =(0.663*O5+0.008*I7+1.25*I18+IF(I23>0,(23.5/(1+EXP(18.8-(5.03*LN(I23))))),0)) -> 74.6938562 | X5: =(0.663*P5+0.008*I7+1.25*I18+IF(I23>0,(23.5/(1+EXP(18.8-(5.03*LN(I23))))),0)) -> 74.6938562 | Y5: =(0.011*I7+0.15*I18+IF(I23>36,0.33,0)) -> 13.39371242 | Z5: =(0.011*I7+0.15*I18+IF(I23>36,0.33,0)) -> 13.39371242 | AA5: =IF(I18>0,0.115*I7,0.07*I7)+IF(I23>24,1,0)+1.5*I18 -> 137.1871242 | AB5: =IF(I18>0,0.115*I7,0.07*I7)+IF(I23>24,1,0)+1.5*I18 -> 137.1871242 | AC5: =IF(I18>0,0.023*I7,0.015*I7)+IF(I23>24,1.3,0)+0.45*I18 -> 33.68113725 | AD5: =IF(I18>0,0.023*I7,0.015*I7)+IF(I23>24,1.3,0)+0.45*I18 -> 33.68113725 | AE5: =2*O5 -> 52.67848987 | AF5: =2*P5 -> 52.67848987 | AG5: =IF(I18>0,0.035*I7,0.023*I7)+IF(I23>24,1,0)+0.15*I18 -> 28.99371242 | AH5: =IF(I18>0,0.035*I7,0.023*I7)+IF(I23>24,1,0)+0.15*I18 -> 28.99371242 | AI5: =0.3*O5 -> 7.90177348 | AJ5: =0.3*P5 -> 7.90177348 | AK5: =10*O5 -> 263.3924493 | AL5: =10*P5 -> 263.3924493 | AM5: =50*O5 -> 1316.962247 | AN5: =50*P5 -> 1316.962247 | AO5: =50*O5 -> 1316.962247 | AP5: =50*P5 -> 1316.962247 | AQ5: =IF(I18>0,0.65*O5,0.45*O5) -> 17.12050921 | AR5: =IF(I18>0,0.65*O5,0.45*O5) -> 17.12050921 | AS5: =IF(I18>0,0.15,0) -> 0.15 | AT5: =IF(I18>0,0.15,0) -> 0.15 | AU5: =$AU$2+(1-$AU$2)*(1-EXP(-0.25*I22)) -> 0.9304904226 | AV5: =$AV$2+(1-$AV$2)*(1-EXP(-0.25*I22)) -> 0.947867817 | AW5: =0.8+0.2*(1-EXP(-0.25*(40-I23))) -> 0.99999092 | AX5: =-0.1+1.1*(1-EXP(-0.08*I8)) -> 0.9875332455 | AY5: =-0.1+1.1*(1-EXP(-0.08*I8)) -> 0.9875332455 | AZ5: =0.91+(0.115/(1+EXP(0.13*(90-(S5/Q5))))) -> 1.021926793 | BA5: =0.91+(0.115/(1+EXP(0.13*(90-(T5/R5))))) -> 1.021926793
A6: Interval entre parts (dies) IP | D6: 365 | F6: Taxa de proteïna (%) | I6: 3.3 | K6: =IF(E1=1,0.95,IF(E1=2,1,IF(E1=3,1.1,IF(E1=4,1.2,1.3)))) -> 1 | N6: període lactació | P6: UFL_VPR>
A7: Temps eixugament (dies) TE | D7: 60 | F7: Pes vaca adulta (kg) | I7: 650 | N7: =(D6-D7)/7 -> 43.57142857 | O7: setmanes lact | Q7: =INT((9*30.5+10)/7) -> 40 | R7: Setmanes gestació
A8: Vaques presents | D8: 1 | F8: Edat mesos | H8: =IF(I3=1,IF(I8>36,"edat en mesos?",""),IF(I8<36,"edat en mesos?","")) ->  | I8: 56 | L8: 394 | N8: =D10*0.9 -> 630 | O8: pes prim | Q8: =Q7-(61/7) -> 31.28571429 | T8: A | U8: =-9.5+0.4*N19+1.89*D11 -> 12.64070582 | V8: =-13.2+0.4*O19+1.89*D11 -> 10.96579789 | AQ8: 100 | AR8: =AQ8/7 -> 14.28571429 | BC8: =16*I7*0.9 -> 9360
A9: Vaques primera lactació (%) | D9: 0 | F9: Condició corporal vaca eixuta al part | I9: 3 | L9: 900 | N9: =1.5*(3-D11) -> -0.75 | O9: =D11-1.5 -> 2 | T9: B | U9: =1/D11 -> 0.2857142857 | AQ9: 225 | AR9: =AQ9/7 -> 32.14285714 | BC9: =30*I7*0.9 -> 17550
A10: Pes vaca adulta (kg) | D10: 700 | F10: Pes vedell al naixement | I10: 42 | T10: K | U10: =U8/(52*U9) -> 0.8508167382 | V10: =V8/(52*U9) -> 0.7380825502
A11: Condició corporal vaques eixutes | D11: 3.5 | F11: Interval entre parts (dies) | I11: 375 | K11: =INT(L11-8) -> 45 | L11: =INT(I11/7) -> 53
A12: Pes vedell al naixement | D12: 45 | F12: Setmana lactació-----> | G12: Valor entre 1 i | H12: =K11 -> 45 | I12: 7 | J12: =L11-40 -> 13
A13: Nombre mitjà de lactació (anys) Dades FEFRIC o de l'explotació | D13: 2.3 | F13: Setmana fecundació | J13: =K13-8 -> 45 | K13: =L11-I13 -> 53
A14: MS farratgera, % mínim a la ració | D14: 55 | F14: Setmana gestació calculada en lactació | I14: =IF(I13="",0,IF((I12+1)-I13>0,I12-I13,"")) -> 0 | K14: màx gest
A15: Límits de tolerància (%) en el compliment necessitats proteiques | D15: 12.5 | F15: Setmana en gestació període sec | I15: =IF(I12<=K11,"",I12-J12) ->  | BH15: =EXP(-0.25*0) -> 1 | BM15: =0.8+0.2*(1-EXP(-0.25*(40-0))) -> 0.99999092
A16: EfPDI teòrica | D16: 0.67 | F16: Condició corporal calculada | I16: =IF(I18=0,I9,IF(I13>I12,"Revisar setmana fecundació",I9-(7/206)*((L148/L149)-L150*I12+(L148/(1-L149))*(EXP(-I12)-(EXP(-L149*I12)/L149))))) -> 2.30250756 | N16: =D13*D26+D7*D13 -> 839.5 | O16: =N16/365 -> 2.3 | P16: =D26/7 -> 43.57142857 | BP16: =0.6+(1-0.6)*(1-EXP(-0.16*0)) -> 0.6 | BQ16: =0.8+0.2*(1-EXP(-0.25*(40-34))) -> 0.955373968
F17: Producció màxima potencial diària 4% (pic) | I17: =IF(I3=1,I4*(1+(0.0055*(I5*10-40)+0.0033*(I6*10-31)))/260,I4*(1+(0.0055*(I5*10-40)+0.0033*(I6*10-31)))/230) -> 42.56956522 | K17: data part | L17: =I13+9*4.5 -> 40.5 | M17: =IF(I14="","",L17-I14) -> 40.5 | N17: Producció | R17: setmana IA | T17: Setmana part des d'inici lact | AW17: mg/vaca i dia | BK17: 0.6 | BL17: 0.7
F18: Producció diària a la setmana de lactació 4% | I18: =IF(I15="",IF(I13>I12,"Revisar setmana fecundació",IF(I12>1,IF(I3=1,I17*(-0.55+1.66*EXP(-0.0065*I12)-0.72*EXP(-0.44*I12)-0.69*EXP(-0.16*(45-I14))),I17*(-0.83+1.92*EXP(-0.0083*I12)-0.74*EXP(-0.88*I12)-0.5*EXP(-0.12*(45-I14)))),0)),0) -> 41.62474944 | N18: Pic prim | O18: Pic multi | R18: =D25 -> 11.57142857 | T18: =R18+Q7 -> 51.57142857 | W18: UFL_VPR pot | Y18: PDI_VPR pot | AA18: CI | AC18: CI MS | AE18: Energia | AG18: Proteïna | AI18: Fòsfor | AK18: Calci | AM18: Mg | AO18: K | AQ18: Na | AS18: S | AU18: Cl | AW18: Fe | AX18: No 2018 | AY18: Co | BA18: Cu | BC18: Mn | BE18: Zn | BG18: I | BI18: Se | BK18: IL | BM18: IG | BN18: IM prim | BO18: IM multi | BP18: I_CI PDI | BQ18: I_CI PDI
F19: EfPDI teòrica | I19: =D16 -> 0.67 | L19: setmL teòrica | N19: =D29/260 -> 38.81426456 | O19: =D29/230 -> 43.87699472 | P19: període | Q19: setmL | R19: setmG | S19: setmG | T19: edat mesos prim | U19: CC prim | V19: CC mult | W19: prim | X19: multi | Y19: prim | Z19: multi | AA19: prim | AB19: multi | AC19: prim | AD19: multi | AE19: prim | AF19: multi | AG19: prim | AH19: multi | AI19: prim | AJ19: multi | AK19: prim | AL19: multi | AM19: prim | AN19: multi | AO19: prim | AP19: multi | AQ19: prim | AR19: multi | AS19: prim | AT19: multi | AU19: prim | AV19: multi | AW19: prim | AX19: multi | AY19: prim | AZ19: multi | BA19: prim | BB19: multi | BC19: prim | BD19: multi | BE19: prim | BF19: multi | BG19: prim | BH19: multi | BI19: prim | BJ19: multi | BK19: prim | BL19: multi | BP19: PRIM
F20: UFL_VPR pot | H20: Variació reserves corporals UFL | I20: =-L150+L152*(EXP(-L149*I22)-EXP(-I22)) -> 0.8205914796 | K20: =IF(L20<$N$7,L20,$N$7) -> 2 | L20: 2 | M20: =IF(Q20<$R$18,0,Q20-$R$18) -> 0 | N20: =IF(Q20=0,0,IF(R20="",N$19*(-0.55+1.66*EXP(-0.0065*Q20)-0.72*EXP(-0.44*Q20)),N$19*(-0.55+1.66*EXP(-0.0065*Q20)-0.72*EXP(-0.44*Q20)-(0.69*EXP(-0.16*(45-R20)))))) -> 30.64001241 | O20: =IF(Q20=0,0,IF(R20="",O$19*(-0.83+1.92*EXP(-0.0083*Q20)-0.74*EXP(-0.88*Q20)),O$19*(-0.83+1.92*EXP(-0.0083*Q20)-0.74*EXP(-0.88*Q20)-(0.5*EXP(-0.12*(45-R20)))))) -> 40.75381226 | P20: tres 1es | Q20: =IF(K20=K19,0,K20) -> 2 | R20: =IF(Q20=0,R18+4,IF((Q20-$D$25)<0,0,Q20-$D$25)) -> 0 | S20: =IF(R20>40,0,R20) -> 0 | T20: =IF(Q20=0,"",24+(Q20/4)) -> 24.5 | U20: =$D$11-(7/260)*(($U$8/$U$9)-$U$10*Q20+($U$8/(1-$U$9))*(EXP(-Q20)-EXP(-$U$9*Q20)/$U$9)) -> 3.231912678 | V20: =$D$11-(7/260)*(($V$8/$U$9)-$V$10*Q20+($V$8/(1-$U$9))*(EXP(-Q20)-EXP(-$U$9*Q20)/$U$9)) -> 3.267434554 | W20: =-$U$10+($U$8/(1-$U$9))*(EXP(-$U$9*Q20)-EXP(-Q20)) -> 6.747966273 | X20: =-$V$10+($V$8/(1-$U$9))*(EXP(-$U$9*Q20)-EXP(-Q20)) -> 5.853853048 | Y20: =50+33*W20 -> 272.682887 | Z20: =50+33*X20 -> 243.1771506 | AA20: =(13.9+(0.015*($D$10-600))+0.15*N20+(1.5*(3-U20)))*BK20*BM20*BN20*BP20 -> 12.06968881 | AB20: =(13.9+(0.015*($D$10-600))+0.15*N20+(1.5*(3-U20)))*BL20*BM20*BO20*BQ20 -> 15.62233308 | AC20: =0.372*N20+0.0968*$D$10^0.75*(1-EXP(-0.192*(Q20+3.67))) -> 20.13636285 | AD20: =0.372*O20+0.0968*$D$10^0.75*(1-EXP(-0.192*(Q20+3.67))) -> 23.89869639 | AE20: =(0.0536*$D$10^0.75)*$K$6+N20*0.42+(3.14-0.077*T20)+IF(S20="",0,(0.000695*$D$12*EXP(0.116*S20)))-W20 -> 14.69999286 | AF20: =(0.0536*$D$10^0.75)*$K$6+O20*0.42+(3.14-0.077*U20)+IF(S20="",0,(0.000695*$D$12*EXP(0.116*S20)))-X20 -> 21.47954474 | AG20: =IF(S20="",19.8*AC20+0.312*$D$10+0.2*$D$10^0.6/$D$16+((270-6.66*T20)/$D$16)+(N20*31/$D$16)-Y20,19.8*AC20+0.312*$D$10+0.2*$D$10^0.6/$D$16+((270-6.66*T20)/$D$16)+(N20*31/$D$16)+0.0448*$D$12*EXP(0.111*S20)/$D$16-Y20) -> 1939.751996 | AH20: =IF(S20="",19.8*AD20+0.312*$D$10+0.2*$D$10^0.6/$D$16+(O20*31/$D$16)-Z20,19.8*AD20+0.312*$D$10+0.2*$D$10^0.6/$D$16+(O20*31/$D$16)+0.0448*$D$12*EXP(0.111*S20)/$D$16)-Z20 -> 2352.256109 | AI20: =(0.83*AC20+0.002*$D$10+0.9*N20+IF($S20=0,0,(7.38/(1+EXP(19.1-5.46*LN(S20)))))) -> 45.68919234 | AJ20: =(0.83*AD20+0.002*$D$10+0.9*O20+IF($S20=0,0,(7.38/(1+EXP(19.1-5.46*LN(S20)))))) -> 57.91434904 | AK20: =(0.663*AC20+0.008*$D$10+1.25*N20+IF(S20=0,0,(23.5/(1+EXP(18.8-(5.03*LN(S20))))))) -> 57.25042408 | AL20: =(0.663*AD20+0.008*$D$10+1.25*O20+IF(S20=0,0,(23.5/(1+EXP(18.8-(5.03*LN(S20))))))) -> 72.38710103 | AM20: =(0.011*$D$10+0.15*N20+IF(S20>36,0.33,0)) -> 12.29600186 | AN20: =(0.011*$D$10+0.15*O20+IF(S20>36,0.33,0)) -> 13.81307184 | AO20: =IF(N20>0,0.115*$D$10,0.07*$D$10)+IF(S20>24,1,0)+1.5*N20 -> 126.4600186 | AP20: =IF(O20>0,0.115*$D$10,0.07*$D$10)+IF(S20>24,1,0)+1.5*O20 -> 141.6307184 | AQ20: =IF(N20>0,0.023*$D$10,0.015*$D$10)+IF($S20>24,1.3,0)+0.45*N20 -> 29.88800558 | AR20: =IF(O20>0,0.023*$D$10,0.015*$D$10)+IF($S20>24,1.3,0)+0.45*O20 -> 34.43921552 | AS20: =2*AC20 -> 40.2727257 | AT20: =2*AD20 -> 47.79739279 | AU20: =IF(N20>0,0.035*$D$10,0.023*$D$10)+IF($S20>24,1,0)+0.15*N20 -> 29.09600186 | AV20: =IF(O20>0,0.035*$D$10,0.023*$D$10)+IF($S20>24,1,0)+0.15*O20 -> 30.61307184 | AW20: =IF(S20="",0,IF(S20<27,N20/0.1,(N20+18)/0.1)) -> 306.4001241 | AX20: =IF(S20="",0,IF(S20<27,O20/0.1,(O20+18)/0.1)) -> 407.5381226 | AY20: =0.3*AC20 -> 6.040908856 | AZ20: =0.3*AD20 -> 7.169608918 | BA20: =10*AC20 -> 201.3636285 | BB20: =10*AD20 -> 238.9869639 | BC20: =50*AC20 -> 1006.818143 | BD20: =50*AD20 -> 1194.93482 | BE20: =50*AC20 -> 1006.818143 | BF20: =50*AD20 -> 1194.93482 | BG20: =IF(N20>0,0.65*AC20,0.45*AC20) -> 13.08863585 | BH20: =IF(O20>0,0.65*AD20,0.45*AD20) -> 15.53415266 | BI20: =IF(N20>0,0.15,0) -> 0.15 | BJ20: =IF(O20>0,0.15,0) -> 0.15 | BK20: =$BK$17+(1-$BK$17)*(1-EXP(-0.16*Q20)) -> 0.7095403852 | BL20: =$BL$17+(1-$BL$17)*(1-EXP(-0.16*Q20)) -> 0.7821552889 | BM20: =0.8+0.2*(1-EXP(-0.25*(40-S20))) -> 0.99999092 | BN20: =-0.1+1.1*(1-EXP(-0.08*T20)) -> 0.845055737 | BO20: 1 | BP20: =0.91+0.115/(1+EXP(0.13*(90-(AG20/AE20)))) -> 1.02451013 | BQ20: =0.91+0.115/(1+EXP(0.13*(90-AH20/AF20))) -> 1.016565963
F21: PDI_VPR pot | H21: Variació reserves corporals PDI | I21: =IF(I22=1,100+33*I20,IF(I22=2,50+33*I20,33*I20)) -> 27.07951883
F22: Setmana lactació | I22: =IF(I15="",I12,0) -> 7
F23: Setmana gestació | I23: =IF(I15="",I14,I15) -> 0 | BR23: Exemples segons valor interval entre parts
A24: Interval part fecundació (dies) | D24: =D6-284 -> 81 | J24: =IF(K24=K20,0,K24) -> 5 | K24: =IF(L24<$N$7,L24,$N$7) -> 5 | L24: 5 | M24: 0 | N24: =IF(Q24=0,0,IF(R24="",N$19*(-0.55+1.66*EXP(-0.0065*Q24)-0.72*EXP(-0.44*Q24)),N$19*(-0.55+1.66*EXP(-0.0065*Q24)-0.72*EXP(-0.44*Q24)-(0.69*EXP(-0.16*(45-R24)))))) -> 37.90693643 | O24: =IF(Q24=0,0,IF(R24="",O$19*(-0.83+1.92*EXP(-0.0083*Q24)-0.74*EXP(-0.88*Q24)),O$19*(-0.83+1.92*EXP(-0.0083*Q24)-0.74*EXP(-0.88*Q24)-(0.5*EXP(-0.12*(45-R24)))))) -> 43.90363692 | P24: 4 a 6 | Q24: =IF(K24=K20,0,K24) -> 5 | R24: =IF(Q24=0,R20+4,IF((Q24-$D$25)<0,0,Q24-$D$25)) -> 0 | S24: =IF(R24>40,0,R24) -> 0 | T24: =IF(Q24=0,T20+1,24+(Q24/4)) -> 25.25 | U24: 2.819821506 | V24: 2.909945932 | W24: 3.271043447 | X24: 2.83762646 | Y24: =33*W24 -> 107.9444337 | Z24: =33*X24 -> 93.64167318 | AA24: =(13.9+(0.015*($D$10-600))+0.15*N24+(1.5*(3-U24)))*BK24*BM24*BN24*BP24 -> 15.29814867 | AB24: =(13.9+(0.015*($D$10-600))+0.15*N24+(1.5*(3-U24)))*BL24*BM24*BO24*BQ24 -> 18.66859228 | AC24: =IF(Q24>0,0.372*N24+0.0968*$D$10^0.75*(1-EXP(-0.192*(Q24+3.67))),0.372*N24+0.0968*$D$10^0.75*(1-EXP(-0.192*($N$7+1+3.67)))) -> 24.78162355 | AD24: =IF(Q24>0,0.372*O24+0.0968*$D$10^0.75*(1-EXP(-0.192*(Q24+3.67))),0.372*O24+0.0968*$D$10^0.75*(1-EXP(-0.192*($N$7+1+3.67)))) -> 27.01239613 | AE24: =(0.0536*$D$10^0.75)*$K$6+N24*0.42+(3.14-0.077*T24)+IF(S24="",0,(0.000695*$D$12*EXP(0.116*S24)))-W24 -> 21.17127377 | AF24: =(0.0536*$D$10^0.75)*$K$6+O24*0.42+(3.14-0.077*U24)+IF(S24="",0,(0.000695*$D$12*EXP(0.116*S24)))-X24 -> 25.85042871 | AG24: =IF(S24="",19.8*AC24+0.312*$D$10+0.2*$D$10^0.6/$D$16+((270-6.66*T24)/$D$16)+(N24*31/$D$16)-Y24,19.8*AC24+0.312*$D$10+0.2*$D$10^0.6/$D$16+((270-6.66*T24)/$D$16)+(N24*31/$D$16)+0.0448*$D$12*EXP(0.111*S24)/$D$16-Y24) -> 2525.2422 | AH24: =IF(S24="",19.8*AD24+0.312*$D$10+0.2*$D$10^0.6/$D$16+(O24*31/$D$16)-Z24,19.8*AD24+0.312*$D$10+0.2*$D$10^0.6/$D$16+(O24*31/$D$16)+0.0448*$D$12*EXP(0.111*S24)/$D$16)-Z24 -> 2709.180997 | AI24: =(0.83*AC24+0.002*$D$10+0.9*N24+IF($S24=0,0,(7.38/(1+EXP(19.1-5.46*LN(S24)))))) -> 56.08499034 | AJ24: =(0.83*AD24+0.002*$D$10+0.9*O24+IF($S24=0,0,(7.38/(1+EXP(19.1-5.46*LN(S24)))))) -> 63.33356201 | AK24: =(0.663*AC24+0.008*$D$10+1.25*N24+IF(S24=0,0,(23.5/(1+EXP(18.8-(5.03*LN(S24))))))) -> 69.41388696 | AL24: =(0.663*AD24+0.008*$D$10+1.25*O24+IF(S24=0,0,(23.5/(1+EXP(18.8-(5.03*LN(S24))))))) -> 78.38876478 | AM24: =(0.011*$D$10+0.15*N24+IF(S24>36,0.33,0)) -> 13.38604046 | AN24: =(0.011*$D$10+0.15*O24+IF(S24>36,0.33,0)) -> 14.28554554 | AO24: =IF(N24>0,0.115*$D$10,0.07*$D$10)+IF(S24>24,1,0)+1.5*N24 -> 137.3604046 | AP24: =IF(O24>0,0.115*$D$10,0.07*$D$10)+IF(S24>24,1,0)+1.5*O24 -> 146.3554554 | AQ24: =IF(N24>0,0.023*$D$10,0.015*$D$10)+IF($S24>24,1.3,0)+0.45*N24 -> 33.15812139 | AR24: =IF(O24>0,0.023*$D$10,0.015*$D$10)+IF($S24>24,1.3,0)+0.45*O24 -> 35.85663661 | AS24: =2*AC24 -> 49.5632471 | AT24: =2*AD24 -> 54.02479226 | AU24: =IF(N24>0,0.035*$D$10,0.023*$D$10)+IF($S24>24,1,0)+0.15*N24 -> 30.18604046 | AV24: =IF(O24>0,0.035*$D$10,0.023*$D$10)+IF($S24>24,1,0)+0.15*O24 -> 31.08554554 | AW24: =IF(S24="",0,IF(S24<27,N24/0.1,(N24+18)/0.1)) -> 379.0693643 | AX24: =IF(S24="",0,IF(S24<27,O24/0.1,(O24+18)/0.1)) -> 439.0363692 | AY24: =0.3*AC24 -> 7.434487065 | AZ24: =0.3*AD24 -> 8.103718839 | BA24: =10*AC24 -> 247.8162355 | BB24: =10*AD24 -> 270.1239613 | BC24: =50*AC24 -> 1239.081178 | BD24: =50*AD24 -> 1350.619807 | BE24: =50*AC24 -> 1239.081178 | BF24: =50*AD24 -> 1350.619807 | BG24: =IF(N24>0,0.65*AC24,0.45*AC24) -> 16.10805531 | BH24: =IF(O24>0,0.65*AD24,0.45*AD24) -> 17.55805748 | BI24: =IF(N24>0,0.15,0) -> 0.15 | BJ24: =IF(O24>0,0.15,0) -> 0.15 | BK24: =$BK$17+(1-$BK$17)*(1-EXP(-0.16*Q24)) -> 0.8202684144 | BL24: =$BL$17+(1-$BL$17)*(1-EXP(-0.16*Q24)) -> 0.8652013108 | BM24: =0.8+0.2*(1-EXP(-0.25*(40-S24))) -> 0.99999092 | BN24: 0.8540789884 | BO24: 1 | BP24: =0.91+0.115/(1+EXP(0.13*(90-AG24/AE24))) -> 1.022498346 | BQ24: =0.91+0.115/(1+EXP(0.13*(90-AH24/AF24))) -> 1.010350744 | BR24: 365 | BS24: =BR24+10 -> 375 | BT24: =BS24+10 -> 385 | BU24: 395 | BV24: 405 | BW24: 415 | BX24: 425 | BY24: 435 | BZ24: 445 | CA24: 455 | CB24: 465
A25: Setmana inseminació fecundant | D25: =D24/7 -> 11.57142857 | J25: =IF(K25=K24,0,K25) -> 9.5 | K25: 9.5 | L25: 9.5 | M25: 0 | N25: 38.77799739 | O25: 41.33174796 | P25: 7 a 12 | Q25: =IF(K25=K24,0,K25) -> 9.5 | R25: =IF(Q25=0,R24+4,IF((Q25-$D$25)<0,0,Q25-$D$25)) -> 0 | S25: 0 | T25: =IF(Q25=0,T24+1,24+(Q25/4)) -> 26.375 | U25: 2.636915966 | V25: 2.751275585 | W25: 0.3203240553 | X25: 0.2778807527 | Y25: =33*W25 -> 10.57069382 | Z25: =33*X25 -> 9.170064839 | AA25: =(13.9+(0.015*($D$10-600))+0.15*N25+(1.5*(3-U25)))*BK25*BM25*BN25*BP25 -> 17.5042872 | AB25: =(13.9+(0.015*($D$10-600))+0.15*N25+(1.5*(3-U25)))*BL25*BM25*BO25*BQ25 -> 20.24069409 | AC25: =IF(Q25>0,0.372*N25+0.0968*$D$10^0.75*(1-EXP(-0.192*(Q25+3.67))),0.372*N25+0.0968*$D$10^0.75*(1-EXP(-0.192*($N$7+1+3.67)))) -> 26.54803491 | AD25: =IF(Q25>0,0.372*O25+0.0968*$D$10^0.75*(1-EXP(-0.192*(Q25+3.67))),0.372*O25+0.0968*$D$10^0.75*(1-EXP(-0.192*($N$7+1+3.67)))) -> 27.49803012 | AE25: =(0.0536*$D$10^0.75)*$K$6+N25*0.42+(3.14-0.077*T25)+IF(S25="",0,(0.000695*$D$12*EXP(0.116*S25)))-W25 -> 24.40121377 | AF25: =(0.0536*$D$10^0.75)*$K$6+O25*0.42+(3.14-0.077*U25)+IF(S25="",0,(0.000695*$D$12*EXP(0.116*S25)))-X25 -> 27.34406478 | AG25: =IF(S25="",19.8*AC25+0.312*$D$10+0.2*$D$10^0.6/$D$16+((270-6.66*T25)/$D$16)+(N25*31/$D$16)-Y25,19.8*AC25+0.312*$D$10+0.2*$D$10^0.6/$D$16+((270-6.66*T25)/$D$16)+(N25*31/$D$16)+0.0448*$D$12*EXP(0.111*S25)/$D$16-Y25) -> 2686.710869 | AH25: =IF(S25="",19.8*AD25+0.312*$D$10+0.2*$D$10^0.6/$D$16+(O25*31/$D$16)-Z25,19.8*AD25+0.312*$D$10+0.2*$D$10^0.6/$D$16+(O25*31/$D$16)+0.0448*$D$12*EXP(0.111*S25)/$D$16)-Z25 -> 2684.270311 | AI25: =(0.83*AC25+0.002*$D$10+0.9*N25+IF($S25=0,0,(7.38/(1+EXP(19.1-5.46*LN(S25)))))) -> 58.33506662 | AJ25: =(0.83*AD25+0.002*$D$10+0.9*O25+IF($S25=0,0,(7.38/(1+EXP(19.1-5.46*LN(S25)))))) -> 61.42193817 | AK25: =(0.663*AC25+0.008*$D$10+1.25*N25+IF(S25=0,0,(23.5/(1+EXP(18.8-(5.03*LN(S25))))))) -> 71.67384388 | AL25: =(0.663*AD25+0.008*$D$10+1.25*O25+IF(S25=0,0,(23.5/(1+EXP(18.8-(5.03*LN(S25))))))) -> 75.49587892 | AM25: =(0.011*$D$10+0.15*N25+IF(S25>36,0.33,0)) -> 13.51669961 | AN25: =(0.011*$D$10+0.15*O25+IF(S25>36,0.33,0)) -> 13.89976219 | AO25: =IF(N25>0,0.115*$D$10,0.07*$D$10)+IF(S25>24,1,0)+1.5*N25 -> 138.6669961 | AP25: =IF(O25>0,0.115*$D$10,0.07*$D$10)+IF(S25>24,1,0)+1.5*O25 -> 142.4976219 | AQ25: =IF(N25>0,0.023*$D$10,0.015*$D$10)+IF($S25>24,1.3,0)+0.45*N25 -> 33.55009883 | AR25: =IF(O25>0,0.023*$D$10,0.015*$D$10)+IF($S25>24,1.3,0)+0.45*O25 -> 34.69928658 | AS25: 53.09606982 | AT25: 54.99606024 | AU25: =IF(N25>0,0.035*$D$10,0.023*$D$10)+IF($S25>24,1,0)+0.15*N25 -> 30.31669961 | AV25: =IF(O25>0,0.035*$D$10,0.023*$D$10)+IF($S25>24,1,0)+0.15*O25 -> 30.69976219 | AW25: 387.7799739 | AX25: 413.3174796 | AY25: =0.3*AC25 -> 7.964410472 | AZ25: =0.3*AD25 -> 8.249409036 | BA25: =10*AC25 -> 265.4803491 | BB25: =10*AD25 -> 274.9803012 | BC25: =50*AC25 -> 1327.401745 | BD25: =50*AD25 -> 1374.901506 | BE25: =50*AC25 -> 1327.401745 | BF25: =50*AD25 -> 1374.901506 | BG25: =IF(N25>0,0.65*AC25,0.45*AC25) -> 17.25622269 | BH25: =IF(O25>0,0.65*AD25,0.45*AD25) -> 17.87371958 | BI25: 0.15 | BJ25: 0.15 | BK25: 0.9125152452 | BL25: 0.9343864339 | BM25: 0.99999092 | BN25: 0.8666382369 | BO25: 1 | BP25: =0.91+0.115/(1+EXP(0.13*(90-AG25/AE25))) -> 1.017150109 | BQ25: =0.91+0.115/(1+EXP(0.13*(90-AH25/AF25))) -> 0.9954454638
A26: Període lactació (dies): IP - TE | D26: =D6-D7 -> 305 | J26: 16 | K26: 16 | L26: 16 | M26: 4.428571429 | N26: 36.65451776 | O26: 37.18077095 | P26: 13 a 16 | Q26: 16 | R26: =IF(Q26=0,R25+4,IF((Q26-$D$25)<0,"",Q26-$D$25)) -> 4.428571429 | S26: 4.428571429 | T26: 28 | U26: 2.692610469 | V26: 2.799590502 | W26: -0.6677757162 | X26: -0.5792946723 | Y26: -22.03659863 | Z26: -19.11672419 | AA26: 18.51938531 | AB26: 20.53950608 | AC26: 26.50724616 | AD26: 26.70301234 | AE26: 24.39332788 | AF26: 26.47454217 | AG26: 2606.017345 | AH26: 2506.665953 | AI26: =(0.83*AC26+0.002*$D$10+0.9*N26+IF($S26=0,0,(7.38/(1+EXP(19.1-5.46*LN(S26)))))) -> 56.39020666 | AJ26: =(0.83*AD26+0.002*$D$10+0.9*O26+IF($S26=0,0,(7.38/(1+EXP(19.1-5.46*LN(S26)))))) -> 57.02632046 | AK26: =(0.663*AC26+0.008*$D$10+1.25*N26+IF(S26=0,0,(23.5/(1+EXP(18.8-(5.03*LN(S26))))))) -> 68.99273785 | AL26: =(0.663*AD26+0.008*$D$10+1.25*O26+IF(S26=0,0,(23.5/(1+EXP(18.8-(5.03*LN(S26))))))) -> 69.78034731 | AM26: =(0.011*$D$10+0.15*N26+IF(S26>36,0.33,0)) -> 13.19817766 | AN26: =(0.011*$D$10+0.15*O26+IF(S26>36,0.33,0)) -> 13.27711564 | AO26: 135.4817766 | AP26: 136.2711564 | AQ26: 32.59453299 | AR26: 32.83134693 | AS26: 53.01449232 | AT26: 53.40602468 | AU26: 29.99817766 | AV26: 30.07711564 | AW26: 366.5451776 | AX26: 371.8077095 | AY26: 7.952173847 | AZ26: 8.010903703 | BA26: 265.0724616 | BB26: 267.0301234 | BC26: 1325.362308 | BD26: 1335.150617 | BE26: 1325.362308 | BF26: 1335.150617 | BG26: 17.22971 | BH26: 17.35695802 | BI26: 0.15 | BJ26: 0.15 | BK26: 0.9690781038 | BL26: 0.9768085779 | BM26: 0.9999725267 | BN26: 0.8828956452 | BO26: 1 | BP26: 1.013407471 | BQ26: 0.9844784648
A27: % dies productius (IP - TE)/IP | D27: =D26/D6 -> 0.8356164384 | J27: 20 | K27: 20 | L27: =L26+4 -> 20 | M27: 8.428571429 | N27: 35.14808625 | O27: 34.66807019 | P27: 17 a 20 | Q27: 20 | R27: 8.428571429 | S27: 8.428571429 | T27: 29 | U27: 2.772489246 | V27: 2.868885251 | W27: -0.7924431574 | X27: -0.6874435354 | Y27: -26.15062419 | Z27: -22.68563667 | AA27: 18.65853595 | AB27: 20.32503879 | AC27: 26.10856419 | AD27: 25.92999821 | AE27: 23.83915892 | AF27: 25.55207088 | AG27: 2525.346148 | AH27: 2381.419438 | AI27: =(0.83*AC27+0.002*$D$10+0.9*N27+IF($S27=0,0,(7.38/(1+EXP(19.1-5.46*LN(S27)))))) -> 54.70762622 | AJ27: =(0.83*AD27+0.002*$D$10+0.9*O27+IF($S27=0,0,(7.38/(1+EXP(19.1-5.46*LN(S27)))))) -> 54.12740201 | AK27: =(0.663*AC27+0.008*$D$10+1.25*N27+IF(S27=0,0,(23.5/(1+EXP(18.8-(5.03*LN(S27))))))) -> 66.85237607 | AL27: =(0.663*AD27+0.008*$D$10+1.25*O27+IF(S27=0,0,(23.5/(1+EXP(18.8-(5.03*LN(S27))))))) -> 66.13396676 | AM27: =(0.011*$D$10+0.15*N27+IF(S27>36,0.33,0)) -> 12.97221294 | AN27: =(0.011*$D$10+0.15*O27+IF(S27>36,0.33,0)) -> 12.90021053 | AO27: 133.2221294 | AP27: 132.5021053 | AQ27: 31.91663881 | AR27: 31.70063159 | AS27: 52.21712837 | AT27: 51.85999643 | AU27: 29.77221294 | AV27: 29.70021053 | AW27: 351.4808625 | AX27: 346.6807019 | AY27: 7.832569256 | AZ27: 7.778999464 | BA27: 261.0856419 | BB27: 259.2999821 | BC27: 1305.428209 | BD27: 1296.499911 | BE27: 1305.428209 | BF27: 1296.499911 | BG27: 16.97056672 | BH27: 16.85449884 | BI27: 0.15 | BJ27: 0.15 | BK27: 0.9836951184 | BL27: 0.9877713388 | BM27: 0.9999253198 | BN27: 0.8918990558 | BO27: 1 | BP27: 1.012128877 | BQ27: 0.9792857508
A28: Producció mitjana explotació, vaca present i any, estàndard, Pl vp 4% | D28: =D3*(1+(0.0055*(D4*10-40)+0.0033*(D5*10-31)))/D27 -> 11664.44262 | J28: 24 | K28: 24 | L28: =L27+4 -> 24 | M28: 12.42857143 | N28: 33.63048016 | O28: 32.1700221 | P28: 21 a 24 | Q28: 24 | R28: 12.42857143 | S28: 12.42857143 | T28: 30 | U28: 2.860369249 | V28: 2.945121053 | W28: -0.8322010095 | X28: -0.7219334268 | Y28: -27.46263332 | Z28: -23.82380309 | AA28: 18.63083029 | AB28: 19.98091275 | AC28: 25.61903872 | AD28: 25.07574832 | AE28: 23.21361034 | AF28: 24.57970194 | AG28: 2441.094003 | AH28: 2254.348471 | AI28: =(0.83*AC28+0.002*$D$10+0.9*N28+IF($S28=0,0,(7.38/(1+EXP(19.1-5.46*LN(S28)))))) -> 52.96643045 | AJ28: =(0.83*AD28+0.002*$D$10+0.9*O28+IF($S28=0,0,(7.38/(1+EXP(19.1-5.46*LN(S28)))))) -> 51.20108717 | AK28: =(0.663*AC28+0.008*$D$10+1.25*N28+IF(S28=0,0,(23.5/(1+EXP(18.8-(5.03*LN(S28))))))) -> 64.6748469 | AL28: =(0.663*AD28+0.008*$D$10+1.25*O28+IF(S28=0,0,(23.5/(1+EXP(18.8-(5.03*LN(S28))))))) -> 62.4890728 | AM28: =(0.011*$D$10+0.15*N28+IF(S28>36,0.33,0)) -> 12.74457202 | AN28: =(0.011*$D$10+0.15*O28+IF(S28>36,0.33,0)) -> 12.52550332 | AO28: 130.9457202 | AP28: 128.7550332 | AQ28: 31.23371607 | AR28: 30.57650995 | AS28: 51.23807744 | AT28: 50.15149664 | AU28: 29.54457202 | AV28: 29.32550332 | AW28: 336.3048016 | AX28: 321.700221 | AY28: 7.685711615 | AZ28: 7.522724496 | BA28: 256.1903872 | BB28: 250.7574832 | BC28: 1280.951936 | BD28: 1253.787416 | BE28: 1280.951936 | BF28: 1253.787416 | BG28: 16.65237517 | BH28: 16.29923641 | BI28: 0.15 | BJ28: 0.15 | BK28: 0.9914025595 | BL28: 0.9935519196 | BM28: 0.9997969981 | BN28: 0.9002102514 | BO28: 1 | BP28: 1.010931751 | BQ28: 0.9738865629
A29: Producció mitjana explotació, vaca lactació i any, Pl vl 4% | D29: =D28*385/(365+80) -> 10091.70879 | J29: 28 | K29: 28 | L29: 28 | M29: 16.42857143 | N29: 32.08535469 | O29: 29.64466113 | P29: 25 a 28 | Q29: 28 | R29: 16.42857143 | S29: 16.42857143 | T29: 31 | U29: 2.95080091 | V29: 3.023570416 | W29: -0.8448800601 | X29: -0.7329324887 | Y29: -27.88104198 | Z29: -24.18677213 | AA29: 18.49985489 | AB29: 19.55786459 | AC29: 25.07905868 | AD29: 24.17112067 | AE29: 22.57840758 | AF29: 23.60115705 | AG29: 2356.071741 | AH29: 2126.636866 | AI29: =(0.83*AC29+0.002*$D$10+0.9*N29+IF($S29=0,0,(7.38/(1+EXP(19.1-5.46*LN(S29)))))) -> 51.25120544 | AJ29: =(0.83*AD29+0.002*$D$10+0.9*O29+IF($S29=0,0,(7.38/(1+EXP(19.1-5.46*LN(S29)))))) -> 48.30099269 | AK29: =(0.663*AC29+0.008*$D$10+1.25*N29+IF(S29=0,0,(23.5/(1+EXP(18.8-(5.03*LN(S29))))))) -> 62.54157553 | AL29: =(0.663*AD29+0.008*$D$10+1.25*O29+IF(S29=0,0,(23.5/(1+EXP(18.8-(5.03*LN(S29))))))) -> 58.88874568 | AM29: =(0.011*$D$10+0.15*N29+IF(S29>36,0.33,0)) -> 12.5128032 | AN29: =(0.011*$D$10+0.15*O29+IF(S29>36,0.33,0)) -> 12.14669917 | AO29: 128.628032 | AP29: 124.9669917 | AQ29: 30.53840961 | AR29: 29.44009751 | AS29: 50.15811736 | AT29: 48.34224135 | AU29: 29.3128032 | AV29: 28.94669917 | AW29: 320.8535469 | AX29: 296.4466113 | AY29: 7.523717604 | AZ29: 7.251336202 | BA29: 250.7905868 | BB29: 241.7112067 | BC29: 1253.952934 | BD29: 1208.556034 | BE29: 1253.952934 | BF29: 1208.556034 | BG29: 16.30138814 | BH29: 15.71122844 | BI29: 0.15 | BJ29: 0.15 | BK29: 0.9954666347 | BL29: 0.9965999761 | BM29: 0.9994481835 | BN29: 0.9078824518 | BO29: 1 | BP29: 1.00958387 | BQ29: 0.9679010791
A30: Vaques primera lactació | D30: =D8*D9 -> 0 | J30: 32 | K30: 32 | L30: 32 | M30: 20.42857143 | N30: 30.45865353 | O30: =IF(Q30=0,0,IF(R30="",O$19*(-0.83+1.92*EXP(-0.0083*Q30)-0.74*EXP(-0.88*Q30)),O$19*(-0.83+1.92*EXP(-0.0083*Q30)-0.74*EXP(-0.88*Q30)-(0.5*EXP(-0.12*(45-R30)))))) -> 27.02579808 | P30: 29 a 32 | Q30: 32 | R30: 20.42857143 | S30: 20.42857143 | T30: 32 | U30: 3.042046312 | V30: 3.102725698 | W30: -0.8489234926 | X30: -0.7364401618 | Y30: -28.01447526 | Z30: -24.30252534 | AA30: 18.28559321 | AB30: 19.06831355 | AC30: 24.49007404 | AD30: 23.21305181 | AE30: 21.94640226 | AF30: 22.62188208 | AG30: 2269.754652 | AH30: 1997.028529 | AI30: =(0.83*AC30+0.002*$D$10+0.9*N30+IF($S30=0,0,(7.38/(1+EXP(19.1-5.46*LN(S30)))))) -> 49.63686591 | AJ30: =(0.83*AD30+0.002*$D$10+0.9*O30+IF($S30=0,0,(7.38/(1+EXP(19.1-5.46*LN(S30)))))) -> 45.48736755 | AK30: =(0.663*AC30+0.008*$D$10+1.25*N30+IF(S30=0,0,(23.5/(1+EXP(18.8-(5.03*LN(S30))))))) -> 60.52034112 | AL30: =(0.663*AD30+0.008*$D$10+1.25*O30+IF(S30=0,0,(23.5/(1+EXP(18.8-(5.03*LN(S30))))))) -> 55.38260606 | AM30: =(0.011*$D$10+0.15*N30+IF(S30>36,0.33,0)) -> 12.26879803 | AN30: =(0.011*$D$10+0.15*O30+IF(S30>36,0.33,0)) -> 11.75386971 | AO30: 126.1879803 | AP30: 121.0386971 | AQ30: 29.80639409 | AR30: 28.26160913 | AS30: 48.98014808 | AT30: 46.42610362 | AU30: 29.06879803 | AV30: 28.55386971 | AW30: 304.5865353 | AX30: 270.2579808 | AY30: 7.347022211 | AZ30: 6.963915543 | BA30: 244.9007404 | BB30: 232.1305181 | BC30: 1224.503702 | BD30: 1160.65259 | BE30: 1224.503702 | BF30: 1160.65259 | BG30: 15.91854812 | BH30: 15.08848368 | BI30: 0.15 | BJ30: 0.15 | BK30: 0.9976095908 | BL30: 0.9982071931 | BM30: 0.9985000073 | BN30: 0.9149647855 | BO30: 1 | BP30: 1.007901075 | BQ30: 0.9610930563
A31: Vaques adultes | D31: =D8*(1-D9) -> 1 | J31: 36 | K31: 36 | L31: 36 | M31: 24.42857143 | N31: 28.64461901 | O31: 24.20807717 | P31: 33 a 36 | Q31: 36 | R31: 24.42857143 | S31: 24.42857143 | T31: 33 | U31: 3.133551222 | V31: 3.182106103 | W31: -0.8502129698 | X31: -0.7375587818 | Y31: -28.057028 | Z31: -24.3394398 | AA31: 17.9702008 | AB31: 18.49116381 | AC31: 23.82274499 | AD31: 22.17235142 | AE31: 21.30627328 | AF31: 21.62998807 | AG31: 2178.950149 | AH31: 1862.326713 | AI31: =(0.83*AC31+0.002*$D$10+0.9*N31+IF($S31=0,0,(7.38/(1+EXP(19.1-5.46*LN(S31)))))) -> 48.14083663 | AJ31: =(0.83*AD31+0.002*$D$10+0.9*O31+IF($S31=0,0,(7.38/(1+EXP(19.1-5.46*LN(S31)))))) -> 42.77812231 | AK31: =(0.663*AC31+0.008*$D$10+1.25*N31+IF(S31=0,0,(23.5/(1+EXP(18.8-(5.03*LN(S31))))))) -> 58.64534815 | AL31: =(0.663*AD31+0.008*$D$10+1.25*O31+IF(S31=0,0,(23.5/(1+EXP(18.8-(5.03*LN(S31))))))) -> 52.00545991 | AM31: =(0.011*$D$10+0.15*N31+IF(S31>36,0.33,0)) -> 11.99669285 | AN31: =(0.011*$D$10+0.15*O31+IF(S31>36,0.33,0)) -> 11.33121157 | AO31: 124.4669285 | AP31: 117.8121157 | AQ31: 30.29007855 | AR31: 28.29363472 | AS31: 47.64548998 | AT31: 44.34470284 | AU31: 29.79669285 | AV31: 29.13121157 | AW31: 286.4461901 | AX31: 242.0807717 | AY31: 7.146823496 | AZ31: 6.651705427 | BA31: 238.2274499 | BB31: 221.7235142 | BC31: 1191.137249 | BD31: 1108.617571 | BE31: 1191.137249 | BF31: 1108.617571 | BG31: 15.48478424 | BH31: 14.41202842 | BI31: 0.15 | BJ31: 0.15 | BK31: 0.9987395554 | BL31: 0.9990546665 | BM31: 0.9959225972 | BN31: 0.9215026035 | BO31: 1 | BP31: 1.005599055 | BQ31: 0.9532256874
A32: Vaques adultes en lactació | D32: =D31*D27 -> 0.8356164384 | J32: 40 | K32: 40 | L32: 40 | M32: 28.42857143 | N32: 26.44283376 | O32: 21.02279491 | P32: 37 a 40 | Q32: 40 | R32: 28.42857143 | S32: 28.42857143 | T32: 34 | U32: 3.22513889 | V32: 3.2615583 | W32: -0.8506241925 | X32: -0.737915517 | Y32: -28.07059835 | Z32: -24.35121206 | AA32: 17.4789899 | AB32: 17.75652333 | AC32: 23.00715662 | AD32: 20.99090217 | AE32: 20.61900512 | AF32: 20.59954443 | AG32: 2076.317064 | AH32: 1716.882997 | AI32: =(0.83*AC32+0.002*$D$10+0.9*N32+IF($S32=0,0,(7.38/(1+EXP(19.1-5.46*LN(S32)))))) -> 46.54597706 | AJ32: =(0.83*AD32+0.002*$D$10+0.9*O32+IF($S32=0,0,(7.38/(1+EXP(19.1-5.46*LN(S32)))))) -> 39.9944509 | AK32: =(0.663*AC32+0.008*$D$10+1.25*N32+IF(S32=0,0,(23.5/(1+EXP(18.8-(5.03*LN(S32))))))) -> 56.80214457 | AL32: =(0.663*AD32+0.008*$D$10+1.25*O32+IF(S32=0,0,(23.5/(1+EXP(18.8-(5.03*LN(S32))))))) -> 48.69031931 | AM32: =(0.011*$D$10+0.15*N32+IF(S32>36,0.33,0)) -> 11.66642506 | AN32: =(0.011*$D$10+0.15*O32+IF(S32>36,0.33,0)) -> 10.85341924 | AO32: 121.1642506 | AP32: 113.0341924 | AQ32: 29.29927519 | AR32: 26.86025771 | AS32: 46.01431324 | AT32: 41.98180433 | AU32: 29.46642506 | AV32: 28.65341924 | AW32: 444.4283376 | AX32: 390.2279491 | AY32: 6.902146986 | AZ32: 6.29727065 | BA32: 230.0715662 | BB32: 209.9090217 | BC32: 1150.357831 | BD32: 1049.545108 | BE32: 1150.357831 | BF32: 1049.545108 | BG32: 14.9546518 | BH32: 13.64408641 | BI32: 0.15 | BJ32: 0.15 | BK32: 0.9993353771 | BL32: 0.9995015328 | BM32: 0.98891647 | BN32: 0.9275377701 | BO32: 1 | BP32: 1.002084524 | BQ32: 0.9440725294
A33: Vaques adultes eixutes | D33: =D31*(1-D27) -> 0.1643835616 | J33: 43.57142857 | K33: 43.57142857 | L33: 44 | M33: 32 | N33: 23.84643573 | O33: 17.65047092 | P33: 41 a 44 | Q33: 43.57142857 | R33: 32 | S33: 32 | T33: 34.89285714 | U33: 3.306936588 | V33: 3.33251771 | W33: -0.8507473355 | X33: -0.7380223435 | Y33: -28.07466207 | Z33: -24.35473733 | AA33: 16.73999667 | AB33: 16.83641965 | AC33: 22.04278939 | AD33: 19.73789048 | AE33: 19.89414002 | AF33: 19.61122569 | AG33: 1962.571492 | AH33: 1570.395941 | AI33: =(0.83*AC33+0.002*$D$10+0.9*N33+IF($S33=0,0,(7.38/(1+EXP(19.1-5.46*LN(S33)))))) -> 44.52144222 | AJ33: =(0.83*AD33+0.002*$D$10+0.9*O33+IF($S33=0,0,(7.38/(1+EXP(19.1-5.46*LN(S33)))))) -> 37.03200779 | AK33: =(0.663*AC33+0.008*$D$10+1.25*N33+IF(S33=0,0,(23.5/(1+EXP(18.8-(5.03*LN(S33))))))) -> 54.79405587 | AL33: =(0.663*AD33+0.008*$D$10+1.25*O33+IF(S33=0,0,(23.5/(1+EXP(18.8-(5.03*LN(S33))))))) -> 45.52095187 | AM33: =(0.011*$D$10+0.15*N33+IF(S33>36,0.33,0)) -> 11.27696536 | AN33: =(0.011*$D$10+0.15*O33+IF(S33>36,0.33,0)) -> 10.34757064 | AO33: 117.2696536 | AP33: 107.9757064 | AQ33: 28.13089608 | AR33: 25.34271191 | AS33: 44.08557879 | AT33: 39.47578096 | AU33: 29.07696536 | AV33: 28.14757064 | AW33: 418.4643573 | AX33: 356.5047092 | AY33: 6.612836818 | AZ33: 5.921367145 | BA33: 220.4278939 | BB33: 197.3789048 | BC33: 1102.13947 | BD33: 986.8945241 | BE33: 1102.13947 | BF33: 986.8945241 | BG33: 14.32781311 | BH33: 12.82962881 | BI33: 0.15 | BJ33: 0.15 | BK33: 0.9996246754 | BL33: 0.9997185065 | BM33: 0.9729329434 | BN33: 0.9325331148 | BO33: 1 | BP33: 0.9968066111 | BQ33: 0.9348216965
A34: Vaques primípares en lactació | D34: =D30*D27 -> 0 | J34: 0 | K34: 43.57142857 | L34: 48 | M34: 0 | N34: 0 | O34: 0 | P34: 45 a 48 | Q34: 0 | R34: 36 | S34: 36 | T34: 35.89285714 | U34: 3.5 | V34: 3.5 | W34: -0.8508167382 | X34: -0.7380825502 | Y34: -28.07695236 | Z34: -24.35672416 | AA34: 7.005062831 | AB34: 8.653974177 | AC34: 13.17218001 | AD34: 13.17218001 | AE34: 10.55760178 | AF34: 12.93911759 | AG34: 732.3190107 | AH34: 682.3994221 | AI34: =(0.83*AC34+0.002*$D$10+0.9*N34+IF($S34=0,0,(7.38/(1+EXP(19.1-5.46*LN(S34)))))) -> 16.86747476 | AJ34: =(0.83*AD34+0.002*$D$10+0.9*O34+IF($S34=0,0,(7.38/(1+EXP(19.1-5.46*LN(S34)))))) -> 16.86747476 | AK34: =(0.663*AC34+0.008*$D$10+1.25*N34+IF(S34=0,0,(23.5/(1+EXP(18.8-(5.03*LN(S34))))))) -> 21.74552884 | AL34: =(0.663*AD34+0.008*$D$10+1.25*O34+IF(S34=0,0,(23.5/(1+EXP(18.8-(5.03*LN(S34))))))) -> 21.74552884 | AM34: =(0.011*$D$10+0.15*N34+IF(S34>36,0.33,0)) -> 7.7 | AN34: =(0.011*$D$10+0.15*O34+IF(S34>36,0.33,0)) -> 7.7 | AO34: 50 | AP34: 50 | AQ34: 11.8 | AR34: 11.8 | AS34: 26.34436002 | AT34: 26.34436002 | AU34: 17.1 | AV34: 17.1 | AW34: 180 | AX34: 180 | AY34: 3.951654003 | AZ34: 3.951654003 | BA34: 131.7218001 | BB34: 131.7218001 | BC34: 658.6090005 | BD34: 658.6090005 | BE34: 658.6090005 | BF34: 658.6090005 | BG34: 5.927481004 | BH34: 5.927481004 | BI34: 0 | BJ34: 0 | BK34: 0.6 | BL34: 0.7 | BM34: 0.9264241118 | BN34: 0.9377202155 | BO34: 1 | BP34: 0.91736049 | BQ34: 0.9108986963
A35: Vaques primípares eixutes | D35: =D30*(1-D27) -> 0 | J35: 0 | K35: 43.57142857 | L35: 52 | M35: 0 | N35: 0 | O35: 0 | P35: 49 a 52 | Q35: 0 | R35: 40 | S35: 40 | T35: 36.89285714 | U35: 3.5 | V35: 3.5 | W35: -0.8508167382 | X35: -0.7380825502 | Y35: -28.07695236 | Z35: -24.35672416 | AA35: 6.081800361 | AB35: 7.475160147 | AC35: 13.17218001 | AD35: 13.17218001 | AE35: 11.68279513 | AF35: 14.14131094 | AG35: 813.8351481 | AH35: 773.855858 | AI35: =(0.83*AC35+0.002*$D$10+0.9*N35+IF($S35=0,0,(7.38/(1+EXP(19.1-5.46*LN(S35)))))) -> 17.78744717 | AJ35: =(0.83*AD35+0.002*$D$10+0.9*O35+IF($S35=0,0,(7.38/(1+EXP(19.1-5.46*LN(S35)))))) -> 17.78744717 | AK35: =(0.663*AC35+0.008*$D$10+1.25*N35+IF(S35=0,0,(23.5/(1+EXP(18.8-(5.03*LN(S35))))))) -> 24.65130568 | AL35: =(0.663*AD35+0.008*$D$10+1.25*O35+IF(S35=0,0,(23.5/(1+EXP(18.8-(5.03*LN(S35))))))) -> 24.65130568 | AM35: =(0.011*$D$10+0.15*N35+IF(S35>36,0.33,0)) -> 8.03 | AN35: =(0.011*$D$10+0.15*O35+IF(S35>36,0.33,0)) -> 8.03 | AO35: 50 | AP35: 50 | AQ35: 11.8 | AR35: 11.8 | AS35: 26.34436002 | AT35: 26.34436002 | AU35: 17.1 | AV35: 17.1 | AW35: 180 | AX35: 180 | AY35: 3.951654003 | AZ35: 3.951654003 | BA35: 131.7218001 | BB35: 131.7218001 | BC35: 658.6090005 | BD35: 658.6090005 | BE35: 658.6090005 | BF35: 658.6090005 | BG35: 5.927481004 | BH35: 5.927481004 | BI35: 0 | BJ35: 0 | BK35: 0.6 | BL35: 0.7 | BM35: 0.8 | BN35: 0.9425085128 | BO35: 1 | BP35: 0.9176308726 | BQ35: 0.9111604275
A36: Vaques adultes en lactació (%) | D36: =D32/D8 -> 0.8356164384 | J36: 0 | K36: 43.57142857 | L36: 56 | M36: 0 | N36: 0 | O36: 0 | P36: 53 a 56 | Q36: 0 | R36: 44 | S36: 0 | T36: 37.89285714 | U36: 3.5 | V36: 3.5 | W36: -0.8508167382 | X36: -0.7380825502 | Y36: -28.07695236 | Z36: -24.35672416 | AA36: 7.613327049 | AB36: 9.336782423 | AC36: 13.17218001 | AD36: 13.17218001 | AE36: 8.398720657 | AF36: 10.93423647 | AG36: 551.8198012 | AH36: 521.7808096 | AI36: =(0.83*AC36+0.002*$D$10+0.9*N36+IF($S36=0,0,(7.38/(1+EXP(19.1-5.46*LN(S36)))))) -> 12.33290941 | AJ36: =(0.83*AD36+0.002*$D$10+0.9*O36+IF($S36=0,0,(7.38/(1+EXP(19.1-5.46*LN(S36)))))) -> 12.33290941 | AK36: =(0.663*AC36+0.008*$D$10+1.25*N36+IF(S36=0,0,(23.5/(1+EXP(18.8-(5.03*LN(S36))))))) -> 14.33315535 | AL36: =(0.663*AD36+0.008*$D$10+1.25*O36+IF(S36=0,0,(23.5/(1+EXP(18.8-(5.03*LN(S36))))))) -> 14.33315535 | AM36: =(0.011*$D$10+0.15*N36+IF(S36>36,0.33,0)) -> 7.7 | AN36: =(0.011*$D$10+0.15*O36+IF(S36>36,0.33,0)) -> 7.7 | AO36: 49 | AP36: 49 | AQ36: 10.5 | AR36: 10.5 | AS36: 26.34436002 | AT36: 26.34436002 | AU36: 16.1 | AV36: 16.1 | AW36: 0 | AX36: 0 | AY36: 3.951654003 | AZ36: 3.951654003 | BA36: 131.7218001 | BB36: 131.7218001 | BC36: 658.6090005 | BD36: 658.6090005 | BE36: 658.6090005 | BF36: 658.6090005 | BG36: 5.927481004 | BH36: 5.927481004 | BI36: 0 | BJ36: 0 | BK36: 0.6 | BL36: 0.7 | BM36: 0.99999092 | BN36: 0.9469286684 | BO36: 1 | BP36: 0.9146865427 | BQ36: 0.9104697417
A37: Vaques adultes eixutes (%) | D37: =D33/D8 -> 0.1643835616 | J37: 0 | K37: 43.57142857 | L37: 60 | M37: 0 | N37: 0 | O37: 0 | P37: 57 a 60 | Q37: 0 | R37: 48 | S37: 0 | T37: 38.89285714 | U37: 3.5 | V37: 3.5 | W37: -0.8508167382 | X37: -0.7380825502 | Y37: -28.07695236 | Z37: -24.35672416 | AA37: 7.643365593 | AB37: 9.336782423 | AC37: 13.17218001 | AD37: 13.17218001 | AE37: 8.321720657 | AF37: 10.93423647 | AG37: 541.8795027 | AH37: 521.7808096 | AI37: =(0.83*AC37+0.002*$D$10+0.9*N37+IF($S37=0,0,(7.38/(1+EXP(19.1-5.46*LN(S37)))))) -> 12.33290941 | AJ37: =(0.83*AD37+0.002*$D$10+0.9*O37+IF($S37=0,0,(7.38/(1+EXP(19.1-5.46*LN(S37)))))) -> 12.33290941 | AK37: =(0.663*AC37+0.008*$D$10+1.25*N37+IF(S37=0,0,(23.5/(1+EXP(18.8-(5.03*LN(S37))))))) -> 14.33315535 | AL37: =(0.663*AD37+0.008*$D$10+1.25*O37+IF(S37=0,0,(23.5/(1+EXP(18.8-(5.03*LN(S37))))))) -> 14.33315535 | AM37: =(0.011*$D$10+0.15*N37+IF(S37>36,0.33,0)) -> 7.7 | AN37: =(0.011*$D$10+0.15*O37+IF(S37>36,0.33,0)) -> 7.7 | AO37: 49 | AP37: 49 | AQ37: 10.5 | AR37: 10.5 | AS37: 26.34436002 | AT37: 26.34436002 | AU37: 16.1 | AV37: 16.1 | AW37: 0 | AX37: 0 | AY37: 3.951654003 | AZ37: 3.951654003 | BA37: 131.7218001 | BB37: 131.7218001 | BC37: 658.6090005 | BD37: 658.6090005 | BE37: 658.6090005 | BF37: 658.6090005 | BG37: 5.927481004 | BH37: 5.927481004 | BI37: 0 | BJ37: 0 | BK37: 0.6 | BL37: 0.7 | BM37: 0.99999092 | BN37: 0.9510089863 | BO37: 1 | BP37: 0.9143554979 | BQ37: 0.9104697417
A38: Vaques primípares en lactació (%) | D38: =D34/D8 -> 0 | J38: 0 | K38: 43.57142857 | L38: 64 | M38: 0 | N38: 0 | O38: 0 | P38: 61 a 64 | Q38: 0 | R38: 52 | S38: 0 | T38: 39.89285714 | U38: 3.5 | V38: 3.5 | W38: -0.8508167382 | X38: -0.7380825502 | Y38: -28.07695236 | Z38: -24.35672416 | AA38: 7.671002391 | AB38: 9.336782423 | AC38: 13.17218001 | AD38: 13.17218001 | AE38: 8.244720657 | AF38: 10.93423647 | AG38: 531.9392042 | AH38: 521.7808096 | AI38: =(0.83*AC38+0.002*$D$10+0.9*N38+IF($S38=0,0,(7.38/(1+EXP(19.1-5.46*LN(S38)))))) -> 12.33290941 | AJ38: =(0.83*AD38+0.002*$D$10+0.9*O38+IF($S38=0,0,(7.38/(1+EXP(19.1-5.46*LN(S38)))))) -> 12.33290941 | AK38: =(0.663*AC38+0.008*$D$10+1.25*N38+IF(S38=0,0,(23.5/(1+EXP(18.8-(5.03*LN(S38))))))) -> 14.33315535 | AL38: =(0.663*AD38+0.008*$D$10+1.25*O38+IF(S38=0,0,(23.5/(1+EXP(18.8-(5.03*LN(S38))))))) -> 14.33315535 | AM38: =(0.011*$D$10+0.15*N38+IF(S38>36,0.33,0)) -> 7.7 | AN38: =(0.011*$D$10+0.15*O38+IF(S38>36,0.33,0)) -> 7.7 | AO38: 49 | AP38: 49 | AQ38: 10.5 | AR38: 10.5 | AS38: 26.34436002 | AT38: 26.34436002 | AU38: 16.1 | AV38: 16.1 | AW38: 0 | AX38: 0 | AY38: 3.951654003 | AZ38: 3.951654003 | BA38: 131.7218001 | BB38: 131.7218001 | BC38: 658.6090005 | BD38: 658.6090005 | BE38: 658.6090005 | BF38: 658.6090005 | BG38: 5.927481004 | BH38: 5.927481004 | BI38: 0 | BJ38: 0 | BK38: 0.6 | BL38: 0.7 | BM38: 0.99999092 | BN38: 0.9547755944 | BO38: 1 | BP38: 0.9140414218 | BQ38: 0.9104697417
A39: Vaques primípares eixutes (%) | D39: =D35/D8 -> 0 | J39: 0 | K39: 43.57142857 | L39: 68 | M39: 0 | N39: 0 | O39: 0 | P39: 65 a 68 | Q39: 0 | R39: 56 | S39: 0 | T39: 40.89285714 | U39: 3.5 | V39: 3.5 | W39: -0.8508167382 | X39: -0.7380825502 | Y39: -28.07695236 | Z39: -24.35672416 | AA39: 7.696432106 | AB39: 9.336782423 | AC39: 13.17218001 | AD39: 13.17218001 | AE39: 8.167720657 | AF39: 10.93423647 | AG39: 521.9989056 | AH39: 521.7808096 | AI39: =(0.83*AC39+0.002*$D$10+0.9*N39+IF($S39=0,0,(7.38/(1+EXP(19.1-5.46*LN(S39)))))) -> 12.33290941 | AJ39: =(0.83*AD39+0.002*$D$10+0.9*O39+IF($S39=0,0,(7.38/(1+EXP(19.1-5.46*LN(S39)))))) -> 12.33290941 | AK39: =(0.663*AC39+0.008*$D$10+1.25*N39+IF(S39=0,0,(23.5/(1+EXP(18.8-(5.03*LN(S39))))))) -> 14.33315535 | AL39: =(0.663*AD39+0.008*$D$10+1.25*O39+IF(S39=0,0,(23.5/(1+EXP(18.8-(5.03*LN(S39))))))) -> 14.33315535 | AM39: =(0.011*$D$10+0.15*N39+IF(S39>36,0.33,0)) -> 7.7 | AN39: =(0.011*$D$10+0.15*O39+IF(S39>36,0.33,0)) -> 7.7 | AO39: 49 | AP39: 49 | AQ39: 10.5 | AR39: 10.5 | AS39: 26.34436002 | AT39: 26.34436002 | AU39: 16.1 | AV39: 16.1 | AW39: 0 | AX39: 0 | AY39: 3.951654003 | AZ39: 3.951654003 | BA39: 131.7218001 | BB39: 131.7218001 | BC39: 658.6090005 | BD39: 658.6090005 | BE39: 658.6090005 | BF39: 658.6090005 | BG39: 5.927481004 | BH39: 5.927481004 | BI39: 0 | BJ39: 0 | BK39: 0.6 | BL39: 0.7 | BM39: 0.99999092 | BN39: 0.958252612 | BO39: 1 | BP39: 0.913743918 | BQ39: 0.9104697417
J40: 0 | K40: 43.57142857 | L40: 72 | M40: 0 | N40: 0 | O40: 0 | P40: 69 a 71 | Q40: 0 | R40: 60 | S40: 0 | T40: =IF(Q40=0,T39+1,24+(Q40/4)) -> 41.89285714 | U40: 3.5 | V40: 3.5 | W40: -0.8508167382 | X40: -0.7380825502 | Y40: -28.07695236 | Z40: -24.35672416 | AA40: 7.719833761 | AB40: 9.336782423 | AC40: 13.17218001 | AD40: 13.17218001 | AE40: 8.090720657 | AF40: 10.93423647 | AG40: 512.0586071 | AH40: 521.7808096 | AI40: =(0.83*AC40+0.002*$D$10+0.9*N40+IF($S40=0,0,(7.38/(1+EXP(19.1-5.46*LN(S40)))))) -> 12.33290941 | AJ40: =(0.83*AD40+0.002*$D$10+0.9*O40+IF($S40=0,0,(7.38/(1+EXP(19.1-5.46*LN(S40)))))) -> 12.33290941 | AK40: =(0.663*AC40+0.008*$D$10+1.25*N40+IF(S40=0,0,(23.5/(1+EXP(18.8-(5.03*LN(S40))))))) -> 14.33315535 | AL40: =(0.663*AD40+0.008*$D$10+1.25*O40+IF(S40=0,0,(23.5/(1+EXP(18.8-(5.03*LN(S40))))))) -> 14.33315535 | AM40: =(0.011*$D$10+0.15*N40+IF(S40>36,0.33,0)) -> 7.7 | AN40: =(0.011*$D$10+0.15*O40+IF(S40>36,0.33,0)) -> 7.7 | AO40: 49 | AP40: 49 | AQ40: 10.5 | AR40: 10.5 | AS40: 26.34436002 | AT40: 26.34436002 | AU40: 16.1 | AV40: 16.1 | AW40: 0 | AX40: 0 | AY40: 3.951654003 | AZ40: 3.951654003 | BA40: 131.7218001 | BB40: 131.7218001 | BC40: 658.6090005 | BD40: 658.6090005 | BE40: 658.6090005 | BF40: 658.6090005 | BG40: 5.927481004 | BH40: 5.927481004 | BI40: 0 | BJ40: 0 | BK40: 0.6 | BL40: 0.7 | BM40: 0.99999092 | BN40: 0.9614623037 | BO40: 1 | BP40: 0.9134625676 | BQ40: 0.9104697417
J41: 0 | K41: 43.57142857 | L41: 76 | M41: 0 | N41: 0 | O41: 0 | P41: 72 a 75 | Q41: 0 | R41: 64 | S41: 0 | T41: 42.89285714 | U41: 3.5 | V41: 3.5 | W41: -0.8508167382 | X41: -0.7380825502 | Y41: -28.07695236 | Z41: -24.35672416 | AA41: 7.74137196 | AB41: 9.336782423 | AC41: 13.17218001 | AD41: 13.17218001 | AE41: 8.013720657 | AF41: 10.93423647 | AG41: 502.1183086 | AH41: 521.7808096 | AI41: =(0.83*AC41+0.002*$D$10+0.9*N41+IF($S41=0,0,(7.38/(1+EXP(19.1-5.46*LN(S41)))))) -> 12.33290941 | AJ41: =(0.83*AD41+0.002*$D$10+0.9*O41+IF($S41=0,0,(7.38/(1+EXP(19.1-5.46*LN(S41)))))) -> 12.33290941 | AK41: =(0.663*AC41+0.008*$D$10+1.25*N41+IF(S41=0,0,(23.5/(1+EXP(18.8-(5.03*LN(S41))))))) -> 14.33315535 | AL41: =(0.663*AD41+0.008*$D$10+1.25*O41+IF(S41=0,0,(23.5/(1+EXP(18.8-(5.03*LN(S41))))))) -> 14.33315535 | AM41: =(0.011*$D$10+0.15*N41+IF(S41>36,0.33,0)) -> 7.7 | AN41: =(0.011*$D$10+0.15*O41+IF(S41>36,0.33,0)) -> 7.7 | AO41: 49 | AP41: 49 | AQ41: 10.5 | AR41: 10.5 | AS41: 26.34436002 | AT41: 26.34436002 | AU41: 16.1 | AV41: 16.1 | AW41: 0 | AX41: 0 | AY41: 3.951654003 | AZ41: 3.951654003 | BA41: 131.7218001 | BB41: 131.7218001 | BC41: 658.6090005 | BD41: 658.6090005 | BE41: 658.6090005 | BF41: 658.6090005 | BG41: 5.927481004 | BH41: 5.927481004 | BI41: 0 | BJ41: 0 | BK41: 0.6 | BL41: 0.7 | BM41: 0.99999092 | BN41: 0.9644252226 | BO41: 1 | BP41: 0.9131969314 | BQ41: 0.9104697417
J42: 0 | K42: 43.57142857 | L42: 80 | M42: 0 | N42: 0 | O42: 0 | P42: 76 a 79 | Q42: 0 | R42: 68 | S42: 0 | T42: 43.89285714 | U42: 3.5 | V42: 3.5 | W42: -0.8508167382 | X42: -0.7380825502 | Y42: -28.07695236 | Z42: -24.35672416 | AA42: 7.761198022 | AB42: 9.336782423 | AC42: 13.17218001 | AD42: 13.17218001 | AE42: 7.936720657 | AF42: 10.93423647 | AG42: 492.1780101 | AH42: 521.7808096 | AI42: =(0.83*AC42+0.002*$D$10+0.9*N42+IF($S42=0,0,(7.38/(1+EXP(19.1-5.46*LN(S42)))))) -> 12.33290941 | AJ42: =(0.83*AD42+0.002*$D$10+0.9*O42+IF($S42=0,0,(7.38/(1+EXP(19.1-5.46*LN(S42)))))) -> 12.33290941 | AK42: =(0.663*AC42+0.008*$D$10+1.25*N42+IF(S42=0,0,(23.5/(1+EXP(18.8-(5.03*LN(S42))))))) -> 14.33315535 | AL42: =(0.663*AD42+0.008*$D$10+1.25*O42+IF(S42=0,0,(23.5/(1+EXP(18.8-(5.03*LN(S42))))))) -> 14.33315535 | AM42: =(0.011*$D$10+0.15*N42+IF(S42>36,0.33,0)) -> 7.7 | AN42: =(0.011*$D$10+0.15*O42+IF(S42>36,0.33,0)) -> 7.7 | AO42: 49 | AP42: 49 | AQ42: 10.5 | AR42: 10.5 | AS42: 26.34436002 | AT42: 26.34436002 | AU42: 16.1 | AV42: 16.1 | AW42: 0 | AX42: 0 | AY42: 3.951654003 | AZ42: 3.951654003 | BA42: 131.7218001 | BB42: 131.7218001 | BC42: 658.6090005 | BD42: 658.6090005 | BE42: 658.6090005 | BF42: 658.6090005 | BG42: 5.927481004 | BH42: 5.927481004 | BI42: 0 | BJ42: 0 | BK42: 0.6 | BL42: 0.7 | BM42: 0.99999092 | BN42: 0.9671603414 | BO42: 1 | BP42: 0.9129465521 | BQ42: 0.9104697417
J43: 0 | K43: 43.57142857 | L43: 84 | M43: 0 | N43: 0 | O43: 0 | P43: 80 a 83 | Q43: 0 | R43: 72 | S43: 0 | T43: 44.89285714 | U43: 3.5 | V43: 3.5 | W43: -0.8508167382 | X43: -0.7380825502 | Y43: -28.07695236 | Z43: -24.35672416 | AA43: 7.779451031 | AB43: 9.336782423 | AC43: 13.17218001 | AD43: 13.17218001 | AE43: 7.859720657 | AF43: 10.93423647 | AG43: 482.2377116 | AH43: 521.7808096 | AI43: =(0.83*AC43+0.002*$D$10+0.9*N43+IF($S43=0,0,(7.38/(1+EXP(19.1-5.46*LN(S43)))))) -> 12.33290941 | AJ43: =(0.83*AD43+0.002*$D$10+0.9*O43+IF($S43=0,0,(7.38/(1+EXP(19.1-5.46*LN(S43)))))) -> 12.33290941 | AK43: =(0.663*AC43+0.008*$D$10+1.25*N43+IF(S43=0,0,(23.5/(1+EXP(18.8-(5.03*LN(S43))))))) -> 14.33315535 | AL43: =(0.663*AD43+0.008*$D$10+1.25*O43+IF(S43=0,0,(23.5/(1+EXP(18.8-(5.03*LN(S43))))))) -> 14.33315535 | AM43: =(0.011*$D$10+0.15*N43+IF(S43>36,0.33,0)) -> 7.7 | AN43: =(0.011*$D$10+0.15*O43+IF(S43>36,0.33,0)) -> 7.7 | AO43: 49 | AP43: 49 | AQ43: 10.5 | AR43: 10.5 | AS43: 26.34436002 | AT43: 26.34436002 | AU43: 16.1 | AV43: 16.1 | AW43: 0 | AX43: 0 | AY43: 3.951654003 | AZ43: 3.951654003 | BA43: 131.7218001 | BB43: 131.7218001 | BC43: 658.6090005 | BD43: 658.6090005 | BE43: 658.6090005 | BF43: 658.6090005 | BG43: 5.927481004 | BH43: 5.927481004 | BI43: 0 | BJ43: 0 | BK43: 0.6 | BL43: 0.7 | BM43: 0.99999092 | BN43: 0.9696851744 | BO43: 1 | BP43: 0.9127109566 | BQ43: 0.9104697417
J44: 0 | K44: 43.57142857 | L44: 88 | M44: 0 | N44: 0 | O44: 0 | P44: 84 a 87 | Q44: 0 | R44: 76 | S44: 0 | T44: 45.89285714 | U44: 3.5 | V44: 3.5 | W44: -0.8508167382 | X44: -0.7380825502 | Y44: -28.07695236 | Z44: -24.35672416 | AA44: 7.796258792 | AB44: 9.336782423 | AC44: 13.17218001 | AD44: 13.17218001 | AE44: 7.782720657 | AF44: 10.93423647 | AG44: 472.2974131 | AH44: 521.7808096 | AI44: =(0.83*AC44+0.002*$D$10+0.9*N44+IF($S44=0,0,(7.38/(1+EXP(19.1-5.46*LN(S44)))))) -> 12.33290941 | AJ44: =(0.83*AD44+0.002*$D$10+0.9*O44+IF($S44=0,0,(7.38/(1+EXP(19.1-5.46*LN(S44)))))) -> 12.33290941 | AK44: =(0.663*AC44+0.008*$D$10+1.25*N44+IF(S44=0,0,(23.5/(1+EXP(18.8-(5.03*LN(S44))))))) -> 14.33315535 | AL44: =(0.663*AD44+0.008*$D$10+1.25*O44+IF(S44=0,0,(23.5/(1+EXP(18.8-(5.03*LN(S44))))))) -> 14.33315535 | AM44: =(0.011*$D$10+0.15*N44+IF(S44>36,0.33,0)) -> 7.7 | AN44: =(0.011*$D$10+0.15*O44+IF(S44>36,0.33,0)) -> 7.7 | AO44: 49 | AP44: 49 | AQ44: 10.5 | AR44: 10.5 | AS44: 26.34436002 | AT44: 26.34436002 | AU44: 16.1 | AV44: 16.1 | AW44: 0 | AX44: 0 | AY44: 3.951654003 | AZ44: 3.951654003 | BA44: 131.7218001 | BB44: 131.7218001 | BC44: 658.6090005 | BD44: 658.6090005 | BE44: 658.6090005 | BF44: 658.6090005 | BG44: 5.927481004 | BH44: 5.927481004 | BI44: 0 | BJ44: 0 | BK44: 0.6 | BL44: 0.7 | BM44: 0.99999092 | BN44: 0.9720158889 | BO44: 1 | BP44: 0.9124896582 | BQ44: 0.9104697417
J45: 0 | K45: 43.57142857 | L45: 92 | M45: 0 | N45: 0 | O45: 0 | P45: 88 a 91 | Q45: 0 | R45: 80 | S45: 0 | T45: 46.89285714 | U45: 3.5 | V45: 3.5 | W45: -0.8508167382 | X45: -0.7380825502 | Y45: -28.07695236 | Z45: -24.35672416 | AA45: 7.811738731 | AB45: 9.336782423 | AC45: 13.17218001 | AD45: 13.17218001 | AE45: 7.705720657 | AF45: 10.93423647 | AG45: 462.3571146 | AH45: 521.7808096 | AI45: =(0.83*AC45+0.002*$D$10+0.9*N45+IF($S45=0,0,(7.38/(1+EXP(19.1-5.46*LN(S45)))))) -> 12.33290941 | AJ45: =(0.83*AD45+0.002*$D$10+0.9*O45+IF($S45=0,0,(7.38/(1+EXP(19.1-5.46*LN(S45)))))) -> 12.33290941 | AK45: =(0.663*AC45+0.008*$D$10+1.25*N45+IF(S45=0,0,(23.5/(1+EXP(18.8-(5.03*LN(S45))))))) -> 14.33315535 | AL45: =(0.663*AD45+0.008*$D$10+1.25*O45+IF(S45=0,0,(23.5/(1+EXP(18.8-(5.03*LN(S45))))))) -> 14.33315535 | AM45: =(0.011*$D$10+0.15*N45+IF(S45>36,0.33,0)) -> 7.7 | AN45: =(0.011*$D$10+0.15*O45+IF(S45>36,0.33,0)) -> 7.7 | AO45: 49 | AP45: 49 | AQ45: 10.5 | AR45: 10.5 | AS45: 26.34436002 | AT45: 26.34436002 | AU45: 16.1 | AV45: 16.1 | AW45: 0 | AX45: 0 | AY45: 3.951654003 | AZ45: 3.951654003 | BA45: 131.7218001 | BB45: 131.7218001 | BC45: 658.6090005 | BD45: 658.6090005 | BE45: 658.6090005 | BF45: 658.6090005 | BG45: 5.927481004 | BH45: 5.927481004 | BI45: 0 | BJ45: 0 | BK45: 0.6 | BL45: 0.7 | BM45: 0.99999092 | BN45: 0.9741674096 | BO45: 1 | BP45: 0.9122821587 | BQ45: 0.9104697417
BB46: =IF(AB46="","",15.7*AD46) ->  | BG46: =IF(AA46="","",IF(Q46=0,0.33*AC46,0.45*AC46)) ->  | BH46: =IF(AB46="","",IF(Q46=0,0.33*AD46,0.45*AD46)) -> 
F47: durada | AW47: =IF(S47="","",IF(S47<27,N47,N47+18)) ->  | BG47: =IF(AA47="","",IF(Q47=0,0.33*AC47,0.45*AC47)) ->  | BH47: =IF(AB47="","",IF(Q47=0,0.33*AD47,0.45*AD47)) -> 
A48: Necessitats tres primeres setmanes des del part | D48: =IF(Q20>0,"Lactació",IF(S20="","","Eixugat")) -> Lactació
A49: Necessitats 4a a 6a setmanes des del part | D49: =IF(Q24>0,"Lactació",IF(S24="","","Eixugat")) -> Lactació
A50: Necessitats 7 a 12 setmanes des del part | D50: Lactació | L50: Un grup | M50: Durada, dies | O50: Total vaques | P50: prim | Q50: multi | R50: Producció llet | T50: CI | U50: CI MS | V50: UFL | W50: PDI | X50: P | Y50: UFL_VPR | Z50: PDI_VPR | AA50: Ca | AB50: Mg | AC50: K | AD50: Na | AE50: S | AF50: Cl | AG50: Fe | AH50: Co | AI50: Cu | AJ50: Mn | AK50: Zn | AL50: I | AM50: Se
A51: Necessitats 13 a 16 setmanes des del part | D51: Lactació | M51: =IF(D48="","",IF(Q20=0,IF(S20="","",30),3*7)) -> 21 | N51: =IF(D48="","",IF(M51="","",M51/$M$86)) -> 0.05753424658 | O51: =IF(M51="","",IF(N51="","",N51*$D$8)) -> 0.05753424658 | P51: =IF(D48="","",IF(O51="","",O51*$D$9)) -> 0 | Q51: =IF($D48="","",IF(O51="","",O51*(1-$D$9))) -> 0.05753424658 | R51: =IF($D48="","",IF(N20="","",N20*$D$9+O20*(1-$D$9))) -> 40.75381226 | T51: =IF(AA20="","",IF($D48="","",AA20*$D$9+AB20*(1-$D$9))) -> 15.62233308 | U51: =IF(AA20="","",IF($D48="","",AC20*$D$9+AD20*(1-$D$9))) -> 23.89869639 | V51: =IF(AA20="","",IF($D48="","",AE20*$D$9+AF20*(1-$D$9))) -> 21.47954474 | W51: =IF(AB20="","",IF($D48="","",AG20*$D$9+AH20*(1-$D$9))) -> 2352.256109 | X51: =IF(AB20="","",IF($D48="","",AI20*$D$9+AJ20*(1-$D$9))) -> 57.91434904 | Y51: =IF(AA20="","",IF($D48="","",W20*$D$9+X20*(1-$D$9))) -> 5.853853048 | Z51: =IF(AB20="","",IF($D48="","",Y20*$D$9+Z20*(1-$D$9))) -> 243.1771506 | AA51: =IF(AB20="","",IF($D48="","",AK20*$D$9+AL20*(1-$D$9))) -> 72.38710103 | AB51: =IF(AB20="","",IF($D48="","",AM20*$D$9+AN20*(1-$D$9))) -> 13.81307184 | AC51: =IF(AB20="","",IF($D48="","",AO20*$D$9+AP20*(1-$D$9))) -> 141.6307184 | AD51: =IF(AB20="","",IF($D48="","",AQ20*$D$9+AR20*(1-$D$9))) -> 34.43921552 | AE51: =IF(AB20="","",IF($D48="","",AS20*$D$9+AT20*(1-$D$9))) -> 47.79739279 | AF51: =IF(AB20="","",IF($D48="","",AU20*$D$9+AV20*(1-$D$9))) -> 30.61307184 | AG51: =IF(AB20="","",IF($D48="","",AW20*$D$9+AX20*(1-$D$9))) -> 407.5381226 | AH51: =IF(AB20="","",IF($D48="","",AY20*$D$9+AZ20*(1-$D$9))) -> 7.169608918 | AI51: =IF(AB20="","",IF($D48="","",BA20*$D$9+BB20*(1-$D$9))) -> 238.9869639 | AJ51: =IF(AB20="","",IF($D48="","",BC20*$D$9+BD20*(1-$D$9))) -> 1194.93482 | AK51: =IF(AB20="","",IF($D48="","",BE20*$D$9+BF20*(1-$D$9))) -> 1194.93482 | AL51: =IF(AB20="","",IF($D48="","",BG20*$D$9+BH20*(1-$D$9))) -> 15.53415266 | AM51: =IF(AB20="","",IF($D48="","",BI20*$D$9+BJ20*(1-$D$9))) -> 0.15
A52: Necessitats 17 a 20 setmanes des del part | D52: Lactació | M52: =IF(D49="","",IF(Q24=0,IF(S24="","",30),3*7)) -> 21 | N52: =IF(D49="","",IF(M52="","",M52/$M$86)) -> 0.05753424658 | O52: 0.05753424658 | P52: 0 | Q52: 0.05753424658 | R52: =IF($D49="","",IF(N24="","",N24*$D$9+O24*(1-$D$9))) -> 43.90363692 | T52: =IF(AA24="","",IF($D49="","",AA24*$D$9+AB24*(1-$D$9))) -> 18.66859228 | U52: =IF(AA24="","",IF($D49="","",AC24*$D$9+AD24*(1-$D$9))) -> 27.01239613 | V52: =IF(AA24="","",IF($D49="","",AE24*$D$9+AF24*(1-$D$9))) -> 25.85042871 | W52: =IF(AB24="","",IF($D49="","",AG24*$D$9+AH24*(1-$D$9))) -> 2709.180997 | X52: =IF(AB24="","",IF($D49="","",AI24*$D$9+AJ24*(1-$D$9))) -> 63.33356201 | Y52: =IF(AA24="","",IF($D49="","",W24*$D$9+X24*(1-$D$9))) -> 2.83762646 | Z52: =IF(AB24="","",IF($D49="","",Y24*$D$9+Z24*(1-$D$9))) -> 93.64167318 | AA52: =IF(AB24="","",IF($D49="","",AK24*$D$9+AL24*(1-$D$9))) -> 78.38876478 | AB52: =IF(AB24="","",IF($D49="","",AM24*$D$9+AN24*(1-$D$9))) -> 14.28554554 | AC52: =IF(AB24="","",IF($D49="","",AO24*$D$9+AP24*(1-$D$9))) -> 146.3554554 | AD52: =IF(AB24="","",IF($D49="","",AQ24*$D$9+AR24*(1-$D$9))) -> 35.85663661 | AE52: =IF(AB24="","",IF($D49="","",AS24*$D$9+AT24*(1-$D$9))) -> 54.02479226 | AF52: =IF(AB24="","",IF($D49="","",AU24*$D$9+AV24*(1-$D$9))) -> 31.08554554 | AG52: =IF(AB24="","",IF($D49="","",AW24*$D$9+AX24*(1-$D$9))) -> 439.0363692 | AH52: =IF(AB24="","",IF($D49="","",AY24*$D$9+AZ24*(1-$D$9))) -> 8.103718839 | AI52: =IF(AB24="","",IF($D49="","",BA24*$D$9+BB24*(1-$D$9))) -> 270.1239613 | AJ52: =IF(AB24="","",IF($D49="","",BC24*$D$9+BD24*(1-$D$9))) -> 1350.619807 | AK52: =IF(AB24="","",IF($D49="","",BE24*$D$9+BF24*(1-$D$9))) -> 1350.619807 | AL52: =IF(AB24="","",IF($D49="","",BG24*$D$9+BH24*(1-$D$9))) -> 17.55805748 | AM52: =IF(AB24="","",IF($D49="","",BI24*$D$9+BJ24*(1-$D$9))) -> 0.15
A53: Necessitats 21 a 24 setmanes des del part | D53: Lactació | M53: =IF(D50="","",IF(Q25=0,IF(S25="","",30),6*7)) -> 42 | N53: 0.1150684932 | O53: 0.1150684932 | P53: 0 | Q53: 0.1150684932 | R53: 41.33174796 | T53: 20.24069409 | U53: 27.49803012 | V53: 27.34406478 | W53: 2684.270311 | X53: 61.42193817 | Y53: 0.2778807527 | Z53: 9.170064839 | AA53: 75.49587892 | AB53: 13.89976219 | AC53: 142.4976219 | AD53: 34.69928658 | AE53: 54.99606024 | AF53: 30.69976219 | AG53: 413.3174796 | AH53: 8.249409036 | AI53: 274.9803012 | AJ53: 1374.901506 | AK53: 1374.901506 | AL53: 17.87371958 | AM53: 0.15
A54: Necessitats 25 a 28 setmanes des del part | D54: Lactació | M54: =IF(D51="","",IF(Q26=0,IF(S26="","",30),4*7)) -> 28 | N54: 0.07671232877 | O54: 0.07671232877 | P54: 0 | Q54: 0.07671232877 | R54: 37.18077095 | T54: 20.53950608 | U54: 26.70301234 | V54: 26.47454217 | W54: 2506.665953 | X54: 57.02632046 | Y54: -0.5792946723 | Z54: -19.11672419 | AA54: 69.78034731 | AB54: 13.27711564 | AC54: 136.2711564 | AD54: 32.83134693 | AE54: 53.40602468 | AF54: 30.07711564 | AG54: 371.8077095 | AH54: 8.010903703 | AI54: 267.0301234 | AJ54: 1335.150617 | AK54: 1335.150617 | AL54: 17.35695802 | AM54: 0.15
A55: Necessitats 29 a 32 setmanes des del part | D55: Lactació | M55: =IF(D52="","",IF(Q27=0,IF(S27="","",30),(Q27-Q26)*7)) -> 28 | N55: 0.07671232877 | O55: 0.07671232877 | P55: 0 | Q55: 0.07671232877 | R55: 34.66807019 | T55: 20.32503879 | U55: 25.92999821 | V55: 25.55207088 | W55: 2381.419438 | X55: 54.12740201 | Y55: -0.6874435354 | Z55: -22.68563667 | AA55: 66.13396676 | AB55: 12.90021053 | AC55: 132.5021053 | AD55: 31.70063159 | AE55: 51.85999643 | AF55: 29.70021053 | AG55: 346.6807019 | AH55: 7.778999464 | AI55: 259.2999821 | AJ55: 1296.499911 | AK55: 1296.499911 | AL55: 16.85449884 | AM55: 0.15
A56: Necessitats 33 a 36 setmanes des del part | D56: Lactació | M56: =IF(D53="","",IF(Q28=0,IF(S28="","",30),(Q28-Q27)*7)) -> 28 | N56: 0.07671232877 | O56: 0.07671232877 | P56: 0 | Q56: 0.07671232877 | R56: 32.1700221 | T56: 19.98091275 | U56: 25.07574832 | V56: 24.57970194 | W56: 2254.348471 | X56: 51.20108717 | Y56: -0.7219334268 | Z56: -23.82380309 | AA56: 62.4890728 | AB56: 12.52550332 | AC56: 128.7550332 | AD56: 30.57650995 | AE56: 50.15149664 | AF56: 29.32550332 | AG56: 321.700221 | AH56: 7.522724496 | AI56: 250.7574832 | AJ56: 1253.787416 | AK56: 1253.787416 | AL56: 16.29923641 | AM56: 0.15
A57: Necessitats 37 a 40 setmanes des del part | D57: Lactació | M57: 28 | N57: 0.07671232877 | O57: 0.07671232877 | P57: 0 | Q57: 0.07671232877 | R57: 29.64466113 | T57: 19.55786459 | U57: 24.17112067 | V57: 23.60115705 | W57: 2126.636866 | X57: 48.30099269 | Y57: -0.7329324887 | Z57: -24.18677213 | AA57: 58.88874568 | AB57: 12.14669917 | AC57: 124.9669917 | AD57: 29.44009751 | AE57: 48.34224135 | AF57: 28.94669917 | AG57: 296.4466113 | AH57: 7.251336202 | AI57: 241.7112067 | AJ57: 1208.556034 | AK57: 1208.556034 | AL57: 15.71122844 | AM57: 0.15
A58: Necessitats 41 a 44 setmanes des del part | D58: Lactació | M58: 28 | N58: 0.07671232877 | O58: 0.07671232877 | P58: 0 | Q58: 0.07671232877 | R58: 27.02579808 | T58: 19.06831355 | U58: 23.21305181 | V58: 22.62188208 | W58: 1997.028529 | X58: 45.48736755 | Y58: -0.7364401618 | Z58: -24.30252534 | AA58: 55.38260606 | AB58: 11.75386971 | AC58: 121.0386971 | AD58: 28.26160913 | AE58: 46.42610362 | AF58: 28.55386971 | AG58: 270.2579808 | AH58: 6.963915543 | AI58: 232.1305181 | AJ58: 1160.65259 | AK58: 1160.65259 | AL58: 15.08848368 | AM58: 0.15
A59: Necessitats 45 a 48 setmanes des del part | D59: =IF(Q34>0,"Lactació",IF(S34=0,"","Eixugat")) -> Eixugat | M59: 28 | N59: 0.07671232877 | O59: 0.07671232877 | P59: 0 | Q59: 0.07671232877 | R59: 24.20807717 | T59: 18.49116381 | U59: 22.17235142 | V59: 21.62998807 | W59: 1862.326713 | X59: 42.77812231 | Y59: -0.7375587818 | Z59: -24.3394398 | AA59: 52.00545991 | AB59: 11.33121157 | AC59: 117.8121157 | AD59: 28.29363472 | AE59: 44.34470284 | AF59: 29.13121157 | AG59: 242.0807717 | AH59: 6.651705427 | AI59: 221.7235142 | AJ59: 1108.617571 | AK59: 1108.617571 | AL59: 14.41202842 | AM59: 0.15
A60: Necessitats 49 a 52 setmanes des del part | D60: =IF(Q35>0,"Lactació",IF(S35=0,"","Eixugat")) -> Eixugat | M60: 28 | N60: 0.07671232877 | O60: 0.07671232877 | P60: 0 | Q60: 0.07671232877 | R60: 21.02279491 | T60: 17.75652333 | U60: 20.99090217 | V60: 20.59954443 | W60: 1716.882997 | X60: 39.9944509 | Y60: -0.737915517 | Z60: -24.35121206 | AA60: 48.69031931 | AB60: 10.85341924 | AC60: 113.0341924 | AD60: 26.86025771 | AE60: 41.98180433 | AF60: 28.65341924 | AG60: 390.2279491 | AH60: 6.29727065 | AI60: 209.9090217 | AJ60: 1049.545108 | AK60: 1049.545108 | AL60: 13.64408641 | AM60: 0.15
A61: Necessitats 53 a 56 setmanes des del part | L61: =Q33-Q32 -> 3.571428571 | M61: 25 | N61: 0.06849315068 | O61: 0.06849315068 | P61: 0 | Q61: 0.06849315068 | R61: 17.65047092 | T61: 16.83641965 | U61: 19.73789048 | V61: 19.61122569 | W61: 1570.395941 | X61: 37.03200779 | Y61: -0.7380223435 | Z61: -24.35473733 | AA61: 45.52095187 | AB61: 10.34757064 | AC61: 107.9757064 | AD61: 25.34271191 | AE61: 39.47578096 | AF61: 28.14757064 | AG61: 356.5047092 | AH61: 5.921367145 | AI61: 197.3789048 | AJ61: 986.8945241 | AK61: 986.8945241 | AL61: 12.82962881 | AM61: 0.15
A62: Necessitats 57 a 60 setmanes des del part | M62: 30 | N62: 0.08219178082 | O62: 0.08219178082 | P62: 0 | Q62: 0.08219178082 | R62: 0 | T62: 8.653974177 | U62: 13.17218001 | V62: 12.93911759 | W62: 682.3994221 | X62: 16.86747476 | Y62: -0.7380825502 | Z62: -24.35672416 | AA62: 21.74552884 | AB62: 7.7 | AC62: 50 | AD62: 11.8 | AE62: 26.34436002 | AF62: 17.1 | AG62: 180 | AH62: 3.951654003 | AI62: 131.7218001 | AJ62: 658.6090005 | AK62: 658.6090005 | AL62: 5.927481004 | AM62: 0
A63: Necessitats 61 a 64 setmanes des del part | M63: 30 | N63: 0.08219178082 | O63: 0.08219178082 | P63: 0 | Q63: 0.08219178082 | R63: 0 | T63: 7.475160147 | U63: 13.17218001 | V63: 14.14131094 | W63: 773.855858 | X63: 17.78744717 | Y63: -0.7380825502 | Z63: -24.35672416 | AA63: 24.65130568 | AB63: 8.03 | AC63: 50 | AD63: 11.8 | AE63: 26.34436002 | AF63: 17.1 | AG63: 180 | AH63: 3.951654003 | AI63: 131.7218001 | AJ63: 658.6090005 | AK63: 658.6090005 | AL63: 5.927481004 | AM63: 0
A64: Necessitats 65 a 68 setmanes des del part
M70: =IF(D67="","",IF(Q42=0,IF(S42="","",30),(Q42-Q41)*7)) ->  | N70: =IF(D67="","",IF(M70="","",M70/$M$86)) -> 
A83: Totals
D85: =IF($D54="Lactació",D54,"") -> Lactació
D86: =IF($D55="Lactació",D55,"") -> Lactació | L86: Un grup >>> | M86: =SUM(M51:M85) -> 365 | N86: =SUM(N51:N85) -> 1 | O86: =SUM(O51:O85) -> 1 | P86: =SUM(P51:P85) -> 0 | Q86: =SUM(Q51:Q85) -> 1 | AA86: =IF($D83="","",AI50*$D$9+AJ50*(1-$D$9)) ->  | AE86: =IF($D83="","",AQ50*$D$9+AR50*(1-$D$9)) ->  | AF86: =IF($D83="","",AS50*$D$9+AT50*(1-$D$9)) ->  | AG86: =IF($D83="","",AU50*$D$9+AV50*(1-$D$9)) ->  | AH86: =IF($D83="","",AW50*$D$9+AX50*(1-$D$9)) ->  | AI86: =IF($D83="","",AY50*$D$9+AZ50*(1-$D$9)) ->  | AJ86: =IF($D83="","",BA50*$D$9+BB50*(1-$D$9)) ->  | AK86: =IF($D83="","",BC50*$D$9+BD50*(1-$D$9)) ->  | AL86: =IF($D83="","",BE50*$D$9+BF50*(1-$D$9)) ->  | AM86: =IF($D83="","",BG50*$D$9+BH50*(1-$D$9)) ->  | AQ86: =IF($D83="","",#REF!*$D$9+#REF!*(1-$D$9)) -> 
D87: =IF($D56="Lactació",D56,"") -> Lactació | L87: I | M87: Durada, dies | O87: Total vaques | P87: prim | Q87: multi | R87: Producció llet | T87: CI | U87: CI MS | V87: UFL | W87: PDI | X87: P | Y87: UFL_VPR | Z87: PDI_VPR | AA87: Ca | AB87: Mg | AC87: K | AD87: Na | AE87: S | AF87: Cl | AG87: Fe | AH87: Co | AI87: Cu | AJ87: Mn | AK87: Zn | AL87: I | AM87: Se
D88: Lactació | M88: =IF($D54="Lactació",M57,"") -> 28 | N88: 0.07671232877 | O88: 0.07671232877 | P88: 0 | Q88: 0.07671232877 | R88: 29.64466113 | T88: =IF($D54="Lactació",T57,"") -> 19.55786459 | U88: 24.17112067 | V88: 23.60115705 | W88: 2126.636866 | X88: 48.30099269 | Y88: -0.7329324887 | Z88: -24.18677213 | AA88: 58.88874568 | AB88: 12.14669917 | AC88: 124.9669917 | AD88: 29.44009751 | AE88: 48.34224135 | AF88: 28.94669917 | AG88: 296.4466113 | AH88: 7.251336202 | AI88: 241.7112067 | AJ88: 1208.556034 | AK88: 1208.556034 | AL88: 15.71122844 | AM88: 0.15
D89: Lactació | M89: =IF($D55="Lactació",M58,"") -> 28 | N89: =IF($D55="Lactació",N58,"") -> 0.07671232877 | O89: =IF($D55="Lactació",O58,"") -> 0.07671232877 | P89: =IF($D55="Lactació",P58,"") -> 0 | Q89: =IF($D55="Lactació",Q58,"") -> 0.07671232877 | R89: =IF($D55="Lactació",R58,"") -> 27.02579808 | T89: =IF($D55="Lactació",T58,"") -> 19.06831355 | U89: =IF($D55="Lactació",U58,"") -> 23.21305181 | V89: =IF($D55="Lactació",V58,"") -> 22.62188208 | W89: =IF($D55="Lactació",W58,"") -> 1997.028529 | X89: =IF($D55="Lactació",X58,"") -> 45.48736755 | Y89: =IF($D55="Lactació",Y58,"") -> -0.7364401618 | Z89: -24.30252534 | AA89: =IF($D55="Lactació",AA58,"") -> 55.38260606 | AB89: 11.75386971 | AC89: 121.0386971 | AD89: 28.26160913 | AE89: 46.42610362 | AF89: 28.55386971 | AG89: 270.2579808 | AH89: 6.963915543 | AI89: 232.1305181 | AJ89: 1160.65259 | AK89: 1160.65259 | AL89: 15.08848368 | AM89: 0.15
M90: =IF($D56="Lactació",M59,"") -> 28 | N90: 0.07671232877 | O90: 0.07671232877 | P90: 0 | Q90: 0.07671232877 | R90: 24.20807717 | T90: =IF($D56="Lactació",T59,"") -> 18.49116381 | U90: 22.17235142 | V90: 21.62998807 | W90: 1862.326713 | X90: 42.77812231 | Y90: -0.7375587818 | Z90: -24.3394398 | AA90: 52.00545991 | AB90: 11.33121157 | AC90: 117.8121157 | AD90: 28.29363472 | AE90: 44.34470284 | AF90: 29.13121157 | AG90: 242.0807717 | AH90: 6.651705427 | AI90: 221.7235142 | AJ90: 1108.617571 | AK90: 1108.617571 | AL90: 14.41202842 | AM90: 0.15
M91: 28 | N91: 0.07671232877 | O91: 0.07671232877 | P91: 0 | Q91: 0.07671232877 | R91: 21.02279491 | T91: =IF($D57="Lactació",T60,"") -> 17.75652333 | U91: 20.99090217 | V91: 20.59954443 | W91: 1716.882997 | X91: 39.9944509 | Y91: -0.737915517 | Z91: -24.35121206 | AA91: 48.69031931 | AB91: 10.85341924 | AC91: 113.0341924 | AD91: 26.86025771 | AE91: 41.98180433 | AF91: 28.65341924 | AG91: 390.2279491 | AH91: 6.29727065 | AI91: 209.9090217 | AJ91: 1049.545108 | AK91: 1049.545108 | AL91: 13.64408641 | AM91: 0.15
M92: 25 | N92: 0.06849315068 | O92: 0.06849315068 | P92: 0 | Q92: 0.06849315068 | R92: 17.65047092 | T92: =IF($D58="Lactació",T61,"") -> 16.83641965 | U92: 19.73789048 | V92: 19.61122569 | W92: 1570.395941 | X92: 37.03200779 | Y92: -0.7380223435 | Z92: -24.35473733 | AA92: 45.52095187 | AB92: 10.34757064 | AC92: 107.9757064 | AD92: 25.34271191 | AE92: 39.47578096 | AF92: 28.14757064 | AG92: 356.5047092 | AH92: 5.921367145 | AI92: 197.3789048 | AJ92: 986.8945241 | AK92: 986.8945241 | AL92: 12.82962881 | AM92: 0.15
T93: =IF($D59="Lactació",T62,"") -> 
T94: =IF($D60="Lactació",T63,"") ->  | U94: =IF($D60="Lactació",U63,"") ->  | V94: =IF($D60="Lactació",V63,"") ->  | W94: =IF($D60="Lactació",W63,"") ->  | X94: =IF($D60="Lactació",X63,"") ->  | AA94: =IF($D60="Lactació",AA63,"") -> 
T95: =IF($D61="Lactació",R64,"") ->  | U95: =IF($D61="Lactació",U64,"") ->  | V95: =IF($D61="Lactació",T64,"") ->  | W95: =IF($D61="Lactació",W64,"") ->  | X95: =IF($D61="Lactació",X64,"") ->  | AA95: =IF($D61="Lactació",AA64,"") -> 
W96: =IF($D62="Lactació",W65,"") ->  | X96: =IF($D62="Lactació",X65,"") -> 
W97: =IF($D63="Lactació",W66,"") ->  | X97: =IF($D63="Lactació",X66,"") -> 
W98: =IF($D64="Lactació",W67,"") ->  | X98: =IF($D64="Lactació",X67,"") -> 
W99: =IF($D65="Lactació",W68,"") -> 
M100: =IF($D66="Lactació",M69,"") ->  | W100: =IF($D66="Lactació",W69,"") -> 
D101: =IF($D82="Lactació",D82,"") ->  | M101: =IF($D67="Lactació",M82,"") ->  | T101: =IF($D67="Lactació",R82,"") ->  | V101: =IF($D67="Lactació",T82,"") ->  | W101: =IF($D67="Lactació",W82,"") -> 
D102: =IF($D83="Lactació",D83,"") ->  | M102: =IF($D68="Lactació",M83,"") ->  | T102: =IF($D68="Lactació",R83,"") ->  | V102: =IF($D68="Lactació",T83,"") ->  | W102: =IF($D68="Lactació",W83,"") -> 
A103: Resta lactació | M103: =IF($D69="Lactació",M84,"") ->  | T103: =IF($D69="Lactació",R84,"") ->  | V103: =IF($D69="Lactació",T84,"") ->  | W103: =IF($D69="Lactació",W84,"") -> 
D104: =IF($D54="Eixugat",D54,"") ->  | M104: =IF($D82="Lactació",M85,"") ->  | T104: =IF($D82="Lactació",R85,"") ->  | V104: =IF($D82="Lactació",T85,"") ->  | W104: =IF($D82="Lactació",W85,"") -> 
D105: =IF($D55="Eixugat",D55,"") ->  | M105: Dies | N105: Pl | O105: CI | P105: UFL | Q105: PDI | R105: P | T105: Ca | V105: Mg | W105: K | X105: Na | Y105: UFL_VPR | Z105: PDI_VPR | AA105: S | AB105: Cl | AC105: Fe | AD105: Co | AE105: Cu | AF105: Mn | AG105: Zn | AH105: I | AI105: Se | AJ105: CI kg MS
D106: =IF($D56="Eixugat",D56,"") ->  | M106: =SUM(M88:M104) -> 137 | N106: =SUMPRODUCT($N$88:$N$104,R88:R104)/SUM($N$88:$N$104) -> 24.04743831 | O106: =SUMPRODUCT($N$88:$N$104,T88:T104)/SUM($N$88:$N$104) -> 18.37502715 | P106: =SUMPRODUCT($N$88:$N$104,V88:V104)/SUM($N$88:$N$104) -> 21.65658867 | Q106: =SUMPRODUCT($N$88:$N$104,W88:W104)/SUM($N$88:$N$104) -> 1860.878843 | R106: =SUMPRODUCT($N$88:$N$104,X88:X104)/SUM($N$88:$N$104) -> 42.84311191 | T106: =SUMPRODUCT($N$88:$N$104,AA88:AA104)/SUM($N$88:$N$104) -> 52.24163112 | V106: =SUMPRODUCT($N$88:$N$104,AB88:AB104)/SUM($N$88:$N$104) -> 11.30711575 | W106: =SUMPRODUCT($N$88:$N$104,AC88:AC104)/SUM($N$88:$N$104) -> 117.1623983 | X106: =SUMPRODUCT($N$88:$N$104,AD88:AD104)/SUM($N$88:$N$104) -> 27.68996038 | Y106: =SUMPRODUCT($N$88:$N$104,Y88:Y104)/SUM($N$88:$N$104) -> -0.7365421399 | Z106: =SUMPRODUCT($N$88:$N$104,Z88:Z104)/SUM($N$88:$N$104) -> -24.30589062 | AA106: =SUMPRODUCT($N$88:$N$104,AE88:AE104)/SUM($N$88:$N$104) -> 44.21569623 | AB106: 28.69835662 | AC106: 310.1094196 | AD106: 6.632354435 | AE106: 221.0784812 | AF106: 1105.392406 | AG106: 1105.392406 | AH106: 14.37010128 | AI106: 0.15 | AJ106: =SUMPRODUCT($N$88:$N$104,U88:U104)/SUM($N$88:$N$104) -> 22.10784812
D107: =IF($D57="Eixugat",D57,"") ->  | M107: =IF($D54="Eixugat",M57,"") ->  | Y107: =IF($D54="Eixugat",Y57,"") ->  | Z107: =IF($D54="Eixugat",Z57,"") ->  | AN107: =IF($D54="Eixugat",U57,"") -> 
D108: =IF($D58="Eixugat",D58,"") ->  | M108: =IF($D55="Eixugat",M58,"") ->  | N108: =IF($D55="Eixugat",N58,"") ->  | O108: =IF($D55="Eixugat",O58,"") ->  | P108: =IF($D55="Eixugat",P58,"") ->  | Q108: =IF($D55="Eixugat",Q58,"") ->  | R108: =IF($D55="Eixugat",R58,"") ->  | T108: =IF($D55="Eixugat",T58,"") ->  | AN108: =IF($D55="Eixugat",U58,"") -> 
T109: =IF($D56="Eixugat",T59,"") -> 
T110: =IF($D57="Eixugat",T60,"") -> 
T111: =IF($D58="Eixugat",T61,"") -> 
M112: 30 | N112: 0.08219178082 | O112: 0.08219178082 | P112: 0 | Q112: 0.08219178082 | R112: 0 | T112: =IF($D59="Eixugat",T62,"") -> 8.653974177 | U112: 13.17218001 | V112: 12.93911759 | W112: 682.3994221 | X112: 16.86747476 | Y112: -0.7380825502 | Z112: -24.35672416 | AA112: 21.74552884 | AB112: 7.7 | AC112: 50 | AD112: 11.8 | AE112: 26.34436002 | AF112: 17.1 | AG112: 180 | AH112: 3.951654003 | AI112: 131.7218001 | AJ112: 658.6090005 | AK112: 658.6090005 | AL112: 5.927481004 | AM112: 0 | AN112: 13.17218001
M113: 30 | N113: 0.08219178082 | O113: 0.08219178082 | P113: 0 | Q113: 0.08219178082 | R113: 0 | T113: =IF($D60="Eixugat",T63,"") -> 7.475160147 | U113: 13.17218001 | V113: 14.14131094 | W113: 773.855858 | X113: 17.78744717 | Y113: -0.7380825502 | Z113: -24.35672416 | AA113: 24.65130568 | AB113: 8.03 | AC113: 50 | AD113: 11.8 | AE113: 26.34436002 | AF113: 17.1 | AG113: 180 | AH113: 3.951654003 | AI113: 131.7218001 | AJ113: 658.6090005 | AK113: 658.6090005 | AL113: 5.927481004 | AM113: 0 | AN113: 13.17218001
T114: =IF($D61="Eixugat",T64,"") -> 
T115: =IF($D62="Eixugat",T65,"") -> 
T116: =IF($D63="Eixugat",T66,"") -> 
T117: =IF($D64="Eixugat",T67,"") -> 
D118: =IF($D59="Eixugat",D59,"") -> Eixugat | T118: =IF($D65="Eixugat",T68,"") -> 
D119: Eixugat | T119: =IF($D66="Eixugat",T69,"") -> 
M120: =IF($D67="Eixugat",M70,"") ->  | T120: =IF($D67="Eixugat",T70,"") -> 
M121: =IF($D68="Eixugat",M71,"") ->  | T121: =IF($D68="Eixugat",T71,"") -> 
M122: =IF($D69="Eixugat",M72,"") ->  | T122: =IF($D69="Eixugat",T72,"") -> 
M123: =IF($D70="Eixugat",M73,"") ->  | T123: =IF($D70="Eixugat",T73,"") -> 
M124: =IF($D71="Eixugat",M74,"") ->  | T124: =IF($D71="Eixugat",T74,"") -> 
A125: Eixugat | M125: =IF($D72="Eixugat",M75,"") ->  | T125: =IF($D72="Eixugat",T75,"") -> 
M126: =IF($D73="Eixugat",M76,"") ->  | T126: =IF($D73="Eixugat",T76,"") -> 
M127: =IF($D74="Eixugat",M77,"") ->  | T127: =IF($D74="Eixugat",T77,"") -> 
M128: =IF($D75="Eixugat",M78,"") ->  | T128: =IF($D75="Eixugat",T78,"") -> 
M129: =IF($D76="Eixugat",M79,"") ->  | T129: =IF($D76="Eixugat",T79,"") -> 
D130: =IF($D67="Eixugat",D67,"") ->  | M130: =IF($D77="Eixugat",M80,"") ->  | T130: =IF($D77="Eixugat",T80,"") -> 
D131: =IF($D68="Eixugat",D68,"") ->  | L131: III) | M131: Dies | N131: CI | O131: UFL | P131: PDI | Q131: P | R131: Ca | T131: Mg | V131: K | W131: Na | X131: S | Y131: UFL_VPR | Z131: PDI_VPR | AA131: Cl | AB131: Fe | AC131: Co | AD131: Cu | AE131: Mn | AF131: Zn | AG131: I | AH131: Se | AI131: CI kg MS
D132: =IF($D69="Eixugat",D69,"") ->  | M132: =SUM(M107:M130) -> 60 | N132: =SUMPRODUCT($N$107:$N$130,T107:T130)/SUM($N$107:$N$130) -> 8.064567162 | O132: =SUMPRODUCT($N$107:$N$130,V107:V130)/SUM($N$107:$N$130) -> 13.54021427 | P132: =SUMPRODUCT($N$107:$N$130,W107:W130)/SUM($N$107:$N$130) -> 728.1276401 | Q132: =SUMPRODUCT($N$107:$N$130,X107:X130)/SUM($N$107:$N$130) -> 17.32746097 | R132: =SUMPRODUCT($N$107:$N$130,AA107:AA130)/SUM($N$107:$N$130) -> 23.19841726 | T132: =SUMPRODUCT($N$107:$N$130,AB107:AB130)/SUM($N$107:$N$130) -> 7.865 | V132: =SUMPRODUCT($N$107:$N$130,AC107:AC130)/SUM($N$107:$N$130) -> 50 | W132: =SUMPRODUCT($N$107:$N$130,AD107:AD130)/SUM($N$107:$N$130) -> 11.8 | X132: =SUMPRODUCT($N$107:$N$130,AE107:AE130)/SUM($N$107:$N$130) -> 26.34436002 | Y132: =SUMPRODUCT($N$107:$N$130,Y107:Y130)/SUM($N$107:$N$130) -> -0.7380825502 | Z132: =SUMPRODUCT($N$107:$N$130,Z107:Z130)/SUM($N$107:$N$130) -> -24.35672416 | AA132: =SUMPRODUCT($N$107:$N$130,AF107:AF130)/SUM($N$107:$N$130) -> 17.1 | AB132: 180 | AC132: 3.951654003 | AD132: 131.7218001 | AE132: 658.6090005 | AF132: 658.6090005 | AG132: 5.927481004 | AH132: 0 | AI132: 13.17218001
D133: =IF($D82="Eixugat",D82,"") -> 
D134: =IF($D83="Eixugat",D83,"") -> 
D135: =IF($D84="Eixugat",D84,"") -> 
A136: Necessitats grup postpart (dades explotació)
A137: Necessitats grup al voltant del pic (dades explotació)
A138: Necessitats grup resta de lactació, del pic al final (dades explotació) | M138: Dies | N138: Pl | O138: CI | P138: UFL | Q138: PDI | R138: P | T138: Ca | V138: Mg | W138: K | X138: Na | Y138: UFL_VPR | Z138: PDI_VPR | AA138: S | AB138: Cl | AC138: Fe | AD138: Co | AE138: Cu | AF138: Mn | AG138: Zn | AH138: I | AI138: Se | AJ138: CI kg MS
A139: Necessitats un sol grup de lactació (dades explotació) | M139: =IF(D48="","",IF(D48="Lactació",SUM(M51:M53))) -> 84 | N139: =SUMPRODUCT($N$51:$N$53,R51:R53)/SUM($N$51:$N$53) -> 41.83023627 | O139: =SUMPRODUCT($N$51:$N$53,T51:T53)/SUM($N$51:$N$53) -> 18.69307838 | P139: =SUMPRODUCT($N$51:$N$53,V51:V53)/SUM($N$51:$N$53) -> 25.50452575 | Q139: =SUMPRODUCT($N$51:$N$53,W51:W53)/SUM($N$51:$N$53) -> 2607.494432 | R139: =SUMPRODUCT($N$51:$N$53,X51:X53)/SUM($N$51:$N$53) -> 61.02294685 | T139: =SUMPRODUCT($N$51:$N$53,AA51:AA53)/SUM($N$51:$N$53) -> 75.44190591 | V139: =SUMPRODUCT($N$51:$N$53,AB51:AB53)/SUM($N$51:$N$53) -> 13.97453544 | W139: =SUMPRODUCT($N$51:$N$53,AC51:AC53)/SUM($N$51:$N$53) -> 143.2453544 | X139: =SUMPRODUCT($N$51:$N$53,AD51:AD53)/SUM($N$51:$N$53) -> 34.92360632 | Y139: =SUMPRODUCT($N$51:$N$53,Y51:Y53)/SUM($N$51:$N$53) -> 2.311810253 | Z139: =SUMPRODUCT($N$51:$N$53,Z51:Z53)/SUM($N$51:$N$53) -> 88.78973836 | AA139: =SUMPRODUCT($N$51:$N$53,AE51:AE53)/SUM($N$51:$N$53) -> 52.95357638 | AB139: =SUMPRODUCT($N$51:$N$53,AF51:AF53)/SUM($N$51:$N$53) -> 30.77453544 | AD139: =SUMPRODUCT($N$51:$N$53,AH51:AH53)/SUM($N$51:$N$53) -> 7.943036457 | AE139: 264.7678819 | AF139: 1323.83941 | AG139: 1323.83941 | AH139: 17.20991232 | AI139: 0.15 | AJ139: =SUMPRODUCT($N$51:$N$53,U51:U53)/SUM($N$51:$N$53) -> 26.47678819
A140: Necessitats grup eixugat (dades explotació) | M140: =SUM(M54:M56) -> 84 | N140: =SUMPRODUCT($N$54:$N$56,R54:R56)/SUM($N$54:$N$56) -> 34.67295442 | O140: =SUMPRODUCT($N$54:$N$56,T54:T56)/SUM($N$54:$N$56) -> 20.2818192 | P140: =SUMPRODUCT($N$54:$N$56,V54:V56)/SUM($N$54:$N$56) -> 25.53543833 | Q140: =SUMPRODUCT($N$54:$N$56,W54:W56)/SUM($N$54:$N$56) -> 2380.811288 | R140: =SUMPRODUCT($N$54:$N$56,X54:X56)/SUM($N$54:$N$56) -> 54.11826988 | T140: =SUMPRODUCT($N$54:$N$56,AA54:AA56)/SUM($N$54:$N$56) -> 66.13446229 | V140: =SUMPRODUCT($N$54:$N$56,AB54:AB56)/SUM($N$54:$N$56) -> 12.90094316 | W140: =SUMPRODUCT($N$54:$N$56,AC54:AC56)/SUM($N$54:$N$56) -> 132.5094316 | X140: =SUMPRODUCT($N$54:$N$56,AD54:AD56)/SUM($N$54:$N$56) -> 31.70282949 | Y140: =SUMPRODUCT($N$54:$N$56,Y54:Y56)/SUM($N$54:$N$56) -> -0.6628905449 | Z140: =SUMPRODUCT($N$54:$N$56,Z54:Z56)/SUM($N$54:$N$56) -> -21.87538798 | AA140: =SUMPRODUCT($N$54:$N$56,AE54:AE56)/SUM($N$54:$N$56) -> 51.80583925 | AB140: =SUMPRODUCT($N$54:$N$56,AF54:AF56)/SUM($N$54:$N$56) -> 29.70094316 | AD140: =SUMPRODUCT($N$54:$N$56,AH54:AH56)/SUM($N$54:$N$56) -> 7.770875888 | AE140: 259.0291963 | AF140: 1295.145981 | AG140: 1295.145981 | AH140: 16.83689776 | AI140: 0.15 | AJ140: =SUMPRODUCT($N$54:$N$56,U54:U56)/SUM($N$54:$N$56) -> 25.90291963
A141: Necessitats per a una vaca (segons dades individuals) | M141: =M106 -> 137 | N141: 24.04743831 | O141: 18.37502715 | P141: 21.65658867 | Q141: 1860.878843 | R141: 42.84311191 | T141: 52.24163112 | V141: 11.30711575 | W141: 117.1623983 | X141: 27.68996038 | Y141: =Y106 -> -0.7365421399 | Z141: =Z106 -> -24.30589062 | AA141: 44.21569623 | AB141: 28.69835662 | AD141: 6.632354435 | AE141: 221.0784812 | AF141: 1105.392406 | AG141: 1105.392406 | AH141: 14.37010128 | AI141: 0.15 | AJ141: 22.10784812
D142: 4 | M142: ------- | N142: =SUMPRODUCT($M$139:$M$141,N139:N141)/SUM($M$139:$M$141) -> 31.87136743 | O142: 18.98777087 | P142: 23.78462174 | Q142: 2209.698629 | R142: 50.95530668 | T142: 62.45743735 | V142: 12.48070511 | W142: 128.5726249 | X142: 30.78736125 | Y142: =SUMPRODUCT($M$139:$M$141,Y139:Y141)/SUM($M$139:$M$141) -> 0.1232884667 | Z142: =SUMPRODUCT($M$139:$M$141,Z139:Z141)/SUM($M$139:$M$141) -> 7.511142351 | AA142: 48.71259442 | AB142: 29.54627889 | AD142: 7.306889163 | AE142: 243.5629721 | AF142: 1217.81486 | AG142: 1217.81486 | AH142: 15.83159319 | AI142: 0.15 | AJ142: =AJ106 -> 22.10784812 | BR142: Exemples segons valor interval entre parts
E143: <------- Elegir tipus de racionament | M143: =M132 -> 60 | N143: 0 | O143: =N132 -> 8.064567162 | P143: 13.54021427 | Q143: 728.1276401 | R143: 17.32746097 | T143: =R132 -> 23.19841726 | V143: =T132 -> 7.865 | W143: 50 | X143: 11.8 | Y143: =Y132 -> -0.7380825502 | Z143: =Z132 -> -24.35672416 | AA143: =X132 -> 26.34436002 | AB143: =AA132 -> 17.1 | AD143: 3.951654003 | AE143: 131.7218001 | AF143: 658.6090005 | AG143: 658.6090005 | AH143: 5.927481004 | AI143: 0 | AJ143: =AI132 -> 13.17218001 | BR143: IP = 365 dies | BT143: IP = 375 dies | BV143: IP = 385 dies | BX143: IP = 395 dies | BZ143: IP = 410 dies | CB143: IP = 425 dies | CD143: IP = 435 dies
K144: =IF(K20=K19,0,K20) -> 2 | M144: -------- | N144: =I18 -> 41.62474944 | O144: =IF(I3=1,M5,N5) -> 20.98703082 | P144: =IF($I$3=1,Q5,R5) -> 22.41900467 | Q144: =IF($I$3=1,S5,T5) -> 2637.703422 | R144: =IF($I$3=1,U5,V5) -> 60.6238478 | T144: =IF($I$3=1,W5,X5) -> 74.6938562 | V144: =IF($I$3=1,Y5,Z5) -> 13.39371242 | W144: =IF($I$3=1,AA5,AB5) -> 137.1871242 | X144: =IF($I$3=1,AC5,AD5) -> 33.68113725 | Y144: =I20 -> 0.8205914796 | Z144: =I21 -> 27.07951883 | AA144: =IF($I$3=1,AE5,AF5) -> 52.67848987 | AB144: =IF($I$3=1,AG5,AH5) -> 28.99371242 | AD144: =IF($I$3=1,AI5,AJ5) -> 7.90177348 | AE144: =IF($I$3=1,AK5,AL5) -> 263.3924493 | AF144: =IF($I$3=1,AM5,AN5) -> 1316.962247 | AG144: =IF($I$3=1,AO5,AP5) -> 1316.962247 | AH144: =IF($I$3=1,AQ5,AR5) -> 17.12050921 | AI144: =IF($I$3=1,AS5,AT5) -> 0.15 | AJ144: =IF($I$3=1,O5,P5) -> 26.33924493 | BR144: setmL | BS144: setmG | BT144: setmL | BU144: setmG | BV144: setmL | BW144: setmG | BX144: setmL | BY144: setmG | BZ144: setmL | CA144: setmG | CB144: setmL | CC144: setmG | CD144: setmL | CE144: setmG
A145: Necessitats | BR145: 2 | BS145: 0 | BT145: 2 | BU145: 0 | BV145: 2 | BW145: 0 | BX145: 2 | BY145: 0 | BZ145: 2 | CA145: 0 | CB145: 2 | CC145: 0 | CD145: 2 | CE145: 0
A146: Dies de racionament | D146: =M148 -> ------- | BR146: 5 | BS146: 0 | BT146: 5 | BU146: 0 | BV146: 5 | BW146: 0 | BX146: 5 | BY146: 0 | BZ146: 5 | CA146: 0 | CB146: 5 | CC146: 0 | CD146: 5 | CE146: 0
A147: Producció de llet estàndard l/vaca i dia | D147: =N148 -> 31.87136743 | M147: Dies | N147: Pl | O147: CI | P147: UFL | Q147: PDI | R147: P | T147: Ca | V147: Mg | W147: K | X147: Na | Y147: UFL_VPR | Z147: PDI_VPR | AA147: S | AB147: Cl | AC147: Fe | AD147: Co | AE147: Cu | AF147: Mn | AG147: Zn | AH147: I | AI147: Se | AJ147: CI kg MS | BR147: 9.5 | BS147: 0 | BT147: 9.5 | BU147: 0 | BV147: 9.5 | BW147: 0 | BX147: 9.5 | BY147: 0 | BZ147: 9.5 | CA147: 0 | CB147: 9.5 | CC147: 0 | CD147: 9.5 | CE147: 0
A148: Capacitat ingestió (UE) | D148: =O148 -> 18.98777087 | K148: A | L148: =IF(I3=1,-9.5+0.4*I17+1.89*I9,-13.2+0.4*I17+1.89*I9) -> 9.497826087 | M148: =IF($D$142=6,M144,IF($D$142<5,IF($D$142<4,IF($D$142<3,IF($D$142<2,M139,M140),M141),M142),M143)) -> ------- | N148: =IF($D$142=6,N144,IF($D$142<5,IF($D$142<4,IF($D$142<3,IF($D$142<2,N139,N140),N141),N142),N143)) -> 31.87136743 | O148: =IF($D$142=6,O144,IF($D$142<5,IF($D$142<4,IF($D$142<3,IF($D$142<2,O139,O140),O141),O142),O143)) -> 18.98777087 | P148: 23.78462174 | Q148: 2209.698629 | R148: 50.95530668 | S148: 0 | T148: 62.45743735 | U148: 0 | V148: 12.48070511 | W148: 128.5726249 | X148: 30.78736125 | Y148: 0.1232884667 | Z148: 7.511142351 | AA148: 48.71259442 | AB148: 29.54627889 | AC148: 0 | AD148: 7.306889163 | AE148: 243.5629721 | AF148: 1217.81486 | AG148: 1217.81486 | AH148: 15.83159319 | AI148: 0.15 | AJ148: 22.10784812 | BR148: 16 | BS148: 4.428571429 | BT148: 16 | BU148: 3 | BV148: 16 | BW148: 1.571428571 | BX148: 16 | BY148: 0.1428571429 | BZ148: 16 | CA148: 0 | CB148: 16 | CC148: 0 | CD148: 16 | CE148: 0
A149: Energia (UFL) | D149: =P148 -> 23.78462174 | K149: B | L149: =1/I9 -> 0.3333333333 | BR149: 20 | BS149: 8.428571429 | BT149: 20 | BU149: 7 | BV149: 20 | BW149: 5.571428571 | BX149: 20 | BY149: 4.142857143 | BZ149: 20 | CA149: 2 | CB149: 20 | CC149: 0 | CD149: 20 | CE149: 0
A150: Proteïna (g PDI) | D150: =Q148 -> 2209.698629 | K150: K | L150: =L148/(52*L149) -> 0.547951505 | BR150: 24 | BS150: 12.42857143 | BT150: 24 | BU150: 11 | BV150: 24 | BW150: 9.571428571 | BX150: 24 | BY150: 8.142857143 | BZ150: 24 | CA150: 6 | CB150: 24 | CC150: 3.857142857 | CD150: 24 | CE150: 2.428571429
A151: Ca (g) | D151: =T148 -> 62.45743735 | K151: A/B | L151: =L148/L149 -> 28.49347826 | BR151: 28 | BS151: 16.42857143 | BT151: 28 | BU151: 15 | BV151: 28 | BW151: 13.57142857 | BX151: 28 | BY151: 12.14285714 | BZ151: 28 | CA151: 10 | CB151: 28 | CC151: 7.857142857 | CD151: 28 | CE151: 6.428571429
A152: P (g) | D152: =R148 -> 50.95530668 | K152: A/1-B | L152: =L148/(1-L149) -> 14.24673913 | BR152: 32 | BS152: 20.42857143 | BT152: 32 | BU152: 19 | BV152: 32 | BW152: 17.57142857 | BX152: 32 | BY152: 16.14285714 | BZ152: 32 | CA152: 14 | CB152: 32 | CC152: 11.85714286 | CD152: 32 | CE152: 10.42857143
A153: Mg (g) | D153: =V148 -> 12.48070511 | K153: exp(-sl) | L153: =EXP(-I12) -> 0.0009118819656 | BR153: 36 | BS153: 24.42857143 | BT153: 36 | BU153: 23 | BV153: 36 | BW153: 21.57142857 | BX153: 36 | BY153: 20.14285714 | BZ153: 36 | CA153: 18 | CB153: 36 | CC153: 15.85714286 | CD153: 36 | CE153: 14.42857143
A154: K (g) | D154: =W148 -> 128.5726249 | K154: exp(-b*sl)/B | L154: =EXP(-L149*I12)/L149 -> 0.2909159036 | P154: Travada | BR154: 40 | BS154: 28.42857143 | BT154: 40 | BU154: 27 | BV154: 40 | BW154: 25.57142857 | BX154: 40 | BY154: 24.14285714 | BZ154: 40 | CA154: 22 | CB154: 40 | CC154: 19.85714286 | CD154: 40 | CE154: 18.42857143
A155: Na (g) | D155: =X148 -> 30.78736125 | P155: Lliure | BR155: 43.57142857 | BS155: 32 | BT155: 44 | BU155: 31 | BV155: 44 | BW155: 29.57142857 | BX155: 44 | BY155: 28.14285714 | BZ155: 44 | CA155: 26 | CB155: 44 | CC155: 23.85714286 | CD155: 44 | CE155: 22.42857143
A156: S (g) | D156: =AA148 -> 48.71259442 | M156: =I18*224 -> 9323.943876 | P156: Pastura pla | BR156: 0 | BS156: 36 | BT156: 45 | BU156: 32 | BV156: 46.42857143 | BW156: 32 | BX156: 47.85714286 | BY156: 32 | BZ156: 48 | CA156: 30 | CB156: 48 | CC156: 27.85714286 | CD156: 48 | CE156: 26.42857143
A157: Cl (g) | D157: =AB148 -> 29.54627889 | P157: Pastura llarga distància o dificultosa | BR157: 0 | BS157: 40 | BT157: 0 | BU157: 36 | BV157: 0 | BW157: 36 | BX157: 0 | BY157: 36 | BZ157: 50 | CA157: 32 | CB157: 52 | CC157: 31.85714286 | CD157: 52 | CE157: 30.42857143
A158: Co (mg) | D158: =AD148 -> 7.306889163 | K158: -0.83 | M158: =12000/224 -> 53.57142857 | P158: Pastura muntanyosa | BT158: 0 | BU158: 40 | BV158: 0 | BW158: 40 | BX158: 0 | BY158: 40 | BZ158: 0 | CA158: 36 | CB158: 52.14285714 | CC158: 32 | CD158: 53.57142857 | CE158: 32
A159: Cu (mg) | D159: =AE148 -> 243.5629721 | K159: =1.92*EXP(-0.0083*I12) -> 1.811626727 | BZ159: 0 | CA159: 40 | CB159: 0 | CC159: 36 | CD159: 0 | CE159: 36
A160: Mn (mg) | D160: =AF148 -> 1217.81486 | K160: =0.74*EXP(-0.88*I12) -> 0.001563067421 | CB160: 0 | CC160: 40 | CD160: 0 | CE160: 40
A161: Zn (mg) | D161: =AG148 -> 1217.81486 | K161: =0.5*EXP(-0.12*(45-I14)) -> 0.002258290471 | M161: =I17/(-0.55+1.66*EXP(-0.0065*I12)-0.72*EXP(-0.44*I12)-N161) -> 42.46100384 | N161: =0.69*EXP(-0.16*(45-I14)) -> 0.0005151442078
A162: I (mg) | D162: =AH148 -> 15.83159319 | K162: =K158+K159-K160-K161 -> 0.9778053695 | L162: =I17/K162 -> 43.53582681
A163: Se (mg) | D163: =AI148 -> 0.15
A164: Pes vaca adulta | D164: =IF(D142=6,I7,D10) -> 700
A165: EN mant | D165: =0.0536*D164^0.75*K6 -> 7.294378918
A166: EN llet | D166: =D147*0.42 -> 13.38597432
A167: CI kg MSI | D167: =AJ148 -> 22.10784812
A168: MP | D168: =D147*31 -> 988.0123904
A169: UFL_VPR | D169: =Y148 -> 0.1232884667
A170: PDI_VPR | D170: =Z148 -> 7.511142351
A171: PDI/UFL | D171: =D150/D149 -> 92.90451003
H175: =394+144 -> 538

Sheet II_Plantejar Ració
A1: Selecció d'ingredients, límits d'incorporació i preu | S1: =MIN($K$10) -> 19.81961089
B2: Límits d'incorporació | D2: Càlculs | G2: Preu Ingredient | S2: =COUNT($D$4:$D$26) -> 23
B3: kg mín | C3: kg màx | D3: kg fresc | E3: kg MS | F3: % fresc ració | G3: €/kg fresc | H3: Resultats solver | S3: =$L$18>=$J$18 -> TRUE
B4: 42.37 | C4: 95.65 | D4: 42.88684483 | E4: =D4*CàlculsVL!D3/100 -> 7.033442553 | F4: =(D4*100)/$J$4 -> 79.14062616 | G4: 0.35 | H4: kg fresc total | J4: =SUM(D4:D26) -> 54.19068172 | K4: kg farratge fresc total | M4: =SUM(D4:D8) -> 47.88684483 | O4: =MIN($K$10) -> 19.81961089 | S4: =$L$41<=$J$41 -> TRUE
A5: 0 | B5: 3 | C5: 3 | D5: 3 | E5: =D5*CàlculsVL!D4/100 -> 2.646 | F5: 5.536007123 | G5: 0.32 | H5: kg concentrat fresc total | J5: =J4-M4 -> 6.303836885 | K5: Aportacions totals UE | M5: =K15 -> 16.57739596 | O5: =COUNT($D$4:$D$26) -> 23 | R5: =COUNT($D$4:$D$26) -> 23 | S5: =$L$18<=$I$18 -> TRUE
A6: 0 | B6: 2 | C6: 2 | D6: 2 | E6: =D6*CàlculsVL!D5/100 -> 1.8 | F6: 3.690671415 | G6: 0.32 | H6: kg MS total | J6: =SUM(E4:E26) -> 17.13619441 | K6: kg MS total concentrat | M6: =J6-J7 -> 5.656751859 | O6: =$D$4:$D$26<=$C$4:$C$26 -> TRUE | R6: =$L$18>=$J$18 -> TRUE | S6: =$K$21<=$J$21 -> TRUE
A7: 0 | B7: 0 | C7: 0 | D7: 0 | E7: =D7*CàlculsVL!D6/100 -> 0 | F7: 0 | G7: 0.01 | H7: kg MS total farratge | J7: =SUM(E4:E8) -> 11.47944255 | K7: PCO | M7: =(M6)/J6 -> 0.3301054904 | O7: =$J$8>=$E$31 -> TRUE | R7: =$L$41<=$J$41 -> TRUE | S7: =$K$21>=$I$21 -> FALSE
A8: 0 | B8: 0 | C8: 0 | D8: 0 | E8: =D8*CàlculsVL!D7/100 -> 0 | F8: 0 | G8: 0.01 | H8: % MS farratge a la ració | J8: =(J7*100)/J6 -> 66.98945096 | K8: Relació UFL/UE farratge | M8: =SUMPRODUCT($E$4:$E$8,CàlculsVL!$F$3:$F$7)/SUMPRODUCT($E$4:$E$8,CàlculsVL!$E$3:$E$7) -> 0.8360399649 | O8: =$D$4:$D$26>=0 -> TRUE | R8: =$L$18<=$I$18 -> TRUE | S8: =$D$4:$D$26>=$B$4:$B$26 -> TRUE
A9: 0 | B9: 0 | C9: 0 | D9: 0 | E9: =D9*CàlculsVL!D8/100 -> 0 | F9: 0 | G9: 0.01 | H9: Taxa de substitució global | J9: =IF(M7=0,0,IF((B84-B83)*((1+(1/(9.5*M7))*LN((B86*EXP(9.5*(B89-M7))+1)/(B86*EXP(9.5*B89)+1))))+B83<0,0,(B84-B83)*((1+(1/(9.5*M7))*LN((B86*EXP(9.5*(B89-M7))+1)/(B86*EXP(9.5*B89)+1))))+B83)) -> 0.746850867 | K9: VALOR FUNCIÓ OBJECTIU €/Kg fresc | O9: =$K$13<=$J$13 -> TRUE | R9: =$K$21<=$J$21 -> TRUE | S9: =$K$15>=$I$15 -> FALSE
A10: 0 | B10: 0 | C10: 0 | D10: 0 | E10: =D10*CàlculsVL!D9/100 -> 0 | F10: 0 | G10: 0.21 | H10: Producció de llet | J10: =I_Necessitats!D147 -> 31.87136743 | K10: =SUMPRODUCT(D4:D26,G4:G26) -> 19.81961089 | L10: =SUMPRODUCT(D4:D8,G4:G8) -> 16.61039569 | M10: =K10-L10 -> 3.209215199 | O10: =$K$15<=$J$15 -> TRUE | R10: =$K$21>=$I$21 -> FALSE | S10: =$K$20>=$I$20 -> FALSE
A11: 0 | B11: 0 | C11: 8 | D11: 1.916002313 | E11: =D11*CàlculsVL!D10/100 -> 1.647761989 | F11: 3.535667485 | G11: 0.52 | H11: Paràmetres nutritius, límits, valors finals | O11: =$K$17<=$J$17 -> TRUE | R11: =$D$4:$D$26>=$B$4:$B$26 -> TRUE | S11: =$K$16=$J$16 -> FALSE
A12: 0 | B12: 0 | C12: 2 | D12: 2 | E12: =D12*CàlculsVL!D11/100 -> 1.8 | F12: 3.690671415 | G12: 0.35 | H12: Paràmetres | I12: Mínim | J12: Màxim | K12: Valor | L12: Valor/kg MS o % | M12: En alguns ingredients no hi consten els nutrients ... | O12: =$K$17>=$I$17 -> FALSE | R12: =$K$13>=$I$13 -> FALSE | S12: =$K$20<=$J$20 -> TRUE
A13: 0 | B13: 0 | C13: 8 | D13: 1.581417472 | E13: =D13*CàlculsVL!D12/100 -> 1.404298715 | F13: 2.918246129 | G13: 0.65 | H13: MSI (kg/dia) | I13: =0.95*E29 -> 21.00245571 | J13: =1.05*E29 -> 23.21324052 | K13: =J6 -> 17.13619441 | O13: =$K$20<=$J$20 -> TRUE | R13: =$K$15>=$I$15 -> FALSE | S13: =$K$17>=$I$17 -> FALSE
A14: 0 | B14: 0 | C14: 4 | D14: 0.5409217937 | E14: =D14*CàlculsVL!D13/100 -> 0.5403808719 | F14: 0.998182301 | G14: 0.65 | H14: %MS ració | I14: 0 | J14: 999 | K14: =SUMPRODUCT(F4:F26,CàlculsVL!D3:D25)/100 -> 31.62203144 | O14: =$K$16=$J$16 -> FALSE | R14: =$K$20>=$I$20 -> FALSE | S14: =$K$17<=$J$17 -> TRUE
A15: 0 | B15: 0 | C15: 4 | D15: 0 | E15: =D15*CàlculsVL!D14/100 -> 0 | F15: 0 | G15: 0.23 | H15: UEL | I15: =IF(J10=0,0.95*I_Necessitats!D148,0.95*I_Necessitats!D148*B87) -> 16.86279212 | J15: =IF(J10=0,1.05*I_Necessitats!D148,1.05*I_Necessitats!D148*B87) -> 18.63782287 | K15: =IF(J10=0,CàlculsVL!E26,IF(J9<0,0,IF(CàlculsVL!E28=0,0,CàlculsVL!E28+CàlculsVL!E28*'II_Plantejar Ració'!J9*(M7/(1-M7))))) -> 16.57739596 | L15: =K15/$J$6 -> 0.9673907496 | M15: =CàlculsVL!AN21 ->  | O15: =$K$20>=$I$20 -> FALSE | R15: =$K$16=$J$16 -> FALSE | S15: =$K$15<=$J$15 -> TRUE
A16: 0 | B16: 0 | C16: 2 | D16: 0 | E16: =D16*CàlculsVL!D15/100 -> 0 | F16: 0 | G16: 0.01 | H16: UFL | I16: =IF(J10=0,I_Necessitats!D149,I_Necessitats!D149*B47/B48) -> 25.10459921 | J16: =IF(J10=0,I_Necessitats!D149,I_Necessitats!D149*B47/B48) -> 25.10459921 | K16: =CàlculsVL!F26 -> 17.69719212 | L16: =K16/$J$6 -> 1.03273759 | M16: =CàlculsVL!AO21 ->  | O16: =$K$15>=$I$15 -> FALSE | R16: =$K$20<=$J$20 -> TRUE | S16: =$D$4:$D$26>=0 -> TRUE
A17: 0 | B17: 0 | C17: 2 | D17: 0 | E17: =D17*CàlculsVL!D16/100 -> 0 | F17: 0 | G17: 0.01 | H17: PDI | I17: =IF(J10=0,(1-E32/100)*(I_Necessitats!D150+E30*(0.5*(5.7+0.074*B57))/B79)*0.67/B79,(1-E32/100)*(G32+(G33+E30*(0.5*(5.7+0.074*B57))/B79)*(0.67/B79))) -> 2322.726576 | J17: =IF(J10=0,(1+E32/100)*(I_Necessitats!D150+E30*(0.5*(5.7+0.074*B57))/B79)*0.67/B79,(1+E32/100)*(G32+(G33+E30*(0.5*(5.7+0.074*B57))/B79)*(0.67/B79))) -> 2986.362741 | K17: =CàlculsVL!G26 -> 1417.173955 | L17: =K17/$J$6 -> 82.70062307 | M17: =CàlculsVL!AP21 ->  | O17: =$K$13>=$I$13 -> FALSE | R17: =$K$17>=$I$17 -> FALSE | S17: =$D$4:$D$26<=$C$4:$C$26 -> TRUE
B18: 0 | C18: 2 | D18: 0 | E18: =D18*CàlculsVL!D17/100 -> 0 | F18: 0 | G18: 0.01 | H18: BPR | I18: =IF(J10>30,ABS(-8),ABS(-14.2)) -> 8 | J18: =IF(J10>30,ABS(0),ABS(-8)) -> 0 | K18: =CàlculsVL!H26 -> 61.93349938 | L18: =ABS(K18/K13) -> 3.614192153 | M18: =CàlculsVL!AQ21 ->  | R18: =$K$17<=$J$17 -> TRUE | S18: ={32767;32767;0.001;0.01;FALSE;FALSE;TRUE;1;1;1;0.0001;FALSE} -> 32767
A19: 0 | B19: 0 | C19: 2 | D19: 0 | E19: =D19*CàlculsVL!D18/100 -> 0 | F19: 0 | G19: 0.01 | H19: NI | I19: =CàlculsVL!I26 -> 2.108149425 | J19: =I19 -> 2.108149425 | K19: =K13*100/I_Necessitats!D164 -> 2.448027773 | L19: =K19 -> 2.448027773 | M19: =CàlculsVL!AR21 ->  | R19: =$K$15<=$J$15 -> TRUE | S19: ={0;0;1;100;1;FALSE;TRUE;0.075;0;0;FALSE;30} -> 0
A20: 0 | B20: 0 | C20: 0 | D20: 0 | E20: =D20*CàlculsVL!D19/100 -> 0 | F20: 0 | G20: 0.01 | H20: Ca | I20: =((100-E32)/100)*(I_Necessitats!D151+0.663*$E$30) -> 51.76607708 | J20: =(100+E32)/100*(I_Necessitats!D151+0.663*$E$30) -> 66.55638481 | K20: =CàlculsVL!J26 -> 40.28096426 | L20: =K20/$J$6 -> 2.350636512 | M20: =CàlculsVL!AS21 ->  | R20: =$K$13<=$J$13 -> TRUE
A21: 0 | B21: 0 | C21: 2 | D21: 0 | E21: =D21*CàlculsVL!D20/100 -> 0 | F21: 0 | G21: 0.36 | H21: P | I21: =((100-E32)/100)*(I_Necessitats!D152+0.83*E30) -> 40.97522984 | J21: =(100+E32)/100*(I_Necessitats!D152+0.83*E30) -> 52.68243836 | K21: =CàlculsVL!K26 -> 39.36020829 | L21: 2.296904864 | M21: =CàlculsVL!AT21 ->  | R21: =$D$4:$D$26>=0 -> TRUE
A22: 0 | B22: 0 | C22: 2 | D22: 0.04317081407 | E22: =D22*CàlculsVL!D21/100 -> 0.0426527643 | F22: 0.07966464474 | G22: 0.36 | H22: Mg | I22: =((100-E32)/100)*I_Necessitats!D153 -> 10.92061698 | J22: =(100+E32)/100*I_Necessitats!D153 -> 14.04079325 | K22: =CàlculsVL!L26 -> 18.496983 | L22: 1.079410198 | M22: =CàlculsVL!AU21 -> Mg | R22: =$D$4:$D$26<=$C$4:$C$26 -> TRUE
B23: 0 | C23: 1 | D23: 0.2223244922 | E23: =D23*CàlculsVL!D22/100 -> 0.2216575187 | F23: 0.4102633242 | G23: 0.53 | H23: K | I23: =((100-E32)/100)*I_Necessitats!D154 -> 112.5010468 | J23: =(100+E32)/100*I_Necessitats!D154 -> 144.644203 | K23: =CàlculsVL!M26 -> 224.1864031 | L23: 13.08262487 | M23: =CàlculsVL!AV21 -> K | R23: =$J$8>=$E$31 -> TRUE
B24: 0 | C24: 0 | D24: 0 | E24: =D24*CàlculsVL!D23/100 -> 0 | F24: 0 | G24: 0.01 | H24: Na | I24: =((100-E32)/100)*I_Necessitats!D155 -> 26.93894109 | J24: =(100+E32)/100*I_Necessitats!D155 -> 34.6357814 | K24: =CàlculsVL!N26 -> 85.54574144 | L24: 4.99210848 | M24: =CàlculsVL!AW21 -> Na | R24: ={32767;32767;0.001;0.01;FALSE;FALSE;TRUE;1;1;1;0.001;TRUE} -> 32767
B25: 0 | C25: 0 | D25: 0 | E25: =D25*CàlculsVL!D24/100 -> 0 | F25: 0 | G25: 0.01 | H25: S | I25: =((100-E32)/100)*(I_Necessitats!D156+2*E30) -> 33.92312613 | J25: =(100+E32)/100*(I_Necessitats!D156+2*E30) -> 43.61544788 | K25: =CàlculsVL!O26 -> 11.46262301 | L25: 0.6689129884 | M25: =CàlculsVL!AX21 -> S | R25: ={0;0;1;100;0;TRUE;TRUE;0.075;0;0;FALSE;30} -> 0
B26: 0 | C26: 0 | D26: 0 | E26: =D26*CàlculsVL!D25/100 -> 0 | F26: 0 | G26: 0.01 | H26: Cl | I26: =((100-E32)/100)*I_Necessitats!D157 -> 25.85299402 | J26: =(100+E32)/100*I_Necessitats!D157 -> 33.23956375 | K26: =CàlculsVL!P26 -> 0.7370611598 | L26: 0.04301195131 | M26: =CàlculsVL!AY21 -> Cl
A27: Càlculs | F27: =SUM(F4:F26) -> 100 | H27: Co | I27: =((100-E32)/100)*(I_Necessitats!D158+0.3*E30) -> 5.08846892 | J27: =(100+E32)/100*(I_Necessitats!D158+0.3*E30) -> 6.542317182 | K27: =CàlculsVL!Q26 -> 0.6222449083 | L27: 0.03631173254 | M27: =CàlculsVL!AZ21 -> Co
A28: Efecte NI | D28: =IF(I_Necessitats!D142<6,IF(I_Necessitats!D142<5,IF(I_Necessitats!D142<4,IF(I_Necessitats!D142<3,IF(I_Necessitats!D142<2,I_Necessitats!A136,I_Necessitats!A137),I_Necessitats!A138),I_Necessitats!A139),I_Necessitats!A140),I_Necessitats!A141) -> Necessitats un sol grup de lactació (dades explotació) | H28: Cu | I28: =((100-E32)/100)*(I_Necessitats!D159+10*E30) -> 169.6156307 | J28: =(100+E32)/100*(I_Necessitats!D159+10*E30) -> 218.0772394 | K28: =CàlculsVL!R26 -> 84.56380743 | L28: 4.934806726 | M28: =CàlculsVL!BA21 -> Cu
